Workbook

Sheet Kuntakortti
A1: Valtiovarainministeriö/Kunta- ja aluehallinto-osasto, 7.10.2022
A2: KUNTIEN LOPULLISET TP:T 2019 - 2020 ja TP 2021 | G2: Valitse kunta valikosta:
A4: =INDEX(Luvut!$B$3:'Luvut'!$B$296,$A$7) -> KOKO MAA (Manner-Suomi) | D4: 2019 | G4: 2020 | J4: 2021
A6: Asukasluku | D6: =VLOOKUP($A$4,Luvut!$B$3:$AT$296,2) -> 5495408 | G6: =VLOOKUP($A$4,Luvut!$B$3:$ED$296,46) -> 5503664 | I6: =((G6/D6)-1)*100 -> 0.1502345231 | J6: =VLOOKUP($A$4,Luvut!$B$3:$ED$296,90) -> 5517897 | L6: =((J6/G6)-1)*100 -> 0.2586095372 | Q6: Kunta
A7: 95 | R7: 2019 | S7: 2020 | T7: 2021
A8: Tunnuslukuja | Q8: Vuosikate | R8: =D36 -> 1747616 | S8: =G36 -> 4072986 | T8: =J36 -> 3786456.894
I9: muutos% | L9: muutos% | N9: Konsernivelka, € | O9: Konsernivelka, € | P9: Konsernivelka, € | Q9: Poistot | R9: =D38 -> 2305725 | S9: =G38 -> 2397525 | T9: =J38 -> 2411475
A10: Lainat, euro/as | D10: =E67 -> 3351.896165 | G10: =H67 -> 3458.31159 | I10: =((G10/D10)-1)*100 -> 3.174782871 | J10: =K67 -> 3465.760416 | L10: =((J10/G10)-1)*100 -> 0.2153890756 | N10: 2019 | O10: 2020 | P10: 2021 | Q10: Tilikauden tulos | R10: =D41 -> -164092 | S10: =G41 -> 1756705 | T10: =J41 -> 1485638.647
A11: Konsernilainat, euro/as | D11: =VLOOKUP($A$4,Luvut!$B$3:$FM$296,167) -> 7105.3243 | G11: =VLOOKUP($A$4,Luvut!$B$3:$FM$296,168) -> 7480.922891 | I11: =((G11/D11)-1)*100 -> 5.286156901 | J11: =VLOOKUP($A$4,Luvut!$B$3:$FN$296,169) -> 7679.757319 | L11: =((J11/G11)-1)*100 -> 2.657886355 | N11: =D11*D6 -> 39046656000 | O11: =G11*G6 -> 41172486000 | P11: =J11*J6 -> 4.237610987e+10 | Q11: Taseen kertynyt ali-/ylijäämä | R11: =D47 -> 11087957 | S11: =G47 -> 12583318 | T11: =J47 -> 13856797.71
A12: Lainanhoitokate | D12: =VLOOKUP($A$4,Luvut!$B$3:$AT$296,4) -> 0.7093755419 | G12: =VLOOKUP($A$4,Luvut!$B$3:$ED$296,48) -> 1.988638614 | J12: =VLOOKUP($A$4,Luvut!$B$3:$ED$296,92) -> 1.905734999 | Q12: Toiminnan ja investointien rahavirta | R12: =D60 -> -1434149 | S12: =G60 -> 381794 | T12: =J60 -> 269580.3414
A13: Suhteellinen velkaantuneisuus, % | D13: =VLOOKUP($A$4,Luvut!$B$3:$AT$296,5) -> 62.06715478 | G13: =VLOOKUP($A$4,Luvut!$B$3:$ED$296,49) -> 59.95643965 | J13: =VLOOKUP($A$4,Luvut!$B$3:$ED$296,93) -> 57.90254182 | Q13: Lainakanta | R13: =D67 -> 18420037 | S13: =G67 -> 19033385 | T13: =J67 -> 19123709
A14: Rahoitusvarallisuus, euro/as | D14: =VLOOKUP($A$4,Luvut!$B$3:$AT$296,6) -> -3029.554312 | G14: =VLOOKUP($A$4,Luvut!$B$3:$ED$296,50) -> -2940.769277 | J14: =VLOOKUP($A$4,Luvut!$B$3:$ED$296,94) -> -2907 | Q14: Lainanhoitokate | R14: =D12 -> 0.7093755419 | S14: =G12 -> 1.988638614 | T14: =J12 -> 1.905734999
A15: Omavaraisuusaste, % | D15: =VLOOKUP($A$4,Luvut!$B$3:$AT$296,10) -> 57.82762771 | G15: =VLOOKUP($A$4,Luvut!$B$3:$ED$296,54) -> 57.95873446 | J15: =VLOOKUP($A$4,Luvut!$B$3:$ED$296,98) -> 58.80761313 | Q15: Veroprosentti | R15: =D72 -> 19.9 | S15: =G72 -> 19.96 | T15: =J72 -> 20.02
A17: Rahavarat, euro/as | D17: =VLOOKUP($A$4,Luvut!$B$3:$AT$296,11) -> 920.9359887 | G17: =VLOOKUP($A$4,Luvut!$B$3:$ED$296,55) -> 1172.770903 | J17: =VLOOKUP($A$4,Luvut!$B$3:$ED$296,99) -> 1178.883979 | Q17: Asukasluku | R17: =D6 -> 5495408 | S17: =G6 -> 5503664 | T17: =J6 -> 5517897
A18: Kassan riittävyys, pv | D18: =VLOOKUP($A$4,Luvut!$B$3:$AT$296,12) -> 41.94892614 | G18: =VLOOKUP($A$4,Luvut!$B$3:$ED$296,56) -> 52.56590898 | J18: =VLOOKUP($A$4,Luvut!$B$3:$ED$296,100) -> 50.68698657
A19: Kassastamaksut, euro/as | D19: =VLOOKUP($A$4,Luvut!$B$3:$AT$296,13) -> 8013.116588 | G19: =VLOOKUP($A$4,Luvut!$B$3:$ED$296,57) -> 8143.326882 | J19: =VLOOKUP($A$4,Luvut!$B$3:$ED$296,101) -> 8486.333805 | N19: 2019 - 2020 | O19: 2020 - 2021
A20: Tuloslaskelma | D20: 1000 | E20: euro/as | G20: 1000 | H20: euro/as | I20: muut.% | J20: 1000 | K20: euro/as | L20: muut.% | N20: €/as | O20: €/as
A22: Henkilöstömenot (palkat+sivukulut) | D22: =VLOOKUP($A$4,Luvut!$B$3:$AX$296,14) -> 13513374 | E22: =D22*1000/$D$6 -> 2459.030158 | G22: =VLOOKUP($A$4,Luvut!$B$3:$ED$296,58) -> 13613209 | H22: =G22*1000/$G$6 -> 2473.481121 | I22: =((G22/D22)-1)*100 -> 0.7387866272 | J22: =VLOOKUP($A$4,Luvut!$B$3:$ED$296,102) -> 14320379.82 | K22: =J22*1000/$J$6 -> 2595.260444 | L22: =((J22/G22)-1)*100 -> 5.194740033 | N22: =((H22/E22)-1)*100 -> 0.5876692221 | O22: =((K22/H22)-1)*100 -> 4.923398119
A23: Palvelujen ostot | D23: =VLOOKUP($A$4,Luvut!$B$3:$EF$296,134) -> 19288076 | E23: =D23*1000/$D$6 -> 3509.853318 | G23: =VLOOKUP($A$4,Luvut!$B$3:$EF$296,135) -> 19605831 | H23: =G23*1000/$G$6 -> 3562.32339 | I23: =((G23/D23)-1)*100 -> 1.647416777 | J23: =VLOOKUP($A$4,Luvut!$B$3:$EG$296,136) -> 21370725.51 | K23: =J23*1000/$J$6 -> 3872.983767 | L23: =((J23/G23)-1)*100 -> 9.001885768 | N23: =((H23/E23)-1)*100 -> 1.494936344 | O23: =((K23/H23)-1)*100 -> 8.720723608
A24: Toimintatuotot, sis. valmistus omaan käyt. | D24: =VLOOKUP($A$4,Luvut!$B$3:$AT$296,15) -> 7546090 | E24: =D24*1000/$D$6 -> 1373.16283 | G24: =VLOOKUP($A$4,Luvut!$B$3:$ED$296,59) -> 7208017 | H24: =G24*1000/$G$6 -> 1309.676063 | I24: -4.480108241 | J24: =VLOOKUP($A$4,Luvut!$B$3:$ED$296,103) -> 8352897.496 | K24: =J24*1000/$J$6 -> 1513.782786 | L24: 15.88343223 | N24: -4.623396826 | O24: 15.58451964
A25: Toimintakulut | D25: =VLOOKUP($A$4,Luvut!$B$3:$AT$296,16) -> 37903026 | E25: =D25*1000/$D$6 -> 6897.217823 | G25: =VLOOKUP($A$4,Luvut!$B$3:$ED$296,60) -> 38429297 | H25: =G25*1000/$G$6 -> 6982.493299 | I25: 1.388466979 | J25: =VLOOKUP($A$4,Luvut!$B$3:$ED$296,104) -> 40635574.5 | K25: =J25*1000/$J$6 -> 7364.322766 | L25: 5.74113416 | N25: 1.236374994 | O25: 5.468382863
A26: Toimintakate | D26: =VLOOKUP($A$4,Luvut!$B$3:$AT$296,17) -> -30356936 | E26: -5524.054993 | G26: =VLOOKUP($A$4,Luvut!$B$3:$ED$296,61) -> -31221280 | H26: -5672.817236 | I26: 2.847270225 | J26: =VLOOKUP($A$4,Luvut!$B$3:$ED$296,105) -> -32282677 | K26: =J26*1000/$J$6 -> -5850.53998 | L26: =((J26/G26)-1)*100 -> 3.399594769 | N26: 2.692989902 | O26: =((K26/H26)-1)*100 -> 3.132883297
A28: Verotulot | D28: =VLOOKUP($A$4,Luvut!$B$3:$AT$296,18) -> 22912315 | E28: 4169.356488 | G28: =VLOOKUP($A$4,Luvut!$B$3:$ED$296,62) -> 23825588 | H28: 4329.041162 | I28: 3.985948168 | J28: =VLOOKUP($A$4,Luvut!$B$3:$ED$296,106) -> 25418413.49 | K28: =J28*1000/$J$6 -> 4606.540045 | L28: 6.685356493 | N28: 3.829959723 | O28: 6.410169646
A29: Valtionosuudet, | D29: =VLOOKUP($A$4,Luvut!$B$3:$AT$296,19) -> 8640795 | E29: 1572.366419 | G29: =VLOOKUP($A$4,Luvut!$B$3:$ED$296,63) -> 11005673 | H29: 1999.699291 | I29: 27.36875484 | J29: =VLOOKUP($A$4,Luvut!$B$3:$ED$296,107) -> 10080583.07 | K29: =J29*1000/$J$6 -> 1826.88859 | L29: -8.405573487 | N29: 27.17769005 | O29: -8.641834416
A30: josta hark.var. korotus | D30: =VLOOKUP($A$4,Luvut!$B$3:$EJ$296,137) -> 10000 | E30: 1.819701103 | G30: =VLOOKUP($A$4,Luvut!$B$3:$EJ$296,138) -> 60000 | H30: 10.90182831 | J30: =VLOOKUP($A$4,Luvut!$B$3:$EJ$296,139) -> 30000 | K30: =J30*1000/$J$6 -> 5.436853932
A31: Verorahoitus | D31: =SUM(D28:D29) -> 31553110 | E31: 5741.722908 | G31: =SUM(G28:G29) -> 34831261 | H31: 6328.740454 | I31: 10.38931186 | J31: =SUM(J28:J29) -> 35498996.56 | K31: =J31*1000/$J$6 -> 6433.428635 | L31: 1.91705825 | N31: 10.22371779 | O31: 1.654170869
A32: Käyttökate | D32: =D31+D26 -> 1196174 | E32: 217.6679147 | G32: =G26+G31 -> 3609981 | H32: 655.9232177 | J32: =J26+J31 -> 3216319.561 | K32: =J32*1000/$J$6 -> 582.888655
A34: Korkotuotot/-menot, netto | D34: =VLOOKUP($A$4,Luvut!$B$3:$AT$296,22) -> 68795 | E34: 12.51863374 | G34: =VLOOKUP($A$4,Luvut!$B$3:$ED$296,66) -> 58142 | H34: 10.56423503 | J34: =VLOOKUP($A$4,Luvut!$B$3:$ED$296,110) -> 61205.48762 | K34: =J34*1000/$J$6 -> 11.09217653
A35: Muut rahoituskulut/-tuotot, netto | D35: =VLOOKUP($A$4,Luvut!$B$3:$AT$296,23) -> 482647 | E35: 87.82732783 | G35: =VLOOKUP($A$4,Luvut!$B$3:$ED$296,67) -> 404863 | H35: 73.56244858 | J35: =VLOOKUP($A$4,Luvut!$B$3:$ED$296,111) -> 508931.8689 | K35: =J35*1000/$J$6 -> 92.23294109
A36: Vuosikate | D36: =VLOOKUP($A$4,Luvut!$B$3:$AT$296,24) -> 1747616 | E36: 318.0138763 | G36: =VLOOKUP($A$4,Luvut!$B$3:$ED$296,68) -> 4072986 | H36: 740.0499013 | J36: =VLOOKUP($A$4,Luvut!$B$3:$ED$296,112) -> 3786456.894 | K36: =J36*1000/$J$6 -> 686.2137685
A38: Suunnitelman mukaiset poistot ja arvonalen. | D38: =VLOOKUP($A$4,Luvut!$B$3:$AT$296,25) -> 2305725 | E38: 419.5730326 | G38: =VLOOKUP($A$4,Luvut!$B$3:$ED$296,69) -> 2397525 | H38: 435.623432 | I38: 3.981394139 | J38: =VLOOKUP($A$4,Luvut!$B$3:$ED$296,113) -> 2411475 | K38: =J38*1000/$J$6 -> 437.0279112 | L38: 0.5818500328
A39: Satunnaiset tuotot | D39: =VLOOKUP($A$4,Luvut!$B$3:$AT$296,26) -> 403902 | E39: 73.4980915 | G39: =VLOOKUP($A$4,Luvut!$B$3:$ED$296,70) -> 90574 | H39: 16.45703662 | J39: =VLOOKUP($A$4,Luvut!$B$3:$ED$296,114) -> 115628.7626 | K39: =J39*1000/$J$6 -> 20.95522309
A40: Satunnaiset kulut | D40: =VLOOKUP($A$4,Luvut!$B$3:$AT$296,27) -> 9885 | E40: 1.79877454 | G40: =VLOOKUP($A$4,Luvut!$B$3:$ED$296,71) -> 9330 | H40: 1.695234302 | J40: =VLOOKUP($A$4,Luvut!$B$3:$ED$296,115) -> 7179 | K40: =J40*1000/$J$6 -> 1.301039146
A41: Tilikauden tulos | D41: =VLOOKUP($A$4,Luvut!$B$3:$AT$296,28) -> -164092 | E41: -29.85983934 | G41: =VLOOKUP($A$4,Luvut!$B$3:$ED$296,72) -> 1756705 | H41: 319.1882717 | J41: =VLOOKUP($A$4,Luvut!$B$3:$ED$296,116) -> 1485638.647 | K41: =J41*1000/$J$6 -> 269.2400106
A43: Poistoeron lisäys(-) tai vähennys(+) | D43: =VLOOKUP($A$4,Luvut!$B$3:$AT$296,29) -> -4535 | E43: -0.8252344503 | G43: =VLOOKUP($A$4,Luvut!$B$3:$ED$296,73) -> -25237 | H43: -4.585490684 | J43: =VLOOKUP($A$4,Luvut!$B$3:$ED$296,117) -> -6079.26439 | K43: =J43*1000/$J$6 -> -1.10173575
A44: Varausten lisäys(-) tai vähennys(+) | D44: =VLOOKUP($A$4,Luvut!$B$3:$AT$296,30) -> 8374 | E44: 1.523817704 | G44: =VLOOKUP($A$4,Luvut!$B$3:$ED$296,74) -> -96451 | H44: -17.5248707 | J44: =VLOOKUP($A$4,Luvut!$B$3:$ED$296,118) -> 105119.8924 | K44: =J44*1000/$J$6 -> 19.05071668
A45: Rahastojen lisäys(-) tai vähennys(+) | D45: =VLOOKUP($A$4,Luvut!$B$3:$AT$296,31) -> 28188 | E45: 5.12937347 | G45: =VLOOKUP($A$4,Luvut!$B$3:$ED$296,75) -> -61014 | H45: -11.08606921 | J45: =VLOOKUP($A$4,Luvut!$B$3:$ED$296,119) -> 1264.72718 | K45: =J45*1000/$J$6 -> 0.2292045647
A46: Tilikauden yli-/alijäämä | D46: =VLOOKUP($A$4,Luvut!$B$3:$AT$296,32) -> -132065 | E46: -24.03188262 | G46: =VLOOKUP($A$4,Luvut!$B$3:$ED$296,76) -> 1576021 | H46: 286.3585059 | J46: =VLOOKUP($A$4,Luvut!$B$3:$ED$296,120) -> 1380876.484 | K46: =J46*1000/$J$6 -> 250.2541247
A47: Taseen kertynyt yli-/alijäämä | D47: =VLOOKUP($A$4,Luvut!$B$3:$AU$296,33) -> 11087957 | E47: 2017.676758 | G47: =VLOOKUP($A$4,Luvut!$B$3:$ED$296,77) -> 12583318 | H47: 2286.352873 | I47: 13.48635281 | J47: =VLOOKUP($A$4,Luvut!$B$3:$ED$296,121) -> 13856797.71 | K47: =J47*1000/$J$6 -> 2511.246171 | L47: 10.1203809 | N47: 13.31611288 | O47: 9.836333666
A49: Rahoituslaskelma | D49: 1000 | E49: euro/as | G49: 1000 | H49: euro/as | J49: 1000 | K49: euro/as
A51: Toiminnan rahavirta | D51: =VLOOKUP($A$4,Luvut!$B$3:$AT$296,34) -> 1298911 | E51: 236.362978 | G51: =VLOOKUP($A$4,Luvut!$B$3:$ED$296,78) -> 3702496 | H51: =G51*1000/$G$6 -> 672.7329285 | J51: =VLOOKUP($A$4,Luvut!$B$3:$ED$296,122) -> 3134186.075 | K51: =J51*1000/$J$6 -> 568.0037295
A52: Investoinnit, netto | D52: =D53+D54+D55 -> -2733060 | E52: -497.3352297 | G52: =G53+G54+G55 -> -3320702 | H52: -603.3620512 | I52: 21.50124769 | J52: =J53+J54+J55 -> -2868294.142 | K52: -519.8165428 | L52: -13.62386201
A53: - Investointimenot | D53: =VLOOKUP($A$4,Luvut!$B$3:$EP$296,140) -> -4048365 | E53: -736.6814257 | G53: =VLOOKUP($A$4,Luvut!$B$3:$EP$296,143) -> -4312042 | H53: -783.4856924 | I53: 6.513172602 | J53: =VLOOKUP($A$4,Luvut!$B$3:$FM$296,146) -> -3972968.4 | K53: -720.0149622 | L53: -7.863411353
A54: + Rahoitusosuudet investointimenoihin | D54: =VLOOKUP($A$4,Luvut!$B$3:$EP$296,141) -> 138051 | E54: 25.1211557 | G54: =VLOOKUP($A$4,Luvut!$B$3:$EP$296,144) -> 185133 | H54: 33.63813634 | I54: =((G54/D54)-1)*100 -> 34.10478736 | J54: =VLOOKUP($A$4,Luvut!$B$3:$FM$296,147) -> 153160.4398 | K54: 27.7570313 | L54: -17.27004923
A55: + Investointihyödykkeiden luovutustulot | D55: =VLOOKUP($A$4,Luvut!$B$3:$EP$296,142) -> 1177254 | E55: 214.2250403 | G55: =VLOOKUP($A$4,Luvut!$B$3:$EP$296,145) -> 806207 | H55: 146.4855049 | I55: =((G55/D55)-1)*100 -> -31.51800716 | J55: =VLOOKUP($A$4,Luvut!$B$3:$FM$296,148) -> 951513.8182 | K55: 172.4413881 | L55: 18.02351235
A56: Saamisten muutos | D56: =VLOOKUP($A$4,Luvut!$B$3:$AT$296,36) -> -66136 | E56: -12.03477522 | G56: =VLOOKUP($A$4,Luvut!$B$3:$ED$296,80) -> -31312 | H56: -5.6893008 | J56: =VLOOKUP($A$4,Luvut!$B$3:$ED$296,124) -> -239226.9649 | K56: -43.35473549
A57: Pitkäaikaisten lainojen vähennys | D57: =VLOOKUP($A$4,Luvut!$B$3:$AT$296,37) -> -1779142 | E57: -323.750666 | G57: =VLOOKUP($A$4,Luvut!$B$3:$ED$296,81) -> -1966295 | H57: -357.2701749 | J57: =VLOOKUP($A$4,Luvut!$B$3:$ED$296,125) -> 1902425.344 | K57: 344.7736238
A58: Pitkäaikaisten lainojen lisäys | D58: =VLOOKUP($A$4,Luvut!$B$3:$EY$296,149) -> 2830766 | E58: 515.1148013 | G58: =VLOOKUP($A$4,Luvut!$B$3:$EY$296,151) -> 3338105 | H58: 606.5241265 | J58: =VLOOKUP($A$4,Luvut!$B$3:$EY$296,153) -> 1567080.941 | K58: 283.9996725
A59: ± Lyhytaikaisten lainojen muutos | D59: =VLOOKUP($A$4,Luvut!$B$3:$EY$296,150) -> 632620 | E59: 115.1179312 | G59: =VLOOKUP($A$4,Luvut!$B$3:$EY$296,152) -> -762131 | H59: -138.4770219 | J59: =VLOOKUP($A$4,Luvut!$B$3:$EY$296,154) -> 454923.1036 | K59: 82.44501549 | N59: 2019 - 2020 | O59: 2020 - 2021
A60: Toiminnan ja investointien rahavirta | D60: =VLOOKUP($A$4,Luvut!$B$3:$AT$296,38) -> -1434149 | E60: -260.9722517 | G60: =VLOOKUP($A$4,Luvut!$B$3:$ED$296,82) -> 381794 | H60: 69.37087729 | J60: =VLOOKUP($A$4,Luvut!$B$3:$ED$296,126) -> 269580.3414 | K60: 48.8556313 | N60: €/as | O60: €/as
A62: Verotulot | D62: =VLOOKUP($A$4,Luvut!$B$3:$AT$296,39) -> 22912315 | E62: 4169.356488 | G62: =VLOOKUP($A$4,Luvut!$B$3:$ED$296,83) -> 23825588 | H62: 4329.041162 | I62: =((G62/D62)-1)*100 -> 3.985948168 | J62: =SUM(J63:J65) -> 25418370.63 | K62: =J62*1000/$J$6 -> 4606.532276 | L62: =((J62/G62)-1)*100 -> 6.685176575 | N62: =((H62/E62)-1)*100 -> 3.829959723 | O62: =((K62/H62)-1)*100 -> 6.409990192
A63: Kunnallisvero | D63: =VLOOKUP($A$4,Luvut!$B$3:$AT$296,40) -> 19142606 | E63: 3483.382126 | G63: =VLOOKUP($A$4,Luvut!$B$3:$ED$296,84) -> 20124065 | H63: 3656.485025 | I63: =((G63/D63)-1)*100 -> 5.127091891 | J63: =VLOOKUP($A$4,Luvut!$B$3:$ED$296,128) -> 20602525.19 | K63: =J63*1000/$J$6 -> 3733.764003 | L63: =((J63/G63)-1)*100 -> 2.377552397 | N63: =((H63/E63)-1)*100 -> 4.969391626 | O63: =((K63/H63)-1)*100 -> 2.113477207
A64: Yhteisövero | D64: =VLOOKUP($A$4,Luvut!$B$3:$AT$296,41) -> 1902907 | E64: 346.2721967 | G64: =VLOOKUP($A$4,Luvut!$B$3:$ED$296,85) -> 1956930 | H64: 355.5685812 | I64: 2.838972162 | J64: =VLOOKUP($A$4,Luvut!$B$3:$ED$296,129) -> 2847097.601 | K64: =J64*1000/$J$6 -> 515.9751263 | L64: 45.48796335 | N64: 2.684704286 | O64: 45.1126881
A65: Kiinteistövero | D65: =VLOOKUP($A$4,Luvut!$B$3:$AT$296,42) -> 1866802 | E65: 339.7021659 | G65: =VLOOKUP($A$4,Luvut!$B$3:$ED$296,86) -> 1744593 | H65: 316.9875559 | I65: -6.546436098 | J65: =VLOOKUP($A$4,Luvut!$B$3:$ED$296,130) -> 1968747.837 | K65: =J65*1000/$J$6 -> 356.7931472 | L65: 12.84854616 | N65: -6.686625002 | O65: 12.55746182
A67: Lainakanta, | D67: =VLOOKUP($A$4,Luvut!$B$3:$FG$296,155) -> 18420037 | E67: 3351.896165 | G67: =VLOOKUP($A$4,Luvut!$B$3:$FG$296,159) -> 19033385 | H67: 3458.31159 | I67: 3.329787014 | J67: =VLOOKUP($A$4,Luvut!$B$3:$FM$296,163) -> 19123709 | K67: =J67*1000/$J$6 -> 3465.760416 | L67: 0.4745556295 | N67: 3.174782871 | O67: 0.2153890756
A68: josta pitkäaikainen laina | D68: =VLOOKUP($A$4,Luvut!$B$3:$FG$296,156) -> 12599485 | E68: 2292.729675 | G68: =VLOOKUP($A$4,Luvut!$B$3:$FG$296,160) -> 13927122 | H68: 2530.518215 | J68: =VLOOKUP($A$4,Luvut!$B$3:$FM$296,164) -> 13571947 | K68: =J68*1000/$J$6 -> 2459.623114 | N68: 10.3714163 | O68: -2.801604063
A69: josta lyhytaikainen laina | D69: =VLOOKUP($A$4,Luvut!$B$3:$FG$296,157) -> 5820552 | E69: 1059.16649 | G69: =VLOOKUP($A$4,Luvut!$B$3:$FG$296,161) -> 5106263 | H69: 927.7933755 | J69: =VLOOKUP($A$4,Luvut!$B$3:$FM$296,165) -> 5551762 | K69: =J69*1000/$J$6 -> 1006.137302 | N69: -12.40344321 | O69: 8.444113587
A70: Lainasaamiset | D70: =VLOOKUP($A$4,Luvut!$B$3:$FG$296,158) -> 5548348 | E70: 1009.633498 | G70: =VLOOKUP($A$4,Luvut!$B$3:$FG$296,162) -> 5670611 | H70: 1030.333792 | J70: =VLOOKUP($A$4,Luvut!$B$3:$FM$296,166) -> 5036550.609 | K70: =J70*1000/$J$6 -> 912.7663326 | N70: 2.050278105 | O70: -11.41061862
A72: Tuloveroprosentti | D72: =VLOOKUP($A$4,Luvut!$B$3:$AT$296,43) -> 19.9 | G72: =VLOOKUP($A$4,Luvut!$B$3:$ED$296,87) -> 19.96 | J72: =VLOOKUP($A$4,Luvut!$B$3:$ED$296,131) -> 20.02
A73: Veroprosenttiyksikön tuotto | D73: =D63/D72 -> 961940 | E73: =D73*1000/$D$6 -> 175.0443279 | G73: =G63/G72 -> 1008219.689 | H73: =G73*1000/$G$6 -> 183.1906325 | J73: =J63/J72 -> 1029097.162 | K73: =J73*1000/$J$6 -> 186.5016984
A75: Sijoitus vuosikatteen (euro/as) mukaan | D75: =VLOOKUP($A$4,Luvut!$B$3:$AT$296,45) -> - | G75: =VLOOKUP($A$4,Luvut!$B$3:$ED$296,89) -> - | J75: =VLOOKUP($A$4,Luvut!$B$3:$ED$296,133) -> -
A76: Lähde: Tilastokeskus ja valtiokonttori
A78: Kunnat vuoden 2022 kuntajaolla
B80: =D4 -> 2019 | C80: =G4 -> 2020 | D80: =J4 -> 2021
A81: Vuosikate | B81: =E36 -> 318.0138763 | C81: =H36 -> 740.0499013 | D81: =K36 -> 686.2137685
A82: Poistot | B82: =E38 -> 419.5730326 | C82: =H38 -> 435.623432 | D82: =K38 -> 437.0279112
A83: Investoinnit, netto | B83: =-E52 -> 497.3352297 | C83: =-H52 -> 603.3620512 | D83: =-K52 -> 519.8165428

Sheet Luvut
C1: 2019 | E1: 92 | F1: 93 | G1: 94 | H1: 95 | I1: 96 | J1: 97 | K1: 98 | L1: 99 | M1: 100 | N1: 101 | O1: 102 | P1: 103 | Q1: 104 | R1: 105 | S1: 106 | T1: 107 | U1: 108 | W1: 110 | X1: 111 | Y1: 112 | Z1: 113 | AA1: 114 | AB1: 115 | AC1: 116 | AD1: 117 | AE1: 118 | AF1: 119 | AG1: 120 | AH1: 121 | AI1: 122 | AK1: 124 | AL1: 125 | AM1: 126 | AN1: 127 | AO1: 128 | AP1: 129 | AQ1: 130 | AR1: 131 | AS1: 132 | AT1: 133 | AU1: 2020 | AW1: 92 | AX1: 93 | AY1: 94 | AZ1: 95 | BA1: 96 | BB1: 97 | BC1: 98 | BD1: 99 | BE1: 100 | BF1: 101 | BG1: 102 | BH1: 103 | BI1: 104 | BJ1: 105 | BK1: 106 | BL1: 107 | BM1: 108 | BN1: 109 | BO1: 110 | BP1: 111 | BQ1: 112 | BR1: 113 | BS1: 114 | BT1: 115 | BU1: 116 | BV1: 117 | BW1: 118 | BX1: 119 | BY1: 120 | BZ1: 121 | CA1: 122 | CB1: 123 | CC1: 124 | CD1: 125 | CE1: 126 | CF1: 127 | CG1: 128 | CH1: 129 | CI1: 130 | CJ1: 131 | CK1: 132 | CL1: 133 | CM1: 2021 | CO1: 92 | CP1: 93 | CQ1: 94 | CR1: 95 | CS1: 96 | CT1: 97 | CU1: 98 | CV1: 99 | CW1: 100 | CX1: 101 | CY1: 102 | CZ1: 103 | DA1: 104 | DB1: 105 | DC1: 106 | DD1: 107 | DE1: 108 | DF1: summana | DG1: 110 | DH1: 111 | DI1: 112 | DJ1: 113 | DK1: 114 | DL1: 115 | DM1: 116 | DN1: 117 | DO1: 118 | DP1: 119 | DQ1: 120 | DR1: 121 | DS1: 122 | DT1: 123 | DU1: 124 | DV1: 125 | DW1: 126 | DX1: 127 | DY1: 128 | DZ1: 129 | EA1: 130 | EB1: 131 | EC1: 132 | ED1: 133 | EE1: Erillistiedot | EF1: 135 | EG1: 136 | EH1: 137 | EI1: 138 | EJ1: 139 | EK1: 2019 | EL1: 144 | EM1: 145 | EN1: 2020 | EO1: 147 | EP1: 148 | EQ1: 2021 | ER1: 147 | ES1: 148 | ET1: 2019 | EU1: 152 | EV1: 2020 | EW1: 154 | EX1: 2021 | EZ1: 2019 | FA1: 160 | FB1: 161 | FC1: 162 | FD1: 2020 | FE1: 164 | FF1: 165 | FG1: 166 | FH1: 2021 | FI1: 164 | FJ1: 165 | FK1: 166 | FL1: 2019 | FM1: 2020 | FN1: 2021 | FO1: Yhden vero%:n | FP1: Yhden vero%:n
A2: Kunta nro | B2: Kunta | C2: Asukasluku | E2: Lainanhoitokate | F2: Suhteellinen velkaantuneisuus-% | G2: Rahoitusvarallisuus, e/as | K2: Omavaraisuusaste, % | L2: Rahavarat e/as | M2: Kassan riittävyys, pv | N2: Kassasta maksut, €/as | O2: Henkilöstökulut | P2: Toimintatuotot | Q2: Toimintakulut | R2: Toimintakate | S2: Verotulot | T2: Valtionosuudet | U2: Alv-takaisinperintä | W2: Korkotuotot/-menot, netto | X2: Muut rahoitustuotot/-menot, netto (sis Osinkotuotot) | Y2: Vuosikate | Z2: Suunnitelman mukaiset poistot ja arvonalet | AA2: Satunnaiset tuotot | AB2: Satunnaiset kulut | AC2: Tilikauden tulos | AD2: Poistoeron lisäys(-) tai vähennys(+) | AE2: Varausten lisäys(-) tai vähennys(+) | AF2: Rahastojen lisäys(-) tai vähennys(+) | AG2: Tilikauden yli- tai alijäämä | AH2: Kumulat yli/alij | AI2: Tulorah (toiminnan rahavirta) | AK2: Saamisten muutos | AL2: Pitkäaikaisten lainojen vähennys | AM2: Toim ja inv rahavirta | AN2: Verotulot | AO2: Kunnallisvero | AP2: Osuus yhteisöveron tuotosta | AQ2: Kiinteistövero | AR2: Tuloveroprosentti | AT2: Sijoitus vuosikatteen mukaan | AU2: Asukasluku | AW2: Lainanhoitokate | AX2: Suht. velkaantuneisuus-% | AY2: Rahoitusvarallisuus, e/as | BC2: Omavaraisuusaste, % | BD2: Rahavarat e/as | BE2: Kassan riittävyys, pv | BF2: Kassasta maksut, €/as | BG2: Henkilöstökulut | BH2: Toimintatuotot | BI2: Toimintakulut | BJ2: Toimintakate | BK2: Verotulot | BL2: Valtionosuudet | BO2: Korkotuotot/-menot, netto | BP2: Muut rahoitustuotot/-menot, netto (sis Osinkotuotot) | BQ2: Vuosikate | BR2: Suunnitelman mukaiset poistot ja arvonalet | BS2: Satu. tuotot | BT2: Satu. kulut | BU2: Tilikauden tulos | BV2: Poistoeron lisäys(-) tai vähennys(+) | BW2: Varausten lisäys(-) tai vähennys(+) | BX2: Rahastojen lisäys(-) tai vähennys(+) | BY2: Tilikauden yli- tai alijäämä | BZ2: Kumulat yli/alij | CA2: Toiminnan rahavirta | CC2: Saamisten muutos | CD2: Pitkäaikaisten lainojen vähennys | CE2: Toim ja inv rahavirta | CF2: Verotulot | CG2: Kunnallisvero | CH2: Osuus yhteisöveron tuotosta | CI2: Kiinteistövero | CJ2: Tuloveroprosentti | CL2: Sijoitus vuosikatteen mukaan | CM2: Asukasluku | CO2: Lainanhoitokate | CP2: Suht. velkaantuneisuus-% | CQ2: Rahoitusvarallisuus, e/as | CU2: Omavaraisuusaste, % | CV2: Rahavarat e/as | CW2: Kassan riittävyys, pv | CX2: Kassasta maksut, €/as | CY2: Henkilöstökulut | CZ2: Toimintatuotot | DA2: Toimintakulut | DB2: Toimintakate | DC2: Verotulot | DD2: Valtionosuudet | DE2: Alv-takaisinperintä | DF2: Käyttökate | DG2: Korkotuotot/-menot, netto | DH2: Muut rahoitustuotot/-menot, netto (sis Osinkotuotot) | DI2: Vuosikate | DJ2: Suunnitelman mukaiset poistot ja arvonalet | DK2: Satu. tuotot | DL2: Satu. kulut | DM2: Tilikauden tulos | DN2: Poistoeron lisäys(-) tai vähennys(+) | DO2: Varausten lisäys(-) tai vähennys(+) | DP2: Rahastojen lisäys(-) tai vähennys(+) | DQ2: Tilikauden yli- tai alijäämä | DR2: Kumulat yli/alij | DS2: Toiminnan rahavirta | DU2: Saamisten muutos | DV2: Pitkäaikaisten lainojen vähennys | DW2: Toim ja inv rahavirta | DX2: Verotulot | DY2: Kunnallisvero | DZ2: Osuus yhteisöveron tuotosta | EA2: Kiinteistövero | EB2: Tuloveroprosentti | ED2: Sijoitus vuosikatteen mukaan | EE2: Palvelujen ostot 2019 | EF2: Palvelujen ostot 2020 | EG2: Palvelujen ostot 2021 | EH2: Harkvar2019 | EI2: Harkvar2020 | EJ2: Harkvar2021 | EK2: - Investointimenot | EL2: + Rahoitusos. investointimenoihin | EM2: + Investointihyödykk. luovutustulot | EN2: - Investointimenot | EO2: + Rahoitusosuudet investointimenoihin | EP2: + Investointihyödykkeiden luovutustulot | EQ2: - Investointimenot | ER2: + Rahoitusosuudet investointimenoihin | ES2: + Investointihyödykkeiden luovutustulot | ET2: Pitkäaikaisten lainojen lisäys | EU2: ± Lyhytaikaisten lainojen muutos | EV2: Pitkäaikaisten lainojen lisäys | EW2: ± Lyhytaikaisten lainojen muutos | EX2: Pitkäaikaisten lainojen lisäys | EY2: ± Lyhytaikaisten lainojen muutos | EZ2: Lainakanta | FA2: josta pitkäaik | FB2: josta lyhytaik | FC2: Lainasaamiset | FD2: Lainakanta | FE2: josta pitkäaik | FF2: josta lyhytaik | FG2: Lainasaamiset | FH2: Lainakanta | FI2: josta pitkäaik | FJ2: josta lyhytaik | FK2: Lainasaamiset | FL2: Konsernilainat €/as | FM2: Konsernilainat €/as | FN2: Konsernilainat €/as | FO2: tuotto | FP2: tuotto, €/as
A3: 20 | B3: Akaa | C3: 16475 | E3: 0.8032317577 | F3: 59.0755326 | G3: -3668.710167 | K3: 25.89965286 | L3: 178.6949924 | M3: 8.835897478 | N3: 7381.669196 | O3: 44817 | P3: 21733 | Q3: 110542 | R3: -88791 | S3: 62993 | T3: 31449 | W3: 85 | X3: 321 | Y3: 6057 | Z3: 6043 | AA3: 0 | AB3: 0 | AC3: 14 | AD3: 26 | AE3: 0 | AF3: 0 | AG3: 40 | AH3: -8846 | AI3: 5908 | AK3: -1750 | AL3: -5507 | AM3: 778 | AN3: 62993 | AO3: 57840 | AP3: 1596 | AQ3: 3557 | AR3: 22.25 | AT3: 66 | AU3: 16391 | AW3: 3.29270562 | AX3: 54.56404061 | AY3: -3487.706668 | BC3: 33.64537859 | BD3: 528.5827588 | BE3: 23.68773502 | BF3: 8144.835581 | BG3: 44739 | BH3: 28305 | BI3: 112143 | BJ3: -83838 | BK3: 64150 | BL3: 36698 | BO3: 99 | BP3: 378 | BQ3: 17487 | BR3: 5748 | BS3: 0 | BT3: 0 | BU3: 11739 | BV3: 20 | BW3: 0 | BX3: 0 | BY3: 11757 | BZ3: 2911 | CA3: 12838 | CC3: 620 | CD3: -5166 | CE3: 3234 | CF3: 64150 | CG3: 59104 | CH3: 1773 | CI3: 3273 | CJ3: 22.25 | CL3: 22.79411765 | CM3: 16467 | CO3: 5.430582313 | CP3: 70.20649381 | CQ3: -4418.742943 | CU3: 28.32799596 | CV3: 543.0407555 | CW3: 22.94937373 | CX3: 8636.83158 | CY3: 46010.27304 | CZ3: 24031.75372 | DA3: 121903.6969 | DB3: -97871.94316 | DC3: 66852.5873 | DD3: 34427.23 | DG3: -441.56817 | DH3: 389.65987 | DI3: 3355.96584 | DJ3: 4349.09011 | DK3: 0 | DL3: 0 | DM3: -993.12427 | DN3: -3.13738 | DO3: 0 | DP3: 0 | DQ3: -989.98689 | DR3: 1921.48928 | DS3: 3109.88267 | DU3: -1668.93098 | DV3: 4894 | DW3: -15571.87288 | DX3: 66852.5873 | DY3: 60897.13759 | DZ3: 2439.13273 | EA3: 3516.31698 | EB3: 22.25 | ED3: 21 | EE3: 49394 | EF3: 50719 | EG3: 60800.32692 | EH3: 1000 | EJ3: 1250 | EK3: -5323 | EL3: 34 | EM3: 159 | EN3: -16001 | EO3: 115 | EP3: 6282 | EQ3: -19554.5867 | ER3: 561.1121 | ES3: 311.71905 | ET3: 0 | EU3: 5020 | EV3: 12000 | EW3: -8000 | EX3: 0 | EY3: 16114.40918 | EZ3: 53609 | FA3: 33398 | FB3: 20211 | FC3: 7639 | FD3: 52444 | FE3: 40805 | FF3: 11639 | FG3: 7647 | FH3: 68557.50893 | FI3: 37055.36881 | FJ3: 31502.14012 | FK3: 7235.23807 | FL3: 4463.186646 | FM3: 4623.207858 | FN3: 5830.332119 | FO3: =(DY3/EB3) -> 2736.950004 | FP3: =(FO3/CM3)*1000 -> 166.2081742 | FV3: 4670 | FW3: =FV3*-1 -> -4670
A4: 5 | B4: Alajärvi | C4: 9562 | E4: 0.3420010823 | F4: 38.19911387 | G4: -3405.772851 | K4: 43.1400054 | L4: 352.5413093 | M4: 10.2928284 | N4: 12501.67329 | O4: 45948 | P4: 44709 | Q4: 107678 | R4: -62969 | S4: 29512 | T4: 34792 | W4: -202 | X4: 150 | Y4: 1283 | Z4: 3246 | AA4: 0 | AB4: 0 | AC4: -1963 | AD4: 0 | AE4: 0 | AF4: 0 | AG4: -1963 | AH4: 5768 | AI4: 1301 | AK4: 125 | AL4: -3838 | AM4: -5586 | AN4: 29512 | AO4: 25292 | AP4: 2066 | AQ4: 2154 | AR4: 21.75 | AT4: 162 | AU4: 9419 | AW4: 1.347094096 | AX4: 37.5669431 | AY4: -3337.721626 | BC4: 44.05983514 | BD4: 478.6070708 | BE4: 14.1801322 | BF4: 12319.46066 | BG4: 45160 | BH4: 43439 | BI4: 106079 | BJ4: -62640 | BK4: 29583 | BL4: 38640 | BO4: -186 | BP4: 252 | BQ4: 5649 | BR4: 3584 | BS4: 0 | BT4: 0 | BU4: 2065 | BV4: 0 | BW4: 0 | BX4: 0 | BY4: 2065 | BZ4: 7833 | CA4: 5646 | CC4: -298 | CD4: -4144 | CE4: 322 | CF4: 29583 | CG4: 25512 | CH4: 2144 | CI4: 1927 | CJ4: 21.75 | CL4: 184.9779412 | CM4: 9311 | CO4: 1.088286389 | CP4: 37.69396992 | CQ4: -3390.653644 | CU4: 43.67984881 | CV4: 514.5437633 | CW4: 14.54899947 | CX4: 12908.68654 | CY4: 46534.56967 | CZ4: 47201.90683 | DA4: 111541.3158 | DB4: -64339.40895 | DC4: 31473.60663 | DD4: 37501.94804 | DG4: -120.57539 | DH4: 170.04986 | DI4: 4685.62019 | DJ4: 3827.31593 | DK4: 0 | DL4: 0 | DM4: 858.30426 | DN4: 0 | DO4: 0 | DP4: 0 | DQ4: 858.30426 | DR4: 8691.07212 | DS4: 4719.15415 | DU4: -1427.78409 | DV4: 4294.422 | DW4: 726.39552 | DX4: 31473.60663 | DY4: 26214.4548 | DZ4: 3078.71673 | EA4: 2180.4351 | EB4: 21.75 | ED4: 114 | EE4: 49572 | EF4: 48993 | EG4: 52826.41324 | EK4: -7703 | EL4: 779 | EM4: 37 | EN4: -5620 | EO4: 275 | EP4: 21 | EQ4: -4136.17549 | ER4: 74.45 | ES4: 68.96686 | ET4: 8070 | EU4: 0 | EV4: 4000 | EW4: 0 | EX4: 4000 | EY4: 2000 | EZ4: 27858 | FA4: 19714 | FB4: 8144 | FC4: 543 | FD4: 27715 | FE4: 19420 | FF4: 8295 | FG4: 536 | FH4: 29419.924 | FI4: 18975.493 | FJ4: 10444.431 | FK4: 611.80408 | FL4: 5270.550094 | FM4: 5437.30757 | FN4: 5408.794921 | FO4: 1205.26229 | FP4: 129.4449887 | FV4: 3040 | FW4: -3040
A5: 9 | B5: Alavieska | C5: 2519 | E5: 1.149043108 | F5: 56.66544253 | G5: -3183.009131 | K5: 43.54897566 | L5: 720.1270345 | M5: 34.64549212 | N5: 7586.74077 | O5: 4470 | P5: 2190 | Q5: 17586 | R5: -15396 | S5: 7962 | T5: 8909 | W5: -26 | X5: 11 | Y5: 1460 | Z5: 745 | AA5: 0 | AB5: 0 | AC5: 715 | AD5: 0 | AE5: 0 | AF5: 0 | AG5: 715 | AH5: 823 | AI5: 1460 | AK5: -313 | AL5: -344 | AM5: 324 | AN5: 7962 | AO5: 6931 | AP5: 263 | AQ5: 768 | AR5: 22 | AT5: 17 | AU5: 2517 | AW5: 0.4954407295 | AX5: 56.15236781 | AY5: -2744.139849 | BC5: 45.63175868 | BD5: 1490.26619 | BE5: 56.91129401 | BF5: 9557.806913 | BG5: 4572 | BH5: 2476 | BI5: 18348 | BJ5: -15872 | BK5: 7716 | BL5: 10101 | BO5: 15 | BP5: 11 | BQ5: 1971 | BR5: 705 | BS5: 0 | BT5: 0 | BU5: 1266 | BV5: 0 | BW5: 0 | BX5: 0 | BY5: 1267 | BZ5: 2090 | CA5: 1843 | CC5: 233 | CD5: -3963 | CE5: 1594 | CF5: 7716 | CG5: 6711 | CH5: 305 | CI5: 700 | CJ5: 22 | CL5: 96.33088235 | CM5: 2491 | CO5: 51.52043507 | CP5: 62.72357191 | CQ5: -2853.220349 | CU5: 44.61569802 | CV5: 1960.398796 | CW5: 88.44823457 | CX5: 8089.992569 | CY5: 4837.75887 | CZ5: 2469.51365 | DA5: 19037.67788 | DB5: -16568.16423 | DC5: 8352.99086 | DD5: 9572.648 | DG5: 126.93082 | DH5: 6.57889 | DI5: 1490.98434 | DJ5: 738.17448 | DK5: 0 | DL5: 0 | DM5: 752.80986 | DN5: 0 | DO5: 0 | DP5: 0 | DQ5: 752.80986 | DR5: 2843.13632 | DS5: 1498.8439 | DU5: -65.29166 | DV5: 0 | DW5: 403.4846 | DX5: 8352.99086 | DY5: 7136.83072 | DZ5: 469.54072 | EA5: 746.61942 | EB5: 22 | ED5: 165 | EE5: 11440 | EF5: 12132 | EG5: 12412.43849 | EK5: -1151 | EL5: 0 | EM5: 15 | EN5: -1061 | EO5: 11 | EP5: 801 | EQ5: -1312.08759 | ER5: 4.72379 | ES5: 212.0045 | ET5: 0 | EU5: 1000 | EV5: 0 | EW5: 4500 | EX5: 0 | EY5: 1321.15929 | EZ5: 9463 | FA5: 833 | FB5: 8630 | FC5: 84 | FD5: 10000 | FE5: 0 | FF5: 10000 | FG5: 774 | FH5: 11000 | FI5: 0 | FJ5: 11000 | FK5: 1410 | FL5: 4017.467249 | FM5: 4469.209376 | FN5: 5148.893661 | FO5: 324.4013964 | FP5: 130.2293843 | FV5: 792 | FW5: -792
A6: 10 | B6: Alavus | C6: 11468 | E6: 0.2171916409 | F6: 63.28590826 | G6: -2337.286362 | K6: 50.38705717 | L6: 1263.167074 | M6: 54.93049784 | N6: 8393.442623 | O6: 24125 | P6: 11960 | Q6: 84410 | R6: -72208 | S6: 34663 | T6: 38072 | W6: -71 | X6: 620 | Y6: 1076 | Z6: 3653 | AA6: 9142 | AB6: 0 | AC6: 6565 | AD6: 0 | AE6: 0 | AF6: 0 | AG6: 6565 | AH6: 21344 | AI6: 886 | AK6: -9544 | AL6: -3177 | AM6: 1926 | AN6: 34663 | AO6: 29279 | AP6: 2585 | AQ6: 2799 | AR6: 21.25 | AT6: 183 | AU6: 11332 | AW6: 1.280664794 | AX6: 63.14536943 | AY6: -2458.612778 | BC6: 49.57660418 | BD6: 2285.91599 | BE6: 98.13852589 | BF6: 8501.853159 | BG6: 23589 | BH6: 11612 | BI6: 85363 | BJ6: -73751 | BK6: 35072 | BL6: 43125 | BO6: -106 | BP6: 837 | BQ6: 5177 | BR6: 4032 | BS6: 0 | BT6: 0 | BU6: 1145 | BV6: 0 | BW6: 0 | BX6: 0 | BY6: 1145 | BZ6: 22489 | CA6: 5031 | CC6: 9535 | CD6: -3978 | CE6: -1397 | CF6: 35072 | CG6: 29760 | CH6: 2810 | CI6: 2502 | CJ6: 21.25 | CL6: 240.3823529 | CM6: 11197 | CO6: 0.8356627318 | CP6: 68.88571796 | CQ6: -2815.557077 | CU6: 45.00412293 | CV6: 2521.988459 | CW6: 101.5103575 | CX6: 9068.294209 | CY6: 24808.29486 | CZ6: 13815.95536 | DA6: 90507.81271 | DB6: -76691.85735 | DC6: 36841.07878 | DD6: 42180.877 | DG6: -71.81293 | DH6: 1182.23178 | DI6: 3440.51728 | DJ6: 4321.48554 | DK6: 0 | DL6: 0 | DM6: -880.96826 | DN6: 0 | DO6: 0 | DP6: 0 | DQ6: -880.96826 | DR6: 19022.54681 | DS6: 3297.75234 | DU6: -1152.77548 | DV6: 4165.02764 | DW6: -1391.20628 | DX6: 36841.07878 | DY6: 30170.76358 | DZ6: 3934.98392 | EA6: 2735.33128 | EB6: 21.25 | ED6: 45 | EE6: 53095 | EF6: 54746 | EG6: 57796.2769 | EK6: -8782 | EL6: 156 | EM6: 9666 | EN6: -6980 | EO6: 262 | EP6: 290 | EQ6: -5949.21764 | ER6: 402.39802 | ES6: 857.861 | ET6: 8000 | EU6: 2000 | EV6: 7400 | EW6: -3000 | EX6: 9000 | EY6: 2000 | EZ6: 45243 | FA6: 38265 | FB6: 6978 | FC6: 7374 | FD6: 45665 | FE6: 41500 | FF6: 4165 | FG6: 7195 | FH6: 52499.695 | FI6: 45743.387 | FJ6: 6756.308 | FK6: 6763.17321 | FL6: 6850.453436 | FM6: 7135.72185 | FN6: 7803.495073 | FO6: 1419.800639 | FP6: 126.801879 | FV6: 2706 | FW6: -2706
A7: 16 | B7: Asikkala | C7: 8083 | E7: 2.166910688 | F7: 21.97468075 | G7: -1233.947792 | K7: 75.35789158 | L7: 123.2215761 | M7: 6.70478228 | N7: 6708.029197 | O7: 13729 | P7: 6112 | Q7: 52010 | R7: -45898 | S7: 29745 | T7: 18410 | W7: -40 | X7: 147 | Y7: 2364 | Z7: 2215 | AA7: 0 | AB7: 182 | AC7: -33 | AD7: 94 | AE7: 0 | AF7: 0 | AG7: 61 | AH7: 11007 | AI7: 2079 | AK7: 396 | AL7: -15 | AM7: 145 | AN7: 29745 | AO7: 25296 | AP7: 1538 | AQ7: 2911 | AR7: 20.75 | AT7: 90 | AU7: 8059 | AW7: 160.9259259 | AX7: 10.14380494 | AY7: -381.0646482 | BC7: 87.02895676 | BD7: 110.8077925 | BE7: 6.111965347 | BF7: 6617.322248 | BG7: 13872 | BH7: 5611 | BI7: 50709 | BJ7: -45098 | BK7: 31883 | BL7: 21892 | BO7: -44 | BP7: 13 | BQ7: 8646 | BR7: 2509 | BS7: 0 | BT7: 0 | BU7: 6137 | BV7: 94 | BW7: -5000 | BX7: 0 | BY7: 1231 | BZ7: 12238 | CA7: 8594 | CC7: -1107 | CD7: -10 | CE7: 6563 | CF7: 31883 | CG7: 27480 | CH7: 1731 | CI7: 2672 | CJ7: 20.75 | CL7: 21.78676471 | CM7: 8033 | CO7: 158.4936497 | CP7: 11.33091345 | CQ7: 21.16000373 | CU7: 86.55513439 | CV7: 375.6448873 | CW7: 18.84945192 | CX7: 7273.971916 | CY7: 15001.3695 | CZ7: 6449.04452 | DA7: 53598.3377 | DB7: -47149.29318 | DC7: 32598.16687 | DD7: 20316.576 | DG7: -37.03047 | DH7: 103.64465 | DI7: 5832.06387 | DJ7: 2388.0197 | DK7: 0 | DL7: 0 | DM7: 3444.04417 | DN7: -94.28168 | DO7: 3000 | DP7: 0 | DQ7: 538.32585 | DR7: 13033.76952 | DS7: 5832.06387 | DU7: -1561.22552 | DV7: 0 | DW7: 2724.34101 | DX7: 32598.16687 | DY7: 27175.23768 | DZ7: 2474.89772 | EA7: 2948.03147 | EB7: 20.75 | ED7: 214 | EE7: 34689 | EF7: 33295 | EG7: 34503.98824 | EK7: -2006 | EL7: 0 | EM7: 72 | EN7: -2276 | EO7: 19 | EP7: 226 | EQ7: -4674.51502 | ER7: 0 | ES7: 1566.79216 | ET7: 0 | EU7: -3000 | EV7: 0 | EW7: -5500 | EX7: 0 | EY7: -509.9 | EZ7: 7455 | FA7: 1445 | FB7: 6010 | FC7: 810 | FD7: 1945 | FE7: 1435 | FF7: 510 | FG7: 791 | FH7: 1434.9 | FI7: 1425 | FJ7: 9.9 | FK7: 747.3787 | FL7: 2404.676482 | FM7: 1623.526492 | FN7: 1721.758036 | FO7: 1309.650009 | FP7: 163.0337369 | FV7: 380 | FW7: -380
A8: 18 | B8: Askola | C8: 4943 | E8: 0.7301846222 | F8: 84.09020889 | G8: -3763.301639 | K8: 27.0308983 | L8: 1226.178434 | M8: 61.51845054 | N8: 7275.136557 | O8: 13781 | P8: 4448 | Q8: 30316 | R8: -25868 | S8: 19707 | T8: 8303 | W8: -231 | X8: 319 | Y8: 2230 | Z8: 1274 | AA8: 2496 | AB8: 0 | AC8: 3452 | AD8: 0 | AE8: 0 | AF8: 0 | AG8: 3452 | AH8: 2648 | AI8: 4638 | AK8: -1278 | AL8: -1238 | AM8: 1046 | AN8: 19707 | AO8: 17550 | AP8: 957 | AQ8: 1200 | AR8: 21.5 | AT8: 43 | AU8: 4878 | AW8: 2.606299213 | AX8: 81.2996118 | AY8: -3670.561706 | BC8: 33.04351969 | BD8: 1757.892579 | BE8: 87.32910156 | BF8: 7347.273473 | BG8: 13415 | BH8: 4111 | BI8: 30586 | BJ8: -26475 | BK8: 20456 | BL8: 9951 | BO8: -173 | BP8: 366 | BQ8: 4125 | BR8: 2141 | BS8: 0 | BT8: 0 | BU8: 1984 | BV8: 0 | BW8: 0 | BX8: 0 | BY8: 1983 | BZ8: 4631 | CA8: 4098 | CC8: 1047 | CD8: -1473 | CE8: 694 | CF8: 20456 | CG8: 18369 | CH8: 1008 | CI8: 1079 | CJ8: 21.5 | CL8: 72.15441176 | CM8: 4847 | CO8: 1.858131877 | CP8: 78.40345419 | CQ8: -3298.345333 | CU8: 35.96151092 | CV8: 1882.475346 | CW8: 95.02657252 | CX8: 7230.645944 | CY8: 13824.90692 | CZ8: 5182.86463 | DA8: 32168.37119 | DB8: -26985.50656 | DC8: 21255.04274 | DD8: 8349.658 | DG8: -150.7292 | DH8: 514.34118 | DI8: 2982.80616 | DJ8: 1512.6519 | DK8: 0 | DL8: 0 | DM8: 1470.15426 | DN8: 0 | DO8: 0 | DP8: 0 | DQ8: 1470.15426 | DR8: 6101.43075 | DS8: 2785.72516 | DU8: -578.73562 | DV8: 1524.366 | DW8: 1923.49315 | DX8: 21255.04274 | DY8: 18635.8548 | DZ8: 1445.02202 | EA8: 1174.16592 | EB8: 21.5 | ED8: 169 | EE8: 12858 | EF8: 13433 | EG8: 14721.04258 | EH8: 680 | EK8: -4153 | EL8: 308 | EM8: 253 | EN8: -3582 | EO8: 114 | EP8: 64 | EQ8: -1205.12602 | ER8: 0 | ES8: 342.89401 | ET8: 5000 | EU8: -2000 | EV8: 0 | EW8: 3500 | EX8: 0 | EY8: 0 | EZ8: 22972 | FA8: 18999 | FB8: 3973 | FC8: 0 | FD8: 24997 | FE8: 17473 | FF8: 7524 | FG8: 0 | FH8: 23473.24109 | FI8: 16001.55333 | FJ8: 7471.68776 | FK8: 0 | FL8: 6031.762088 | FM8: 6696.391964 | FN8: 6394.388911 | FO8: 866.7839442 | FP8: 178.8289549 | FV8: 699 | FW8: -699
A9: 19 | B9: Aura | C9: 3941 | E9: 0.354077863 | F9: 64.10344237 | G9: -3314.640954 | K9: 24.50479389 | L9: 248.9215935 | M9: 14.53952978 | N9: 6248.921594 | O9: 6514 | P9: 2647 | Q9: 22749 | R9: -20102 | S9: 14707 | T9: 6002 | W9: -13 | X9: 16 | Y9: 610 | Z9: 847 | AA9: 0 | AB9: 0 | AC9: -237 | AD9: 28 | AE9: 0 | AF9: 0 | AG9: -209 | AH9: -30 | AI9: 747 | AK9: 44 | AL9: -714 | AM9: -317 | AN9: 14707 | AO9: 13353 | AP9: 603 | AQ9: 751 | AR9: 21.75 | AT9: 153 | AU9: 3959 | AW9: 2.545967742 | AX9: 55.66220266 | AY9: -2722.909826 | BC9: 32.43833906 | BD9: 799.9494822 | BE9: 45.56924351 | BF9: 6407.426118 | BG9: 6688 | BH9: 2657 | BI9: 23226 | BJ9: -20569 | BK9: 15595 | BL9: 8107 | BO9: -26 | BP9: 24 | BQ9: 3131 | BR9: 893 | BS9: 0 | BT9: 0 | BU9: 2238 | BV9: 28 | BW9: 0 | BX9: 0 | BY9: 2266 | BZ9: 2236 | CA9: 2883 | CC9: 203 | CD9: -1214 | CE9: 2177 | CF9: 15595 | CG9: 14340 | CH9: 541 | CI9: 714 | CJ9: 21.5 | CL9: 91.29411765 | CM9: 3955 | CO9: 2.563373352 | CP9: 44.86243858 | CQ9: -2284.444728 | CU9: 41.81626769 | CV9: 464.8878913 | CW9: 25.84503969 | CX9: 6565.440887 | CY9: 7208.82526 | CZ9: 3069.47456 | DA9: 24059.14571 | DB9: -20989.67115 | DC9: 15987.4943 | DD9: 7510.755 | DG9: -18.50958 | DH9: 41.2185 | DI9: 2531.28707 | DJ9: 885.66905 | DK9: 0 | DL9: 0 | DM9: 1645.61802 | DN9: -27.78768 | DO9: 0 | DP9: 0 | DQ9: 1673.4057 | DR9: 3908.53852 | DS9: 2453.3862 | DU9: -320.33348 | DV9: 976.194 | DW9: 1729.73783 | DX9: 15987.4943 | DY9: 14407.52326 | DZ9: 740.52879 | EA9: 839.44225 | EB9: 21.5 | ED9: 186 | EE9: 12935 | EF9: 13287 | EG9: 14396.97301 | EI9: 540 | EK9: -1132 | EL9: 22 | EM9: 46 | EN9: -888 | EO9: 1 | EP9: 181 | EQ9: -935.00202 | ER9: 73.467 | ES9: 137.88665 | ET9: 5000 | EU9: -2700 | EV9: 0 | EW9: 500 | EX9: 0 | EY9: -2000 | EZ9: 13047 | FA9: 5333 | FB9: 7714 | FC9: 0 | FD9: 12333 | FE9: 4357 | FF9: 7976 | FG9: 0 | FH9: 9357.154 | FI9: 3619.06 | FJ9: 5738.094 | FK9: 0 | FL9: 3948.236488 | FM9: 3688.305128 | FN9: 2852.403606 | FO9: 670.1173609 | FP9: 169.4354895 | FV9: 607 | FW9: -607
A10: 46 | B10: Enonkoski | C10: 1361 | E10: 7.608847497 | F10: 10.68259685 | G10: 1544.452608 | K10: 89.9853205 | L10: 2108.008817 | M10: 93.26549697 | N10: 8249.816312 | O10: 2446 | P10: 1423 | Q10: 10689 | R10: -9244 | S10: 4713 | T10: 5247 | W10: 12 | X10: 89 | Y10: 817 | Z10: 655 | AA10: 0 | AB10: 0 | AC10: 162 | AD10: 0 | AE10: 0 | AF10: 0 | AG10: 162 | AH10: 6025 | AI10: 817 | AK10: 54 | AL10: 0 | AM10: 267 | AN10: 4713 | AO10: 3580 | AP10: 597 | AQ10: 536 | AR10: 21 | AT10: 15 | AU10: 1369 | AX10: 11.05704698 | AY10: 2508.400292 | BC10: 88.43225663 | BD10: 3284.879474 | BE10: 151.813263 | BF10: 7897.735573 | BG10: 2445 | BH10: 1564 | BI10: 10567 | BJ10: -9003 | BK10: 4642 | BL10: 5745 | BO10: 8 | BP10: 110 | BQ10: 1502 | BR10: 573 | BS10: 0 | BT10: 0 | BU10: 929 | BV10: 0 | BW10: 0 | BX10: 0 | BY10: 929 | BZ10: 6955 | CA10: 1433 | CC10: -279 | CD10: 0 | CE10: 1288 | CF10: 4642 | CG10: 3472 | CH10: 680 | CI10: 490 | CJ10: 21 | CL10: 17.75735294 | CM10: 1362 | CO10: 8651.679322 | CP10: 10.65173936 | CQ10: 3637.928421 | CU10: 82.99457562 | CV10: 4158.721175 | CW10: 186.0339274 | CX10: 8159.44301 | CY10: 2609.9777 | CZ10: 1859.14438 | DA10: 10779.09357 | DB10: -8919.94919 | DC10: 5024.61735 | DD10: 5572.031 | DG10: 13.5881 | DH10: 121.16499 | DI10: 1811.45225 | DJ10: 568.68366 | DK10: 0 | DL10: 0 | DM10: 1242.76859 | DN10: 0 | DO10: 0 | DP10: 0 | DQ10: 1242.76859 | DR10: 8197.94619 | DS10: 1793.64073 | DU10: -360.4771 | DV10: 0 | DW10: 1501.6924 | DX10: 5024.61735 | DY10: 3512.82071 | DZ10: 973.2283 | EA10: 538.56834 | EB10: 21 | ED10: 286 | EE10: 7318 | EF10: 7242 | EG10: 7167.45501 | EK10: -558 | EL10: 0 | EM10: 8 | EN10: -275 | EO10: 0 | EP10: 130 | EQ10: -323.06711 | ER10: 0 | ES10: 31.11878 | ET10: 0 | EU10: 0 | EV10: 0 | EW10: 0 | EX10: 0 | EY10: 0 | EZ10: 0 | FA10: 0 | FB10: 0 | FC10: 261 | FD10: 0 | FE10: 0 | FF10: 0 | FG10: 236 | FH10: 0 | FI10: 0 | FJ10: 0 | FK10: 197.91123 | FL10: 590.7421014 | FM10: 824.6895544 | FN10: 1072.04083 | FO10: 167.2771767 | FP10: 122.8173103 | FV10: 63 | FW10: -63
A11: 47 | B11: Enontekiö | C11: 1838 | E11: 0.6010039813 | F11: 37.61112377 | G11: -3074.537541 | K11: 53.8997764 | L11: 26.6594124 | M11: 0.8930443901 | N11: 10896.0827 | O11: 6826 | P11: 2496 | Q11: 17495 | R11: -14999 | S11: 6263 | T11: 8789 | W11: -32 | X11: 376 | Y11: 397 | Z11: 366 | AA11: 0 | AB11: 0 | AC11: 31 | AD11: -40 | AE11: 41 | AF11: 0 | AG11: 32 | AH11: 1478 | AI11: 323 | AK11: -116 | AL11: -600 | AM11: -615 | AN11: 6263 | AO11: 5043 | AP11: 391 | AQ11: 829 | AR11: 21.25 | AT11: 121 | AU11: 1808 | AW11: 1.924713584 | AX11: 38.81160358 | AY11: -3367.809735 | BC11: 53.76991366 | BD11: 118.3628319 | BE11: 3.86377127 | BF11: 11181.41593 | BG11: 6553 | BH11: 2399 | BI11: 17630 | BJ11: -15231 | BK11: 6394 | BL11: 9753 | BO11: -14 | BP11: 255 | BQ11: 1157 | BR11: 510 | BS11: 0 | BT11: 0 | BU11: 647 | BV11: 2 | BW11: 0 | BX11: 0 | BY11: 649 | BZ11: 2127 | CA11: 1028 | CC11: 5 | CD11: -592 | CE11: -384 | CF11: 6394 | CG11: 5173 | CH11: 456 | CI11: 765 | CJ11: 21.25 | CL11: 162.8161765 | CM11: 1789 | CO11: 3.714740548 | CP11: 32.10086314 | CQ11: 2172.561643 | CU11: 73.01658953 | CV11: 4847.922102 | CW11: 339.1520988 | CX11: 5217.39825 | CY11: 7170.81823 | CZ11: 3496.30578 | DA11: 19083.2997 | DB11: -15586.99392 | DC11: 6807.63983 | DD11: 9711.677 | DG11: -6.0949 | DH11: 923.19626 | DI11: 1849.42427 | DJ11: 464.69194 | DK11: 7944.34145 | DL11: 0 | DM11: 9329.07378 | DN11: 81.72326 | DO11: -84.1 | DP11: 0 | DQ11: 9331.45052 | DR11: 11458.19586 | DS11: 1231.58085 | DU11: 157.167 | DV11: 492 | DW11: 9054.99044 | DX11: 6807.63983 | DY11: 5219.61633 | DZ11: 776.35284 | EA11: 811.67066 | EB11: 21.25 | ED11: 272 | EE11: 8657 | EF11: 9033 | EG11: 10002.14172 | EK11: -1632 | EL11: 480 | EM11: 214 | EN11: -1675 | EO11: 119 | EP11: 144 | EQ11: -1806.14546 | ER11: 389.7286 | ES11: 9239.82645 | ET11: 0 | EU11: 792 | EV11: 0 | EW11: 1442 | EX11: 0 | EY11: 300 | EZ11: 4145 | FA11: 1995 | FB11: 2150 | FC11: 1614 | FD11: 4995 | FE11: 1403 | FF11: 3592 | FG11: 1652 | FH11: 4803 | FI11: 911 | FJ11: 3892 | FK11: 1054.12591 | FL11: 4935.255713 | FM11: 5577.433628 | FN11: 816.1652376 | FO11: 245.6290038 | FP11: 137.2996108 | FV11: 874 | FW11: -874
A12: 49 | B12: Espoo | C12: 289731 | E12: 1.26798289 | F12: 62.60994252 | G12: -612.4336022 | K12: 68.23903248 | L12: 3083.725939 | M12: 140.1805034 | N12: 8029.361718 | O12: 672439 | P12: 418078 | Q12: 1886234 | R12: -1455718 | S12: 1521184 | T12: 60874 | W12: 6894 | X12: 38178 | Y12: 171412 | Z12: 178942 | AA12: 0 | AB12: 0 | AC12: -7530 | AD12: -2232 | AE12: 0 | AF12: 15025 | AG12: 5263 | AH12: 511808 | AI12: 85823 | AK12: -46854 | AL12: -57850 | AM12: -115870 | AN12: 1521184 | AO12: 1272287 | AP12: 128604 | AQ12: 120293 | AR12: 18 | AT12: 16 | AU12: 292796 | AW12: 4.047942201 | AX12: 70.48585349 | AY12: -741.8987964 | BC12: 64.44527828 | BD12: 3875.722346 | BE12: 167.7636391 | BF12: 8432.331726 | BG12: 687990 | BH12: 416164 | BI12: 1942554 | BJ12: -1526390 | BK12: 1605340 | BL12: 205087 | BO12: 6090 | BP12: 14289 | BQ12: 304416 | BR12: 175319 | BS12: 0 | BT12: 0 | BU12: 129097 | BV12: -1232 | BW12: 0 | BX12: 15019 | BY12: 142884 | BZ12: 637571 | CA12: 235436 | CC12: -27450 | CD12: -68170 | CE12: -35607 | CF12: 1605340 | CG12: 1356824 | CH12: 136178 | CI12: 112338 | CJ12: 18 | CL12: 26.82352941 | CM12: 297132 | CO12: 4.837979214 | CP12: 70.35554527 | CQ12: -435.4607112 | CU12: 64.846855 | CV12: 4522.306508 | CW12: 197.4729703 | CX12: 8358.824362 | CY12: 725233.3814 | CZ12: 494154.8081 | DA12: 2044328.549 | DB12: -1550173.741 | DC12: 1711153.952 | DD12: 139004.408 | DG12: 6121.54164 | DH12: 76328.82364 | DI12: 382434.984 | DJ12: 190164.7398 | DK12: 0 | DL12: 0 | DM12: 192270.2441 | DN12: 232.4077 | DO12: 0 | DP12: -14994.92583 | DQ12: 207032.7623 | DR12: 819016.249 | DS12: 323929.2557 | DU12: 41265.62316 | DV12: 71790.64495 | DW12: 103297.4683 | DX12: 1711153.952 | DY12: 1374988.109 | DZ12: 203093.3569 | EA12: 133072.4856 | EB12: 18 | ED12: 284 | EE12: 881701 | EF12: 918495 | EG12: 997830.8954 | EK12: -351520 | EL12: 57414 | EM12: 92413 | EN12: -424525 | EO12: 82341 | EP12: 71141 | EQ12: -318201.017 | ER12: 33797.85176 | ES12: 63771.37781 | ET12: 220000 | EU12: 28508 | EV12: 285000 | EW12: 34749 | EX12: 0 | EY12: 223727.3315 | EZ12: 988922 | FA12: 829753 | FB12: 159169 | FC12: 337799 | FD12: 1240501 | FE12: 1038677 | FF12: 201824 | FG12: 359897 | FH12: 1392438.516 | FI12: 971750.3535 | FJ12: 420688.1628 | FK12: 391278.4307 | FL12: 13125.06774 | FM12: 14637.84341 | FN12: 15211.65167 | FO12: 76388.22829 | FP12: 257.0851618 | FV12: 55179 | FW12: -55179
A13: 50 | B13: Eura | C13: 11632 | E13: -0.08052813909 | F13: 68.53173739 | G13: -4063.961486 | K13: 35.61180927 | L13: 175.3782669 | M13: 8.463575707 | N13: 7563.359697 | O13: 35650 | P13: 10626 | Q13: 78529 | R13: -67900 | S13: 43287 | T13: 24118 | W13: -38 | X13: 10 | Y13: -523 | Z13: 3726 | AA13: 0 | AB13: 0 | AC13: -4249 | AD13: 21 | AE13: 0 | AF13: 0 | AG13: -4228 | AH13: -290 | AI13: -627 | AK13: -1212 | AL13: -1279 | AM13: -8289 | AN13: 43287 | AO13: 38036 | AP13: 2057 | AQ13: 3194 | AR13: 20.5 | AT13: 244 | AU13: 11483 | AW13: 5.64360587 | AX13: 61.10211648 | AY13: -3832.622137 | BC13: 38.99856236 | BD13: 295.9157015 | BE13: 14.7461597 | BF13: 7324.566751 | BG13: 34910 | BH13: 10855 | BI13: 77313 | BJ13: -66458 | BK13: 45835 | BL13: 28546 | BO13: -129 | BP13: 132 | BQ13: 7926 | BR13: 4174 | BS13: 0 | BT13: 0 | BU13: 3752 | BV13: 20 | BW13: 0 | BX13: 0 | BY13: 3772 | BZ13: 3482 | CA13: 7993 | CC13: -511 | CD13: -1281 | CE13: 2931 | CF13: 45835 | CG13: 40534 | CH13: 2487 | CI13: 2814 | CJ13: 21 | CL13: 138.6397059 | CM13: 11417 | CO13: 1.716257396 | CP13: 57.14060539 | CQ13: -3666.413635 | CU13: 41.50285698 | CV13: 248.0012735 | CW13: 11.18867092 | CX13: 8090.367972 | CY13: 38075.28883 | CZ13: 14427.71739 | DA13: 82653.74603 | DB13: -68226.02864 | DC13: 48346.58028 | DD13: 26628.699 | DG13: -105.00863 | DH13: 110.00399 | DI13: 6754.246 | DJ13: 3798.15825 | DK13: 0 | DL13: 0 | DM13: 2956.08775 | DN13: -18.95267 | DO13: 0 | DP13: 0 | DQ13: 2975.04042 | DR13: 6456.75158 | DS13: 6151.77784 | DU13: -1719.70116 | DV13: 3883.07473 | DW13: 1890.2679 | DX13: 48346.58028 | DY13: 41538.94315 | DZ13: 3640.50988 | EA13: 3167.12725 | EB13: 21 | ED13: 160 | EE13: 30278 | EF13: 29917 | EG13: 33334.03486 | EH13: 900 | EK13: -7966 | EL13: 7 | EM13: 297 | EN13: -5340 | EO13: 13 | EP13: 265 | EQ13: -5697.20291 | ER13: 518.66696 | ES13: 917.02601 | ET13: 5080 | EU13: 6000 | EV13: 0 | EW13: 0 | EX13: 10000 | EY13: -8000 | EZ13: 40882 | FA13: 15601 | FB13: 25281 | FC13: 2942 | FD13: 39601 | FE13: 14317 | FF13: 25284 | FG13: 2789 | FH13: 37717.40266 | FI13: 20857.84407 | FJ13: 16859.55859 | FK13: 2718.10104 | FL13: 5432.685695 | FM13: 5253.505182 | FN13: 5147.256394 | FO13: 1978.044912 | FP13: 173.2543498 | FV13: 818 | FW13: -818
A14: 51 | B14: Eurajoki | C14: 9402 | E14: 1.551227383 | F14: 31.89414263 | G14: 562.3271644 | K14: 80.06324017 | L14: 2437.034673 | M14: 110.4277415 | N14: 8055.201021 | O14: 27266 | P14: 8388 | Q14: 70036 | R14: -61648 | S14: 52060 | T14: 11120 | W14: 28 | X14: 1770 | Y14: 3330 | Z14: 4915 | AA14: 0 | AB14: 0 | AC14: -1585 | AD14: 3 | AE14: -112 | AF14: 0 | AG14: -1694 | AH14: 73816 | AI14: 3330 | AK14: -3037 | AL14: -1088 | AM14: -773 | AN14: 52060 | AO14: 28952 | AP14: 2581 | AQ14: 20527 | AR14: 18 | AT14: 71 | AU14: 9452 | AW14: 2.249007374 | AX14: 30.31164994 | AY14: 552.1582734 | BC14: 80.76027527 | BD14: 2492.065171 | BE14: 109.4549262 | BF14: 8310.304697 | BG14: 27445 | BH14: 7086 | BI14: 69110 | BJ14: -62024 | BK14: 51185 | BL14: 14150 | BO14: -63 | BP14: 610 | BQ14: 3858 | BR14: 4715 | BS14: 0 | BT14: 0 | BU14: -857 | BV14: 3 | BW14: 166 | BX14: 0 | BY14: -688 | BZ14: 73022 | CA14: 3771 | CC14: 1586 | CD14: -1656 | CE14: 180 | CF14: 51185 | CG14: 28776 | CH14: 2667 | CI14: 19742 | CJ14: 18 | CL14: 255.4926471 | CM14: 9334 | CO14: 4.587193022 | CP14: 23.02364616 | CQ14: 1039.505277 | CU14: 83.96358851 | CV14: 2701.138058 | CW14: 118.4400877 | CX14: 8324.169717 | CY14: 21307.06769 | CZ14: 9612.46639 | DA14: 72254.29805 | DB14: -62641.83166 | DC14: 56545.2611 | DD14: 12755.743 | DG14: -47.46374 | DH14: 1257.5816 | DI14: 7869.2903 | DJ14: 4657.49326 | DK14: 0 | DL14: 0 | DM14: 3211.79704 | DN14: -3.00562 | DO14: 0 | DP14: 0 | DQ14: 3214.80266 | DR14: 76237.02502 | DS14: 7992.77336 | DU14: 956.3803 | DV14: 1673.55006 | DW14: 4500.68723 | DX14: 56545.2611 | DY14: 30908.74323 | DZ14: 3492.94999 | EA14: 22143.56788 | EB14: 18 | ED14: 244 | EE14: 35296 | EF14: 34270 | EG14: 45552.55795 | EK14: -4201 | EL14: 24 | EM14: 74 | EN14: -7380 | EO14: 0 | EP14: 3789 | EQ14: -3709.89313 | ER14: 146.475 | ES14: 71.332 | ET14: 0 | EU14: -442 | EV14: 0 | EW14: 0 | EX14: 0 | EY14: 0 | EZ14: 12112 | FA14: 10456 | FB14: 1656 | FC14: 105 | FD14: 10455 | FE14: 8866 | FF14: 1589 | FG14: 0 | FH14: 8781.66152 | FI14: 7282.92426 | FJ14: 1498.73726 | FK14: 0 | FL14: 1570.729632 | FM14: 1696.360559 | FN14: 1585.691628 | FO14: 1717.152402 | FP14: 183.9674739 | FV14: 701 | FW14: -701
A15: 52 | B15: Evijärvi | C15: 2425 | E15: -0.2546269009 | F15: 48.0081497 | G15: -688.6597938 | K15: 57.20260444 | L15: 2752.57732 | M15: 115.857863 | N15: 8671.752577 | O15: 4135 | P15: 1744 | Q15: 19558 | R15: -17814 | S15: 8047 | T15: 8860 | W15: 58 | X15: 579 | Y15: -270 | Z15: 619 | AA15: 0 | AB15: 0 | AC15: -889 | AD15: 0 | AE15: 0 | AF15: 0 | AG15: -889 | AH15: 3287 | AI15: -275 | AK15: -101 | AL15: 0 | AM15: -1492 | AN15: 8047 | AO15: 6699 | AP15: 584 | AQ15: 764 | AR15: 21.5 | AT15: 262 | AU15: 2408 | AW15: 296 | AX15: 54.41501671 | AY15: -1184.800664 | BC15: 52.14906161 | BD15: 3031.146179 | BE15: 124.0228574 | BF15: 8920.681063 | BG15: 4217 | BH15: 1630 | BI15: 19394 | BJ15: -17764 | BK15: 8100 | BL15: 9715 | BO15: 69 | BP15: 175 | BQ15: 295 | BR15: 744 | BS15: 0 | BT15: 0 | BU15: -449 | BV15: 0 | BW15: 0 | BX15: 0 | BY15: -449 | BZ15: 2838 | CA15: 295 | CC15: 181 | CD15: 0 | CE15: -1230 | CF15: 8100 | CG15: 6733 | CH15: 674 | CI15: 693 | CJ15: 21.5 | CL15: 287.7279412 | CM15: 2404 | CP15: 55.56945409 | CQ15: -1416.884867 | CU15: 51.78660771 | CV15: 3049.536094 | CW15: 123.3900174 | CX15: 9020.832463 | CY15: 4369.81058 | CZ15: 1792.61106 | DA15: 19151.37745 | DB15: -17358.76639 | DC15: 8855.19759 | DD15: 9661.002 | DG15: 89.46951 | DH15: 183.34749 | DI15: 1430.2502 | DJ15: 840.02521 | DK15: 0 | DL15: 0 | DM15: 590.22499 | DN15: 0 | DO15: 0 | DP15: 0 | DQ15: 590.22499 | DR15: 3427.51447 | DS15: 1395.7332 | DU15: -119.56412 | DV15: 0 | DW15: -556.70417 | DX15: 8855.19759 | DY15: 7118.60164 | DZ15: 975.32399 | EA15: 761.27196 | EB15: 22.5 | ED15: 163 | EE15: 13692 | EF15: 13237 | EG15: 13006.35633 | EK15: -1384 | EL15: 160 | EM15: 7 | EN15: -1591 | EO15: 61 | EP15: 5 | EQ15: -2488.58147 | ER15: 501.6271 | ES15: 34.517 | ET15: 0 | EU15: 1000 | EV15: 0 | EW15: 3200 | EX15: 0 | EY15: -200 | EZ15: 6500 | FA15: 0 | FB15: 6500 | FC15: 187 | FD15: 9700 | FE15: 0 | FF15: 9700 | FG15: 180 | FH15: 9500 | FI15: 0 | FJ15: 9500 | FK15: 0 | FL15: 3919.587629 | FM15: 5443.521595 | FN15: 5324.401418 | FO15: 316.3822951 | FP15: 131.6066119 | FV15: 500 | FW15: -500
A16: 61 | B16: Forssa | C16: 16901 | E16: 0.7907403007 | F16: 51.88099151 | G16: -1892.077392 | K16: 56.36317406 | L16: 1346.015029 | M16: 61.88381764 | N16: 7938.997692 | O16: 29784 | P16: 18319 | Q16: 114153 | R16: -95834 | S16: 60706 | T16: 40832 | W16: -244 | X16: 60 | Y16: 5520 | Z16: 6058 | AA16: 100 | AB16: 125 | AC16: -563 | AD16: 94 | AE16: 0 | AF16: 0 | AG16: -469 | AH16: 8139 | AI16: 3972 | AK16: -1499 | AL16: -13513 | AM16: -1854 | AN16: 60706 | AO16: 51722 | AP16: 3679 | AQ16: 5305 | AR16: 20.5 | AT16: 81 | AU16: 16800 | AW16: 2.778869779 | AX16: 48.44376179 | AY16: -1605.47619 | BC16: 57.94461182 | BD16: 1689.107143 | BE16: 81.69875688 | BF16: 7546.309524 | BG16: 29500 | BH16: 18363 | BI16: 116977 | BJ16: -98614 | BK16: 61562 | BL16: 48333 | BO16: -434 | BP16: 27 | BQ16: 10874 | BR16: 7583 | BS16: 0 | BT16: -664 | BU16: 3955 | BV16: 88 | BW16: -3000 | BX16: 0 | BY16: 1043 | BZ16: 9182 | CA16: 10453 | CC16: 673 | CD16: -3634 | CE16: 4895 | CF16: 61562 | CG16: 52863 | CH16: 3955 | CI16: 4744 | CJ16: 20.5 | CL16: 160.8014706 | CM16: 16573 | CO16: 2.134797093 | CP16: 55.50452027 | CQ16: -2149.600383 | CU16: 55.15882067 | CV16: 1722.300372 | CW16: 73.53812274 | CX16: 8548.486313 | CY16: 30499.21806 | CZ16: 17788.83087 | DA16: 119882.8547 | DB16: -102094.0239 | DC16: 64142.98091 | DD16: 46665.618 | DG16: -477.1706 | DH16: 68.40777 | DI16: 8305.8122 | DJ16: 6122.38515 | DK16: 0 | DL16: 0 | DM16: 2183.42705 | DN16: -88.49426 | DO16: 1400 | DP16: 0 | DQ16: 871.92131 | DR16: 10054.33332 | DS16: 8249.41188 | DU16: -424.13051 | DV16: 3635.9078 | DW16: -8827.98276 | DX16: 64142.98091 | DY16: 53742.53731 | DZ16: 5842.3989 | EA16: 4558.0447 | EB16: 20.5 | ED16: 112 | EE16: 75782 | EF16: 78558 | EG16: 80957.23084 | EK16: -6173 | EL16: 164 | EM16: 183 | EN16: -5724 | EO16: 34 | EP16: 132 | EQ16: -17678.52744 | ER16: 514.3906 | ES16: 86.7422 | ET16: 10152 | EU16: 12068 | EV16: 10000 | EW16: -7201 | EX16: 13000 | EY16: -603.91926 | EZ16: 53650 | FA16: 20810 | FB16: 32840 | FC16: 517 | FD16: 52814 | FE16: 27174 | FF16: 25640 | FG16: 395 | FH16: 61574.16572 | FI16: 36800.96422 | FJ16: 24773.2015 | FK16: 0 | FL16: 4080.527779 | FM16: 4027.797619 | FN16: 4679.500912 | FO16: 2621.587186 | FP16: 158.1842265 | FV16: 2820 | FW16: -2820
A17: 69 | B17: Haapajärvi | C17: 7010 | E17: 0.03024061206 | F17: 83.36246806 | G17: -3805.848787 | K17: 31.8881097 | L17: 2208.131241 | M17: 89.96839071 | N17: 8958.345221 | O17: 14390 | P17: 5171 | Q17: 53348 | R17: -48177 | S17: 23573 | T17: 23313 | W17: -328 | X17: 1455 | Y17: -164 | Z17: 2114 | AA17: 0 | AB17: 0 | AC17: -2278 | AD17: 85 | AE17: 0 | AF17: 0 | AG17: -2193 | AH17: -4277 | AI17: -353 | AK17: 116 | AL17: -5040 | AM17: -3717 | AN17: 23573 | AO17: 20118 | AP17: 1237 | AQ17: 2218 | AR17: 22.5 | AT17: 237 | AU17: 6896 | AW17: 0.7367638863 | AX17: 79.92397454 | AY17: -3960.991879 | BC17: 32.31287447 | BD17: 2273.346868 | BE17: 91.32427343 | BF17: 9085.991879 | BG17: 14155 | BH17: 5280 | BI17: 52922 | BJ17: -47642 | BK17: 23624 | BL17: 27656 | BO17: -315 | BP17: 325 | BQ17: 3648 | BR17: 2384 | BS17: 0 | BT17: 0 | BU17: 1264 | BV17: 85 | BW17: 0 | BX17: 0 | BY17: 1349 | BZ17: -2928 | CA17: 3115 | CC17: -974 | CD17: -5065 | CE17: 690 | CF17: 23624 | CG17: 20221 | CH17: 1388 | CI17: 2015 | CJ17: 22.5 | CL17: 215.1985294 | CM17: 6802 | CO17: 0.6708470618 | CP17: 77.32486735 | CQ17: -3749.105522 | CU17: 29.76220866 | CV17: 2675.690572 | CW17: 102.0373013 | CX17: 9571.274881 | CY17: 15034.32877 | CZ17: 6099.03946 | DA17: 56116.19972 | DB17: -50017.16026 | DC17: 25655.60965 | DD17: 27031.165 | DG17: -308.45706 | DH17: 1370.80976 | DI17: 3731.96709 | DJ17: 6062.11688 | DK17: 0 | DL17: 0 | DM17: -2330.14979 | DN17: -85.46604 | DO17: 0 | DP17: 0 | DQ17: -2244.68375 | DR17: -5172.66805 | DS17: 3958.96524 | DU17: 458.72903 | DV17: 5714.545 | DW17: 1582.26954 | DX17: 25655.60965 | DY17: 21357.59386 | DZ17: 2111.40465 | EA17: 2186.61114 | EB17: 22.5 | ED17: 135 | EE17: 34825 | EF17: 34495 | EG17: 36135.10293 | EI17: 970 | EJ17: 1250 | EK17: -3878 | EL17: 177 | EM17: 337 | EN17: -3874 | EO17: 46 | EP17: 1403 | EQ17: -2761.8191 | ER17: 174.72916 | ES17: 210.39424 | ET17: 8005 | EU17: 2000 | EV17: 11360 | EW17: -3500 | EX17: 3415 | EY17: 2000 | EZ17: 39056 | FA17: 25816 | FB17: 13240 | FC17: 1132 | FD17: 41851 | FE17: 31156 | FF17: 10695 | FG17: 1132 | FH17: 41550.939 | FI17: 28873.545 | FJ17: 12677.394 | FK17: 39.505 | FL17: 7411.269615 | FM17: 9184.019722 | FN17: 9459.5214 | FO17: 949.2263938 | FP17: 139.5510723 | FV17: 5099 | FW17: -5099
A18: 71 | B18: Haapavesi | C18: 6758 | E18: 0.3188675731 | F18: 57.88160289 | G18: -2593.666765 | K18: 34.19378295 | L18: 1190.440959 | M18: 44.61634886 | N18: 9738.828056 | O18: 30204 | P18: 16163 | Q18: 61497 | R18: -45334 | S18: 21361 | T18: 24589 | W18: -153 | X18: 528 | Y18: 991 | Z18: 1565 | AA18: 0 | AB18: 0 | AC18: -574 | AD18: 0 | AE18: 0 | AF18: 0 | AG18: -574 | AH18: 3063 | AI18: 963 | AK18: 681 | AL18: -2833 | AM18: 255 | AN18: 21361 | AO18: 18344 | AP18: 1310 | AQ18: 1707 | AR18: 22 | AT18: 155 | AU18: 6667 | AW18: 1.172669135 | AX18: 63.4162785 | AY18: -3268.336583 | BC18: 33.09811828 | BD18: 1354.732263 | BE18: 44.36746339 | BF18: 11145.04275 | BG18: 30266 | BH18: 16857 | BI18: 62065 | BJ18: -45208 | BK18: 21576 | BL18: 26831 | BO18: -83 | BP18: 120 | BQ18: 3236 | BR18: 1360 | BS18: 0 | BT18: 0 | BU18: 1876 | BV18: 0 | BW18: 0 | BX18: 0 | BY18: 1875 | BZ18: 4938 | CA18: 2711 | CC18: -187 | CD18: -2723 | CE18: -4281 | CF18: 21576 | CG18: 18864 | CH18: 1224 | CI18: 1488 | CJ18: 22 | CL18: 234.3382353 | CM18: 6613 | CO18: -0.06877857649 | CP18: 74.22034541 | CQ18: -4321.918604 | CU18: 27.62840958 | CV18: 1400.539687 | CW18: 43.63034464 | CX18: 11716.54705 | CY18: 31962.15993 | CZ18: 17825.62267 | DA18: 67699.94284 | DB18: -49874.32017 | DC18: 22644.85722 | DD18: 26189.23504 | DG18: -165.45499 | DH18: 726.19241 | DI18: -479.49049 | DJ18: 1167.42848 | DK18: 0 | DL18: 0 | DM18: -1646.91897 | DN18: 0 | DO18: 0 | DP18: 0 | DQ18: -1646.91897 | DR18: 3290.94251 | DS18: -489.08178 | DU18: -1066.41466 | DV18: 2076.83945 | DW18: -7066.86616 | DX18: 22644.85722 | DY18: 19116.90349 | DZ18: 1905.34122 | EA18: 1622.61251 | EB18: 22 | ED18: 4 | EE18: 23684 | EF18: 24087 | EG18: 28566.09511 | EK18: -970 | EL18: 90 | EM18: 172 | EN18: -7931 | EO18: 196 | EP18: 743 | EQ18: -7239.4523 | ER18: 607.10692 | ES18: 54.561 | ET18: 0 | EU18: 2011 | EV18: 22000 | EW18: -15700 | EX18: 3520 | EY18: 7000 | EZ18: 27424 | FA18: 9251 | FB18: 18173 | FC18: 0 | FD18: 31001 | FE18: 28950 | FF18: 2051 | FG18: 0 | FH18: 39444 | FI18: 30292 | FJ18: 9152 | FK18: 0 | FL18: 5545.723587 | FM18: 6462.126894 | FN18: 8029.538016 | FO18: 868.9501586 | FP18: 131.4002962 | FV18: 1987 | FW18: -1987
A19: 72 | B19: Hailuoto | C19: 959 | E19: -0.1309285237 | F19: 42.87563243 | G19: -2590.198123 | K19: 66.99122225 | L19: 739.3117831 | M19: 24.16067594 | N19: 11168.92596 | O19: 3781 | P19: 1482 | Q19: 8551 | R19: -7069 | S19: 3591 | T19: 3426 | W19: -12 | X19: -2 | Y19: -66 | Z19: 367 | AA19: 0 | AB19: 0 | AC19: -433 | AD19: 106 | AE19: 0 | AF19: 0 | AG19: -327 | AH19: 3048 | AI19: -70 | AK19: 115 | AL19: -276 | AM19: -1922 | AN19: 3591 | AO19: 3153 | AP19: 98 | AQ19: 340 | AR19: 20.5 | AT19: 253 | AU19: 949 | AW19: 1.483050847 | AX19: 37.28431262 | AY19: -2390.937829 | BC19: 68.67342308 | BD19: 653.3192835 | BE19: 24.90370859 | BF19: 9575.342466 | BG19: 3726 | BH19: 1419 | BI19: 8347 | BJ19: -6928 | BK19: 3605 | BL19: 3843 | BO19: -13 | BP19: 0 | BQ19: 507 | BR19: 509 | BS19: 0 | BT19: 0 | BU19: -2 | BV19: 92 | BW19: 0 | BX19: 0 | BY19: 90 | BZ19: 3138 | CA19: 507 | CC19: 34 | CD19: -336 | CE19: 166 | CF19: 3605 | CG19: 3176 | CH19: 121 | CI19: 308 | CJ19: 20.5 | CL19: 213.1838235 | CM19: 950 | CO19: 1.014388212 | CP19: 34.89594758 | CQ19: -2417.483495 | CU19: 68.86711065 | CV19: 492.2661684 | CW19: 17.77565885 | CX19: 10108.04455 | CY19: 3897.96644 | CZ19: 1677.01203 | DA19: 8854.95328 | DB19: -7177.94125 | DC19: 3780.21682 | DD19: 3749.484 | DG19: -10.08803 | DH19: -0.70544 | DI19: 340.9661 | DJ19: 509.8461 | DK19: 0 | DL19: 0 | DM19: -168.88 | DN19: -92.19396 | DO19: 0 | DP19: 0 | DQ19: -76.68604 | DR19: 3062.21639 | DS19: 281.39764 | DU19: -30.99306 | DV19: 335.922 | DW19: -16.84502 | DX19: 3780.21682 | DY19: 3249.47155 | DZ19: 187.31176 | EA19: 343.43351 | EB19: 20.5 | ED19: 62 | EE19: 3566 | EF19: 3413 | EG19: 3629.86312 | EK19: -1864 | EL19: 8 | EM19: 4 | EN19: -383 | EO19: 31 | EP19: 11 | EQ19: -382.66265 | ER19: 0 | ES19: 84.41999 | ET19: 900 | EU19: 0 | EV19: 0 | EW19: 0 | EX19: 300 | EY19: 0 | EZ19: 2580 | FA19: 2244 | FB19: 336 | FC19: 0 | FD19: 2244 | FE19: 1908 | FF19: 336 | FG19: 0 | FH19: 2208.339 | FI19: 1842.417 | FJ19: 365.922 | FK19: 0 | FL19: 3734.098019 | FM19: 4181.243414 | FN19: 4822.558853 | FO19: 158.5108073 | FP19: 166.8534814 | FV19: 0 | FW19: 0
A20: 74 | B20: Halsua | C20: 1127 | E20: -0.2599061033 | F20: 62.41025075 | G20: -4189.88465 | K20: 34.2870435 | L20: 364.6850044 | M20: 15.29360791 | N20: 8703.637977 | O20: 2089 | P20: 1052 | Q20: 9229 | R20: -8177 | S20: 3852 | T20: 4149 | W20: -24 | X20: 2 | Y20: -198 | Z20: 123 | AA20: 0 | AB20: 0 | AC20: -321 | AD20: 0 | AE20: 0 | AF20: 0 | AG20: -321 | AH20: 5 | AI20: -268 | AK20: 354 | AL20: -7 | AM20: -731 | AN20: 3852 | AO20: 3017 | AP20: 414 | AQ20: 421 | AR20: 22 | AT20: 268 | AU20: 1103 | AW20: 59.82352941 | AX20: 54.73608838 | AY20: -3742.520399 | BC20: 39.28976628 | BD20: 316.4097915 | BE20: 13.85523167 | BF20: 8335.448776 | BG20: 2052 | BH20: 912 | BI20: 8764 | BJ20: -7852 | BK20: 4000 | BL20: 4864 | BO20: -9 | BP20: 4 | BQ20: 1007 | BR20: 492 | BS20: 0 | BT20: 0 | BU20: 515 | BV20: 0 | BW20: 0 | BX20: 0 | BY20: 515 | BZ20: 520 | CA20: 1001 | CC20: -401 | CD20: -7 | CE20: 594 | CF20: 4000 | CG20: 3206 | CH20: 440 | CI20: 354 | CJ20: 23.5 | CL20: 59.05882353 | CM20: 1083 | CO20: 4.60422476 | CP20: 62.86024728 | CQ20: -4755.201754 | CU20: 36.63151527 | CV20: 157.9940351 | CW20: 5.857524796 | CX20: 9844.122982 | CY20: 2244.11012 | CZ20: 1197.59511 | DA20: 9554.83918 | DB20: -8357.24407 | DC20: 4126.96856 | DD20: 4489.494 | DG20: -3.78603 | DH20: 2.0361 | DI20: 257.46856 | DJ20: 154.60378 | DK20: 0 | DL20: 0 | DM20: 102.86478 | DN20: 0 | DO20: 0 | DP20: 0 | DQ20: 102.86478 | DR20: 623.6961 | DS20: 256.57418 | DU20: -48.72228 | DV20: 52.4196 | DW20: -1064.84991 | DX20: 4126.96856 | DY20: 3093.77009 | DZ20: 634.66183 | EA20: 398.53664 | EB20: 23.5 | ED20: 24 | EE20: 5999 | EF20: 5548 | EG20: 6057.55518 | EI20: 160 | EK20: -548 | EL20: 14 | EM20: 71 | EN20: -413 | EO20: 0 | EP20: 6 | EQ20: -1322.32409 | ER20: 0 | ES20: 0.9 | ET20: 0 | EU20: 550 | EV20: 0 | EW20: -250 | EX20: 525.80278 | EY20: 345.69156 | EZ20: 4939 | FA20: 982 | FB20: 3957 | FC20: 95 | FD20: 4682 | FE20: 975 | FF20: 3707 | FG20: 95 | FH20: 5501.13978 | FI20: 1448.72018 | FJ20: 4052.4196 | FK20: 0 | FL20: 12808.34073 | FM20: 12410.6981 | FN20: 13050.65282 | FO20: 131.6497911 | FP20: 121.5602872 | FV20: 188 | FW20: -188
A21: 75 | B21: Hamina | C21: 20111 | E21: 0.8703051524 | F21: 68.65713958 | G21: -4744.418477 | K21: 48.58124283 | L21: 174.481627 | M21: 7.468003475 | N21: 8527.820596 | O21: 35340 | P21: 24531 | Q21: 140655 | R21: -115782 | S21: 85455 | T21: 38153 | W21: -33 | X21: 2279 | Y21: 10072 | Z21: 11140 | AA21: 0 | AB21: 0 | AC21: -1068 | AD21: 0 | AE21: 0 | AF21: 0 | AG21: -1068 | AH21: 5507 | AI21: 9663 | AK21: 2150 | AL21: -16895 | AM21: -2304 | AN21: 85455 | AO21: 71246 | AP21: 7415 | AQ21: 6794 | AR21: 21 | AT21: 34 | AU21: 19877 | AW21: 0.7058621164 | AX21: 61.5686855 | AY21: -4331.488655 | BC21: 50.6851525 | BD21: 513.1559088 | BE21: 18.97437466 | BF21: 9871.308548 | BG21: 34495 | BH21: 26458 | BI21: 144562 | BJ21: -118104 | BK21: 89199 | BL21: 46900 | BO21: -259 | BP21: 2220 | BQ21: 19956 | BR21: 9728 | BS21: 0 | BT21: 0 | BU21: 10228 | BV21: 0 | BW21: -1500 | BX21: 0 | BY21: 8728 | BZ21: 14236 | CA21: 23443 | CC21: -736 | CD21: -28506 | CE21: 2729 | CF21: 89199 | CG21: 74460 | CH21: 8528 | CI21: 6211 | CJ21: 21 | CL21: 35.88970588 | CM21: 19702 | CO21: 0.5369334771 | CP21: 56.36196432 | CQ21: -4373.991357 | CU21: 54.03367447 | CV21: 173.0938428 | CW21: 6.361947828 | CX21: 9930.803319 | CY21: 36890.76993 | CZ21: 26654.4087 | DA21: 154221.5931 | DB21: -127567.1844 | DC21: 98763.11836 | DD21: 41394.624 | DG21: 87.20913 | DH21: 1583.81057 | DI21: 14261.57765 | DJ21: 9930.5407 | DK21: 0 | DL21: 0 | DM21: 4331.03695 | DN21: 0 | DO21: 1500 | DP21: 0 | DQ21: 2831.03695 | DR21: 20086.95637 | DS21: 13461.27935 | DU21: -730.32653 | DV21: 26848.58081 | DW21: -128.80926 | DX21: 98763.11836 | DY21: 77532.98473 | DZ21: 14466.73852 | EA21: 6763.39511 | EB21: 21 | ED21: 213 | EE21: 93085 | EF21: 97229 | EG21: 105216.2935 | EK21: -13086 | EL21: 129 | EM21: 990 | EN21: -21782 | EO21: 63 | EP21: 1005 | EQ21: -14085.24729 | ER21: 58.309 | ES21: 436.84968 | ET21: 17600 | EU21: 2620 | EV21: 28530 | EW21: -2616 | EX21: 20000 | EY21: -2311.45281 | EZ21: 87192 | FA21: 69298 | FB21: 17894 | FC21: 16138 | FD21: 84601 | FE21: 61303 | FF21: 23298 | FG21: 9487 | FH21: 75440.04098 | FI21: 64943.54444 | FJ21: 10496.49654 | FK21: 9149.25784 | FL21: 7896.52429 | FM21: 8526.035116 | FN21: 10386.55576 | FO21: 3692.046892 | FP21: 187.394523 | FV21: 9905 | FW21: -9905
A22: 77 | B22: Hankasalmi | C22: 4875 | E22: 0.1120448179 | F22: 44.8739882 | G22: -2919.384615 | K22: 48.12586629 | L22: 230.3589744 | M22: 9.72675067 | N22: 8644.307692 | O22: 15590 | P22: 5265 | Q22: 39124 | R22: -33859 | S22: 15412 | T22: 18486 | W22: -61 | X22: 176 | Y22: 154 | Z22: 1654 | AA22: 0 | AB22: 0 | AC22: -1500 | AD22: 22 | AE22: 0 | AF22: 0 | AG22: -1478 | AH22: -2350 | AI22: 181 | AK22: -30 | AL22: -726 | AM22: -1967 | AN22: 15412 | AO22: 13140 | AP22: 949 | AQ22: 1323 | AR22: 22 | AT22: 217 | AU22: 4782 | AW22: 4.562626263 | AX22: 25.53324516 | AY22: -1607.486407 | BC22: 63.65611105 | BD22: 201.3801757 | BE22: 8.692625383 | BF22: 8455.876202 | BG22: 14940 | BH22: 5573 | BI22: 37257 | BJ22: -31684 | BK22: 15424 | BL22: 20588 | BO22: -59 | BP22: 189 | BQ22: 4458 | BR22: 2667 | BS22: 645 | BT22: 0 | BU22: 2436 | BV22: 0 | BW22: 0 | BX22: 0 | BY22: 2436 | BZ22: 86 | CA22: 4257 | CC22: 251 | CD22: -931 | CE22: 6494 | CF22: 15424 | CG22: 13086 | CH22: 1057 | CI22: 1281 | CJ22: 22 | CL22: 53.01470588 | CM22: 4683 | CO22: 4.832660147 | CP22: 23.67044003 | CQ22: -1101.265296 | CU22: 64.40233806 | CV22: 447.4068781 | CW22: 18.90428799 | CX22: 8638.43751 | CY22: 14114.37008 | CZ22: 5870.74085 | DA22: 39158.89783 | DB22: -33288.15698 | DC22: 16744.22646 | DD22: 19281.032 | DG22: -40.82234 | DH22: 270.33223 | DI22: 2966.61137 | DJ22: 1714.53699 | DK22: 0 | DL22: 118.7 | DM22: 1133.37438 | DN22: 0 | DO22: 0 | DP22: 0 | DQ22: 1133.37438 | DR22: 927.73215 | DS22: 3696.03546 | DU22: -695.90618 | DV22: 581.492 | DW22: 2814.12394 | DX22: 16744.22646 | DY22: 13777.88288 | DZ22: 1534.6539 | EA22: 1431.68968 | EB22: 22 | ED22: 178 | EE22: 19217 | EF22: 17914 | EG22: 20097.77755 | EI22: 670 | EK22: -2173 | EL22: 0 | EM22: 25 | EN22: -2189 | EO22: 505 | EP22: 3921 | EQ22: -916.01786 | ER22: 0 | ES22: 34.10634 | ET22: 4000 | EU22: -2000 | EV22: 0 | EW22: -6000 | EX22: 0 | EY22: -175 | EZ22: 13189 | FA22: 6258 | FB22: 6931 | FC22: 0 | FD22: 6258 | FE22: 5501 | FF22: 757 | FG22: 0 | FH22: 5501.496 | FI22: 4920.004 | FJ22: 581.492 | FK22: 0 | FL22: 5201.230769 | FM22: 4111.877875 | FN22: 4042.763404 | FO22: 626.2674036 | FP22: 133.7320956 | FV22: 985 | FW22: -985
A23: 78 | B23: Hanko | C23: 8199 | E23: 0.4355288449 | F23: 107.6355333 | G23: -7875.716551 | K23: 37.19105694 | L23: 275.0335407 | M23: 10.77802949 | N23: 9314.062691 | O23: 28636 | P23: 15813 | Q23: 68052 | R23: -52014 | S23: 39454 | T23: 12613 | W23: 993 | X23: 2209 | Y23: 3255 | Z23: 3535 | AA23: 0 | AB23: 0 | AC23: -280 | AD23: 10 | AE23: 0 | AF23: 0 | AG23: -270 | AH23: 5871 | AI23: 3147 | AK23: -2986 | AL23: -3763 | AM23: -745 | AN23: 39454 | AO23: 33381 | AP23: 3254 | AQ23: 2819 | AR23: 21.75 | AT23: 58 | AU23: 8042 | AW23: 1.910141767 | AX23: 94.43092691 | AY23: -7602.21338 | BC23: 41.50965168 | BD23: 345.3121114 | BE23: 13.33322371 | BF23: 9452.996767 | BG23: 28818 | BH23: 17762 | BI23: 67029 | BJ23: -49267 | BK23: 40162 | BL23: 15883 | BO23: 1058 | BP23: 220 | BQ23: 8056 | BR23: 3557 | BS23: 0 | BT23: 0 | BU23: 4499 | BV23: 10 | BW23: 0 | BX23: 0 | BY23: 4509 | BZ23: 11446 | CA23: 6141 | CC23: 679 | CD23: -3883 | CE23: 3459 | CF23: 40162 | CG23: 34419 | CH23: 3162 | CI23: 2581 | CJ23: 21.75 | CL23: 37.90441176 | CM23: 7979 | CO23: 1.208584843 | CP23: 86.41375981 | CQ23: -7150.73315 | CU23: 45.08082812 | CV23: 210.5999624 | CW23: 7.81582501 | CX23: 9835.044435 | CY23: 28893.79298 | CZ23: 19170.10592 | DA23: 69095.38617 | DB23: -49925.28025 | DC23: 41324.18238 | DD23: 14272.704 | DG23: 1324.29417 | DH23: 205.11866 | DI23: 7201.01896 | DJ23: 3546.92227 | DK23: 0 | DL23: 0 | DM23: 3654.09669 | DN23: -9.79257 | DO23: 0 | DP23: 0 | DQ23: 3663.88926 | DR23: 15110.08435 | DS23: 5716.56108 | DU23: 200 | DV23: 5883.332 | DW23: 4368.62732 | DX23: 41324.18238 | DY23: 34062.65192 | DZ23: 4381.7628 | EA23: 2879.76766 | EB23: 21.75 | ED23: 256 | EE23: 30240 | EF23: 29149 | EG23: 31171.23629 | EK23: -3993 | EL23: 0 | EM23: 101 | EN23: -4645 | EO23: 84 | EP23: 1879 | EQ23: -2828.15342 | ER23: 0 | ES23: 1480.21966 | ET23: 4700 | EU23: 3000 | EV23: 10000 | EW23: -9000 | EX23: 0 | EY23: 0 | EZ23: 64286 | FA23: 20903 | FB23: 43383 | FC23: 30766 | FD23: 61403 | FE23: 25020 | FF23: 36383 | FG23: 30755 | FH23: 55520.006 | FI23: 19136.674 | FJ23: 36383.332 | FK23: 30715.71499 | FL23: 9489.693865 | FM23: 9473.389704 | FN23: 8712.312609 | FO23: 1566.098939 | FP23: 196.277596 | FV23: 13300 | FW23: -13300
A24: 79 | B24: Harjavalta | C24: 6931 | E24: -0.379412471 | F24: 53.97834135 | G24: -3538.883278 | K24: 40.30043473 | L24: 113.1149906 | M24: 4.759259567 | N24: 8675.082961 | O24: 16471 | P24: 5957 | Q24: 51801 | R24: -45821 | S24: 34223 | T24: 10331 | W24: -70 | X24: 73 | Y24: -1264 | Z24: 2389 | AA24: 0 | AB24: 0 | AC24: -3653 | AD24: 0 | AE24: 0 | AF24: 0 | AG24: -3653 | AH24: 738 | AI24: -1367 | AK24: 691 | AL24: -4429 | AM24: -4462 | AN24: 34223 | AO24: 24706 | AP24: 7273 | AQ24: 2244 | AR24: 21.5 | AT24: 269 | AU24: 6869 | AW24: 0.9230219256 | AX24: 48.73704722 | AY24: -3457.562964 | BC24: 42.02168205 | BD24: 118.7945844 | BE24: 4.97104231 | BF24: 8722.521473 | BG24: 15848 | BH24: 6797 | BI24: 51130 | BJ24: -44333 | BK24: 34754 | BL24: 13375 | BO24: -49 | BP24: 73 | BQ24: 3820 | BR24: 2689 | BS24: 0 | BT24: 0 | BU24: 1131 | BV24: 0 | BW24: 0 | BX24: 0 | BY24: 1131 | BZ24: 1868 | CA24: 3746 | CC24: -243 | CD24: -4143 | CE24: 570 | CF24: 34754 | CG24: 24952 | CH24: 7229 | CI24: 2573 | CJ24: 21.5 | CL24: 205.125 | CM24: 6785 | CO24: 1.573311675 | CP24: 43.81845625 | CQ24: -3202.923838 | CU24: 47.8214198 | CV24: 183.4160825 | CW24: 7.358159207 | CX24: 9098.317696 | CY24: 13308.27277 | CZ24: 6878.57978 | DA24: 52570.55699 | DB24: -45691.97721 | DC24: 39252.7974 | DD24: 13272.303 | DG24: -18.10001 | DH24: 52.00221 | DI24: 6867.02539 | DJ24: 2785.58096 | DK24: 0 | DL24: 0 | DM24: 4081.44443 | DN24: 0 | DO24: 0 | DP24: 0 | DQ24: 4081.44443 | DR24: 6131.73541 | DS24: 6721.05038 | DU24: -854.12928 | DV24: 4357.14988 | DW24: 2220.58795 | DX24: 39252.7974 | DY24: 25571.26305 | DZ24: 10924.11338 | EA24: 2757.42097 | EB24: 21.5 | ED24: 268 | EE24: 31361 | EF24: 31216 | EG24: 35815.35031 | EK24: -3832 | EL24: 0 | EM24: 737 | EN24: -4599 | EO24: 62 | EP24: 1361 | EQ24: -4778.05261 | ER24: 63.51 | ES24: 214.08018 | ET24: 4000 | EU24: 4000 | EV24: 6000 | EW24: -3500 | EX24: 3000 | EY24: 2500 | EZ24: 21214 | FA24: 12071 | FB24: 9143 | FC24: 24 | FD24: 19572 | FE24: 13929 | FF24: 5643 | FG24: 21 | FH24: 20714.29635 | FI24: 12857.15747 | FJ24: 7857.13888 | FK24: 17.49158 | FL24: 4071.129707 | FM24: 3821.225797 | FN24: 4063.40901 | FO24: 1189.361072 | FP24: 175.2927151 | FV24: 0 | FW24: 0
A25: 81 | B25: Hartola | C25: 2697 | E25: -0.1294929779 | F25: 63.16551624 | G25: -4007.786429 | K25: 26.30267457 | L25: 469.7812384 | M25: 17.4110538 | N25: 9848.350019 | O25: 4331 | P25: 2730 | Q25: 20989 | R25: -18256 | S25: 9355 | T25: 8632 | W25: -109 | X25: 56 | Y25: -322 | Z25: 750 | AA25: 0 | AB25: 0 | AC25: -1072 | AD25: 0 | AE25: 0 | AF25: 0 | AG25: -1072 | AH25: -780 | AI25: -323 | AK25: 139 | AL25: -4897 | AM25: 3029 | AN25: 9355 | AO25: 6734 | AP25: 1293 | AQ25: 1328 | AR25: 21.5 | AT25: 265 | AU25: 2655 | AW25: 2.791738382 | AX25: 57.36413757 | AY25: -3447.834275 | BC25: 33.79608897 | BD25: 887.3822976 | BE25: 38.19578929 | BF25: 8479.849341 | BG25: 3983 | BH25: 2062 | BI25: 19683 | BJ25: -17621 | BK25: 10263 | BL25: 10534 | BO25: -64 | BP25: 61 | BQ25: 3173 | BR25: 1130 | BS25: 0 | BT25: 0 | BU25: 2043 | BV25: 0 | BW25: 0 | BX25: 0 | BY25: 2042 | BZ25: 1262 | CA25: 3154 | CC25: -590 | CD25: -1091 | CE25: 1513 | CF25: 10263 | CG25: 7580 | CH25: 1467 | CI25: 1216 | CJ25: 21.5 | CL25: 11 | CM25: 2621 | CO25: 1.338916648 | CP25: 70.1483558 | CQ25: -4248.692907 | CU25: 31.68001389 | CV25: 1058.571721 | CW25: 40.34359555 | CX25: 9577.19987 | CY25: 3834.92958 | CZ25: 1676.82853 | DA25: 20464.79987 | DB25: -18787.97134 | DC25: 10852.59372 | DD25: 9467.227 | DG25: -57.70095 | DH25: 77.82003 | DI25: 1551.96846 | DJ25: 993.99361 | DK25: 0 | DL25: 102.80421 | DM25: 455.17064 | DN25: 0 | DO25: 0 | DP25: 0 | DQ25: 455.17064 | DR25: 1717.17183 | DS25: 1462.69622 | DU25: 80.2321 | DV25: 1142.86151 | DW25: -1911.7192 | DX25: 10852.59372 | DY25: 7384.56358 | DZ25: 2118.37143 | EA25: 1349.65871 | EB25: 21.5 | ED25: 161 | EE25: 15234 | EF25: 14448 | EG25: 15330.61843 | EI25: 370 | EK25: -555 | EL25: 52 | EM25: 3855 | EN25: -1674 | EO25: 13 | EP25: 20 | EQ25: -3422.91034 | ER25: 0 | ES25: 48.49492 | ET25: 1500 | EU25: 2000 | EV25: 2700 | EW25: -1500 | EX25: 2030.86 | EY25: 1500 | EZ25: 11159 | FA25: 6574 | FB25: 4585 | FC25: 22 | FD25: 11269 | FE25: 8126 | FF25: 3143 | FG25: 22 | FH25: 13656.548 | FI25: 8853.821 | FJ25: 4802.727 | FK25: 19.33595 | FL25: 9944.382647 | FM25: 9859.13371 | FN25: 10502.36742 | FO25: 343.4680735 | FP25: 131.0446675 | FV25: 1545 | FW25: -1545
A26: 82 | B26: Hattula | C26: 9422 | E26: 0.1119562516 | F26: 79.09412227 | G26: -4075.249416 | K26: 34.74477603 | L26: 52.96115474 | M26: 3.150089071 | N26: 6136.595203 | O26: 21700 | P26: 6861 | Q26: 53143 | R26: -46279 | S26: 36891 | T26: 9721 | W26: 49 | X26: 33 | Y26: 415 | Z26: 2093 | AA26: 0 | AB26: 0 | AC26: -1678 | AD26: 0 | AE26: 0 | AF26: 0 | AG26: -1678 | AH26: 3175 | AI26: 444 | AK26: -136 | AL26: -2938 | AM26: -945 | AN26: 36891 | AO26: 33409 | AP26: 1229 | AQ26: 2253 | AR26: 20.5 | AT26: 215 | AU26: 9389 | AW26: 1.477094972 | AX26: 63.95442225 | AY26: -3821.599744 | BC26: 40.19678276 | BD26: 54.21237618 | BE26: 3.054820198 | BF26: 6477.473639 | BG26: 22056 | BH26: 6459 | BI26: 54593 | BJ26: -48134 | BK26: 39278 | BL26: 14030 | BO26: 49 | BP26: -87 | BQ26: 5136 | BR26: 2149 | BS26: 0 | BT26: 0 | BU26: 2987 | BV26: 0 | BW26: -2000 | BX26: 0 | BY26: 2987 | BZ26: 6233 | CA26: 4831 | CC26: 1566 | CD26: -3428 | CE26: 2390 | CF26: 39278 | CG26: 35704 | CH26: 1266 | CI26: 2308 | CJ26: 20.75 | CL26: 210.1617647 | CM26: 9405 | CO26: 0.5608137475 | CP26: 66.05827317 | CQ26: -3829.059427 | CU26: 39.0232597 | CV26: 81.63288889 | CW26: 4.361440855 | CX26: 6831.688297 | CY26: 23785.44079 | CZ26: 7550.70501 | DA26: 58551.23379 | DB26: -51000.52878 | DC26: 40611.97742 | DD26: 12270.818 | DG26: 54.77065 | DH26: -0.01684 | DI26: 1937.02045 | DJ26: 2219.27681 | DK26: 134.14348 | DL26: 0 | DM26: -148.11288 | DN26: 0 | DO26: 0 | DP26: 0 | DQ26: -148.11288 | DR26: 6084.81829 | DS26: 2045.324 | DU26: -1308.60819 | DV26: 3578 | DW26: 151.17605 | DX26: 40611.97742 | DY26: 36112.62731 | DZ26: 1918.45721 | EA26: 2580.8929 | EB26: 20.75 | ED26: 22 | EE26: 25877 | EF26: 26379 | EG26: 28425.79992 | EK26: -1584 | EL26: 18 | EM26: 177 | EN26: -2545 | EO26: 23 | EP26: 81 | EQ26: -1961.46551 | ER26: 0 | ES26: 67.31756 | ET26: 3400 | EU26: 1141 | EV26: 6000 | EW26: -7157 | EX26: 5000 | EY26: -891.18247 | EZ26: 36137 | FA26: 23118 | FB26: 13019 | FC26: 4398 | FD26: 31551 | FE26: 25390 | FF26: 6161 | FG26: 4398 | FH26: 32081.96111 | FI26: 26878.66266 | FJ26: 5203.29845 | FK26: 4397.80291 | FL26: 5353.534281 | FM26: 5014.485036 | FN26: 5140.24733 | FO26: 1740.367581 | FP26: 185.0470581 | FV26: 1420 | FW26: -1420
A27: 86 | B27: Hausjärvi | C27: 8260 | E27: 0.7058994902 | F27: 53.65632097 | G27: -2979.05569 | K27: 40.44674746 | L27: 322.6392252 | M27: 17.03516576 | N27: 6912.953995 | O27: 18038 | P27: 6733 | Q27: 50434 | R27: -43693 | S27: 32653 | T27: 13454 | W27: -215 | X27: 4 | Y27: 2203 | Z27: 2198 | AA27: 0 | AB27: 0 | AC27: 5 | AD27: 0 | AE27: 0 | AF27: 0 | AG27: 5 | AH27: 5068 | AI27: 1936 | AK27: 139 | AL27: -4175 | AM27: 173 | AN27: 32653 | AO27: 29779 | AP27: 1143 | AQ27: 1731 | AR27: 21.5 | AT27: 100 | AU27: 8175 | AW27: 1.334507042 | AX27: 65.06901909 | AY27: -3201.46789 | BC27: 37.85623999 | BD27: 1003.058104 | BE27: 48.51127283 | BF27: 7547.033639 | BG27: 18362 | BH27: 6473 | BI27: 50730 | BJ27: -44257 | BK27: 32854 | BL27: 16695 | BO27: -156 | BP27: -2 | BQ27: 5134 | BR27: 2054 | BS27: 0 | BT27: 0 | BU27: 3080 | BV27: 0 | BW27: 0 | BX27: 0 | BY27: 3080 | BZ27: 7938 | CA27: 4982 | CC27: -986 | CD27: -3804 | CE27: -1405 | CF27: 32854 | CG27: 30132 | CH27: 1174 | CI27: 1548 | CJ27: 21.5 | CL27: 167.8529412 | CM27: 8143 | CO27: 0.7821848624 | CP27: 58.53693767 | CQ27: -3077.143278 | CU27: 41.56763414 | CV27: 853.8153911 | CW27: 41.49369759 | CX27: 7510.601269 | CY27: 19699.32145 | CZ27: 8425.15032 | DA27: 54054.66267 | DB27: -45629.51235 | DC27: 34502.73814 | DD27: 15439.56288 | DG27: -50.60239 | DH27: 21.51122 | DI27: 4283.6975 | DJ27: 2278.90545 | DK27: 0 | DL27: 0 | DM27: 2004.79205 | DN27: 0 | DO27: 0 | DP27: 0 | DQ27: 2004.79205 | DR27: 9942.88542 | DS27: 3918.89334 | DU27: -84.75786 | DV27: 5498.50724 | DW27: 1135.32303 | DX27: 34502.73814 | DY27: 31176.44542 | DZ27: 1658.41377 | EA27: 1667.87895 | EB27: 21.5 | ED27: 126 | EE27: 26103 | EF27: 26229 | EG27: 29098.77039 | EK27: -2278 | EL27: 180 | EM27: 335 | EN27: -7003 | EO27: 449 | EP27: 167 | EQ27: -2971.3179 | ER27: 0 | ES27: 187.74759 | ET27: 5000 | EU27: 800 | EV27: 5000 | EW27: 5000 | EX27: 6500 | EY27: -3000 | EZ27: 23332 | FA27: 15694 | FB27: 7638 | FC27: 95 | FD27: 29528 | FE27: 16656 | FF27: 12872 | FG27: 82 | FH27: 27528.97305 | FI27: 17891.71381 | FJ27: 9637.25924 | FK27: 68 | FL27: 3190.072639 | FM27: 4015.902141 | FN27: 3951.234193 | FO27: 1450.067229 | FP27: 178.0753075 | FV27: 3465 | FW27: -3465
A28: 111 | B28: Heinola | C28: 18667 | E28: 0.7729489448 | F28: 76.7328235 | G28: -493.4911877 | K28: 55.86936958 | L28: 4490.973375 | M28: 194.8512144 | N28: 8412.599775 | O28: 55428 | P28: 19955 | Q28: 127649 | R28: -107188 | S28: 68404 | T28: 43449 | W28: -433 | X28: 4190 | Y28: 8422 | Z28: 6367 | AA28: 0 | AB28: 0 | AC28: 2055 | AD28: 100 | AE28: 0 | AF28: 0 | AG28: 2155 | AH28: 26269 | AI28: 7881 | AK28: 337 | AL28: -8288 | AM28: -12092 | AN28: 68404 | AO28: 58899 | AP28: 3277 | AQ28: 6228 | AR28: 20.5 | AT28: 42 | AU28: 18497 | AW28: 2.092229629 | AX28: 82.8199257 | AY28: -537.8710061 | BC28: 55.40757598 | BD28: 5402.822079 | BE28: 210.9012697 | BF28: 9350.489269 | BG28: 54455 | BH28: 20048 | BI28: 127087 | BJ28: -107039 | BK28: 72997 | BL28: 52020 | BO28: -406 | BP28: 2959 | BQ28: 20531 | BR28: 8994 | BS28: 9105 | BT28: 0 | BU28: 20642 | BV28: 14 | BW28: -18690 | BX28: -1 | BY28: 1965 | BZ28: 28035 | CA28: 28683 | CC28: -1740 | CD28: -9553 | CE28: -1213 | CF28: 72997 | CG28: 63745 | CH28: 3729 | CI28: 5523 | CJ28: 20.5 | CL28: 16 | CM28: 18344 | CO28: 1.184685377 | CP28: 88.56284005 | CQ28: -877.7141616 | CU28: 54.63704339 | CV28: 5453.378785 | CW28: 211.6016162 | CX28: 9406.748835 | CY28: 58125.63085 | CZ28: 23738.43583 | DA28: 135531.6581 | DB28: -111793.2223 | DC28: 73125.69665 | DD28: 49109.154 | DG28: -364.55826 | DH28: 5460.72782 | DI28: 15537.79792 | DJ28: 10559.81326 | DK28: 0 | DL28: 0 | DM28: 4977.98466 | DN28: -11.95838 | DO28: 0 | DP28: 0 | DQ28: 4989.94304 | DR28: 33483.01094 | DS28: 13841.1334 | DU28: -2024.80271 | DV28: 13053 | DW28: -6000.0507 | DX28: 73125.69665 | DY28: 61945.59894 | DZ28: 5171.45499 | EA28: 6008.64272 | EB28: 20.5 | ED28: 246 | EE28: 54168 | EF28: 52211 | EG28: 61149.6943 | EK28: -20643 | EL28: 0 | EM28: 670 | EN28: -31482 | EO28: 607 | EP28: 979 | EQ28: -22338.84818 | ER28: 642.9398 | ES28: 1854.72428 | ET28: 24000 | EU28: -1500 | EV28: 35000 | EW28: -6500 | EX28: 0 | EY28: 22000 | EZ28: 80414 | FA28: 64361 | FB28: 16053 | FC28: 3438 | FD28: 99361 | FE28: 86308 | FF28: 13053 | FG28: 3393 | FH28: 108308 | FI28: 73255 | FJ28: 35053 | FK28: 1936.82903 | FL28: 5175.711148 | FM28: 6265.880954 | FN28: 6980.666212 | FO28: 3021.736534 | FP28: 164.7261521 | FV28: 6262 | FW28: -6262
A29: 90 | B29: Heinävesi | C29: 3254 | E29: 0.7577681256 | F29: 61.48824196 | G29: -3410.26429 | K29: 39.3666473 | L29: 1780.57775 | M29: 71.22490907 | N29: 9124.769514 | O29: 6098 | P29: 4498 | Q29: 28788 | R29: -24290 | S29: 11954 | T29: 13570 | W29: 138 | X29: 314 | Y29: 1686 | Z29: 1440 | AA29: 0 | AB29: 0 | AC29: 246 | AD29: 157 | AE29: 0 | AF29: 0 | AG29: 403 | AH29: 1788 | AI29: 1686 | AK29: -14 | AL29: -13 | AM29: 1132 | AN29: 11954 | AO29: 8393 | AP29: 2190 | AQ29: 1371 | AR29: 21 | AT29: 26 | AU29: 3196 | AW29: 89.37931034 | AX29: 52.32098925 | AY29: -3010.012516 | BC29: 44.43380654 | BD29: 1543.491865 | BE29: 58.19849376 | BF29: 9680.225282 | BG29: 6139 | BH29: 4161 | BI29: 28755 | BJ29: -24594 | BK29: 12194 | BL29: 14537 | BO29: 128 | BP29: 311 | BQ29: 2576 | BR29: 1546 | BS29: 575 | BT29: 342 | BU29: 1263 | BV29: 285 | BW29: 0 | BX29: 0 | BY29: 1548 | BZ29: 3336 | CA29: 2506 | CC29: -43 | CD29: -13 | CE29: 1427 | CF29: 12194 | CG29: 8430 | CH29: 2534 | CI29: 1230 | CJ29: 21 | CL29: 83.23529412 | CM29: 3136 | CO29: 65.42569715 | CP29: 42.55407026 | CQ29: -2329.699911 | CU29: 51.52364897 | CV29: 1533.087934 | CW29: -15.07769987 | CX29: -37112.89525 | CY29: 5903.00972 | CZ29: 4573.18779 | DA29: 29299.60923 | DB29: -24726.42144 | DC29: 13784.08514 | DD29: 13696.754 | DG29: 33.50357 | DH29: 220.78706 | DI29: 3008.70833 | DJ29: 1351.95716 | DK29: 70.78956 | DL29: 0 | DM29: 1727.54073 | DN29: 177.22991 | DO29: 0 | DP29: 0 | DQ29: 1550.31082 | DR29: 5207.40103 | DS29: 2818.43386 | DU29: 84.4504 | DV29: 13.414 | DW29: 2314.53023 | DX29: 13784.08514 | DY29: 8869.04811 | DZ29: 3567.87241 | EA29: 1347.16462 | EB29: 21 | ED29: 262 | EE29: 20748 | EF29: 20691 | EG29: 21222.37171 | EK29: -571 | EL29: 10 | EM29: 7 | EN29: -2135 | EO29: 0 | EP29: 1056 | EQ29: -834.4483 | ER29: 32.7 | ES29: 297.84467 | ET29: 0 | EU29: -1200 | EV29: 7000 | EW29: -9500 | EX29: 0 | EY29: -2700 | EZ29: 16971 | FA29: 1958 | FB29: 15013 | FC29: 54 | FD29: 14457 | FE29: 8944 | FF29: 5513 | FG29: 65 | FH29: 11744.308 | FI29: 8930.894 | FJ29: 2813.414 | FK29: 0 | FL29: 6162.261832 | FM29: 5609.824781 | FN29: 4860.357864 | FO29: 422.3356243 | FP29: 134.6733496 | FV29: 225 | FW29: -225
A30: 91 | B30: Helsinki | C30: 653835 | E30: 4.224142039 | F30: 43.74717515 | G30: -1006.538347 | K30: 81.56712286 | L30: 1700.80372 | M30: 76.67420035 | N30: 8096.509058 | O30: 1764146 | P30: 1205175 | Q30: 4500217 | R30: -3118484 | S30: 3493732 | T30: 232776 | W30: 61221 | X30: 72167 | Y30: 741412 | Z30: 364436 | AA30: 0 | AB30: 0 | AC30: 376976 | AD30: -271 | AE30: -2699 | AF30: 5222 | AG30: 379228 | AH30: 6102098 | AI30: 551214 | AK30: -33664 | AL30: -86541 | AM30: -32942 | AN30: 3493732 | AO30: 2632935 | AP30: 586905 | AQ30: 273892 | AR30: 18 | AT30: 4 | AU30: 656920 | AW30: 9.051615295 | AX30: 44.65248997 | AY30: -938.3395238 | BC30: 80.77829932 | BD30: 2009.635877 | BE30: 85.34453107 | BF30: 8594.77562 | BG30: 1847157 | BH30: 1338032 | BI30: 4662369 | BJ30: -3324337 | BK30: 3565598 | BL30: 479558 | BO30: 55195 | BP30: 87363 | BQ30: 863377 | BR30: 375929 | BS30: 9280 | BT30: 0 | BU30: 496728 | BV30: -2141 | BW30: 2192 | BX30: 1822 | BY30: 498601 | BZ30: 6540699 | CA30: 729089 | CC30: 6176 | CD30: -81541 | CE30: -8780 | CF30: 3565598 | CG30: 2791940 | CH30: 519324 | CI30: 254334 | CJ30: 18 | CL30: 5 | CM30: 658457 | CO30: 8.16181038 | CP30: 40.33248247 | CQ30: -1053.970415 | CU30: 81.80200811 | CV30: 1743.332779 | CW30: 68.64127476 | CX30: 9270.172599 | CY30: 1961847.932 | CZ30: 1471241.164 | DA30: 5027069.493 | DB30: -3555828.329 | DC30: 3828748.671 | DD30: 330345.073 | DG30: 57375.57124 | DH30: 96433.62428 | DI30: 757074.6101 | DJ30: 408493.8548 | DK30: 1000 | DL30: 0 | DM30: 349580.7553 | DN30: -3670.65975 | DO30: 0 | DP30: -3411.54876 | DQ30: 356662.9639 | DR30: 6864432.461 | DS30: 643442.7905 | DU30: 11246.094 | DV30: 78921.87378 | DW30: -89767.52647 | DX30: 3828748.671 | DY30: 2821115.365 | DZ30: 726896.8029 | EA30: 280736.5031 | EB30: 18 | ED30: 277 | EE30: 1967058 | EF30: 2014469 | EG30: 2247331.742 | EK30: -780382 | EL30: 15034 | EM30: 181192 | EN30: -1046592 | EO30: 25687 | EP30: 283036 | EQ30: -889556.852 | ER30: 28608.571 | ES30: 127737.964 | ET30: 0 | EU30: 0 | EV30: 60000 | EW30: 0 | EX30: 0 | EY30: 0 | EZ30: 1013566 | FA30: 932025 | FB30: 81541 | FC30: 1950332 | FD30: 992024 | FE30: 913103 | FF30: 78921 | FG30: 1894619 | FH30: 913102.9516 | FI30: 836181.0679 | FJ30: 76921.88373 | FK30: 1606277.636 | FL30: 7909.125391 | FM30: 8451.742982 | FN30: 8946.474872 | FO30: 156728.6314 | FP30: 238.0240948 | FV30: 116591 | FW30: -116591
A31: 97 | B31: Hirvensalmi | C31: 2136 | E31: 4.83753258 | F31: 25.1273539 | G31: 3723.314607 | K31: 76.89669556 | L31: 5670.411985 | M31: 246.0281596 | N31: 8412.453184 | O31: 3653 | P31: 2784 | Q31: 17110 | R31: -14326 | S31: 7821 | T31: 6866 | W31: -1 | X31: 335 | Y31: 695 | Z31: 666 | AA31: 952 | AB31: 0 | AC31: 981 | AD31: 0 | AE31: 0 | AF31: 0 | AG31: 981 | AH31: 6686 | AI31: 666 | AK31: 19 | AL31: -133 | AM31: 1568 | AN31: 7821 | AO31: 5569 | AP31: 935 | AQ31: 1317 | AR31: 20 | AT31: 82 | AU31: 2156 | AW31: 8.316176471 | AX31: 22.94039589 | AY31: 3662.337662 | BC31: 78.07560773 | BD31: 5389.146568 | BE31: 223.148382 | BF31: 8814.935065 | BG31: 3656 | BH31: 2779 | BI31: 17390 | BJ31: -14611 | BK31: 7863 | BL31: 7444 | BO31: -3 | BP31: 435 | BQ31: 1128 | BR31: 826 | BS31: 0 | BT31: 0 | BU31: 302 | BV31: 0 | BW31: 0 | BX31: 0 | BY31: 302 | BZ31: 6988 | CA31: 1128 | CC31: -195 | CD31: -133 | CE31: -50 | CF31: 7863 | CG31: 5595 | CH31: 1068 | CI31: 1200 | CJ31: 20 | CL31: 219.2279412 | CM31: 2131 | CO31: 20.3548777 | CP31: 20.93391617 | CQ31: 3831.103881 | CU31: 78.13406709 | CV31: 5410.758151 | CW31: 216.9439167 | CX31: 9103.397574 | CY31: 3775.81886 | CZ31: 2810.46856 | DA31: 18557.40727 | DB31: -15746.93871 | DC31: 8758.24155 | DD31: 7242.673 | DG31: -0.00211 | DH31: 424.90228 | DI31: 678.87601 | DJ31: 614.38517 | DK31: 0 | DL31: 0 | DM31: 64.49084 | DN31: 0 | DO31: 0 | DP31: 0 | DQ31: 64.49084 | DR31: 7052.53979 | DS31: 859.23101 | DU31: -146.14558 | DV31: 33.35 | DW31: 271.34888 | DX31: 8758.24155 | DY31: 5920.0768 | DZ31: 1511.64157 | EA31: 1326.52318 | EB31: 20 | ED31: 48 | EE31: 11862 | EF31: 12160 | EG31: 13074.56912 | EK31: -654 | EL31: 21 | EM31: 1535 | EN31: -1470 | EO31: 277 | EP31: 15 | EQ31: -868.66905 | ER31: 236.29919 | ES31: 44.48773 | ET31: 0 | EU31: 0 | EV31: 0 | EW31: 0 | EX31: 0 | EY31: 0 | EZ31: 166 | FA31: 33 | FB31: 133 | FC31: 38 | FD31: 33 | FE31: 0 | FF31: 33 | FG31: 38 | FH31: 0 | FI31: 0 | FJ31: 0 | FK31: 38.02763 | FL31: 3953.183521 | FM31: 3645.640074 | FN31: 3697.042708 | FO31: 296.00384 | FP31: 138.903726 | FV31: 301 | FW31: -301
A32: 98 | B32: Hollola | C32: 23410 | E32: 1.352869655 | F32: 42.65919136 | G32: -2104.357112 | K32: 58.59485155 | L32: 419.1371209 | M32: 22.91745855 | N32: 6675.480564 | O32: 31886 | P32: 13768 | Q32: 137188 | R32: -123350 | S32: 92604 | T32: 37747 | W32: -653 | X32: 1199 | Y32: 7547 | Z32: 8992 | AA32: 787 | AB32: 0 | AC32: -658 | AD32: 6 | AE32: 0 | AF32: 0 | AG32: -652 | AH32: 16371 | AI32: 7714 | AK32: 2434 | AL32: -8912 | AM32: 1907 | AN32: 92604 | AO32: 83879 | AP32: 2949 | AQ32: 5776 | AR32: 21 | AT32: 84 | AU32: 23251 | AW32: 2.109207521 | AX32: 42.01515894 | AY32: -1899.402176 | BC32: 60.21259043 | BD32: 776.009634 | BE32: 39.54873559 | BF32: 7161.88551 | BG32: 32173 | BH32: 12710 | BI32: 136342 | BJ32: -123632 | BK32: 98231 | BL32: 48255 | BO32: -323 | BP32: 1148 | BQ32: 23679 | BR32: 9495 | BS32: 0 | BT32: 0 | BU32: 14184 | BV32: 6 | BW32: -6000 | BX32: 0 | BY32: 8190 | BZ32: 24560 | CA32: 23585 | CC32: -2241 | CD32: -11054 | CE32: 5104 | CF32: 98231 | CG32: 89541 | CH32: 3406 | CI32: 5284 | CJ32: 21 | CL32: 33.875 | CM32: 23090 | CO32: 2.10968173 | CP32: 37.82689741 | CQ32: -1669.63462 | CU32: 65.02463889 | CV32: 678.666667 | CW32: 35.22225003 | CX32: 7032.865113 | CY32: 32846.56161 | CZ32: 14319.71556 | DA32: 141068.8903 | DB32: -126749.1747 | DC32: 99699.97974 | DD32: 43572.597 | DG32: -204.07973 | DH32: 985.55503 | DI32: 17304.87731 | DJ32: 8963.67301 | DK32: 1426.74472 | DL32: 0 | DM32: 9767.94902 | DN32: 4973.26908 | DO32: 4700 | DP32: 0 | DQ32: 94.67994 | DR32: 24561.86252 | DS32: 17150.96741 | DU32: -811.22363 | DV32: 8093.34834 | DW32: 5852.01113 | DX32: 99699.97974 | DY32: 88832.68045 | DZ32: 5109.59384 | EA32: 5757.70545 | EB32: 21 | ED32: 228 | EE32: 95795 | EF32: 95234 | EG32: 97759.0663 | EK32: -9542 | EL32: 0 | EM32: 3735 | EN32: -18805 | EO32: 90 | EP32: 234 | EQ32: -13015.40878 | ER32: 0 | ES32: 1716.4525 | ET32: 1250 | EU32: 3000 | EV32: 19000 | EW32: -3000 | EX32: 0 | EY32: 0 | EZ32: 40484 | FA32: 26730 | FB32: 13754 | FC32: 1761 | FD32: 45429 | FE32: 37336 | FF32: 8093 | FG32: 1760 | FH32: 37336.7583 | FI32: 29559.21496 | FJ32: 7777.54334 | FK32: 347.88386 | FL32: 2525.331055 | FM32: 2682.766333 | FN32: 2574.319963 | FO32: 4230.12764 | FP32: 183.2017168 | FV32: 3784 | FW32: -3784
A33: 102 | B33: Huittinen | C33: 10044 | E33: 0.1810855653 | F33: 53.9851132 | G33: -3113.998407 | K33: 46.58058216 | L33: 350.7566706 | M33: 16.44303927 | N33: 7786.041418 | O33: 31568 | P33: 11100 | Q33: 70130 | R33: -59030 | S33: 33622 | T33: 26079 | W33: -217 | X33: 93 | Y33: 547 | Z33: 4456 | AA33: 0 | AB33: 0 | AC33: -3909 | AD33: 15 | AE33: 0 | AF33: 0 | AG33: -3894 | AH33: 725 | AI33: 533 | AK33: -233 | AL33: -4248 | AM33: -2350 | AN33: 33622 | AO33: 29044 | AP33: 2108 | AQ33: 2470 | AR33: 21 | AT33: 212 | AU33: 9937 | AW33: 2.257829374 | AX33: 51.59652429 | AY33: -2802.757371 | BC33: 48.88063003 | BD33: 902.4856597 | BE33: 42.53550776 | BF33: 7744.289021 | BG33: 31766 | BH33: 10473 | BI33: 68148 | BJ33: -57675 | BK33: 35970 | BL33: 29973 | BO33: -180 | BP33: 93 | BQ33: 8181 | BR33: 3855 | BS33: 0 | BT33: 0 | BU33: 4326 | BV33: 14 | BW33: 0 | BX33: 0 | BY33: 4340 | BZ33: 5065 | CA33: 7955 | CC33: 3721 | CD33: -3522 | CE33: 3231 | CF33: 35970 | CG33: 31147 | CH33: 2209 | CI33: 2614 | CJ33: 21 | CL33: 76.18382353 | CM33: 9870 | CO33: 1.489729418 | CP33: 47.62469021 | CQ33: -2677.866343 | CU33: 51.0514281 | CV33: 705.0900314 | CW33: 31.51916096 | CX33: 8165.124122 | CY33: 34058.46029 | CZ33: 12691.11032 | DA33: 73072.02055 | DB33: -60380.91023 | DC33: 37605.60367 | DD33: 28010.972 | DG33: -155.51595 | DH33: 89.32578 | DI33: 5169.47527 | DJ33: 3832.18733 | DK33: 0 | DL33: 0 | DM33: 1337.28794 | DN33: -13.54291 | DO33: 0 | DP33: 0 | DQ33: 1350.83085 | DR33: 6415.89984 | DS33: 5081.59405 | DU33: -1295.42583 | DV33: 3418.95278 | DW33: 1391.49295 | DX33: 37605.60367 | DY33: 31410.08322 | DZ33: 3364.4997 | EA33: 2831.02075 | EB33: 21 | ED33: 125 | EE33: 28534 | EF33: 26368 | EG33: 30989.31291 | EK33: -3578 | EL33: 432 | EM33: 263 | EN33: -5097 | EO33: 158 | EP33: 215 | EQ33: -3933.27416 | ER33: 86.61191 | ES33: 156.56115 | ET33: 6500 | EU33: 0 | EV33: 4700 | EW33: 0 | EX33: 0 | EY33: 0 | EZ33: 27681 | FA33: 23771 | FB33: 3910 | FC33: 140 | FD33: 28859 | FE33: 25440 | FF33: 3419 | FG33: 140 | FH33: 25440.16763 | FI33: 22169.71346 | FJ33: 3270.45417 | FK33: 0 | FL33: 3260.454002 | FM33: 3382.20791 | FN33: 3060.488239 | FO33: 1495.718249 | FP33: 151.5418692 | FV33: 1775 | FW33: -1775
A34: 103 | B34: Humppila | C34: 2184 | E34: 0.3873459082 | F34: 48.50315847 | G34: -2325.091575 | K34: 46.79270763 | L34: 350.7326007 | M34: 18.25 | N34: 7014.652015 | O34: 3461 | P34: 1095 | Q34: 14250 | R34: -13155 | S34: 7768 | T34: 5701 | W34: -39 | X34: 3 | Y34: 278 | Z34: 378 | AA34: 0 | AB34: 0 | AC34: -100 | AD34: 0 | AE34: 0 | AF34: 0 | AG34: -100 | AH34: -378 | AI34: 283 | AK34: 411 | AL34: -650 | AM34: 946 | AN34: 7768 | AO34: 6757 | AP34: 409 | AQ34: 602 | AR34: 22 | AT34: 169 | AU34: 2174 | AW34: 1.38150289 | AX34: 42.37333156 | AY34: -1983.440662 | BC34: 51.4926504 | BD34: 314.1674333 | BE34: 16.57987497 | BF34: 6916.283349 | BG34: 3224 | BH34: 1240 | BI34: 14115 | BJ34: -12875 | BK34: 7583 | BL34: 6236 | BO34: -33 | BP34: 3 | BQ34: 914 | BR34: 355 | BS34: 0 | BT34: 0 | BU34: 559 | BV34: 2 | BW34: 0 | BX34: 0 | BY34: 562 | BZ34: 184 | CA34: 893 | CC34: -167 | CD34: -650 | CE34: 705 | CF34: 7583 | CG34: 6564 | CH34: 458 | CI34: 561 | CJ34: 22 | CL34: 250.4558824 | CM34: 2166 | CO34: 1.138402035 | CP34: 38.20513316 | CQ34: -1577.726879 | CU34: 54.76450469 | CV34: 747.9676593 | CW34: 38.01373107 | CX34: 7181.83109 | CY34: 3512.54006 | CZ34: 1181.59672 | DA34: 14768.19275 | DB34: -13586.59603 | DC34: 8178.39462 | DD34: 6170.355 | DG34: -22.53766 | DH34: 5.32184 | DI34: 744.93777 | DJ34: 337.41334 | DK34: 0 | DL34: 0 | DM34: 407.52443 | DN34: -2.33217 | DO34: 0 | DP34: -2.58544 | DQ34: 412.44204 | DR34: 596.32634 | DS34: 990.18923 | DU34: 490.5928 | DV34: 650 | DW34: 927.01661 | DX34: 8178.39462 | DY34: 7025.65551 | DZ34: 641.32505 | EA34: 511.41406 | EB34: 22 | ED34: 58 | EE34: 9827 | EF34: 9813 | EG34: 9861.38832 | EH34: 310 | EJ34: 395 | EK34: -372 | EL34: 35 | EM34: 1000 | EN34: -229 | EO34: 14 | EP34: 27 | EQ34: -101.51262 | ER34: 10.2 | ES34: 28.14 | ET34: 0 | EU34: 0 | EV34: 0 | EW34: 0 | EX34: 0 | EY34: 0 | EZ34: 5875 | FA34: 4225 | FB34: 1650 | FC34: 373 | FD34: 5225 | FE34: 3575 | FF34: 1650 | FG34: 369 | FH34: 4575 | FI34: 2925 | FJ34: 1650 | FK34: 0 | FL34: 3704.212454 | FM34: 3332.566697 | FN34: 3194.594645 | FO34: 319.3479777 | FP34: 147.4367395 | FV34: 958 | FW34: -958
A35: 105 | B35: Hyrynsalmi | C35: 2271 | E35: 2.146862483 | F35: 21.48141212 | G35: -1128.137384 | K35: 72.25973713 | L35: 586.0854249 | M35: 22.92661633 | N35: 9330.691325 | O35: 4287 | P35: 2209 | Q35: 20376 | R35: -18167 | S35: 8145 | T35: 11004 | W35: -11 | X35: 20 | Y35: 991 | Z35: 488 | AA35: 0 | AB35: 0 | AC35: 503 | AD35: 52 | AE35: 0 | AF35: 0 | AG35: 555 | AH35: 1136 | AI35: 986 | AK35: 49 | AL35: -465 | AM35: 693 | AN35: 8145 | AO35: 6197 | AP35: 772 | AQ35: 1176 | AR35: 21.75 | AT35: 47 | AU35: 2199 | AW35: 1.839662447 | AX35: 22.41443976 | AY35: -884.9477035 | BC35: 72.06944768 | BD35: 961.8008186 | BE35: 36.12254925 | BF35: 9718.508413 | BG35: 4132 | BH35: 2245 | BI35: 20473 | BJ35: -18228 | BK35: 8051 | BL35: 11034 | BO35: -2 | BP35: 8 | BQ35: 863 | BR35: 477 | BS35: 0 | BT35: 0 | BU35: 386 | BV35: 52 | BW35: 0 | BX35: 0 | BY35: 438 | BZ35: 1573 | CA35: 860 | CC35: -26 | CD35: -465 | CE35: 620 | CF35: 8051 | CG35: 6147 | CH35: 845 | CI35: 1059 | CJ35: 21.75 | CL35: 258.5147059 | CM35: 2139 | CO35: 0.1352626927 | CP35: 22.43706541 | CQ35: -1219.382324 | CU35: 71.15809621 | CV35: 652.8156194 | CW35: 24.48720701 | CX35: 9730.701463 | CY35: 4506.1353 | CZ35: 2288.09373 | DA35: 21478.05086 | DB35: -19189.95713 | DC35: 8607.80886 | DD35: 10631.134 | DG35: 7.21098 | DH35: 2.12069 | DI35: 58.3174 | DJ35: 482.73622 | DK35: 0 | DL35: 0 | DM35: -424.41882 | DN35: -52.07013 | DO35: 0 | DP35: 0 | DQ35: -372.34869 | DR35: 1201.02222 | DS35: 41.00458 | DU35: -105.40814 | DV35: 465.472 | DW35: -661.84824 | DX35: 8607.80886 | DY35: 6187.43893 | DZ35: 1257.60937 | EA35: 1162.76056 | EB35: 21.75 | ED35: 10 | EE35: 14267 | EF35: 14701 | EG35: 15312.93248 | EI35: 315 | EJ35: 2200 | EK35: -333 | EL35: 34 | EM35: 6 | EN35: -422 | EO35: 179 | EP35: 3 | EQ35: -789.10111 | ER35: 68.50569 | ES35: 17.7426 | ET35: 0 | EU35: 0 | EV35: 0 | EW35: 0 | EX35: 0 | EY35: 500 | EZ35: 3243 | FA35: 878 | FB35: 2365 | FC35: 0 | FD35: 2778 | FE35: 413 | FF35: 2365 | FG35: 0 | FH35: 2812.752 | FI35: 92 | FJ35: 2720.752 | FK35: 0 | FL35: 5142.228093 | FM35: 5429.740791 | FN35: 5736.799191 | FO35: 284.4799508 | FP35: 132.9967044 | FV35: 734 | FW35: -734
A36: 106 | B36: Hyvinkää | C36: 46470 | E36: 0.08358259461 | F36: 66.09423026 | G36: -2797.245535 | K36: 47.21259544 | L36: 1114.202711 | M36: 55.47058081 | N36: 7331.525716 | O36: 79193 | P36: 41121 | Q36: 295137 | R36: -251376 | S36: 199029 | T36: 52983 | W36: -1758 | X36: 1031 | Y36: -91 | Z36: 19285 | AA36: 0 | AB36: 0 | AC36: -19376 | AD36: 0 | AE36: 0 | AF36: 0 | AG36: -19376 | AH36: 8494 | AI36: -3204 | AK36: 4624 | AL36: -7851 | AM36: -37123 | AN36: 199029 | AO36: 171907 | AP36: 14104 | AQ36: 13018 | AR36: 19.75 | AT36: 232 | AU36: 46576 | AW36: 1.592202756 | AX36: 60.48068373 | AY36: -3020.632944 | BC36: 46.46445347 | BD36: 995.405359 | BE36: 47.9052038 | BF36: 7584.206458 | BG36: 76639 | BH36: 41806 | BI36: 304225 | BJ36: -262419 | BK36: 210988 | BL36: 73266 | BO36: -1773 | BP36: 1100 | BQ36: 21162 | BR36: 20445 | BS36: 0 | BT36: 0 | BU36: 717 | BV36: -10952 | BW36: 11000 | BX36: 0 | BY36: 765 | BZ36: 9259 | CA36: 23282 | CC36: 3150 | CD36: -12610 | CE36: -10485 | CF36: 210988 | CG36: 183623 | CH36: 14846 | CI36: 12519 | CJ36: 19.75 | CL36: 241.3897059 | CM36: 46880 | CO36: 2.571851702 | CP36: 49.15115291 | CQ36: -2573.792613 | CU36: 53.03788054 | CV36: 788.143525 | CW36: 39.80796741 | CX36: 7226.502767 | CY36: 78606.68541 | CZ36: 47333.5524 | DA36: 300113.7953 | DB36: -252780.2429 | DC36: 228072.5716 | DD36: 66582.23688 | DG36: -1739.20952 | DH36: 1169.36889 | DI36: 41304.72493 | DJ36: 21933.30008 | DK36: 0 | DL36: 0 | DM36: 19371.42485 | DN36: -366.66672 | DO36: 5000 | DP36: 0 | DQ36: 14738.09157 | DR36: 23996.69797 | DS36: 35129.62746 | DU36: -708.22349 | DV36: 14963.53828 | DW36: 19802.34589 | DX36: 228072.5716 | DY36: 193250.7986 | DZ36: 21114.71352 | EA36: 13707.05949 | EB36: 20.25 | ED36: 253 | EE36: 187375 | EF36: 193427 | EG36: 191018.6237 | EK36: -38329 | EL36: 73 | EM36: 4337 | EN36: -36723 | EO36: 246 | EP36: 2710 | EQ36: -21833.4368 | ER36: 489.612 | ES36: 6016.54323 | ET36: 42636 | EU36: -7020 | EV36: 0 | EW36: 26677 | EX36: 25000 | EY36: -29027.47821 | EZ36: 139547 | FA36: 116853 | FB36: 22694 | FC36: 3173 | FD36: 153614 | FE36: 104243 | FF36: 49371 | FG36: 3120 | FH36: 134623.2386 | FI36: 114274.5279 | FJ36: 20348.71071 | FK36: 3026.20756 | FL36: 6487.540349 | FM36: 6856.535555 | FN36: 6508.061204 | FO36: 9543.249314 | FP36: 203.5676048 | FV36: 14443 | FW36: -14443
A37: 108 | B37: Hämeenkyrö | C37: 10404 | E37: 0.582766977 | F37: 82.62695367 | G37: -4711.168781 | K37: 34.91935396 | L37: 754.9980777 | M37: 30.07747343 | N37: 9162.149173 | O37: 31469 | P37: 12205 | Q37: 68308 | R37: -56051 | S37: 37870 | T37: 21841 | W37: -202 | X37: 314 | Y37: 3772 | Z37: 5687 | AA37: 0 | AB37: 0 | AC37: -1915 | AD37: 77 | AE37: 0 | AF37: 0 | AG37: -1838 | AH37: -733 | AI37: 3739 | AK37: -55 | AL37: -22321 | AM37: 326 | AN37: 37870 | AO37: 33825 | AP37: 1901 | AQ37: 2144 | AR37: 22 | AT37: 69 | AU37: 10344 | AW37: 28.26136364 | AX37: 75.228725 | AY37: -4269.914927 | BC37: 36.87410937 | BD37: 1049.980665 | BE37: 54.4908661 | BF37: 7033.159319 | BG37: 33006 | BH37: 12353 | BI37: 69742 | BJ37: -57389 | BK37: 39012 | BL37: 25531 | BO37: -252 | BP37: 295 | BQ37: 7197 | BR37: 5319 | BS37: 0 | BT37: 0 | BU37: 1878 | BV37: 77 | BW37: 0 | BX37: 0 | BY37: 1955 | BZ37: 1222 | CA37: 7108 | CC37: -224 | CD37: 0 | CE37: 4881 | CF37: 39012 | CG37: 35286 | CH37: 1779 | CI37: 1947 | CJ37: 22 | CL37: 135.6176471 | CM37: 10337 | CO37: 2.219387285 | CP37: 71.85134284 | CQ37: -4183.984431 | CU37: 36.34013169 | CV37: 968.0887008 | CW37: 45.56487619 | CX37: 7754.928913 | CY37: 34833.20653 | CZ37: 14502.28673 | DA37: 74505.62394 | DB37: -60003.33721 | DC37: 40803.45042 | DD37: 23918.093 | DG37: -619.31655 | DH37: 269.22284 | DI37: 4368.1125 | DJ37: 5290.20189 | DK37: 0 | DL37: 0 | DM37: -922.08939 | DN37: -77.21122 | DO37: 0 | DP37: 0 | DQ37: -844.87817 | DR37: 81.70982 | DS37: 4437.97956 | DU37: -859.17412 | DV37: 1625.434 | DW37: 711.17432 | DX37: 40803.45042 | DY37: 36098.77622 | DZ37: 2534.12737 | EA37: 2170.54683 | EB37: 22 | ED37: 78 | EE37: 29133 | EF37: 28467 | EG37: 31516.99286 | EJ37: 700 | EK37: -4443 | EL37: 970 | EM37: 60 | EN37: -2634 | EO37: 261 | EP37: 146 | EQ37: -4179.61348 | ER37: 87.77824 | ES37: 365.03 | ET37: 0 | EU37: 21265 | EV37: 31154 | EW37: -33821 | EX37: 0 | EY37: 0 | EZ37: 50415 | FA37: 10594 | FB37: 39821 | FC37: 223 | FD37: 47748 | FE37: 40123 | FF37: 7625 | FG37: 190 | FH37: 46122.881 | FI37: 38747.447 | FJ37: 7375.434 | FK37: 170.47624 | FL37: 6448.28912 | FM37: 6354.118329 | FN37: 6194.495529 | FO37: 1640.853465 | FP37: 158.7359451 | FV37: 704 | FW37: -704
A38: 109 | B38: Hämeenlinna | C38: 67633 | E38: 0.2986175225 | F38: 72.2271552 | G38: -2797.850162 | K38: 49.87104604 | L38: 1690.920113 | M38: 76.64492662 | N38: 8052.533527 | O38: 152590 | P38: 86214 | Q38: 465332 | R38: -370118 | S38: 283424 | T38: 90981 | W38: -3608 | X38: 6073 | Y38: 6752 | Z38: 18370 | AA38: 0 | AB38: 0 | AC38: -11618 | AD38: 98 | AE38: 45 | AF38: 0 | AG38: -11475 | AH38: -13709 | AI38: 2947 | AK38: 2248 | AL38: -45697 | AM38: -26363 | AN38: 283424 | AO38: 239750 | AP38: 15997 | AQ38: 27677 | AR38: 20.75 | AT38: 181 | AU38: 67848 | AW38: 0.9478083885 | AX38: 72.61027326 | AY38: -2692.518571 | BC38: 48.3952064 | BD38: 2288.040915 | BE38: 104.4345807 | BF38: 7996.72798 | BG38: 156297 | BH38: 90314 | BI38: 477071 | BJ38: -386757 | BK38: 298979 | BL38: 122902 | BO38: -4014 | BP38: 2014 | BQ38: 33124 | BR38: 21931 | BS38: 0 | BT38: 0 | BU38: 11193 | BV38: 18 | BW38: -73 | BX38: 2764 | BY38: 13904 | BZ38: 195 | CA38: 32075 | CC38: 2221 | CD38: -35278 | CE38: 4003 | CF38: 298979 | CG38: 255175 | CH38: 18457 | CI38: 25347 | CJ38: 21 | CL38: 232.3235294 | CM38: 67971 | CO38: 1.160000767 | CP38: 73.46364531 | CQ38: -2597.100488 | CU38: 47.83565333 | CV38: 2603.730092 | CW38: 115.7468499 | CX38: 8210.689831 | CY38: 165721.2343 | CZ38: 98034.17345 | DA38: 495593.5406 | DB38: -397559.3671 | DC38: 317221.2124 | DD38: 109991.064 | DG38: -3500.65483 | DH38: 7185.57137 | DI38: 33337.82578 | DJ38: 22022.97208 | DK38: 0 | DL38: 0 | DM38: 11314.8537 | DN38: -159.77486 | DO38: 76.10464 | DP38: 8000 | DQ38: 3398.52392 | DR38: 3594.11249 | DS38: 28775.86194 | DU38: -4908.02892 | DV38: 27966.56524 | DW38: 5582.45864 | DX38: 317221.2124 | DY38: 261874.5018 | DZ38: 27152.00347 | EA38: 28194.70708 | EB38: 21 | ED38: 105 | EE38: 242400 | EF38: 248354 | EG38: 262050.1557 | EI38: 2600 | EK38: -36604 | EL38: 524 | EM38: 6770 | EN38: -32863 | EO38: 284 | EP38: 4507 | EQ38: -28392.20137 | ER38: 354.402 | ES38: 4844.39607 | ET38: 60000 | EU38: 19440 | EV38: 62648 | EW38: 2818 | EX38: 42000 | EY38: 1192.81108 | EZ38: 271609 | FA38: 180363 | FB38: 91246 | FC38: 39923 | FD38: 301795 | FE38: 209646 | FF38: 92149 | FG38: 39112 | FH38: 317022.2101 | FI38: 223695.16 | FJ38: 93327.05011 | FK38: 38520.05175 | FL38: 6972.956988 | FM38: 7509.491805 | FN38: 7955.526295 | FO38: 12470.21437 | FP38: 183.4637474 | FV38: 20186 | FW38: -20186
A39: 139 | B39: Ii | C39: 9844 | E39: 0.09796986486 | F39: 75.71811621 | G39: -4954.896384 | K39: 36.19836251 | L39: 264.221861 | M39: 11.38095352 | N39: 8473.892727 | O39: 20207 | P39: 8576 | Q39: 69652 | R39: -61055 | S39: 33886 | T39: 27652 | W39: -275 | X39: 83 | Y39: 291 | Z39: 3362 | AA39: 0 | AB39: 0 | AC39: -3071 | AD39: -618 | AE39: 700 | AF39: 0 | AG39: -2989 | AH39: 1701 | AI39: 117 | AK39: 515 | AL39: -5466 | AM39: -7135 | AN39: 33886 | AO39: 28154 | AP39: 1453 | AQ39: 4279 | AR39: 21.25 | AT39: 219 | AU39: 9848 | AW39: 0.6617936118 | AX39: 76.11730928 | AY39: -4867.790414 | BC39: 34.97501007 | BD39: 835.1949634 | BE39: 35.78346067 | BF39: 8519.191714 | BG39: 20964 | BH39: 8079 | BI39: 70952 | BJ39: -62873 | BK39: 34439 | BL39: 33759 | BO39: -300 | BP39: 53 | BQ39: 5078 | BR39: 4039 | BS39: 0 | BT39: 0 | BU39: 1039 | BV39: 84 | BW39: 0 | BX39: 0 | BY39: 1123 | BZ39: 2824 | CA39: 5018 | CC39: -185 | CD39: -7831 | CE39: 320 | CF39: 34439 | CG39: 28922 | CH39: 1521 | CI39: 3996 | CJ39: 21.25 | CL39: 222.25 | CM39: 9912 | CO39: 0.4820523082 | CP39: 70.33672947 | CQ39: -4743.616937 | CU39: 35.93632199 | CV39: 498.034658 | CW39: 21.5037618 | CX39: 8453.527893 | CY39: 23153.49799 | CZ39: 9426.60909 | DA39: 74341.53788 | DB39: -64914.92879 | DC39: 37463.40192 | DD39: 30697.585 | DG39: -267.51433 | DH39: 72.43228 | DI39: 3050.97608 | DJ39: 3892.62647 | DK39: 0 | DL39: 0 | DM39: -841.65039 | DN39: -81.89555 | DO39: 0 | DP39: 0 | DQ39: -759.75484 | DR39: 2064.08319 | DS39: 2166.82249 | DU39: -719.64818 | DV39: 6626 | DW39: 531.38696 | DX39: 37463.40192 | DY39: 30897.02377 | DZ39: 2048.64026 | EA39: 4517.73789 | EB39: 21.5 | ED39: 46 | EE39: 42085 | EF39: 42611 | EG39: 44351.98706 | EI39: 700 | EK39: -8004 | EL39: 571 | EM39: 181 | EN39: -4805 | EO39: 50 | EP39: 57 | EQ39: -2560.20842 | ER39: 464.4784 | ES39: 460.29449 | ET39: 10000 | EU39: 1745 | EV39: 19100 | EW39: -7590 | EX39: 0 | EY39: 1750 | EZ39: 44564 | FA39: 28098 | FB39: 16466 | FC39: 890 | FD39: 48243 | FE39: 39367 | FF39: 8876 | FG39: 890 | FH39: 43367 | FI39: 32741 | FJ39: 10626 | FK39: 881.0785 | FL39: 6390.999594 | FM39: 7036.454102 | FN39: 6994.141591 | FO39: 1437.070873 | FP39: 144.9829371 | FV39: 2843 | FW39: -2843
A40: 140 | B40: Iisalmi | C40: 21368 | E40: 1.027872281 | F40: 43.352244 | G40: -2076.001498 | K40: 56.34755063 | L40: 1034.444028 | M40: 45.95635606 | N40: 8215.883564 | O40: 42402 | P40: 28723 | Q40: 153787 | R40: -125064 | S40: 77076 | T40: 54428 | W40: -307 | X40: 1766 | Y40: 7899 | Z40: 7372 | AA40: 0 | AB40: 0 | AC40: 527 | AD40: -281 | AE40: 0 | AF40: 764 | AG40: 1010 | AH40: 12166 | AI40: 7455 | AK40: 1279 | AL40: -9773 | AM40: -3225 | AN40: 77076 | AO40: 65351 | AP40: 5852 | AQ40: 5873 | AR40: 20.5 | AT40: 65 | AU40: 21124 | AW40: 1.453562142 | AX40: 44.19214285 | AY40: -1964.306003 | BC40: 55.92596517 | BD40: 1362.384018 | BE40: 59.31468986 | BF40: 8383.592123 | BG40: 41798 | BH40: 28373 | BI40: 155530 | BJ40: -127157 | BK40: 77027 | BL40: 62862 | BO40: -266 | BP40: 1198 | BQ40: 13664 | BR40: 8722 | BS40: 0 | BT40: 0 | BU40: 4942 | BV40: -439 | BW40: 0 | BX40: -1740 | BY40: 2763 | BZ40: 14929 | CA40: 13429 | CC40: -1073 | CD40: -9303 | CE40: 2354 | CF40: 77027 | CG40: 66202 | CH40: 5504 | CI40: 5321 | CJ40: 20.5 | CL40: 161.8088235 | CM40: 20958 | CO40: 1.399783216 | CP40: 47.64780232 | CQ40: -2243.684688 | CU40: 54.96724837 | CV40: 1415.300659 | CW40: 57.45353092 | CX40: 8991.348877 | CY40: 43515.28652 | CZ40: 28535.29719 | DA40: 158973.8714 | DB40: -130438.5742 | DC40: 80668.64407 | DD40: 61539.167 | DG40: -208.03091 | DH40: 1728.01271 | DI40: 13289.21866 | DJ40: 8639.05895 | DK40: 0 | DL40: 0 | DM40: 4650.15971 | DN40: 818.72449 | DO40: 0 | DP40: 605.39827 | DQ40: 3226.03695 | DR40: 18155.18819 | DS40: 12610.31623 | DU40: -589.01002 | DV40: 9422.5332 | DW40: -5920.20547 | DX40: 80668.64407 | DY40: 67179.38685 | DZ40: 7615.4504 | EA40: 5873.80682 | EB40: 20.5 | ED40: 180 | EE40: 93305 | EF40: 95161 | EG40: 101227.2959 | EK40: -11482 | EL40: 46 | EM40: 756 | EN40: -11823 | EO40: 259 | EP40: 489 | EQ40: -19629.66543 | ER40: 746 | ES40: 353.14373 | ET40: 3500 | EU40: 0 | EV40: 15300 | EW40: 0 | EX40: 16900 | EY40: 0 | EZ40: 55346 | FA40: 46043 | FB40: 9303 | FC40: 1697 | FD40: 61342 | FE40: 51920 | FF40: 9422 | FG40: 1589 | FH40: 68820.2247 | FI40: 58961.5475 | FJ40: 9858.6772 | FK40: 1487.7872 | FL40: 4729.221265 | FM40: 5217.288392 | FN40: 5785.755759 | FO40: 3277.043261 | FP40: 156.3624039 | FV40: 4886 | FW40: -4886
A41: 142 | B41: Iitti | C41: 6711 | E41: -0.947000269 | F41: 39.45327016 | G41: -1694.233348 | K41: 55.2876997 | L41: 744.4494114 | M41: 38.57139835 | N41: 7044.702727 | O41: 10526 | P41: 3514 | Q41: 44515 | R41: -41001 | S41: 24311 | T41: 15231 | W41: -51 | X41: 135 | Y41: -1375 | Z41: 1689 | AA41: 0 | AB41: 0 | AC41: -3064 | AD41: 70 | AE41: 0 | AF41: 0 | AG41: -2994 | AH41: -2169 | AI41: -1387 | AK41: 51 | AL41: -1383 | AM41: -2360 | AN41: 24311 | AO41: 19979 | AP41: 1389 | AQ41: 2943 | AR41: 20.75 | AT41: 272 | AU41: 6625 | AW41: 3.978723404 | AX41: 22.73332501 | AY41: -929.0566038 | BC41: 69.96660562 | BD41: 426.1132075 | BE41: 23.02044236 | BF41: 6756.226415 | BG41: 10059 | BH41: 3076 | BI41: 41613 | BJ41: -38537 | BK41: 25383 | BL41: 19607 | BO41: -42 | BP41: -98 | BQ41: 6313 | BR41: 1616 | BS41: 0 | BT41: 0 | BU41: 4697 | BV41: 70 | BW41: 0 | BX41: 0 | BY41: 4767 | BZ41: 2598 | CA41: 6291 | CC41: -1328 | CD41: -1553 | CE41: 5214 | CF41: 25383 | CG41: 21217 | CH41: 1433 | CI41: 2733 | CJ41: 21.25 | CL41: 46.97058824 | CM41: 6559 | CO41: 2.91021143 | CP41: 18.77468221 | CQ41: -355.7124943 | CU41: 75.89440523 | CV41: 589.8453682 | CW41: 29.40039182 | CX41: 7322.81259 | CY41: 10500.18546 | CZ41: 3690.32385 | DA41: 43444.58196 | DB41: -39754.25811 | DC41: 26237.78546 | DD41: 18041.405 | DG41: -29.85595 | DH41: 82.37455 | DI41: 4577.45095 | DJ41: 1662.32837 | DK41: 0 | DL41: 0 | DM41: 2915.12258 | DN41: -69.82868 | DO41: 0 | DP41: 0 | DQ41: 2984.95126 | DR41: 5583.24957 | DS41: 4488.20028 | DU41: -855.257 | DV41: 1553.296 | DW41: 3875.61173 | DX41: 26237.78546 | DY41: 21174.30636 | DZ41: 2049.4562 | EA41: 3014.0229 | EB41: 21.25 | ED41: 208 | EE41: 31041 | EF41: 28779 | EG41: 29830.39797 | EI41: 920 | EK41: -1312 | EL41: 202 | EM41: 137 | EN41: -1221 | EO41: 108 | EP41: 36 | EQ41: -2992.34324 | ER41: 2118.41402 | ES41: 261.34067 | ET41: 1700 | EU41: 0 | EV41: 0 | EW41: 0 | EX41: 0 | EY41: 0 | EZ41: 9894 | FA41: 8341 | FB41: 1553 | FC41: 0 | FD41: 8341 | FE41: 6788 | FF41: 1553 | FG41: 0 | FH41: 6787.455 | FI41: 5924.559 | FJ41: 862.896 | FK41: 993.19085 | FL41: 2905.528237 | FM41: 2637.433962 | FN41: 2513.493827 | FO41: 996.4379464 | FP41: 151.9191868 | FV41: 555 | FW41: -555
A42: 143 | B42: Ikaalinen | C42: 6942 | E42: 0.02425188342 | F42: 71.24969658 | G42: -4397.147796 | K42: 33.15343677 | L42: 136.127917 | M42: 6.434807753 | N42: 7721.549986 | O42: 22421 | P42: 7275 | Q42: 49603 | R42: -42328 | S42: 24486 | T42: 17675 | W42: -157 | X42: 239 | Y42: -85 | Z42: 2185 | AA42: 0 | AB42: 0 | AC42: -2270 | AD42: 2 | AE42: 0 | AF42: 0 | AG42: -2268 | AH42: -3610 | AI42: -140 | AK42: 444 | AL42: -2357 | AM42: -1454 | AN42: 24486 | AO42: 19957 | AP42: 1770 | AQ42: 2759 | AR42: 21.75 | AT42: 236 | AU42: 6866 | AW42: 2.415968064 | AX42: 57.23899465 | AY42: -3814.011069 | BC42: 39.76385487 | BD42: 149.5776289 | BE42: 7.223057209 | BF42: 7558.549374 | BG42: 21971 | BH42: 7091 | BI42: 48036 | BJ42: -40945 | BK42: 25705 | BL42: 20996 | BO42: -120 | BP42: 268 | BQ42: 5904 | BR42: 2529 | BS42: 0 | BT42: 0 | BU42: 3375 | BV42: 2 | BW42: 0 | BX42: 0 | BY42: 3377 | BZ42: -521 | CA42: 5756 | CC42: 179 | CD42: -2357 | CE42: 4719 | CF42: 25705 | CG42: 21116 | CH42: 1945 | CI42: 2644 | CJ42: 22 | CL42: 69.13235294 | CM42: 6877 | CO42: 1.345327939 | CP42: 62.41732737 | CQ42: -3894.495558 | CU42: 38.81771783 | CV42: 434.9601629 | CW42: 18.73323512 | CX42: 8474.802053 | CY42: 22468.50898 | CZ42: 8119.8624 | DA42: 51095.21403 | DB42: -42975.35163 | DC42: 26883.66772 | DD42: 19172.853 | DG42: -74.47685 | DH42: 199.75348 | DI42: 3206.44572 | DJ42: 2058.93616 | DK42: 0 | DL42: 0 | DM42: 1147.50956 | DN42: -1.57208 | DO42: 0 | DP42: 0 | DQ42: 1149.08164 | DR42: 628.51975 | DS42: 3147.25526 | DU42: -529.51577 | DV42: 2357.148 | DW42: -840.20084 | DX42: 26883.66772 | DY42: 21687.0335 | DZ42: 2762.53633 | EA42: 2434.09789 | EB42: 22 | ED42: 94 | EE42: 21752 | EF42: 20687 | EG42: 23046.83071 | EI42: 960 | EK42: -1448 | EL42: 4 | EM42: 130 | EN42: -1344 | EO42: 143 | EP42: 164 | EQ42: -4771.74831 | ER42: 600 | ES42: 184.29221 | ET42: 0 | EU42: 3300 | EV42: 0 | EW42: -3200 | EX42: 0 | EY42: 5200 | EZ42: 29714 | FA42: 18357 | FB42: 11357 | FC42: 0 | FD42: 24157 | FE42: 16000 | FF42: 8157 | FG42: 0 | FH42: 27000 | FI42: 14500 | FJ42: 12500 | FK42: 0 | FL42: 6869.922213 | FM42: 6293.183804 | FN42: 6671.022286 | FO42: 985.77425 | FP42: 143.3436455 | FV42: 744 | FW42: -744
A43: 145 | B43: Ilmajoki | C43: 12269 | E43: -0.05465122485 | F43: 73.74586738 | G43: -4509.739995 | K43: 37.88096713 | L43: 95.85133263 | M43: 4.609536082 | N43: 7589.860624 | O43: 28326 | P43: 9963 | Q43: 80786 | R43: -70749 | S43: 40904 | T43: 29288 | W43: -335 | X43: 155 | Y43: -737 | Z43: 3135 | AA43: 0 | AB43: 0 | AC43: -3872 | AD43: 0 | AE43: 0 | AF43: 0 | AG43: -3872 | AH43: 5062 | AI43: -1265 | AK43: 318 | AL43: -7390 | AM43: -5129 | AN43: 40904 | AO43: 36607 | AP43: 1626 | AQ43: 2671 | AR43: 20.75 | AT43: 248 | AU43: 12294 | AW43: 1.200123026 | AX43: 77.26935077 | AY43: -4987.880267 | BC43: 35.15090275 | BD43: 291.1176184 | BE43: 13.39569725 | BF43: 7932.243371 | BG43: 28181 | BH43: 9395 | BI43: 81860 | BJ43: -72465 | BK43: 43264 | BL43: 34908 | BO43: -326 | BP43: 128 | BQ43: 5509 | BR43: 3209 | BS43: 0 | BT43: 0 | BU43: 2300 | BV43: 0 | BW43: 0 | BX43: 0 | BY43: 2299 | BZ43: 5854 | CA43: 3768 | CC43: -108 | CD43: -4533 | CE43: -6276 | CF43: 43264 | CG43: 39060 | CH43: 1764 | CI43: 2440 | CJ43: 21 | CL43: 244.4117647 | CM43: 12366 | CO43: 0.7682902838 | CP43: 81.99299204 | CQ43: -5598.700757 | CU43: 33.05399824 | CV43: 127.3297582 | CW43: 5.440655867 | CX43: 8542.235142 | CY43: 29627.51994 | CZ43: 11688.1837 | DA43: 86926.77954 | DB43: -75238.59584 | DC43: 46127.54279 | DD43: 33055.232 | DG43: -301.46973 | DH43: -226.4952 | DI43: 3416.21402 | DJ43: 3264.27511 | DK43: 0 | DL43: 0 | DM43: 151.93891 | DN43: 0 | DO43: 0 | DP43: 0 | DQ43: 151.93891 | DR43: 6006.34459 | DS43: 1917.85635 | DU43: -941.45333 | DV43: 4544.93365 | DW43: -6513.44586 | DX43: 46127.54279 | DY43: 40386.44962 | DZ43: 2886.39976 | EA43: 2854.69341 | EB43: 21 | ED43: 34 | EE43: 44362 | EF43: 44764 | EG43: 48456.94029 | EK43: -4482 | EL43: 0 | EM43: 618 | EN43: -10801 | EO43: 43 | EP43: 714 | EQ43: -11744.64451 | ER43: 117.5 | ES43: 3195.8423 | ET43: 13450 | EU43: -1077 | EV43: 15001 | EW43: -3207 | EX43: 10000 | EY43: 134.44235 | EZ43: 48459 | FA43: 40844 | FB43: 7615 | FC43: 1073 | FD43: 55720 | FE43: 51312 | FF43: 4408 | FG43: 879 | FH43: 61309.12953 | FI43: 56766.74397 | FJ43: 4542.38556 | FK43: 2601.61608 | FL43: 6111.826555 | FM43: 6754.107695 | FN43: 6809.713502 | FO43: 1923.164268 | FP43: 155.5203192 | FV43: 2979 | FW43: -2979
A44: 146 | B44: Ilomantsi | C44: 4857 | E44: 0.6798020357 | F44: 26.09300968 | G44: -1906.526663 | K44: 67.08320549 | L44: 195.1822112 | M44: 7.138112429 | N44: 9980.440601 | O44: 10243 | P44: 5691 | Q44: 44058 | R44: -38269 | S44: 17290 | T44: 21552 | W44: -104 | X44: 337 | Y44: 806 | Z44: 1903 | AA44: 0 | AB44: 0 | AC44: -1097 | AD44: 94 | AE44: 0 | AF44: 0 | AG44: -1003 | AH44: 4159 | AI44: 533 | AK44: 562 | AL44: -1777 | AM44: 834 | AN44: 17290 | AO44: 12804 | AP44: 3002 | AQ44: 1484 | AR44: 21 | AT44: 143 | AU44: 4749 | AW44: 2.489298454 | AX44: 27.25229235 | AY44: -1105.074753 | BC44: 67.49566371 | BD44: 1198.77869 | BE44: 47.96512165 | BF44: 9122.341546 | BG44: 9406 | BH44: 4923 | BI44: 41159 | BJ44: -36236 | BK44: 17462 | BL44: 22633 | BO44: -88 | BP44: 328 | BQ44: 4099 | BR44: 1689 | BS44: 0 | BT44: 0 | BU44: 2410 | BV44: 43 | BW44: -500 | BX44: 0 | BY44: 1953 | BZ44: 6112 | CA44: 4425 | CC44: 108 | CD44: -1594 | CE44: 4004 | CF44: 17462 | CG44: 12966 | CH44: 3160 | CI44: 1336 | CJ44: 21 | CL44: 67.11764706 | CM44: 4643 | CO44: 2.67517565 | CP44: 22.98269725 | CQ44: -245.3677278 | CU44: 70.45178799 | CV44: 1776.675891 | CW44: 67.16071356 | CX44: 9655.744641 | CY44: 9241.92338 | CZ44: 4908.01116 | DA44: 42843.88111 | DB44: -37935.86995 | DC44: 19187.83067 | DD44: 22601.62 | DG44: -85.12935 | DH44: 335.86565 | DI44: 4104.31702 | DJ44: 3703.15729 | DK44: 0 | DL44: 0 | DM44: 401.15973 | DN44: -42.43603 | DO44: 0 | DP44: 0 | DQ44: 443.59576 | DR44: 6555.39146 | DS44: 4589.08171 | DU44: -30.24799 | DV44: 1480.88077 | DW44: 4081.54447 | DX44: 19187.83067 | DY44: 13178.97943 | DZ44: 4533.48011 | EA44: 1475.37113 | EB44: 21 | ED44: 254 | EE44: 30618 | EF44: 28552 | EG44: 29602.91409 | EK44: -2521 | EL44: 0 | EM44: 2822 | EN44: -547 | EO44: 10 | EP44: 116 | EQ44: -520.07866 | ER44: 0 | ES44: 12.54142 | ET44: 0 | EU44: 0 | EV44: 2000 | EW44: 0 | EX44: 0 | EY44: 0 | EZ44: 9086 | FA44: 7493 | FB44: 1593 | FC44: 1017 | FD44: 9492 | FE44: 8016 | FF44: 1476 | FG44: 1017 | FH44: 8011.41041 | FI44: 6880.33594 | FJ44: 1131.07447 | FK44: 0 | FL44: 3959.234095 | FM44: 4336.913034 | FN44: 4163.408594 | FO44: 627.570449 | FP44: 135.1648609 | FV44: 0 | FW44: 0
A45: 153 | B45: Imatra | C45: 26508 | E45: 1.125910077 | F45: 63.76255006 | G45: -3333.672853 | K45: 54.55650014 | L45: 613.3620039 | M45: 25.68328962 | N45: 8716.840199 | O45: 37857 | P45: 20192 | Q45: 170102 | R45: -149910 | S45: 105975 | T45: 56103 | W45: -291 | X45: 1748 | Y45: 13625 | Z45: 11611 | AA45: 7 | AB45: 0 | AC45: 2021 | AD45: 0 | AE45: -2678 | AF45: 1301 | AG45: 644 | AH45: 66544 | AI45: 13466 | AK45: 941 | AL45: -30146 | AM45: -15838 | AN45: 105975 | AO45: 90624 | AP45: 3372 | AQ45: 11979 | AR45: 20 | AT45: 27 | AU45: 26075 | AW45: 1.65864005 | AX45: 66.59649159 | AY45: -3743.815916 | BC45: 51.39698766 | BD45: 734.189837 | BE45: 31.6672105 | BF45: 8462.358581 | BG45: 35448 | BH45: 19623 | BI45: 183132 | BJ45: -163509 | BK45: 105746 | BL45: 68907 | BO45: -245 | BP45: 1876 | BQ45: 12775 | BR45: 8453 | BS45: 0 | BT45: 0 | BU45: 4322 | BV45: 0 | BW45: 0 | BX45: 91 | BY45: 4413 | BZ45: 70957 | CA45: 19249 | CC45: -1024 | CD45: -7496 | CE45: -9660 | CF45: 105746 | CG45: 90701 | CH45: 3804 | CI45: 11241 | CJ45: 20 | CL45: 231.3161765 | CM45: 25655 | CO45: 1.153028749 | CP45: 69.26030904 | CQ45: -4348.45064 | CU45: 51.7414237 | CV45: 477.0613272 | CW45: 20.45166706 | CX45: 8514.092466 | CY45: 37029.85334 | CZ45: 20928.92044 | DA45: 184609.2988 | DB45: -163680.3784 | DC45: 109834.1883 | DD45: 66621.5803 | DG45: -897.38367 | DH45: 201.31354 | DI45: 12079.32011 | DJ45: 9313.26075 | DK45: 0 | DL45: 0 | DM45: 2766.05936 | DN45: 0 | DO45: 0 | DP45: 0 | DQ45: 2766.05936 | DR45: 73722.48188 | DS45: 5180.13361 | DU45: -219.70217 | DV45: 10322.64769 | DW45: -15772.17672 | DX45: 109834.1883 | DY45: 92543.99874 | DZ45: 5377.63253 | EA45: 11912.55706 | EB45: 20 | ED45: 98 | EE45: 115371 | EF45: 123273 | EG45: 129523.541 | EI45: 1600 | EK45: -30000 | EL45: 256 | EM45: 440 | EN45: -29494 | EO45: 444 | EP45: 141 | EQ45: -22292.75094 | ER45: 1016.86613 | ES45: 323.57448 | ET45: 49156 | EU45: 8300 | EV45: 27000 | EW45: -8300 | EX45: 12800 | EY45: 0 | EZ45: 90418 | FA45: 75378 | FB45: 15040 | FC45: 0 | FD45: 101622 | FE45: 91299 | FF45: 10323 | FG45: 0 | FH45: 104099.1965 | FI45: 92698.50431 | FJ45: 11400.69223 | FK45: 8502.87475 | FL45: 8994.039535 | FM45: 9461.208054 | FN45: 9435.499387 | FO45: 4627.199937 | FP45: 180.3625 | FV45: 11458 | FW45: -11458
A46: 148 | B46: Inari | C46: 6907 | E46: 1.138860222 | F46: 33.39602409 | G46: -1578.253945 | K46: 72.20226999 | L46: 925.2931808 | M46: 34.81924024 | N46: 9699.580136 | O46: 26306 | P46: 9595 | Q46: 59133 | R46: -49538 | S46: 27653 | T46: 23367 | W46: -31 | X46: 877 | Y46: 2328 | Z46: 2056 | AA46: 0 | AB46: 0 | AC46: 272 | AD46: 0 | AE46: 0 | AF46: 7 | AG46: 279 | AH46: 11245 | AI46: 1879 | AK46: -370 | AL46: -1838 | AM46: -1931 | AN46: 27653 | AO46: 20440 | AP46: 2705 | AQ46: 4508 | AR46: 19 | AT46: 77 | AU46: 6862 | AW46: 1.637853555 | AX46: 30.46931297 | AY46: -1196.444185 | BC46: 73.81672762 | BD46: 1172.835908 | BE46: 43.34415393 | BF46: 9876.420869 | BG46: 27188 | BH46: 9849 | BI46: 60049 | BJ46: -50200 | BK46: 28245 | BL46: 27129 | BO46: -15 | BP46: 899 | BQ46: 6058 | BR46: 2617 | BS46: 0 | BT46: 0 | BU46: 3441 | BV46: 0 | BW46: 0 | BX46: -66 | BY46: 3375 | BZ46: 14620 | CA46: 5231 | CC46: -2112 | CD46: -3645 | CE46: 2908 | CF46: 28245 | CG46: 20976 | CH46: 3041 | CI46: 4228 | CJ46: 19 | CL46: 63.08823529 | CM46: 7008 | CO46: 4.14605432 | CP46: 25.05709217 | CQ46: -512.5148045 | CU46: 77.30365801 | CV46: 1251.168169 | CW46: 47.6879298 | CX46: 9576.351578 | CY46: 28579.13131 | CZ46: 12276.00789 | DA46: 63390.40963 | DB46: -51114.40174 | DC46: 30222.74157 | DD46: 26166.607 | DG46: 26.68099 | DH46: 964.52711 | DI46: 6266.15493 | DJ46: 3689.77473 | DK46: 0 | DL46: 0 | DM46: 2576.3802 | DN46: 0 | DO46: 0 | DP46: 45.9186 | DQ46: 2530.4616 | DR46: 17150.97345 | DS46: 5361.51344 | DU46: -1230.45557 | DV46: 1425.74146 | DW46: 4524.37572 | DX46: 30222.74157 | DY46: 21052.21155 | DZ46: 4440.38589 | EA46: 4730.14413 | EB46: 19 | ED46: 255 | EE46: 24454 | EF46: 24586 | EG46: 25681.66664 | EK46: -4636 | EL46: 49 | EM46: 777 | EN46: -3635 | EO46: 272 | EP46: 1040 | EQ46: -1910.86024 | ER46: 0 | ES46: 1073.72252 | ET46: 2000 | EU46: 0 | EV46: 2500 | EW46: 0 | EX46: 0 | EY46: -307.6 | EZ46: 13280 | FA46: 9943 | FB46: 3337 | FC46: 6826 | FD46: 12136 | FE46: 10710 | FF46: 1426 | FG46: 7042 | FH46: 10401.99382 | FI46: 8809.58436 | FJ46: 1592.40946 | FK46: 6768.56871 | FL46: 6604.604025 | FM46: 6662.78053 | FN46: 6357.710656 | FO46: 1108.011134 | FP46: 158.1066116 | FV46: 1630 | FW46: -1630
A47: 149 | B47: Inkoo | C47: 5386 | E47: 0.3133703159 | F47: 51.43509196 | G47: -3095.61827 | K47: 43.90101552 | L47: 302.6364649 | M47: 14.4795444 | N47: 7628.852581 | O47: 12535 | P47: 4425 | Q47: 36613 | R47: -32188 | S47: 25953 | T47: 6867 | W47: -111 | X47: 60 | Y47: 581 | Z47: 1563 | AA47: 0 | AB47: 0 | AC47: -982 | AD47: 0 | AE47: -15 | AF47: 0 | AG47: -997 | AH47: 7188 | AI47: 501 | AK47: 367 | AL47: -2311 | AM47: -1307 | AN47: 25953 | AO47: 21925 | AP47: 1129 | AQ47: 2899 | AR47: 20.75 | AT47: 177 | AU47: 5321 | AW47: 2.377777778 | AX47: 42.45930048 | AY47: -2597.06822 | BC47: 51.81027147 | BD47: 153.7305018 | BE47: 7.202788768 | BF47: 7790.264988 | BG47: 12692 | BH47: 5024 | BI47: 35889 | BJ47: -30865 | BK47: 26759 | BL47: 9188 | BO47: -93 | BP47: 54 | BQ47: 5043 | BR47: 1635 | BS47: 0 | BT47: 0 | BU47: 3408 | BV47: -45 | BW47: -3170 | BX47: 0 | BY47: 193 | BZ47: 7804 | CA47: 4647 | CC47: -1761 | CD47: -2067 | CE47: 2406 | CF47: 26759 | CG47: 22802 | CH47: 1306 | CI47: 2651 | CJ47: 20.75 | CL47: 47.97794118 | CM47: 5353 | CO47: 1.796771552 | CP47: 48.02591861 | CQ47: -3024.270622 | CU47: 50.56722269 | CV47: 427.0535999 | CW47: 17.39047411 | CX47: 8963.215317 | CY47: 13437.04338 | CZ47: 7960.33922 | DA47: 38774.63293 | DB47: -30814.29371 | DC47: 27175.33673 | DD47: 7601.573 | DG47: -67.77132 | DH47: 55.32406 | DI47: 3950.16876 | DJ47: 1912.03448 | DK47: 0 | DL47: 0 | DM47: 2038.13428 | DN47: -2.24238 | DO47: 2014.982 | DP47: 0 | DQ47: 25.39466 | DR47: 8036.12611 | DS47: 2030.60185 | DU47: 712.71135 | DV47: 2166.92011 | DW47: -2794.51669 | DX47: 27175.33673 | DY47: 22742.99197 | DZ47: 1992.85115 | EA47: 2439.49361 | EB47: 20.75 | ED47: 222 | EE47: 21357 | EF47: 20388 | EG47: 22257.95941 | EK47: -1903 | EL47: 10 | EM47: 85 | EN47: -3379 | EO47: 11 | EP47: 1127 | EQ47: -6959.67215 | ER47: 75 | ES47: 2059.55361 | ET47: 0 | EU47: 1000 | EV47: 0 | EW47: 0 | EX47: 5000 | EY47: -1000 | EZ47: 15365 | FA47: 12158 | FB47: 3207 | FC47: 134 | FD47: 13297 | FE47: 10130 | FF47: 3167 | FG47: 130 | FH47: 15130.316 | FI47: 12945.12 | FJ47: 2185.196 | FK47: 0 | FL47: 3340.326773 | FM47: 3121.405751 | FN47: 3493.479137 | FO47: 1096.047806 | FP47: 204.7539335 | FV47: 2239 | FW47: -2239
A48: 151 | B48: Isojoki | C48: 1951 | E48: 0.3102111159 | F48: 17.22317624 | G48: -413.1214762 | K48: 77.69961308 | L48: 790.8764736 | M48: 34.6517566 | N48: 8330.599692 | O48: 3108 | P48: 1792 | Q48: 15649 | R48: -13857 | S48: 6099 | T48: 7832 | W48: -16 | X48: 16 | Y48: 74 | Z48: 493 | AA48: 0 | AB48: 0 | AC48: -419 | AD48: 3 | AE48: 0 | AF48: 0 | AG48: -416 | AH48: 1589 | AI48: 82 | AK48: 29 | AL48: -225 | AM48: -201 | AN48: 6099 | AO48: 4983 | AP48: 659 | AQ48: 457 | AR48: 22 | AT48: 216 | AU48: 1925 | AW48: 7.592436975 | AX48: 11.88342138 | AY48: 303.8961039 | BC48: 83.53984698 | BD48: 1127.272727 | BE48: 50.26016879 | BF48: 8186.493506 | BG48: 2898 | BH48: 1863 | BI48: 15054 | BJ48: -13191 | BK48: 6914 | BL48: 8070 | BO48: -13 | BP48: 14 | BQ48: 1794 | BR48: 501 | BS48: 0 | BT48: 0 | BU48: 1293 | BV48: 3 | BW48: 0 | BX48: 0 | BY48: 1296 | BZ48: 2885 | CA48: 1780 | CC48: -57 | CD48: -225 | CE48: 1373 | CF48: 6914 | CG48: 5528 | CH48: 805 | CI48: 581 | CJ48: 22 | CL48: 54.02205882 | CM48: 1891 | CO48: 2.736876708 | CP48: 13.79683169 | CQ48: 350.2353252 | CU48: 81.97766508 | CV48: 1360.941666 | CW48: 55.49323953 | CX48: 8951.427456 | CY48: 3163.97194 | CZ48: 1774.22973 | DA48: 16069.64364 | DB48: -14295.41391 | DC48: 7250.38313 | DD48: 7670.609 | DG48: -8.55553 | DH48: 13.63447 | DI48: 630.65716 | DJ48: 485.67832 | DK48: 0 | DL48: 0 | DM48: 144.97884 | DN48: -2.6498 | DO48: 0 | DP48: 0 | DQ48: 147.62864 | DR48: 3033.05681 | DS48: 618.92615 | DU48: 25.00216 | DV48: 225 | DW48: 65.52083 | DX48: 7250.38313 | DY48: 5356.60945 | DZ48: 1252.46603 | EA48: 641.30765 | EB48: 22.5 | ED48: 50 | EE48: 11351 | EF48: 11023 | EG48: 11642.52175 | EK48: -352 | EL48: 22 | EM48: 47 | EN48: -456 | EO48: 35 | EP48: 14 | EQ48: -603.1141 | ER48: 1.8 | ES48: 47.90878 | ET48: 0 | EU48: 0 | EV48: 0 | EW48: 0 | EX48: 0 | EY48: 0 | EZ48: 837 | FA48: 612 | FB48: 225 | FC48: 108 | FD48: 612 | FE48: 387 | FF48: 225 | FG48: 90 | FH48: 387.5 | FI48: 162.5 | FJ48: 225 | FK48: 78.5 | FL48: 2182.470528 | FM48: 2203.116883 | FN48: 2051.87432 | FO48: 238.0715311 | FP48: 125.8971608 | FV48: 172 | FW48: -172
A49: 152 | B49: Isokyrö | C49: 4522 | E49: 1.549235575 | F49: 29.11651004 | G49: -1199.911544 | K49: 70.74132492 | L49: 673.5957541 | M49: 30.16414347 | N49: 8150.818222 | O49: 11382 | P49: 3445 | Q49: 30726 | R49: -27281 | S49: 15214 | T49: 13158 | W49: -7 | X49: 83 | Y49: 1167 | Z49: 1265 | AA49: 0 | AB49: 0 | AC49: -98 | AD49: 0 | AE49: 0 | AF49: 0 | AG49: -98 | AH49: 11238 | AI49: 1167 | AK49: 569 | AL49: -450 | AM49: -3730 | AN49: 15214 | AO49: 13658 | AP49: 627 | AQ49: 929 | AR49: 21.5 | AT49: 104 | AU49: 4471 | AW49: 4.093795094 | AX49: 27.74347502 | AY49: -960.1878774 | BC49: 71.86527715 | BD49: 934.9138895 | BE49: 45.41584807 | BF49: 7513.755312 | BG49: 11108 | BH49: 3249 | BI49: 30765 | BJ49: -27516 | BK49: 15363 | BL49: 14913 | BO49: -12 | BP49: 71 | BQ49: 2819 | BR49: 1453 | BS49: 0 | BT49: 0 | BU49: 1366 | BV49: 0 | BW49: 0 | BX49: 0 | BY49: 1366 | BZ49: 12604 | CA49: 2929 | CC49: -37 | CD49: -675 | CE49: 1121 | CF49: 15363 | CG49: 13852 | CH49: 676 | CI49: 835 | CJ49: 21.5 | CL49: 164.8308824 | CM49: 4480 | CO49: 1.539922886 | CP49: 25.5969107 | CQ49: -1104.682085 | CU49: 72.42804467 | CV49: 569.4377723 | CW49: 25.97135569 | CX49: 8002.847036 | CY49: 11993.92988 | CZ49: 3959.89214 | DA49: 33497.88058 | DB49: -29537.98844 | DC49: 16047.64948 | DD49: 14587.004 | DG49: -14.69438 | DH49: 50.77803 | DI49: 1132.74869 | DJ49: 1626.6819 | DK49: 0 | DL49: 0 | DM49: -493.93321 | DN49: 0 | DO49: 0 | DP49: 0 | DQ49: -493.93321 | DR49: 12109.94903 | DS49: 1115.09899 | DU49: -526.65271 | DV49: 730 | DW49: -571.7463 | DX49: 16047.64948 | DY49: 14047.06116 | DZ49: 1073.21713 | EA49: 927.37119 | EB49: 21.5 | ED49: 30 | EE49: 16036 | EF49: 16196 | EG49: 18292.27927 | EK49: -5598 | EL49: 615 | EM49: 86 | EN49: -2084 | EO49: 154 | EP49: 122 | EQ49: -1728.5203 | ER49: 0 | ES49: 41.67501 | ET49: 2700 | EU49: 0 | EV49: 1100 | EW49: 0 | EX49: 0 | EY49: 0 | EZ49: 3575 | FA49: 2955 | FB49: 620 | FC49: 503 | FD49: 4000 | FE49: 3270 | FF49: 730 | FG49: 491 | FH49: 3270 | FI49: 2715 | FJ49: 555 | FK49: 574.47821 | FL49: 2654.798762 | FM49: 2853.276672 | FN49: 2583.227511 | FO49: 653.3516819 | FP49: 145.837429 | FV49: 1420 | FW49: -1420
A50: 165 | B50: Janakkala | C50: 16413 | E50: 0.2526420667 | F50: 62.07965634 | G50: -3162.432218 | K50: 41.20137603 | L50: 373.4844331 | M50: 19.03969706 | N50: 7159.873271 | O50: 43972 | P50: 15788 | Q50: 101624 | R50: -85532 | S50: 62814 | T50: 24290 | W50: -368 | X50: 138 | Y50: 1342 | Z50: 6091 | AA50: 333 | AB50: 0 | AC50: -4416 | AD50: 0 | AE50: 0 | AF50: 0 | AG50: -4416 | AH50: -939 | AI50: 1215 | AK50: -653 | AL50: -8013 | AM50: -5722 | AN50: 62814 | AO50: 57028 | AP50: 1999 | AQ50: 3787 | AR50: 21 | AT50: 192 | AU50: 16237 | AW50: 1.158479662 | AX50: 61.58862612 | AY50: -3281.640697 | BC50: 40.86789413 | BD50: 602.3280163 | BE50: 28.58755976 | BF50: 7690.398473 | BG50: 45651 | BH50: 16087 | BI50: 104148 | BJ50: -88061 | BK50: 66705 | BL50: 31634 | BO50: -336 | BP50: 81 | BQ50: 10023 | BR50: 6478 | BS50: 0 | BT50: 0 | BU50: 3545 | BV50: 0 | BW50: 0 | BX50: 0 | BY50: 3546 | BZ50: 2607 | CA50: 9313 | CC50: -1359 | CD50: -8597 | CE50: -1525 | CF50: 66705 | CG50: 60799 | CH50: 2485 | CI50: 3421 | CJ50: 21 | CL50: 177.9264706 | CM50: 16340 | CO50: 0.8710591715 | CP50: 58.04461891 | CQ50: -3088.078936 | CU50: 42.47725557 | CV50: 616.1820869 | CW50: 30.74544361 | CX50: 7315.115196 | CY50: 47132.65644 | CZ50: 20198.01528 | DA50: 109358.3636 | DB50: -89160.34835 | DC50: 68459.72332 | DD50: 28547.68568 | DG50: -239.82722 | DH50: 192.73725 | DI50: 7799.97068 | DJ50: 6160.98473 | DK50: 0 | DL50: 0 | DM50: 1638.98595 | DN50: 0 | DO50: 0 | DP50: 0 | DQ50: 1638.98595 | DR50: 4245.74677 | DS50: 7022.72272 | DU50: -162.15087 | DV50: 8997.81336 | DW50: 1716.10094 | DX50: 68459.72332 | DY50: 60868.02252 | DZ50: 3661.6944 | EA50: 3930.0064 | EB50: 21 | ED50: 100 | EE50: 43180 | EF50: 43620 | EG50: 47896.34312 | EK50: -7676 | EL50: 284 | EM50: 455 | EN50: -11950 | EO50: 391 | EP50: 721 | EQ50: -6370.74019 | ER50: 165 | ES50: 899.11841 | ET50: 11000 | EU50: -422 | EV50: 12000 | EW50: 1145 | EX50: 8000 | EY50: -467.0203 | EZ50: 48374 | FA50: 39987 | FB50: 8387 | FC50: 1003 | FD50: 52921 | FE50: 42949 | FF50: 9972 | FG50: 1003 | FH50: 51457.83662 | FI50: 42601.89786 | FJ50: 8855.93876 | FK50: 0 | FL50: 4467.921769 | FM50: 4741.085176 | FN50: 4850.441519 | FO50: 2898.477263 | FP50: 177.3853894 | FV50: 5623 | FW50: -5623
A51: 167 | B51: Joensuu | C51: 76850 | E51: 0.911671647 | F51: 58.08642749 | G51: -2220.130124 | K51: 54.38398863 | L51: 1224.528302 | M51: 62.80492042 | N51: 7116.525699 | O51: 105733 | P51: 73023 | Q51: 466038 | R51: -387072 | S51: 268565 | T51: 145271 | W51: -1070 | X51: 3991 | Y51: 29685 | Z51: 35429 | AA51: 0 | AB51: 0 | AC51: -5744 | AD51: -3167 | AE51: 5867 | AF51: 4 | AG51: -3040 | AH51: 26156 | AI51: 27098 | AK51: 3595 | AL51: -31215 | AM51: -17644 | AN51: 268565 | AO51: 225883 | AP51: 21103 | AQ51: 21579 | AR51: 20.5 | AT51: 61 | AU51: 76935 | AW51: 1.531630592 | AX51: 53.04203979 | AY51: -1946.96822 | BC51: 55.38979862 | BD51: 1374.121011 | BE51: 70.52439481 | BF51: 7111.782674 | BG51: 99636 | BH51: 75524 | BI51: 471379 | BJ51: -395855 | BK51: 273994 | BL51: 171380 | BO51: -1036 | BP51: 3239 | BQ51: 51722 | BR51: 39427 | BS51: 0 | BT51: 0 | BU51: 12295 | BV51: 2724 | BW51: -10533 | BX51: 3 | BY51: 4489 | BZ51: 30645 | CA51: 53720 | CC51: -244 | CD51: -33301 | CE51: 13655 | CF51: 273994 | CG51: 231975 | CH51: 22082 | CI51: 19937 | CJ51: 20.5 | CL51: 146.6985294 | CM51: 77261 | CO51: 1.468676037 | CP51: 51.03306544 | CQ51: -1673.83943 | CU51: 56.36298926 | CV51: 1570.657978 | CW51: 76.77930117 | CX51: 7466.728051 | CY51: 108372.2304 | CZ51: 80416.31188 | DA51: 502712.0756 | DB51: -422295.7637 | DC51: 296164.6495 | DD51: 164811.937 | DG51: -766.75925 | DH51: 13117.2764 | DI51: 51031.33998 | DJ51: 35362.74309 | DK51: 0 | DL51: 0 | DM51: 15668.59689 | DN51: -1997.12297 | DO51: 7705.72011 | DP51: 4422.44913 | DQ51: 5537.55062 | DR51: 36719.65739 | DS51: 50665.90803 | DU51: -4476.32273 | DV51: 34399.70106 | DW51: 19389.25807 | DX51: 296164.6495 | DY51: 241728.5298 | DZ51: 32458.18277 | EA51: 21977.93692 | EB51: 20.5 | ED51: 195 | EE51: 310419 | EF51: 318211 | EG51: 342533.1684 | EK51: -53298 | EL51: 1310 | EM51: 7246 | EN51: -44787 | EO51: 1116 | EP51: 3606 | EQ51: -37293.23433 | ER51: 2270.6587 | ES51: 3745.92567 | ET51: 52000 | EU51: -3465 | EV51: 20000 | EW51: -93 | EX51: 30000 | EY51: 771.97467 | EZ51: 251951 | FA51: 193996 | FB51: 57955 | FC51: 22439 | FD51: 238557 | FE51: 179596 | FF51: 58961 | FG51: 20510 | FH51: 234929.7817 | FI51: 174589.9139 | FJ51: 60339.86775 | FK51: 16470.96563 | FL51: 7174.886142 | FM51: 7124.884643 | FN51: 7134.622842 | FO51: 11791.6356 | FP51: 152.6207997 | FV51: 9446 | FW51: -9446
A52: 169 | B52: Jokioinen | C52: 5133 | E52: 0.7576726701 | F52: 55.90725623 | G52: -2938.047925 | K52: 49.96971692 | L52: 169.6863433 | M52: 9.418308399 | N52: 6576.076369 | O52: 9238 | P52: 4377 | Q52: 31296 | R52: -26919 | S52: 19094 | T52: 9480 | W52: -125 | X52: 33 | Y52: 1563 | Z52: 1560 | AA52: 0 | AB52: 0 | AC52: 3 | AD52: 0 | AE52: 0 | AF52: 0 | AG52: 3 | AH52: 6166 | AI52: 1457 | AK52: -829 | AL52: -1391 | AM52: 535 | AN52: 19094 | AO52: 17212 | AP52: 869 | AQ52: 1013 | AR52: 21.25 | AT52: 87 | AU52: 5061 | AW52: 2.679644809 | AX52: 41.72437769 | AY52: -2404.267931 | BC52: 57.90229885 | BD52: 126.2596325 | BE52: 6.772409187 | BF52: 6804.781664 | BG52: 9580 | BH52: 4423 | BI52: 32072 | BJ52: -27649 | BK52: 20308 | BL52: 11224 | BO52: -111 | BP52: 33 | BQ52: 3805 | BR52: 1423 | BS52: 0 | BT52: 0 | BU52: 2382 | BV52: 0 | BW52: 0 | BX52: 0 | BY52: 2383 | BZ52: 8549 | CA52: 3688 | CC52: 274 | CD52: -1346 | CE52: 2891 | CF52: 20308 | CG52: 18058 | CH52: 1348 | CI52: 902 | CJ52: 21.25 | CL52: 103.3823529 | CM52: 5046 | CO52: 1.818584453 | CP52: 35.7008423 | CQ52: -2125.305979 | CU52: 62.65595374 | CV52: 73.36196195 | CW52: 3.761570582 | CX52: 7118.599939 | CY52: 9557.87776 | CZ52: 4464.39024 | DA52: 33331.75503 | DB52: -28867.36479 | DC52: 21119.64235 | DD52: 10315.856 | DG52: -83.52733 | DH52: -0.72442 | DI52: 2483.88181 | DJ52: 1468.6357 | DK52: 0 | DL52: 0 | DM52: 1015.24611 | DN52: 0 | DO52: 0 | DP52: 0 | DQ52: 1015.24611 | DR52: 9551.92784 | DS52: 2432.4727 | DU52: 473.90782 | DV52: 1323.097 | DW52: 1402.1148 | DX52: 21119.64235 | DY52: 17946.44439 | DZ52: 2035.22385 | EA52: 1137.97411 | EB52: 21.25 | ED52: 107 | EE52: 19460 | EF52: 19812 | EG52: 20941.70427 | EK52: -940 | EL52: 0 | EM52: 18 | EN52: -902 | EO52: 0 | EP52: 105 | EQ52: -1144.0674 | ER52: 60 | ES52: 53.7095 | ET52: 1100 | EU52: 1300 | EV52: 730 | EW52: -3100 | EX52: 0 | EY52: -900 | EZ52: 16094 | FA52: 8748 | FB52: 7346 | FC52: 0 | FD52: 12378 | FE52: 8155 | FF52: 4223 | FG52: 0 | FH52: 10155.2781 | FI52: 6898.1881 | FJ52: 3257.09 | FK52: 0 | FL52: 3743.814533 | FM52: 2979.450701 | FN52: 2550.305119 | FO52: 844.5385595 | FP52: 167.367927 | FV52: 2224 | FW52: -2224
A53: 171 | B53: Joroinen | C53: 4767 | E53: 0.2918081575 | F53: 78.87573609 | G53: -3024.124187 | K53: 43.37194337 | L53: 2325.361863 | M53: 98.34771512 | N53: 8630.165723 | O53: 8569 | P53: 3947 | Q53: 32751 | R53: -28726 | S53: 16984 | T53: 12353 | W53: -27 | X53: 202 | Y53: 786 | Z53: 1050 | AA53: 0 | AB53: 0 | AC53: -264 | AD53: 31 | AE53: 0 | AF53: 0 | AG53: -233 | AH53: 4624 | AI53: 769 | AK53: 17 | AL53: -2845 | AM53: -4452 | AN53: 16984 | AO53: 14427 | AP53: 1439 | AQ53: 1118 | AR53: 21.25 | AT53: 145 | AU53: 4689 | AW53: 0.9226190476 | AX53: 75.94285555 | AY53: -2596.289187 | BC53: 44.80695371 | BD53: 3013.222435 | BE53: 137.7720934 | BF53: 7982.938793 | BG53: 8220 | BH53: 4154 | BI53: 32700 | BJ53: -28546 | BK53: 17770 | BL53: 13852 | BO53: -59 | BP53: 81 | BQ53: 3098 | BR53: 1151 | BS53: 0 | BT53: 0 | BU53: 1947 | BV53: 31 | BW53: 0 | BX53: 0 | BY53: 1978 | BZ53: 6601 | CA53: 3016 | CC53: -319 | CD53: -3371 | CE53: 2248 | CF53: 17770 | CG53: 15027 | CH53: 1736 | CI53: 1007 | CJ53: 21.25 | CL53: 151.7352941 | CM53: 4624 | CO53: 0.6235470337 | CP53: 78.97123772 | CQ53: -2421.418934 | CU53: 44.67589254 | CV53: 3312.23824 | CW53: 141.4719884 | CX53: 8545.627801 | CY53: 8354.21089 | CZ53: 4201.51056 | DA53: 34066.25937 | DB53: -29864.74881 | DC53: 18813.67184 | DD53: 12947.256 | DG53: 25.45701 | DH53: 283.30765 | DI53: 2204.94369 | DJ53: 1326.87123 | DK53: 0 | DL53: 0 | DM53: 878.07246 | DN53: -36.70763 | DO53: 0 | DP53: 0 | DQ53: 914.78009 | DR53: 7515.82528 | DS53: 1886.35445 | DU53: -564.07792 | DV53: 3602.61632 | DW53: 970.89979 | DX53: 18813.67184 | DY53: 15247.47252 | DZ53: 2420.04215 | EA53: 1146.15717 | EB53: 21.25 | ED53: 99 | EE53: 21723 | EF53: 22105 | EG53: 23320.94539 | EH53: 660 | EK53: -5347 | EL53: 106 | EM53: 20 | EN53: -1107 | EO53: 54 | EP53: 285 | EQ53: -1665.41464 | ER53: 13.125 | ES53: 736.83498 | ET53: 5000 | EU53: 0 | EV53: 3350 | EW53: 0 | EX53: 0 | EY53: 3000 | EZ53: 22790 | FA53: 19419 | FB53: 3371 | FC53: 302 | FD53: 22769 | FE53: 19166 | FF53: 3603 | FG53: 302 | FH53: 22166.48072 | FI53: 15921.7484 | FJ53: 6244.73232 | FK53: 0 | FL53: 7215.019929 | FM53: 7288.76093 | FN53: 7323.116241 | FO53: 717.5281186 | FP53: 155.1747661 | FV53: 1768 | FW53: -1768
A54: 172 | B54: Joutsa | C54: 4377 | E54: 0.4824692412 | F54: 45.24847181 | G54: -3326.479324 | K54: 36.0875603 | L54: 25.13136852 | M54: 1.048713595 | N54: 8746.858579 | O54: 12045 | P54: 4581 | Q54: 34675 | R54: -30088 | S54: 15570 | T54: 15185 | W54: -63 | X54: 177 | Y54: 781 | Z54: 1380 | AA54: 0 | AB54: 0 | AC54: -599 | AD54: 17 | AE54: 0 | AF54: 0 | AG54: -582 | AH54: 3259 | AI54: 788 | AK54: 107 | AL54: -1530 | AM54: -1108 | AN54: 15570 | AO54: 12176 | AP54: 1618 | AQ54: 1776 | AR54: 21 | AT54: 136 | AU54: 4297 | AW54: 0.5 | AX54: 55.1067768 | AY54: -4171.28229 | BC54: 30.22578767 | BD54: 171.5150105 | BE54: 6.508080515 | BF54: 9619.269258 | BG54: 12396 | BH54: 4689 | BI54: 35741 | BJ54: -31052 | BK54: 15062 | BL54: 16480 | BO54: -37 | BP54: 193 | BQ54: 646 | BR54: 1107 | BS54: 0 | BT54: 70 | BU54: -531 | BV54: 6 | BW54: 0 | BX54: 0 | BY54: -525 | BZ54: 2734 | CA54: 572 | CC54: 33 | CD54: -1356 | CE54: -3609 | CF54: 15062 | CG54: 11730 | CH54: 1766 | CI54: 1566 | CJ54: 21 | CL54: 285.7132353 | CM54: 4263 | CO54: 1.205987973 | CP54: 52.44644057 | CQ54: -4073.718109 | CU54: 32.86997102 | CV54: 222.5251607 | CW54: 8.557006687 | CX54: 9491.833608 | CY54: 12003.23665 | CZ54: 5274.29321 | DA54: 35655.03293 | DB54: -30380.73972 | DC54: 16086.07092 | DD54: 16881.276 | DG54: -9.12578 | DH54: 222.43713 | DI54: 2799.91855 | DJ54: 1239.83043 | DK54: 0 | DL54: 0 | DM54: 1560.08812 | DN54: -6.36324 | DO54: 0 | DP54: 0 | DQ54: 1566.45136 | DR54: 4171.37132 | DS54: 2933.17443 | DU54: -446.76038 | DV54: 2311.088 | DW54: 636.75502 | DX54: 16086.07092 | DY54: 11881.25173 | DZ54: 2446.29437 | EA54: 1758.52482 | EB54: 21 | ED54: 192 | EE54: 17072 | EF54: 17101 | EG54: 20062.50003 | EJ54: 500 | EK54: -1983 | EL54: 53 | EM54: 34 | EN54: -4193 | EO54: 0 | EP54: 12 | EQ54: -2423.14086 | ER54: 10.96445 | ES54: 115.757 | ET54: 50 | EU54: 2800 | EV54: 771 | EW54: 4700 | EX54: 0 | EY54: 1600 | EZ54: 12488 | FA54: 5649 | FB54: 6839 | FC54: 965 | FD54: 16604 | FE54: 4293 | FF54: 12311 | FG54: 889 | FH54: 15892.913 | FI54: 3158.025 | FJ54: 12734.888 | FK54: 888.26246 | FL54: 5977.381768 | FM54: 7281.591808 | FN54: 7149.885179 | FO54: 565.7738919 | FP54: 132.7173099 | FV54: 2380 | FW54: -2380
A55: 176 | B55: Juuka | C55: 4606 | E55: 3.623166791 | F55: 15.22425931 | G55: 68.17194963 | K55: 82.62632229 | L55: 1166.521928 | M55: 47.22009535 | N55: 9016.934433 | O55: 8054 | P55: 6003 | Q55: 38879 | R55: -32876 | S55: 13877 | T55: 20319 | W55: 19 | X55: 460 | Y55: 1799 | Z55: 1824 | AA55: 0 | AB55: 165 | AC55: -190 | AD55: -967 | AE55: 1221 | AF55: 0 | AG55: 64 | AH55: 10263 | AI55: 1315 | AK55: -223 | AL55: -714 | AM55: -371 | AN55: 13877 | AO55: 10964 | AP55: 1703 | AQ55: 1210 | AR55: 20.75 | AT55: 60 | AU55: 4527 | AW55: 4.641200546 | AX55: 21.43079913 | AY55: -242.5447316 | BC55: 76.42337719 | BD55: 1370.223106 | BE55: 50.5931711 | BF55: 9885.354539 | BG55: 8188 | BH55: 6003 | BI55: 38729 | BJ55: -32726 | BK55: 14021 | BL55: 21659 | BO55: 25 | BP55: 404 | BQ55: 3383 | BR55: 2736 | BS55: 0 | BT55: 0 | BU55: 647 | BV55: 884 | BW55: -839 | BX55: 0 | BY55: 693 | BZ55: 10957 | CA55: 3832 | CC55: -571 | CD55: -714 | CE55: -1425 | CF55: 14021 | CG55: 10958 | CH55: 1933 | CI55: 1130 | CJ55: 20.75 | CL55: 106.4044118 | CM55: 4444 | CO55: 3.138603885 | CP55: 23.83286562 | CQ55: -1283.887505 | CU55: 73.56334754 | CV55: 793.3614761 | CW55: 26.3924909 | CX55: 10971.94425 | CY55: 8431.57176 | CZ55: 6090.02362 | DA55: 40804.01451 | DB55: -34713.99089 | DC55: 15450.75983 | DD55: 21254.126 | DG55: 41.24258 | DH55: 241.52798 | DI55: 2273.6655 | DJ55: 2579.92695 | DK55: 0 | DL55: 0 | DM55: -306.26145 | DN55: -530.68106 | DO55: -470.05532 | DP55: 0 | DQ55: 694.47493 | DR55: 11650.61216 | DS55: 2505.35044 | DU55: 664.6514 | DV55: 714.284 | DW55: -4696.08228 | DX55: 15450.75983 | DY55: 11423.0762 | DZ55: 2818.3166 | EA55: 1209.36703 | EB55: 20.75 | ED55: 120 | EE55: 27768 | EF55: 27551 | EG55: 28212.91564 | EK55: -1899 | EL55: 0 | EM55: 213 | EN55: -5288 | EO55: 0 | EP55: 31 | EQ55: -7226.1271 | ER55: 0 | ES55: 24.69438 | ET55: 0 | EU55: 0 | EV55: 0 | EW55: 3000 | EX55: 0 | EY55: 2000 | EZ55: 3214 | FA55: 2500 | FB55: 714 | FC55: 2880 | FD55: 5500 | FE55: 1786 | FF55: 3714 | FG55: 2861 | FH55: 6785.722 | FI55: 1071.438 | FJ55: 5714.284 | FK55: 2779.54535 | FL55: 2359.09683 | FM55: 3161.475591 | FN55: 3610.068616 | FO55: 550.5096964 | FP55: 123.8770694 | FV55: 0 | FW55: 0
A56: 177 | B56: Juupajoki | C56: 1844 | E56: 1.725856698 | F56: 36.0711788 | G56: -1814.533623 | K56: 66.38049203 | L56: 375.813449 | M56: 19.64621359 | N56: 6982.104121 | O56: 3125 | P56: 1297 | Q56: 12059 | R56: -10762 | S56: 7159 | T56: 4413 | W56: -32 | X56: 21 | Y56: 799 | Z56: 517 | AA56: 0 | AB56: 0 | AC56: 282 | AD56: 10 | AE56: 0 | AF56: 0 | AG56: 292 | AH56: 2419 | AI56: 799 | AK56: -93 | AL56: -13 | AM56: 88 | AN56: 7159 | AO56: 5542 | AP56: 1114 | AQ56: 503 | AR56: 21 | AT56: 48 | AU56: 1800 | AW56: 27.65909091 | AX56: 32.14682158 | AY56: -1302.777778 | BC56: 68.34735926 | BD56: 916.6666667 | BE56: 47.76729061 | BF56: 7004.444444 | BG56: 3062 | BH56: 1401 | BI56: 12362 | BJ56: -10961 | BK56: 7135 | BL56: 4977 | BO56: -31 | BP56: 66 | BQ56: 1186 | BR56: 967 | BS56: 0 | BT56: 0 | BU56: 219 | BV56: 11 | BW56: 0 | BX56: 0 | BY56: 231 | BZ56: 2651 | CA56: 1186 | CC56: 255 | CD56: -13 | CE56: 993 | CF56: 7135 | CG56: 5452 | CH56: 1196 | CI56: 487 | CJ56: 21 | CL56: 154.7573529 | CM56: 1786 | CO56: 1.18916169 | CP56: 33.67586839 | CQ56: -1002.309037 | CU56: 67.54537283 | CV56: 1381.443354 | CW56: 63.39841098 | CX56: 7953.303819 | CY56: 3202.74578 | CZ56: 1326.76301 | DA56: 12614.85344 | DB56: -11288.09043 | DC56: 7983.60839 | DD56: 4618.778 | DG56: -18.69731 | DH56: -27.52467 | DI56: 1268.07398 | DJ56: 562.90109 | DK56: 0 | DL56: 0 | DM56: 705.17289 | DN56: -10.57123 | DO56: 0 | DP56: 0 | DQ56: 715.74412 | DR56: 3049.04425 | DS56: 1238.35005 | DU56: 1.79963 | DV56: 1062.82022 | DW56: 863.95897 | DX56: 7983.60839 | DY56: 5762.74468 | DZ56: 1695.25812 | EA56: 525.60559 | EB56: 21 | ED56: 211 | EE56: 7889 | EF56: 8235 | EG56: 8359.11639 | EK56: -711 | EL56: 0 | EM56: 0 | EN56: -193 | EO56: 0 | EP56: 0 | EQ56: -404.39108 | ER56: 0 | ES56: 30 | ET56: 447 | EU56: -400 | EV56: 0 | EW56: 0 | EX56: 1000 | EY56: -100 | EZ56: 3210 | FA56: 2297 | FB56: 913 | FC56: 63 | FD56: 3197 | FE56: 1284 | FF56: 1913 | FG56: 59 | FH56: 3034.28997 | FI56: 2121.40391 | FJ56: 912.88606 | FK56: 57.19 | FL56: 3667.570499 | FM56: 3953.333333 | FN56: 3991.500761 | FO56: 274.4164133 | FP56: 153.6486077 | FV56: 532 | FW56: -532
A57: 178 | B57: Juva | C57: 6116 | E57: 0.3992199965 | F57: 54.32022707 | G57: -3712.393721 | K57: 64.35142726 | L57: 138.8162198 | M57: 6.133664542 | N57: 8260.627861 | O57: 8124 | P57: 4440 | Q57: 44986 | R57: -40546 | S57: 19813 | T57: 21196 | W57: -90 | X57: 662 | Y57: 1035 | Z57: 1811 | AA57: 12 | AB57: 0 | AC57: -764 | AD57: -461 | AE57: 475 | AF57: 0 | AG57: -750 | AH57: 4330 | AI57: 1848 | AK57: 588 | AL57: -2113 | AM57: -1000 | AN57: 19813 | AO57: 15734 | AP57: 2553 | AQ57: 1526 | AR57: 20.75 | AT57: 139 | AU57: 5932 | AW57: 2.426318161 | AX57: 53.82728065 | AY57: -3519.049225 | BC57: 62.80269894 | BD57: 513.4861767 | BE57: 21.69642683 | BF57: 8638.401888 | BG57: 7750 | BH57: 4466 | BI57: 44690 | BJ57: -40224 | BK57: 20217 | BL57: 24634 | BO57: -72 | BP57: 756 | BQ57: 5311 | BR57: 4703 | BS57: 0 | BT57: 0 | BU57: 608 | BV57: 143 | BW57: 0 | BX57: 0 | BY57: 751 | BZ57: 5081 | CA57: 5543 | CC57: -1491 | CD57: -2146 | CE57: 1832 | CF57: 20217 | CG57: 15868 | CH57: 2957 | CI57: 1392 | CJ57: 20.75 | CL57: 61.07352941 | CM57: 5887 | CO57: 1.809822288 | CP57: 47.12174793 | CQ57: -3374.892878 | CU57: 65.83218235 | CV57: 335.8006472 | CW57: 14.61325791 | CX57: 8387.399784 | CY57: 8396.79311 | CZ57: 5128.044 | DA57: 48094.5987 | DB57: -42966.5547 | DC57: 22154.84535 | DD57: 23526.694 | DG57: -129.16459 | DH57: 731.77035 | DI57: 3317.59041 | DJ57: 1906.8909 | DK57: 0 | DL57: 0 | DM57: 1410.69951 | DN57: -15.83333 | DO57: 0 | DP57: 0 | DQ57: 1426.53284 | DR57: 6507.01232 | DS57: 3180.06627 | DU57: 528.30445 | DV57: 1774.85439 | DW57: 962.24021 | DX57: 22154.84535 | DY57: 16408.29473 | DZ57: 4147.61553 | EA57: 1598.93509 | EB57: 20.75 | ED57: 142 | EE57: 34179 | EF57: 35155 | EG57: 36788.95091 | EI57: 640 | EK57: -3325 | EL57: 225 | EM57: 252 | EN57: -4308 | EO57: 525 | EP57: 72 | EQ57: -2527.71259 | ER57: 85.30272 | ES57: 224.58381 | ET57: 3500 | EU57: 0 | EV57: 2000 | EW57: 1000 | EX57: 0 | EY57: 0 | EZ57: 20587 | FA57: 10441 | FB57: 10146 | FC57: 1037 | FD57: 21442 | FE57: 10667 | FF57: 10775 | FG57: 1037 | FH57: 19666.73854 | FI57: 8890.42644 | FJ57: 10776.3121 | FK57: 1036.62016 | FL57: 5626.716808 | FM57: 5859.238031 | FN57: 5853.098303 | FO57: 790.7611918 | FP57: 134.3232872 | FV57: 941 | FW57: -941
A58: 179 | B58: Jyväskylä | C58: 142400 | E58: 0.4500199773 | F58: 58.36972226 | G58: -3323.946629 | K58: 46.82326243 | L58: 17.20505618 | M58: 0.9353590293 | N58: 6713.83427 | O58: 355050 | P58: 168753 | Q58: 855710 | R58: -686957 | S58: 524204 | T58: 173607 | W58: 3631 | X58: 7722 | Y58: 22207 | Z58: 53776 | AA58: 0 | AB58: 0 | AC58: -31569 | AD58: 340 | AE58: 0 | AF58: 75 | AG58: -31154 | AH58: 19856 | AI58: 12604 | AK58: 1131 | AL58: -26686 | AM58: -42549 | AN58: 524204 | AO58: 448187 | AP58: 26652 | AQ58: 49365 | AR58: 20 | AT58: 152 | AU58: 143420 | AW58: 2.07885536 | AX58: 52.18416373 | AY58: -3237.825966 | BC58: 48.4840759 | BD58: 3.604797099 | BE58: 0.1925333328 | BF58: 6833.886487 | BG58: 366064 | BH58: 159297 | BI58: 878285 | BJ58: -718988 | BK58: 549126 | BL58: 230220 | BO58: 3554 | BP58: 7888 | BQ58: 71800 | BR58: 55716 | BS58: 0 | BT58: 0 | BU58: 16084 | BV58: 340 | BW58: 0 | BX58: -16 | BY58: 16408 | BZ58: 36040 | CA58: 64148 | CC58: 5206 | CD58: -31686 | CE58: 10049 | CF58: 549126 | CG58: 472627 | CH58: 29183 | CI58: 47316 | CJ58: 20 | CL58: 227.2867647 | CM58: 144473 | CO58: 0.6141122722 | CP58: 48.07394301 | CQ58: -2661.097752 | CU58: 51.34435133 | CV58: 344.0976361 | CW58: 16.61267096 | CX58: 7560.231433 | CY58: 386769.573 | CZ58: 189592.4112 | DA58: 956813.9509 | DB58: -767221.5397 | DC58: 584651.3719 | DD58: 209999.3451 | DG58: 490.03753 | DH58: 8276.83839 | DI58: 36196.05324 | DJ58: 53856.8384 | DK58: 87268.24227 | DL58: 0 | DM58: 69607.45711 | DN58: -340.44074 | DO58: 0 | DP58: -13.24047 | DQ58: 69961.13832 | DR58: 97816.14351 | DS58: 38193.32112 | DU58: -11727.28847 | DV58: 62587.67 | DW58: 76039.01483 | DX58: 584651.3719 | DY58: 487898.1998 | DZ58: 44206.04729 | EA58: 52547.12482 | EB58: 20 | ED58: 29 | EE58: 363032 | EF58: 370285 | EG58: 436969.2779 | EK58: -68107 | EL58: 1059 | EM58: 11895 | EN58: -64563 | EO58: 594 | EP58: 9870 | EQ58: -66943.74878 | ER58: 1532.31073 | ES58: 103257.1318 | ET58: 23000 | EU58: 69578 | EV58: 50000 | EW58: -42458 | EX58: 0 | EY58: 31976.00922 | EZ58: 407036 | FA58: 233700 | FB58: 173336 | FC58: 7797 | FD58: 382892 | FE58: 221112 | FF58: 161780 | FG58: 157212 | FH58: 352279.9502 | FI58: 193524.715 | FJ58: 158755.2352 | FK58: 157209.2799 | FL58: 8539.002809 | FM58: 8552.405522 | FN58: 8237.002229 | FO58: 24394.90999 | FP58: 168.8544572 | FV58: 25477 | FW58: -25477
A59: 181 | B59: Jämijärvi | C59: 1739 | E59: 0.8628678773 | F59: 53.20884984 | G59: -2789.534215 | K59: 28.39790576 | L59: 512.3634273 | M59: 24.82557252 | N59: 7533.06498 | O59: 2500 | P59: 1184 | Q59: 12056 | R59: -10872 | S59: 6134 | T59: 5428 | W59: -29 | X59: -1 | Y59: 660 | Z59: 361 | AA59: 0 | AB59: 0 | AC59: 299 | AD59: 0 | AE59: 0 | AF59: 0 | AG59: 299 | AH59: -838 | AI59: 412 | AK59: -503 | AL59: -771 | AM59: 798 | AN59: 6134 | AO59: 5140 | AP59: 286 | AQ59: 708 | AR59: 22.5 | AT59: 62 | AU59: 1707 | AW59: 1.582857143 | AX59: 50.42376302 | AY59: -2191.564148 | BC59: 37.32119636 | BD59: 492.0913884 | BE59: 25.29494266 | BF59: 7100.76157 | BG59: 2629 | BH59: 539 | BI59: 11005 | BJ59: -10466 | BK59: 6074 | BL59: 5776 | BO59: -24 | BP59: 1 | BQ59: 1361 | BR59: 343 | BS59: 0 | BT59: 0 | BU59: 1018 | BV59: 0 | BW59: 0 | BX59: 0 | BY59: 1018 | BZ59: 181 | CA59: 1324 | CC59: -625 | CD59: -851 | CE59: 1094 | CF59: 6074 | CG59: 5108 | CH59: 306 | CI59: 660 | CJ59: 22.5 | CL59: 88.27205882 | CM59: 1685 | CO59: 0.8773165206 | CP59: 117.3266037 | CQ59: -4637.110196 | CU59: 21.90840105 | CV59: 3491.929288 | CW59: 117.2774579 | CX59: 10867.85315 | CY59: 2823.99779 | CZ59: 930.40102 | DA59: 11676.71699 | DB59: -10746.31597 | DC59: 6376.35284 | DD59: 5462.467 | DG59: -44.26934 | DH59: 1.14864 | DI59: 1049.38317 | DJ59: 605.91611 | DK59: 0 | DL59: 0 | DM59: 443.46706 | DN59: 0 | DO59: 0 | DP59: 0 | DQ59: 443.46706 | DR59: 658.15991 | DS59: 1083.34945 | DU59: 700.4926 | DV59: 1202.31896 | DW59: -4072.81053 | DX59: 6376.35284 | DY59: 5184.24155 | DZ59: 465.23937 | EA59: 726.87192 | EB59: 22.5 | ED59: 173 | EE59: 8652 | EF59: 7567 | EG59: 7973.18167 | EH59: 250 | EJ59: 315 | EK59: -226 | EL59: 34 | EM59: 578 | EN59: -238 | EO59: 8 | EP59: 0 | EQ59: -5646.54598 | ER59: 490.386 | ES59: 0 | ET59: 900 | EU59: 300 | EV59: 0 | EW59: 500 | EX59: 9500 | EY59: -500 | EZ59: 5259 | FA59: 3433 | FB59: 1826 | FC59: 381 | FD59: 4909 | FE59: 2666 | FF59: 2243 | FG59: 367 | FH59: 12705.6526 | FI59: 10102.77364 | FJ59: 2602.87896 | FK59: 317.11686 | FL59: 3802.185164 | FM59: 3639.718805 | FN59: 8382.73657 | FO59: 230.4107356 | FP59: 136.7422763 | FV59: 716 | FW59: -716
A60: 182 | B60: Jämsä | C60: 20182 | E60: 0.8896318529 | F60: 34.54164435 | G60: -1889.356853 | K60: 59.409993 | L60: 335.3978793 | M60: 13.84331139 | N60: 8843.276187 | O60: 43063 | P60: 42473 | Q60: 165470 | R60: -122655 | S60: 84863 | T60: 42543 | W60: -313 | X60: 1057 | Y60: 5495 | Z60: 8110 | AA60: 0 | AB60: 0 | AC60: -2615 | AD60: 247 | AE60: 0 | AF60: 0 | AG60: -2368 | AH60: -602 | AI60: 5369 | AK60: -684 | AL60: -4532 | AM60: -1724 | AN60: 84863 | AO60: 69037 | AP60: 9669 | AQ60: 6157 | AR60: 21 | AT60: 98 | AU60: 19887 | AW60: 2.332056194 | AX60: 32.83733025 | AY60: -1618.997335 | BC60: 60.11230045 | BD60: 805.4005129 | BE60: 32.1883276 | BF60: 9132.850606 | BG60: 43536 | BH60: 41771 | BI60: 168593 | BJ60: -126822 | BK60: 87372 | BL60: 51097 | BO60: -264 | BP60: 1094 | BQ60: 12477 | BR60: 8434 | BS60: 0 | BT60: 0 | BU60: 4043 | BV60: 247 | BW60: 0 | BX60: -75 | BY60: 4215 | BZ60: 3613 | CA60: 12452 | CC60: 2896 | CD60: -5176 | CE60: 4832 | CF60: 87372 | CG60: 70253 | CH60: 11485 | CI60: 5634 | CJ60: 21 | CL60: 171.8823529 | CM60: 19767 | CO60: 1.927013026 | CP60: 29.72361652 | CQ60: -1536.258005 | CU60: 61.41977085 | CV60: 627.4065746 | CW60: 23.56487569 | CX60: 9717.997359 | CY60: 46912.78941 | CZ60: 49983.53479 | DA60: 180763.8313 | DB60: -130780.2965 | DC60: 92719.66296 | DD60: 46570.0717 | DG60: -207.21378 | DH60: 583.3252 | DI60: 8885.54955 | DJ60: 8550.65067 | DK60: 0 | DL60: 0 | DM60: 334.89888 | DN60: -246.61126 | DO60: 0 | DP60: 181.7916 | DQ60: 399.71854 | DR60: 4012.91281 | DS60: 8626.29803 | DU60: -2598.36414 | DV60: 4492.02 | DW60: 2477.58881 | DX60: 92719.66296 | DY60: 71228.03079 | DZ60: 15605.43014 | EA60: 5886.20203 | EB60: 21 | ED60: 89 | EE60: 103228 | EF60: 106168 | EG60: 114203.9613 | EK60: -7504 | EL60: 126 | EM60: 285 | EN60: -7819 | EO60: 143 | EP60: 56 | EQ60: -7100.45849 | ER60: 643.63547 | ES60: 308.1138 | ET60: 0 | EU60: 1025 | EV60: 4000 | EW60: -128 | EX60: 0 | EY60: 44.64086 | EZ60: 41217 | FA60: 33410 | FB60: 7807 | FC60: 5590 | FD60: 39912 | FE60: 32433 | FF60: 7479 | FG60: 5016 | FH60: 35464.85717 | FI60: 27941.45 | FJ60: 7523.40717 | FK60: 5543.45527 | FL60: 3184.570409 | FM60: 3060.190074 | FN60: 2776.98903 | FO60: 3391.81099 | FP60: 171.589568 | FV60: 6948 | FW60: -6948
A61: 186 | B61: Järvenpää | C61: 43711 | E61: -0.341276395 | F61: 86.6968685 | G61: -5201.551097 | K61: 33.07471401 | L61: 56.37025005 | M61: 2.650993061 | N61: 7761.295784 | O61: 65950 | P61: 51616 | Q61: 285483 | R61: -232567 | S61: 193842 | T61: 29139 | W61: 195 | X61: 544 | Y61: -8847 | Z61: 23684 | AA61: 137 | AB61: 0 | AC61: -32394 | AD61: 150 | AE61: 0 | AF61: 0 | AG61: -32244 | AH61: 9677 | AI61: -13166 | AK61: 6118 | AL61: -2750 | AM61: -55861 | AN61: 193842 | AO61: 174569 | AP61: 4677 | AQ61: 14596 | AR61: 19.75 | AT61: 271 | AU61: 44455 | AW61: 58.18112245 | AX61: 92.44803458 | AY61: -5410.460016 | BC61: 30.57320928 | BD61: 463.1425037 | BE61: 24.38861213 | BF61: 6931.391295 | BG61: 65123 | BH61: 40762 | BI61: 270914 | BJ61: -230152 | BK61: 201450 | BL61: 50715 | BO61: -171 | BP61: 573 | BQ61: 22415 | BR61: 21477 | BS61: 0 | BT61: 0 | BU61: 938 | BV61: 133 | BW61: 0 | BX61: 0 | BY61: 1071 | BZ61: 10747 | CA61: 12634 | CC61: -175 | CD61: 0 | CE61: -13687 | CF61: 201450 | CG61: 182979 | CH61: 4673 | CI61: 13798 | CJ61: 19.75 | CL61: 226.2794118 | CM61: 45226 | CO61: 2.177332899 | CP61: 86.43819603 | CQ61: -5463.657804 | CU61: 31.96751635 | CV61: 139.5793698 | CW61: 7.049870616 | CX61: 7226.582269 | CY61: 69160.99894 | CZ61: 43730.29421 | DA61: 276902.7938 | DB61: -233172.4996 | DC61: 218400.2271 | DD61: 39838.14 | DG61: -164.32759 | DH61: 620.32671 | DI61: 25521.86662 | DJ61: 22156.97661 | DK61: 0 | DL61: 0 | DM61: 3364.89001 | DN61: -118.08524 | DO61: 0 | DP61: 0 | DQ61: 3482.97525 | DR61: 14230.20952 | DS61: 14682.24261 | DU61: 2115.95161 | DV61: 11507.322 | DW61: -6508.44946 | DX61: 218400.2271 | DY61: 194498.4605 | DZ61: 7144.05484 | EA61: 16757.71173 | EB61: 20.25 | ED61: 143 | EE61: 181344 | EF61: 180937 | EG61: 186165.6221 | EI61: 2000 | EK61: -50488 | EL61: 784 | EM61: 7009 | EN61: -37941 | EO61: 243 | EP61: 11377 | EQ61: -37989.45602 | ER61: 462.986 | ES61: 16335.77795 | ET61: 183000 | EU61: -124064 | EV61: 50000 | EW61: -12277 | EX61: 0 | EY61: -1227.80355 | EZ61: 191852 | FA61: 174814 | FB61: 17038 | FC61: 4991 | FD61: 229575 | FE61: 210271 | FF61: 19304 | FG61: 4991 | FH61: 216839.9648 | FI61: 198763.747 | FJ61: 18076.21783 | FK61: 4990.98604 | FL61: 9130.516346 | FM61: 9747.317512 | FN61: 9605.097872 | FO61: 9604.862247 | FP61: 212.3747899 | FV61: 2326 | FW61: -2326
A62: 202 | B62: Kaarina | C62: 33937 | E62: 0.2577698563 | F62: 62.85677318 | G62: -3152.252704 | K62: 41.5521133 | L62: 487.7272593 | M62: 26.92305636 | N62: 6612.193181 | O62: 81452 | P62: 35114 | Q62: 206974 | R62: -171510 | S62: 145290 | T62: 28272 | W62: -1422 | X62: 1294 | Y62: 1924 | Z62: 11670 | AA62: 0 | AB62: 0 | AC62: -9746 | AD62: 17 | AE62: 0 | AF62: 0 | AG62: -9729 | AH62: 17620 | AI62: -2075 | AK62: -139 | AL62: -1192 | AM62: -12290 | AN62: 145290 | AO62: 132499 | AP62: 5375 | AQ62: 7416 | AR62: 19.75 | AT62: 211 | AU62: 34667 | AW62: 8.142326733 | AX62: 61.42722386 | AY62: -3017.480601 | BC62: 42.49086225 | BD62: 653.6187152 | BE62: 36.34154004 | BF62: 6564.686878 | BG62: 80831 | BH62: 31823 | BI62: 206069 | BJ62: -174246 | BK62: 150610 | BL62: 42557 | BO62: -1491 | BP62: 700 | BQ62: 18130 | BR62: 9598 | BS62: 0 | BT62: 0 | BU62: 8532 | BV62: 17 | BW62: 0 | BX62: 0 | BY62: 8548 | BZ62: 26167 | CA62: 15542 | CC62: -3150 | CD62: -817 | CE62: -162 | CF62: 150610 | CG62: 137875 | CH62: 5762 | CI62: 6973 | CJ62: 19.75 | CL62: 220.2352941 | CM62: 35497 | CO62: 6.645671092 | CP62: 62.08132091 | CQ62: -3143.523627 | CU62: 42.49144864 | CV62: 728.6519726 | CW62: 33.0353291 | CX62: 7052.765189 | CY62: 87162.4954 | CZ62: 40218.7968 | DA62: 220771.5118 | DB62: -180552.715 | DC62: 164035.5429 | DD62: 37145.457 | DG62: -2208.25004 | DH62: 86.45201 | DI62: 18506.48689 | DJ62: 10372.58652 | DK62: 0 | DL62: 245 | DM62: 8378.90037 | DN62: -16.66667 | DO62: 0 | DP62: 0 | DQ62: 8395.56704 | DR62: 34563.38805 | DS62: 20755.333 | DU62: -1473.672 | DV62: 816.666 | DW62: -2939.281 | DX62: 164035.5429 | DY62: 147184.9551 | DZ62: 9102.85393 | EA62: 7747.73387 | EB62: 20.25 | ED62: 123 | EE62: 92819 | EF62: 93653 | EG62: 108443.2492 | EK62: -15027 | EL62: 0 | EM62: 4812 | EN62: -19324 | EO62: 132 | EP62: 3488 | EQ62: -26442.793 | ER62: 716.543 | ES62: 2031.636 | ET62: 50000 | EU62: -33250 | EV62: 20000 | EW62: -15000 | EX62: 0 | EY62: 10000 | EZ62: 84792 | FA62: 48975 | FB62: 35817 | FC62: 2291 | FD62: 88975 | FE62: 68158 | FF62: 20817 | FG62: 671 | FH62: 98158.343 | FI62: 67375 | FJ62: 30783.343 | FK62: 671.06748 | FL62: 3934.849869 | FM62: 3883.578043 | FN62: 3965.836885 | FO62: 7268.392847 | FP62: 204.7607642 | FV62: 460 | FW62: -460
A63: 204 | B63: Kaavi | C63: 2893 | E63: 0.6236226959 | F63: 38.86466344 | G63: -2365.710335 | K63: 44.01189654 | L63: 402.0048393 | M63: 15.96085878 | N63: 9193.225026 | O63: 6900 | P63: 3316 | Q63: 24656 | R63: -21340 | S63: 9442 | T63: 12468 | W63: -111 | X63: 184 | Y63: 643 | Z63: 797 | AA63: 0 | AB63: 0 | AC63: -154 | AD63: 12 | AE63: 0 | AF63: 0 | AG63: -142 | AH63: -632 | AI63: 542 | AK63: -589 | AL63: -1086 | AM63: 561 | AN63: 9442 | AO63: 7195 | AP63: 1099 | AQ63: 1148 | AR63: 22 | AT63: 118 | AU63: 2807 | AW63: 2.882198953 | AX63: 38.24069118 | AY63: -2098.681867 | BC63: 47.10964111 | BD63: 1068.044175 | BE63: 41.5645535 | BF63: 9379.052369 | BG63: 6379 | BH63: 3028 | BI63: 24138 | BJ63: -21110 | BK63: 9833 | BL63: 13297 | BO63: -103 | BP63: 179 | BQ63: 2096 | BR63: 840 | BS63: 0 | BT63: 0 | BU63: 1256 | BV63: 48 | BW63: 0 | BX63: 0 | BY63: 1304 | BZ63: 672 | CA63: 2054 | CC63: 683 | CD63: -658 | CE63: 1386 | CF63: 9833 | CG63: 7458 | CH63: 1304 | CI63: 1071 | CJ63: 22 | CL63: 107.4117647 | CM63: 2778 | CO63: 1.865528024 | CP63: 33.46078608 | CQ63: -2060.787178 | CU63: 52.00488445 | CV63: 521.0287185 | CW63: 20.91137022 | CX63: 9094.357772 | CY63: 5610.72182 | CZ63: 2561.59079 | DA63: 24597.43123 | DB63: -22035.84044 | DC63: 10661.25722 | DD63: 12440.192 | DG63: -97.67877 | DH63: 139.00998 | DI63: 1106.93999 | DJ63: 706.21344 | DK63: 0 | DL63: 0 | DM63: 400.72655 | DN63: -10.57764 | DO63: 0 | DP63: 0 | DQ63: 411.30419 | DR63: 1082.91553 | DS63: 903.87359 | DU63: -301.03495 | DV63: 546.694 | DW63: 114.03422 | DX63: 10661.25722 | DY63: 7604.32242 | DZ63: 1818.25477 | EA63: 1238.68003 | EB63: 22 | ED63: 72 | EE63: 15024 | EF63: 14812 | EG63: 16747.05581 | EI63: 400 | EK63: -739 | EL63: 0 | EM63: 758 | EN63: -1411 | EO63: 0 | EP63: 743 | EQ63: -881.67065 | ER63: 53.33646 | ES63: 38.49482 | ET63: 0 | EU63: 1000 | EV63: 0 | EW63: 0 | EX63: 0 | EY63: -500 | EZ63: 7897 | FA63: 5739 | FB63: 2158 | FC63: 507 | FD63: 7239 | FE63: 5192 | FF63: 2047 | FG63: 507 | FH63: 6191.841 | FI63: 4700.684 | FJ63: 1491.157 | FK63: 0 | FL63: 5766.678189 | FM63: 5905.59316 | FN63: 5695.13505 | FO63: 345.6510191 | FP63: 124.4244129 | FV63: 479 | FW63: -479
A64: 205 | B64: Kajaani | C64: 36709 | E64: 2.08598921 | F64: 65.7909202 | G64: 1589.88259 | K64: 64.26089106 | L64: 6115.802664 | M64: 233.7826484 | N64: 9548.475851 | O64: 89966 | P64: 43202 | Q64: 298956 | R64: -254859 | S64: 138418 | T64: 104003 | W64: 2575 | X64: 50798 | Y64: 40935 | Z64: 17821 | AA64: 119904 | AB64: 0 | AC64: 143018 | AD64: -39 | AE64: -20000 | AF64: 14 | AG64: 122993 | AH64: 180314 | AI64: 47546 | AK64: -10093 | AL64: -15428 | AM64: 143980 | AN64: 138418 | AO64: 122364 | AP64: 5465 | AQ64: 10589 | AR64: 21 | AT64: 5 | AU64: 36567 | AW64: 0.5102084792 | AX64: 61.3281263 | AY64: 420.2193114 | BC64: 64.32455297 | BD64: 5182.312888 | BE64: 187.0561829 | BF64: 10112.17151 | BG64: 88360 | BH64: 35310 | BI64: 297605 | BJ64: -262295 | BK64: 141422 | BL64: 123803 | BO64: -1076 | BP64: 6174 | BQ64: 8028 | BR64: 16378 | BS64: 0 | BT64: 0 | BU64: -8350 | BV64: -3682 | BW64: 42 | BX64: 9 | BY64: -11981 | BZ64: 168333 | CA64: 6964 | CC64: 12182 | CD64: -17120 | CE64: -43437 | CF64: 141422 | CG64: 125951 | CH64: 5821 | CI64: 9650 | CJ64: 21 | CL64: 283.6985294 | CM64: 36493 | CO64: 0.9963829766 | CP64: 58.85143743 | CQ64: 777.7955975 | CU64: 65.40111614 | CV64: 5430.285165 | CW64: 206.5029971 | CX64: 9598.185563 | CY64: 94251.06808 | CZ64: 37398.47337 | DA64: 301923.6319 | DB64: -264525.1585 | DC64: 149403.9076 | DD64: 118677.025 | DG64: -1005.87715 | DH64: 25408.7671 | DI64: 27958.66409 | DJ64: 17581.50445 | DK64: 0 | DL64: 0 | DM64: 10377.15964 | DN64: -835.15384 | DO64: 4889.78819 | DP64: -20.21303 | DQ64: 6342.73832 | DR64: 174675.9729 | DS64: 29017.19221 | DU64: 102.86599 | DV64: 28066.01638 | DW64: 12659.35585 | DX64: 149403.9076 | DY64: 130220.0263 | DZ64: 8622.56012 | EA64: 10561.32121 | EB64: 21 | ED64: 233 | EE64: 171594 | EF64: 176446 | EG64: 178597.6414 | EK64: -30514 | EL64: 686 | EM64: 126262 | EN64: -50812 | EO64: 301 | EP64: 110 | EQ64: -17281.13571 | ER64: 732.9157 | ES64: 190.38365 | ET64: 15460 | EU64: 14982 | EV64: 25000 | EW64: -15137 | EX64: 15620 | EY64: 10242.72268 | EZ64: 141463 | FA64: 87686 | FB64: 53777 | FC64: 6216 | FD64: 134206 | FE64: 94401 | FF64: 39805 | FG64: 6062 | FH64: 132002.9005 | FI64: 83714.24374 | FJ64: 48288.65678 | FK64: 724.0285 | FL64: 16321.99188 | FM64: 18154.75702 | FN64: 17822.84964 | FO64: 6200.953633 | FP64: 169.9217284 | FV64: 9462 | FW64: -9462
A65: 208 | B65: Kalajoki | C65: 12373 | E65: 0.9333047394 | F65: 65.39240267 | G65: -3105.633234 | K65: 51.90644835 | L65: 1436.35335 | M65: 63.16610513 | N65: 8299.84644 | O65: 42897 | P65: 21961 | Q65: 90507 | R65: -68249 | S65: 41540 | T65: 31822 | W65: 1 | X65: 713 | Y65: 5827 | Z65: 5866 | AA65: 0 | AB65: 0 | AC65: -39 | AD65: 54 | AE65: 0 | AF65: 0 | AG65: 15 | AH65: 17286 | AI65: 5454 | AK65: 873 | AL65: -2884 | AM65: -2120 | AN65: 41540 | AO65: 34278 | AP65: 1911 | AQ65: 5351 | AR65: 21 | AT65: 39 | AU65: 12400 | AW65: 2.788908766 | AX65: 56.63188098 | AY65: -2659.112903 | BC65: 55.07679214 | BD65: 1578.064516 | BE65: 70.05090281 | BF65: 8222.5 | BG65: 43109 | BH65: 21216 | BI65: 93252 | BJ65: -72036 | BK65: 42970 | BL65: 37804 | BO65: -10 | BP65: 472 | BQ65: 9200 | BR65: 5729 | BS65: 0 | BT65: 0 | BU65: 3471 | BV65: 54 | BW65: -2500 | BX65: 0 | BY65: 1025 | BZ65: 18311 | CA65: 8729 | CC65: 1490 | CD65: -3200 | CE65: 5028 | CF65: 42970 | CG65: 36015 | CH65: 2079 | CI65: 4876 | CJ65: 21 | CL65: 110.4338235 | CM65: 12412 | CO65: 1.806288678 | CP65: 60.37734912 | CQ65: -2958.535037 | CU65: 53.08196528 | CV65: 1642.951788 | CW65: 61.74127115 | CX65: 9368.462592 | CY65: 46359.70738 | CZ65: 23588.06851 | DA65: 99387.56309 | DB65: -75799.49458 | DC65: 45518.46791 | DD65: 36279.272 | DG65: 48.23973 | DH65: 512.98243 | DI65: 6559.46749 | DJ65: 5441.83307 | DK65: 0 | DL65: 0 | DM65: 1117.63442 | DN65: -53.92533 | DO65: 0 | DP65: 0 | DQ65: 1171.55975 | DR65: 19482.71233 | DS65: 7737.56042 | DU65: -1823.9191 | DV65: 3561.4549 | DW65: -524.19954 | DX65: 45518.46791 | DY65: 37416.20023 | DZ65: 3074.1157 | EA65: 5028.15198 | EB65: 21 | ED65: 128 | EE65: 35046 | EF65: 37063 | EG65: 42022.03141 | EK65: -9345 | EL65: 762 | EM65: 1009 | EN65: -4851 | EO65: 229 | EP65: 921 | EQ65: -9520.02792 | ER65: 484.96635 | ES65: 773.30161 | ET65: 6000 | EU65: -2000 | EV65: 0 | EW65: -2000 | EX65: 6000 | EY65: 2000 | EZ65: 44946 | FA65: 26746 | FB65: 18200 | FC65: 4455 | FD65: 39746 | FE65: 23230 | FF65: 16516 | FG65: 4056 | FH65: 44228.2775 | FI65: 25196.9946 | FJ65: 19031.2829 | FK65: 7111.88505 | FL65: 5722.864301 | FM65: 5349.274194 | FN65: 5388.5095 | FO65: 1781.72382 | FP65: 143.548487 | FV65: 3053 | FW65: -3053
A66: 211 | B66: Kangasala | C66: 31868 | E66: 1.393070089 | F66: 50.05467596 | G66: -1667.440693 | K66: 54.76080786 | L66: 1416.687586 | M66: 69.8310231 | N66: 7404.888917 | O66: 87922 | P66: 44354 | Q66: 203175 | R66: -158821 | S66: 131061 | T66: 38573 | W66: -720 | X66: 3662 | Y66: 13755 | Z66: 13335 | AA66: 0 | AB66: 0 | AC66: 420 | AD66: 7 | AE66: 0 | AF66: 0 | AG66: 427 | AH66: 53725 | AI66: 12576 | AK66: 3800 | AL66: -10141 | AM66: -8609 | AN66: 131061 | AO66: 119533 | AP66: 4316 | AQ66: 7212 | AR66: 21 | AT66: 49 | AU66: 32214 | AW66: 2.544155947 | AX66: 48.69869425 | AY66: -1415.409449 | BC66: 56.28308814 | BD66: 1883.963494 | BE66: 89.96442336 | BF66: 7643.540076 | BG66: 88196 | BH66: 46892 | BI66: 206816 | BJ66: -159924 | BK66: 137678 | BL66: 51539 | BO66: -622 | BP66: 2831 | BQ66: 31502 | BR66: 12710 | BS66: 0 | BT66: 0 | BU66: 18792 | BV66: -2506 | BW66: -5300 | BX66: 0 | BY66: 10986 | BZ66: 64711 | CA66: 30182 | CC66: 131 | CD66: -11936 | CE66: 5805 | CF66: 137678 | CG66: 126025 | CH66: 4922 | CI66: 6731 | CJ66: 21 | CL66: 40.92647059 | CM66: 32622 | CO66: 1.295868248 | CP66: 43.52906622 | CQ66: -1505.545927 | CU66: 59.0009518 | CV66: 1379.453468 | CW66: 61.46587741 | CX66: 8191.545243 | CY66: 93739.09605 | CZ66: 53260.99784 | DA66: 227245.8061 | DB66: -173984.8082 | DC66: 143280.8581 | DD66: 45223.859 | DG66: -338.23754 | DH66: 4152.71494 | DI66: 18334.38626 | DJ66: 14313.22162 | DK66: 0 | DL66: 0 | DM66: 4021.16464 | DN66: 1690.21213 | DO66: -3630.32336 | DP66: 0 | DQ66: 5961.27587 | DR66: 70672.56321 | DS66: 15317.8882 | DU66: -2427.82741 | DV66: 14022.82219 | DW66: -3548.78403 | DX66: 143280.8581 | DY66: 128315.8595 | DZ66: 7306.06385 | EA66: 7658.9347 | EB66: 21 | ED66: 140 | EE66: 87101 | EF66: 90169 | EG66: 106029.6235 | EK66: -22477 | EL66: 0 | EM66: 1292 | EN66: -26413 | EO66: 686 | EP66: 1350 | EQ66: -25227.84478 | ER66: 2265.8517 | ES66: 4095.32085 | ET66: 31000 | EU66: 0 | EV66: 16000 | EW66: 0 | EX66: 0 | EY66: 0 | EZ66: 68842 | FA66: 57355 | FB66: 11487 | FC66: 39 | FD66: 72906 | FE66: 61083 | FF66: 11823 | FG66: 28 | FH66: 58882.35519 | FI66: 48759.21063 | FJ66: 10123.14456 | FK66: 18.76648 | FL66: 4317.465796 | FM66: 4656.453716 | FN66: 4179.238524 | FO66: =(DY66/EB66) -> 6110.279025 | FP66: =(FO66/CM66)*1000 -> 187.3054695 | FV66: 7141 | FW66: =FV66*-1 -> -7141
A67: 213 | B67: Kangasniemi | C67: 5356 | E67: 0.312626549 | F67: 65.54343738 | G67: -3691.187453 | K67: 46.5542102 | L67: 476.2882748 | M67: 22.06956625 | N67: 7877.147125 | O67: 8167 | P67: 3000 | Q67: 39199 | R67: -36199 | S67: 18513 | T67: 18372 | W67: -104 | X67: 261 | Y67: 843 | Z67: 1672 | AA67: 0 | AB67: 0 | AC67: -829 | AD67: 0 | AE67: 0 | AF67: 0 | AG67: -829 | AH67: 5151 | AI67: 1058 | AK67: 548 | AL67: -1706 | AM67: -86 | AN67: 18513 | AO67: 14009 | AP67: 2660 | AQ67: 1844 | AR67: 20.75 | AT67: 151 | AU67: 5312 | AW67: 2.261181668 | AX67: 50.21790066 | AY67: -2826.618976 | BC67: 53.76740716 | BD67: 415.4743976 | BE67: 19.33270135 | BF67: 7844.126506 | BG67: 8104 | BH67: 3205 | BI67: 38895 | BJ67: -35690 | BK67: 19437 | BL67: 20038 | BO67: -80 | BP67: 293 | BQ67: 3998 | BR67: 1623 | BS67: 0 | BT67: 0 | BU67: 2375 | BV67: 0 | BW67: 0 | BX67: 0 | BY67: 2376 | BZ67: 7528 | CA67: 3685 | CC67: -389 | CD67: -1714 | CE67: 4792 | CF67: 19437 | CG67: 14676 | CH67: 2981 | CI67: 1780 | CJ67: 21.5 | CL67: 102.375 | CM67: 5230 | CO67: 1.784201306 | CP67: 41.94392103 | CQ67: -2468.866799 | CU67: 58.17877856 | CV67: 441.6785851 | CW67: 19.1498195 | CX67: 8418.496247 | CY67: 8658.11749 | CZ67: 3059.95459 | DA67: 41821.46043 | DB67: -38761.50584 | DC67: 21798.48348 | DD67: 19372.528 | DG67: -54.05772 | DH67: 299.13458 | DI67: 2654.5825 | DJ67: 1565.68156 | DK67: 0 | DL67: 0 | DM67: 1088.90094 | DN67: 0 | DO67: 0 | DP67: 0 | DQ67: 1088.90094 | DR67: 8616.22894 | DS67: 2654.42604 | DU67: 880.59862 | DV67: 1463.34 | DW67: 1984.00578 | DX67: 21798.48348 | DY67: 15415.63096 | DZ67: 4399.01057 | EA67: 1983.84195 | EB67: 21.5 | ED67: 119 | EE67: 28049 | EF67: 27980 | EG67: 30296.32302 | EK67: -1162 | EL67: 6 | EM67: 12 | EN67: -962 | EO67: 14 | EP67: 2055 | EQ67: -684.3761 | ER67: 0 | ES67: 13.95584 | ET67: 0 | EU67: 2100 | EV67: 0 | EW67: -2100 | EX67: 0 | EY67: -1200 | EZ67: 21743 | FA67: 9730 | FB67: 12013 | FC67: 1153 | FD67: 17929 | FE67: 8267 | FF67: 9662 | FG67: 1142 | FH67: 15267.144 | FI67: 6803.804 | FJ67: 8463.34 | FK67: 688.29331 | FL67: 5752.987304 | FM67: 5239.269578 | FN67: 4901.665774 | FO67: 717.0060912 | FP67: 137.0948549 | FV67: 1782 | FW67: -1782
A68: 214 | B68: Kankaanpää | C68: 11286 | E68: 0.03273322422 | F68: 81.32430081 | G68: -5072.833599 | K68: 16.22888799 | L68: 97.11146553 | M68: 4.367105881 | N68: 8116.516038 | O68: 20468 | P68: 8978 | Q68: 76730 | R68: -67752 | S68: 39523 | T68: 27373 | W68: -161 | X68: 1085 | Y68: 68 | Z68: 3671 | AA68: 0 | AB68: 0 | AC68: -3603 | AD68: 0 | AE68: 0 | AF68: 0 | AG68: -3603 | AH68: -3625 | AI68: 75 | AK68: -468 | AL68: -7123 | AM68: -7223 | AN68: 39523 | AO68: 33520 | AP68: 2492 | AQ68: 3511 | AR68: 21.5 | AT68: 228 | AU68: 11163 | AW68: 0.8213270142 | AX68: 79.04423994 | AY68: -5020.335035 | BC68: 18.94008927 | BD68: 402.9382782 | BE68: 18.32741683 | BF68: 8024.724536 | BG68: 20220 | BH68: 8962 | BI68: 75273 | BJ68: -66311 | BK68: 40468 | BL68: 31741 | BO68: -174 | BP68: 1030 | BQ68: 6754 | BR68: 3701 | BS68: 0 | BT68: 0 | BU68: 3053 | BV68: 0 | BW68: 0 | BX68: 0 | BY68: 3053 | BZ68: -572 | CA68: 6742 | CC68: -265 | CD68: -8262 | CE68: 1130 | CF68: 40468 | CG68: 34526 | CH68: 2728 | CI68: 3214 | CJ68: 21.75 | CL68: 182.9632353 | CM68: 12662 | CO68: 1.017391153 | CP68: 70.37091621 | CQ68: -4835.77486 | CU68: 24.18270643 | CV68: 349.7726457 | CW68: 3.43807946 | CX68: 8799.506857 | CY68: 25930.66267 | CZ68: 15167.96921 | DA68: 92203.81839 | DB68: -77035.84918 | DC68: 49833.90764 | DD68: 36011.437 | DG68: -163.41147 | DH68: 1012.67464 | DI68: 9658.75863 | DJ68: 5310.07367 | DK68: 0 | DL68: 0 | DM68: 4348.68496 | DN68: -12.81735 | DO68: 0 | DP68: 0 | DQ68: 4361.50231 | DR68: 2270.02093 | DS68: 9695.86689 | DU68: -998.75298 | DV68: 9490.70689 | DW68: 2229.7638 | DX68: 49833.90764 | DY68: 40560.44355 | DZ68: 5027.71957 | EA68: 4245.74452 | EB68: 21.75 | ED68: 231 | EE68: 48510 | EF68: 47326 | EG68: 57693.54374 | EK68: -7578 | EL68: 146 | EM68: 134 | EN68: -5862 | EO68: 200 | EP68: 50 | EQ68: -7840.13875 | ER68: 270.592 | ES68: 103.44366 | ET68: 14000 | EU68: 2529 | EV68: 11000 | EW68: -262 | EX68: 9000 | EY68: -1752.04904 | EZ68: 53165 | FA68: 42374 | FB68: 10791 | FC68: 1472 | FD68: 55640 | FE68: 44411 | FF68: 11229 | FG68: 1435 | FH68: 58292.59673 | FI68: 48170.90431 | FJ68: 10121.69242 | FK68: 3099.0075 | FL68: 6933.28017 | FM68: 7156.857476 | FN68: 6396.971744 | FO68: 1864.847979 | FP68: 147.2791012 | FV68: 3569 | FW68: -3569
A69: 216 | B69: Kannonkoski | C69: 1339 | E69: -1.582714972 | F69: 63.21078743 | G69: -3751.306945 | K69: 49.46699467 | L69: 2845.40702 | M69: 71.04214559 | N69: 14619.11875 | O69: 4357 | P69: 5689 | Q69: 15161 | R69: -9472 | S69: 4304 | T69: 5729 | W69: -8 | X69: -2378 | Y69: -1825 | Z69: 1144 | AA69: 9 | AB69: 143 | AC69: -3103 | AD69: 1 | AE69: 0 | AF69: 0 | AG69: -3102 | AH69: 8549 | AI69: 406 | AK69: 458 | AL69: -1448 | AM69: -86 | AN69: 4304 | AO69: 3217 | AP69: 634 | AQ69: 453 | AR69: 21 | AT69: 293 | AU69: 1323 | AW69: 0.09643916914 | AX69: 75 | AY69: -4972.789116 | BC69: 50.35053342 | BD69: 2668.178382 | BE69: 60.61012325 | BF69: 16068.02721 | BG69: 3767 | BH69: 4525 | BI69: 14081 | BJ69: -9556 | BK69: 4314 | BL69: 6333 | BO69: -7 | BP69: -510 | BQ69: 574 | BR69: 1078 | BS69: 0 | BT69: 0 | BU69: -504 | BV69: 1 | BW69: 0 | BX69: 0 | BY69: -502 | BZ69: 8047 | CA69: -1155 | CC69: -122 | CD69: -6055 | CE69: -1580 | CF69: 4314 | CG69: 3187 | CH69: 709 | CI69: 418 | CJ69: 21 | CL69: 247.4338235 | CM69: 1311 | CO69: 2.553752585 | CP69: 79.72184491 | CQ69: -4891.502891 | CU69: 41.69905086 | CV69: 2652.365164 | CW69: 107.0968208 | CX69: 9864.279405 | CY69: 2461.40804 | CZ69: 1942.39497 | DA69: 12236.19183 | DB69: -10293.79686 | DC69: 4996.2152 | DD69: 6002.338 | DG69: -12.84866 | DH69: 176.49721 | DI69: 868.40489 | DJ69: 662.81038 | DK69: 0 | DL69: 0 | DM69: 205.59451 | DN69: -0.72667 | DO69: 0 | DP69: 0 | DQ69: 206.32118 | DR69: 2678.61539 | DS69: 748.07174 | DU69: 131.16137 | DV69: 329.98223 | DW69: 400.85387 | DX69: 4996.2152 | DY69: 3458.0712 | DZ69: 1010.86403 | EA69: 527.27997 | EB69: 21.5 | ED69: 197 | EE69: 8774 | EF69: 8488 | EG69: 8789.35446 | EI69: 190 | EK69: -523 | EL69: 13 | EM69: 18 | EN69: -427 | EO69: 0 | EP69: 2 | EQ69: -347.21787 | ER69: 0 | ES69: 0 | ET69: 1850 | EU69: -160 | EV69: 2367 | EW69: 5261 | EX69: 0 | EY69: -194.0447 | EZ69: 8366 | FA69: 6368 | FB69: 1998 | FC69: 0 | FD69: 9938 | FE69: 2681 | FF69: 7257 | FG69: 0 | FH69: 9524.22947 | FI69: 2459.65629 | FJ69: 7064.57318 | FK69: 0 | FL69: 9901.418969 | FM69: 11894.93575 | FN69: 12002.72278 | FO69: 160.8405209 | FP69: 122.6853707 | FV69: 707 | FW69: -707
A70: 217 | B70: Kannus | C70: 5464 | E70: 0.03052180548 | F70: 53.30416763 | G70: -3034.956076 | K70: 42.71653543 | L70: 245.6076135 | M70: 13.62303927 | N70: 6580.527086 | O70: 9817 | P70: 3240 | Q70: 34679 | R70: -31439 | S70: 17802 | T70: 13702 | W70: 22 | X70: -2 | Y70: 85 | Z70: 1159 | AA70: 0 | AB70: 0 | AC70: -1074 | AD70: 104 | AE70: 0 | AF70: 0 | AG70: -970 | AH70: 3974 | AI70: 60 | AK70: 713 | AL70: 0 | AM70: -1197 | AN70: 17802 | AO70: 15563 | AP70: 950 | AQ70: 1289 | AR70: 21.5 | AT70: 222 | AU70: 5426 | AW70: -123.6 | AX70: 46.57367945 | AY70: -2541.098415 | BC70: 45.53445344 | BD70: 560.4496867 | BE70: 29.94321401 | BF70: 6831.736086 | BG70: 9780 | BH70: 2757 | BI70: 36255 | BJ70: -33498 | BK70: 19346 | BL70: 16613 | BO70: 25 | BP70: 6 | BQ70: 2492 | BR70: 1230 | BS70: 0 | BT70: 0 | BU70: 1262 | BV70: 100 | BW70: 0 | BX70: 0 | BY70: 1363 | BZ70: 5337 | CA70: 2486 | CC70: -28 | CD70: 0 | CE70: 1688 | CF70: 19346 | CG70: 16616 | CH70: 1091 | CI70: 1639 | CJ70: 21.5 | CL70: 239.375 | CM70: 5390 | CO70: -30.12213936 | CP70: 41.12585494 | CQ70: -2582.355252 | CU70: 48.80714694 | CV70: 166.8884583 | CW70: 8.287752158 | CX70: 7349.916612 | CY70: 10491.95462 | CZ70: 3208.47923 | DA70: 37788.52602 | DB70: -34580.04679 | DC70: 20017.30389 | DD70: 16023.518 | DG70: 65.616 | DH70: 9.28076 | DI70: 1535.67186 | DJ70: 1165.15521 | DK70: 0 | DL70: 0 | DM70: 370.51665 | DN70: -72.6554 | DO70: 0 | DP70: -30 | DQ70: 473.17205 | DR70: 5809.76154 | DS70: 1500.95686 | DU70: -123.94218 | DV70: 0 | DW70: -74.06016 | DX70: 20017.30389 | DY70: 16563.43216 | DZ70: 1620.16214 | EA70: 1833.70959 | EB70: 21.5 | ED70: 36 | EE70: 21810 | EF70: 23348 | EG70: 24036.52699 | EK70: -1336 | EL70: 0 | EM70: 79 | EN70: -825 | EO70: 0 | EP70: 27 | EQ70: -1768.64132 | ER70: 7.39433 | ES70: 186.22997 | ET70: 0 | EU70: 500 | EV70: 0 | EW70: -1500 | EX70: 0 | EY70: -1000 | EZ70: 16500 | FA70: 0 | FB70: 16500 | FC70: 637 | FD70: 15000 | FE70: 0 | FF70: 15000 | FG70: 3 | FH70: 14000 | FI70: 0 | FJ70: 14000 | FK70: 0 | FL70: 5330.710102 | FM70: 5164.946554 | FN70: 5156.029041 | FO70: 770.3921935 | FP70: 142.929906 | FV70: 865 | FW70: -865
A71: 218 | B71: Karijoki | C71: 1245 | E71: -1.187878788 | F71: 32.05864261 | G71: -1922.891566 | K71: 58.81451803 | L71: 428.1124498 | M71: 17.77315914 | N71: 8791.967871 | O71: 1807 | P71: 1062 | Q71: 10202 | R71: -9140 | S71: 3838 | T71: 4854 | W71: -20 | X71: 7 | Y71: -461 | Z71: 271 | AA71: 0 | AB71: 0 | AC71: -732 | AD71: 0 | AE71: 0 | AF71: 0 | AG71: -732 | AH71: 1125 | AI71: -461 | AK71: 37 | AL71: -262 | AM71: -893 | AN71: 3838 | AO71: 3270 | AP71: 282 | AQ71: 286 | AR71: 22 | AT71: 283 | AU71: 1207 | AW71: 6.185185185 | AX71: 29.58633094 | AY71: -587.4067937 | BC71: 63.93410279 | BD71: 1884.009942 | BE71: 85.28668311 | BF71: 8062.966031 | BG71: 1695 | BH71: 1137 | BI71: 9291 | BJ71: -8154 | BK71: 4145 | BL71: 5838 | BO71: -17 | BP71: 7 | BQ71: 1819 | BR71: 329 | BS71: 0 | BT71: 0 | BU71: 1490 | BV71: 0 | BW71: 0 | BX71: 0 | BY71: 1490 | BZ71: 2615 | CA71: 1819 | CC71: -106 | CD71: -279 | CE71: 1686 | CF71: 4145 | CG71: 3557 | CH71: 329 | CI71: 259 | CJ71: 22 | CL71: 3 | CM71: 1192 | CO71: 2.581263196 | CP71: 23.73499749 | CQ71: -84.50247483 | CU71: 70.65993533 | CV71: 1897.03854 | CW71: 79.28159891 | CX71: 8733.666787 | CY71: 1852.19983 | CZ71: 1070.79113 | DA71: 9883.2869 | DB71: -8812.49577 | DC71: 4185.28751 | DD71: 5430.516 | DG71: -14.15686 | DH71: 5.09965 | DI71: 794.25053 | DJ71: 300.77876 | DK71: 0 | DL71: 0 | DM71: 493.47177 | DN71: 0 | DO71: 0 | DP71: 0 | DQ71: 493.47177 | DR71: 3108.96486 | DS71: 794.25053 | DU71: 132.27793 | DV71: 299.026 | DW71: 609.46605 | DX71: 4185.28751 | DY71: 3353.03426 | DZ71: 540.80691 | EA71: 291.44634 | EB71: 22.5 | ED71: 200 | EE71: 7692 | EF71: 6936 | EG71: 7279.43773 | EI71: 180 | EK71: -462 | EL71: 26 | EM71: 4 | EN71: -144 | EO71: 5 | EP71: 6 | EQ71: -211.27556 | ER71: 13.2 | ES71: 13.29108 | ET71: 400 | EU71: 0 | EV71: 400 | EW71: 400 | EX71: 0 | EY71: -400 | EZ71: 1878 | FA71: 1619 | FB71: 259 | FC71: 0 | FD71: 2399 | FE71: 1700 | FF71: 699 | FG71: 0 | FH71: 1699.856 | FI71: 1430.83 | FJ71: 269.026 | FK71: 0 | FL71: 2727.710843 | FM71: 3447.390224 | FN71: 2815.347693 | FO71: 149.0237449 | FP71: 125.0199202 | FV71: 342 | FW71: -342
A72: 224 | B72: Karkkila | C72: 8714 | E72: -0.01289972573 | F72: 117.9633475 | G72: -7014.803764 | K72: 6.534131193 | L72: 261.9921965 | M72: 11.49340708 | N72: 8320.174432 | O72: 14534 | P72: 6508 | Q72: 55601 | R72: -49093 | S72: 30780 | T72: 18097 | W72: -495 | X72: 107 | Y72: -604 | Z72: 2897 | AA72: 0 | AB72: 0 | AC72: -3501 | AD72: 0 | AE72: 0 | AF72: 0 | AG72: -3501 | AH72: -2742 | AI72: -873 | AK72: 1069 | AL72: -13656 | AM72: -3195 | AN72: 30780 | AO72: 27314 | AP72: 1218 | AQ72: 2248 | AR72: 20.75 | AT72: 254 | AU72: 8696 | AW72: 0.5458324218 | AX72: 102.8663243 | AY72: -6627.299908 | BC72: 8.829012032 | BD72: 380.2897884 | BE72: 17.85108995 | BF72: 7775.75897 | BG72: 14785 | BH72: 6899 | BI72: 57073 | BJ72: -50174 | BK72: 31969 | BL72: 23058 | BO72: -402 | BP72: 128 | BQ72: 4579 | BR72: 2935 | BS72: 0 | BT72: 0 | BU72: 1644 | BV72: 0 | BW72: 0 | BX72: 0 | BY72: 1644 | BZ72: -1098 | CA72: 4308 | CC72: -840 | CD72: -8731 | CE72: 3214 | CF72: 31969 | CG72: 28608 | CH72: 1287 | CI72: 2074 | CJ72: 20.75 | CL72: 216.2058824 | CM72: 8717 | CO72: 0.4447849099 | CP72: 97.53302681 | CQ72: -6393.739337 | CU72: 10.0663994 | CV72: 188.969509 | CW72: 8.633343197 | CX72: 7821.146916 | CY72: 15629.76731 | CZ72: 6751.79233 | DA72: 58233.54285 | DB72: -51481.75052 | DC72: 34285.78231 | DD72: 20814.595 | DG72: -234.12284 | DH72: 88.92372 | DI72: 3473.42767 | DJ72: 2869.70976 | DK72: 0 | DL72: 0 | DM72: 603.71791 | DN72: 0 | DO72: 0 | DP72: 0 | DQ72: 603.71791 | DR72: -494.56023 | DS72: 3323.90686 | DU72: -180.9639 | DV72: 8106.46082 | DW72: 1831.1686 | DX72: 34285.78231 | DY72: 30082.03841 | DZ72: 1914.98731 | EA72: 2288.75659 | EB72: 21.25 | ED72: 71 | EE72: 37260 | EF72: 38378 | EG72: 38127.09227 | EI72: 1000 | EK72: -2729 | EL72: 55 | EM72: 352 | EN72: -1401 | EO72: 22 | EP72: 285 | EQ72: -1655.35191 | ER72: 0 | ES72: 162.61365 | ET72: 9320 | EU72: 5200 | EV72: 7500 | EW72: -700 | EX72: 0 | EY72: 6000 | EZ72: 59939 | FA72: 39883 | FB72: 20056 | FC72: 0 | FD72: 58007 | FE72: 38901 | FF72: 19106 | FG72: 0 | FH72: 55901.16318 | FI72: 30794.97518 | FJ72: 25106.188 | FK72: 0 | FL72: 7561.16594 | FM72: 7627.644894 | FN72: 7425.749389 | FO72: 1415.625337 | FP72: 162.3982261 | FV72: 3101 | FW72: -3101
A73: 226 | B73: Karstula | C73: 3949 | E73: -1.73103796 | F73: 48.77237049 | G73: -1282.349962 | K73: 40.50727229 | L73: 2451.000253 | M73: 98.39669675 | N73: 9091.922006 | O73: 8245 | P73: 4628 | Q73: 34950 | R73: -30310 | S73: 12537 | T73: 14685 | W73: 51 | X73: 32 | Y73: -3005 | Z73: 1890 | AA73: 0 | AB73: 0 | AC73: -4895 | AD73: 0 | AE73: 0 | AF73: 0 | AG73: -4895 | AH73: -843 | AI73: 1153 | AK73: -69 | AL73: 0 | AM73: 396 | AN73: 12537 | AO73: 10075 | AP73: 1373 | AQ73: 1089 | AR73: 21.5 | AT73: 289 | AU73: 3858 | AW73: 4189 | AX73: 46.64449637 | AY73: -1437.013997 | BC73: 50.19546769 | BD73: 2437.273199 | BE73: 113.8377724 | BF73: 7814.670814 | BG73: 7387 | BH73: 4225 | BI73: 29314 | BJ73: -25089 | BK73: 12663 | BL73: 16547 | BO73: 53 | BP73: 14 | BQ73: 4188 | BR73: 1987 | BS73: 0 | BT73: 0 | BU73: 2201 | BV73: 0 | BW73: 0 | BX73: 0 | BY73: 2201 | BZ73: 1359 | CA73: -14 | CC73: 168 | CD73: 0 | CE73: -336 | CF73: 12663 | CG73: 10149 | CH73: 1524 | CI73: 990 | CJ73: 21.5 | CL73: 19.77205882 | CM73: 3774 | CO73: 10999.22504 | CP73: 45.18771253 | CQ73: -1486.279595 | CU73: 50.69301012 | CV73: 2365.698415 | CW73: 91.04184941 | CX73: 9484.428614 | CY73: 7563.94525 | CZ73: 5018.90301 | DA73: 30921.68886 | DB73: -25902.78585 | DC73: 14060.20644 | DD73: 15622.591 | DG73: 75.15426 | DH73: 15.54947 | DI73: 3870.71532 | DJ73: 2016.21682 | DK73: 0 | DL73: 0 | DM73: 1854.4985 | DN73: 0 | DO73: 0 | DP73: 0 | DQ73: 1854.4985 | DR73: 2990.22585 | DS73: 4511.03966 | DU73: -472.13285 | DV73: 0 | DW73: 447.40681 | DX73: 14060.20644 | DY73: 10605.00218 | DZ73: 2336.15558 | EA73: 1119.04868 | EB73: 21.5 | ED73: 269 | EE73: 19985 | EF73: 19646 | EG73: 20886.37137 | EI73: 545 | EK73: -965 | EL73: -1 | EM73: 209 | EN73: -691 | EO73: 279 | EP73: 90 | EQ73: -4671.64051 | ER73: 121.94166 | ES73: 486.066 | ET73: 0 | EU73: 0 | EV73: 0 | EW73: 0 | EX73: 0 | EY73: 0 | EZ73: 13000 | FA73: 0 | FB73: 13000 | FC73: 575 | FD73: 13000 | FE73: 0 | FF73: 13000 | FG73: 723 | FH73: 13000 | FI73: 0 | FJ73: 13000 | FK73: 267.86279 | FL73: 6708.027349 | FM73: 7203.214101 | FN73: 7275.154367 | FO73: 493.2559153 | FP73: 130.6984407 | FV73: 291 | FW73: -291
A74: 230 | B74: Karvia | C74: 2342 | E74: -1.171946927 | F74: 26.1919778 | G74: -1134.073442 | K74: 74.51315549 | L74: 462.852263 | M74: 22.66483359 | N74: 7453.885568 | O74: 3720 | P74: 1191 | Q74: 16665 | R74: -15474 | S74: 6814 | T74: 7851 | W74: -36 | X74: 268 | Y74: -577 | Z74: 903 | AA74: 0 | AB74: 0 | AC74: -1480 | AD74: 0 | AE74: 0 | AF74: 0 | AG74: -1480 | AH74: 6992 | AI74: -487 | AK74: 88 | AL74: -347 | AM74: -825 | AN74: 6814 | AO74: 5453 | AP74: 637 | AQ74: 724 | AR74: 20.5 | AT74: 275 | AU74: 2322 | AW74: 4.284960422 | AX74: 21.67530728 | AY74: -581.3953488 | BC74: 77.58682635 | BD74: 844.9612403 | BE74: 43.49407835 | BF74: 7090.86994 | BG74: 3617 | BH74: 1190 | BI74: 15807 | BJ74: -14617 | BK74: 6907 | BL74: 9070 | BO74: -32 | BP74: 264 | BQ74: 1592 | BR74: 840 | BS74: 0 | BT74: 0 | BU74: 752 | BV74: 0 | BW74: 0 | BX74: 0 | BY74: 751 | BZ74: 7743 | CA74: 1592 | CC74: 3 | CD74: -347 | CE74: 1316 | CF74: 6907 | CG74: 5551 | CH74: 689 | CI74: 667 | CJ74: 20.5 | CL74: 142.6691176 | CM74: 2290 | CO74: 3.971776282 | CP74: 18.99500742 | CQ74: -303.4394934 | CU74: 80.18100244 | CV74: 705.8600262 | CW74: 33.38489585 | CX74: 7717.229694 | CY74: 3804.98786 | CZ74: 1436.89363 | DA74: 16366.41842 | DB74: -14929.52479 | DC74: 7565.62193 | DD74: 8592.309 | DG74: -27.24813 | DH74: 259.48532 | DI74: 1460.64333 | DJ74: 809.93465 | DK74: 0 | DL74: 0 | DM74: 650.70868 | DN74: 0 | DO74: 0 | DP74: 0 | DQ74: 650.70868 | DR74: 8393.66832 | DS74: 1467.76262 | DU74: -621.01658 | DV74: 347.368 | DW74: 655.13739 | DX74: 7565.62193 | DY74: 5830.11536 | DZ74: 1003.73109 | EA74: 731.77548 | EB74: 20.5 | ED74: 183 | EE74: 11430 | EF74: 11084 | EG74: 11283.06459 | EI74: 300 | EK74: -409 | EL74: 2 | EM74: 69 | EN74: -277 | EO74: 0 | EP74: 1 | EQ74: -929.5593 | ER74: 44.43307 | ES74: 72.501 | ET74: 0 | EU74: 0 | EV74: 0 | EW74: 0 | EX74: 0 | EY74: 0 | EZ74: 2779 | FA74: 2432 | FB74: 347 | FC74: 246 | FD74: 2431 | FE74: 2084 | FF74: 347 | FG74: 246 | FH74: 2084.212 | FI74: 1736.844 | FJ74: 347.368 | FK74: 246.37226 | FL74: 3717.335611 | FM74: 3467.700258 | FN74: 3392.357197 | FO74: 284.3958712 | FP74: 124.1903368 | FV74: 17 | FW74: -17
A75: 231 | B75: Kaskinen | C75: 1246 | E75: -0.5836637589 | F75: 59.97335702 | G75: -4450.24077 | K75: 60.48074138 | L75: 20.86677368 | M75: 0.6888292081 | N75: 11056.98234 | O75: 4599 | P75: 3068 | Q75: 11721 | R75: -8653 | S75: 6360 | T75: 1832 | W75: -45 | X75: 1 | Y75: -505 | Z75: 955 | AA75: 0 | AB75: 0 | AC75: -1460 | AD75: 0 | AE75: 0 | AF75: 0 | AG75: -1460 | AH75: 5732 | AI75: -571 | AK75: -208 | AL75: -1200 | AM75: -1070 | AN75: 6360 | AO75: 4745 | AP75: 749 | AQ75: 866 | AR75: 22 | AT75: 286 | AU75: 1278 | AW75: 0.06406685237 | AX75: 63.39537976 | AY75: -4739.43662 | BC75: 55.16078386 | BD75: 262.9107981 | BE75: 8.648801128 | BF75: 11095.46166 | BG75: 4531 | BH75: 2953 | BI75: 11965 | BJ75: -9012 | BK75: 6396 | BL75: 2685 | BO75: -21 | BP75: 8 | BQ75: 56 | BR75: 1059 | BS75: 0 | BT75: 0 | BU75: -1003 | BV75: 0 | BW75: 0 | BX75: 0 | BY75: -1003 | BZ75: 4776 | CA75: 28 | CC75: -89 | CD75: -1400 | CE75: -571 | CF75: 6396 | CG75: 4907 | CH75: 814 | CI75: 675 | CJ75: 22 | CL75: 292.7647059 | CM75: 1289 | CO75: -1.449390649 | CP75: 69.30690493 | CQ75: -5477.315136 | CU75: 49.35393727 | CV75: 2.603685027 | CW75: 0.08430959265 | CX75: 11272.08666 | CY75: 4462.57274 | CZ75: 2589.15353 | DA75: 12851.12523 | DB75: -10261.9717 | DC75: 7207.2165 | DD75: 2440.706 | DG75: -24.86676 | DH75: -1.77455 | DI75: -640.69051 | DJ75: 683.67269 | DK75: 0 | DL75: 0 | DM75: -1324.3632 | DN75: 0 | DO75: 0 | DP75: 0 | DQ75: -1324.3632 | DR75: 3594.40217 | DS75: -487.22667 | DU75: -216.86307 | DV75: 400 | DW75: -989.90269 | DX75: 7207.2165 | DY75: 5226.13255 | DZ75: 1244.39986 | EA75: 736.68409 | EB75: 22 | ED75: 1 | EE75: 5573 | EF75: 5714 | EG75: 6347.11592 | EI75: 175 | EK75: -810 | EL75: 5 | EM75: 306 | EN75: -779 | EO75: 0 | EP75: 180 | EQ75: -1319.33876 | ER75: 816.66274 | ES75: 0 | ET75: -440 | EU75: 2482 | EV75: 7000 | EW75: -4534 | EX75: 0 | EY75: 1223.34871 | EZ75: 4882 | FA75: 0 | FB75: 4882 | FC75: 0 | FD75: 5948 | FE75: 5200 | FF75: 748 | FG75: 0 | FH75: 6770.90583 | FI75: 4800 | FJ75: 1970.90583 | FK75: 0 | FL75: 6292.134831 | FM75: 7194.053208 | FN75: 8010.217525 | FO75: 237.5514795 | FP75: 184.2912952 | FV75: 0 | FW75: 0
A76: 232 | B76: Kauhajoki | C76: 13184 | E76: 1.140488689 | F76: 61.20330041 | G76: -4033.222087 | K76: 30.78047557 | L76: 1654.202063 | M76: 56.43150835 | N76: 10699.40837 | O76: 22386 | P76: 45874 | Q76: 128991 | R76: -83016 | S76: 44798 | T76: 39736 | W76: -690 | X76: 9960 | Y76: 10788 | Z76: 4940 | AA76: 0 | AB76: 0 | AC76: 5848 | AD76: 37 | AE76: 0 | AF76: 0 | AG76: 5885 | AH76: -7315 | AI76: 10150 | AK76: -219 | AL76: -5210 | AM76: 4726 | AN76: 44798 | AO76: 37263 | AP76: 3936 | AQ76: 3599 | AR76: 22 | AT76: 9 | AU76: 13007 | AW76: 0.9437656642 | AX76: 59.32359521 | AY76: -4069.11663 | BC76: 30.81397821 | BD76: 1864.4576 | BE76: 61.41112275 | BF76: 11081.49458 | BG76: 24214 | BH76: 46338 | BI76: 131571 | BJ76: -85233 | BK76: 46156 | BL76: 44372 | BO76: -618 | BP76: 724 | BQ76: 5401 | BR76: 4754 | BS76: 0 | BT76: 0 | BU76: 647 | BV76: 35 | BW76: 0 | BX76: 0 | BY76: 682 | BZ76: -6633 | CA76: 5471 | CC76: 866 | CD76: -5760 | CE76: 22 | CF76: 46156 | CG76: 38875 | CH76: 4009 | CI76: 3272 | CJ76: 22 | CL76: 251.4632353 | CM76: 12890 | CO76: 1.247566295 | CP76: 56.97539366 | CQ76: -3952.66773 | CU76: 31.73696919 | CV76: 1970.165751 | CW76: 62.36685841 | CX76: 11530.33065 | CY76: 26146.29233 | CZ76: 50135.56746 | DA76: 137165.4752 | DB76: -87029.90771 | DC76: 49370.24891 | DD76: 42695.553 | DG76: -452.12251 | DH76: 2506.33101 | DI76: 7090.1027 | DJ76: 5579.19401 | DK76: 0 | DL76: 0 | DM76: 1510.90869 | DN76: -34.61752 | DO76: 0 | DP76: 0 | DQ76: 1545.52621 | DR76: -5087.12816 | DS76: 6830.39756 | DU76: -665.83286 | DV76: 5592.67618 | DW76: 1940.88458 | DX76: 49370.24891 | DY76: 39623.64382 | DZ76: 6123.64556 | EA76: 3622.95953 | EB76: 22 | ED76: 136 | EE76: 99378 | EF76: 99990 | EG76: 102880.4164 | EH76: 1000 | EK76: -6125 | EL76: 0 | EM76: 701 | EN76: -5706 | EO76: 0 | EP76: 257 | EQ76: -5372.30399 | ER76: 68.35 | ES76: 414.44101 | ET76: 5500 | EU76: 2000 | EV76: 0 | EW76: 6000 | EX76: 7000 | EY76: 0 | EZ76: 65179 | FA76: 55419 | FB76: 9760 | FC76: 1034 | FD76: 65420 | FE76: 49827 | FF76: 15593 | FG76: 866 | FH76: 66826.98146 | FI76: 51134.12228 | FJ76: 15692.85918 | FK76: 800.20458 | FL76: 8225.500607 | FM76: 8538.633044 | FN76: 8564.603906 | FO76: 1801.074719 | FP76: 139.7265104 | FV76: 3128 | FW76: -3128
A77: 233 | B77: Kauhava | C77: 15726 | E77: -0.03753628874 | F77: 58.33763687 | G77: -3045.338929 | K77: 39.4454856 | L77: 1038.344143 | M77: 46.09822029 | N77: 8221.480351 | O77: 31628 | P77: 11117 | Q77: 115048 | R77: -103850 | S77: 53598 | T77: 49532 | W77: -284 | X77: 365 | Y77: -639 | Z77: 8008 | AA77: 0 | AB77: 0 | AC77: -8647 | AD77: 1738 | AE77: 0 | AF77: 75 | AG77: -6834 | AH77: 2393 | AI77: -505 | AK77: 5333 | AL77: -4611 | AM77: -9329 | AN77: 53598 | AO77: 46472 | AP77: 3262 | AQ77: 3864 | AR77: 21.75 | AT77: 243 | AU77: 15514 | AW77: 1.8742536 | AX77: 58.54923133 | AY77: -3168.041769 | BC77: 40.03709217 | BD77: 1153.732113 | BE77: 50.50468858 | BF77: 8338.081733 | BG77: 29936 | BH77: 9950 | BI77: 111339 | BJ77: -101389 | BK77: 54372 | BL77: 57283 | BO77: -232 | BP77: 349 | BQ77: 10383 | BR77: 6231 | BS77: 0 | BT77: 0 | BU77: 4152 | BV77: 194 | BW77: 0 | BX77: 70 | BY77: 4415 | BZ77: 6808 | CA77: 10379 | CC77: -1703 | CD77: -5405 | CE77: -1713 | CF77: 54372 | CG77: 47212 | CH77: 3490 | CI77: 3670 | CJ77: 21.75 | CL77: 149.7205882 | CM77: 15312 | CO77: 1.453158409 | CP77: 62.62191152 | CQ77: -3400.032757 | CU77: 39.85023344 | CV77: 1102.19316 | CW77: 47.29155512 | CX77: 8506.814853 | CY77: 29980.38622 | CZ77: 10128.85895 | DA77: 111648.7563 | DB77: -101519.8974 | DC77: 56830.95802 | DD77: 53178.359 | DG77: -174.2245 | DH77: 425.38448 | DI77: 8740.57964 | DJ77: 6239.76974 | DK77: 0 | DL77: 0 | DM77: 2500.8099 | DN77: -42.6724 | DO77: 0 | DP77: -133.12933 | DQ77: 2676.61163 | DR77: 9484.86414 | DS77: 8366.88481 | DU77: -2152.87578 | DV77: 5933.55654 | DW77: -2840.22971 | DX77: 56830.95802 | DY77: 47804.93594 | DZ77: 4956.20379 | EA77: 4069.81829 | EB77: 21.75 | ED77: 146 | EE77: 76187 | EF77: 74644 | EG77: 74529.23335 | EI77: 1800 | EK77: -9350 | EL77: 393 | EM77: 133 | EN77: -12385 | EO77: 183 | EP77: 110 | EQ77: -11960.80527 | ER77: 94.6 | ES77: 659.09075 | ET77: 15000 | EU77: -5053 | EV77: 12000 | EW77: 3563 | EX77: 12000 | EY77: -2401.666 | EZ77: 53463 | FA77: 48890 | FB77: 4573 | FC77: 2730 | FD77: 63621 | FE77: 55486 | FF77: 8135 | FG77: 2264 | FH77: 67285.16719 | FI77: 61551.62265 | FJ77: 5733.54454 | FK77: 0 | FL77: 8454.915427 | FM77: 9254.60874 | FN77: 10153.62339 | FO77: 2197.928089 | FP77: 143.542848 | FV77: 4056 | FW77: -4056
A78: 235 | B78: Kauniainen | C78: 9797 | E78: 6.024703202 | F78: 17.92243083 | G78: -411.8607737 | K78: 87.78102312 | L78: 682.7600286 | M78: 28.21938787 | N78: 8831.070736 | O78: 35950 | P78: 15831 | Q78: 75027 | R78: -59196 | S78: 66993 | T78: -1864 | W78: 232 | X78: 114 | Y78: 6279 | Z78: 7799 | AA78: 0 | AB78: 0 | AC78: -1520 | AD78: 0 | AE78: 0 | AF78: 0 | AG78: -1520 | AH78: 52713 | AI78: 3653 | AK78: 0 | AL78: 0 | AM78: -5099 | AN78: 66993 | AO78: 61069 | AP78: 1172 | AQ78: 4752 | AR78: 17 | AT78: 13 | AU78: 10178 | AW78: 1153.111111 | AX78: 17.81323837 | AY78: 66.90901945 | BC78: 87.16683119 | BD78: 1307.82079 | BE78: 58.28213095 | BF78: 8190.41069 | BG78: 37228 | BH78: 14069 | BI78: 77506 | BJ78: -63437 | BK78: 69215 | BL78: 4325 | BO78: 225 | BP78: 41 | BQ78: 10369 | BR78: 8716 | BS78: 0 | BT78: 0 | BU78: 1653 | BV78: 0 | BW78: 0 | BX78: 0 | BY78: 1654 | BZ78: 54368 | CA78: 8922 | CC78: 817 | CD78: 0 | CE78: 4637 | CF78: 69215 | CG78: 63838 | CH78: 1060 | CI78: 4317 | CJ78: 17 | CL78: 32.86764706 | CM78: 10396 | CO78: 1110.847791 | CP78: 13.3780276 | CQ78: 179.4568603 | CU78: 89.46528266 | CV78: 1020.986206 | CW78: 42.38774671 | CX78: 8791.690859 | CY78: 38433.75907 | CZ78: 15888.11355 | DA78: 84772.32185 | DB78: -68884.2083 | DC78: 74694.61357 | DD78: 1742.05175 | DG78: 219.27641 | DH78: 40.36309 | DI78: 7812.09652 | DJ78: 8572.79504 | DK78: 0 | DL78: 0 | DM78: -760.69852 | DN78: 0 | DO78: 0 | DP78: 0 | DQ78: -760.69852 | DR78: 52845.96194 | DS78: 7027.83071 | DU78: -1028.14336 | DV78: 0 | DW78: 1514.95759 | DX78: 74694.61357 | DY78: 67983.6895 | DZ78: 1963.24179 | EA78: 4747.68228 | EB78: 17 | ED78: 230 | EE78: 29384 | EF78: 29935 | EG78: 35962.46962 | EK78: -11480 | EL78: 0 | EM78: 2728 | EN78: -5822 | EO78: 0 | EP78: 1537 | EQ78: -6568.33766 | ER78: 252.7206 | ES78: 802.74394 | ET78: 0 | EU78: 2000 | EV78: 0 | EW78: 2000 | EX78: 0 | EY78: -4000 | EZ78: 2000 | FA78: 0 | FB78: 2000 | FC78: 5131 | FD78: 4000 | FE78: 0 | FF78: 4000 | FG78: 5064 | FH78: 0 | FI78: 0 | FJ78: 0 | FK78: 4996.86708 | FL78: 2315.096458 | FM78: 2565.828257 | FN78: 2203.986373 | FO78: 3999.040559 | FP78: 384.6710811 | FV78: 0 | FW78: 0
A79: 236 | B79: Kaustinen | C79: 4261 | E79: -0.0141364665 | F79: 106.337108 | G79: -7533.208167 | K79: 17.71223881 | L79: 228.5848392 | M79: 9.773202111 | N79: 8536.963154 | O79: 10945 | P79: 7230 | Q79: 32251 | R79: -25021 | S79: 13851 | T79: 11063 | W79: -220 | X79: 38 | Y79: -289 | Z79: 1456 | AA79: 0 | AB79: 0 | AC79: -1745 | AD79: 0 | AE79: 0 | AF79: 0 | AG79: -1745 | AH79: -2268 | AI79: -546 | AK79: 369 | AL79: -2455 | AM79: -1582 | AN79: 13851 | AO79: 12079 | AP79: 810 | AQ79: 962 | AR79: 21.5 | AT79: 252 | AU79: 4228 | AW79: 1.325169555 | AX79: 98.39857147 | AY79: -7217.360454 | BC79: 20.74171465 | BD79: 709.0823084 | BE79: 30.09957365 | BF79: 8598.628193 | BG79: 10448 | BH79: 6548 | BI79: 31826 | BJ79: -25278 | BK79: 14546 | BL79: 14187 | BO79: -188 | BP79: 51 | BQ79: 3318 | BR79: 1585 | BS79: 0 | BT79: 0 | BU79: 1733 | BV79: 0 | BW79: 0 | BX79: 0 | BY79: 1733 | BZ79: -535 | CA79: 3385 | CC79: -96 | CD79: -2455 | CE79: 1537 | CF79: 14546 | CG79: 12879 | CH79: 796 | CI79: 871 | CJ79: 22 | CL79: 94.31617647 | CM79: 4196 | CO79: 0.8347016922 | CP79: 105.8320311 | CQ79: -8148.972054 | CU79: 21.19393891 | CV79: 83.50850334 | CW79: 3.068799504 | CX79: 9932.419397 | CY79: 11065.0891 | CZ79: 6702.99035 | DA79: 32399.09516 | DB79: -25696.10481 | DC79: 14961.31415 | DD79: 13200.704 | DG79: -160.64165 | DH79: 52.76266 | DI79: 2358.03435 | DJ79: 1524.87718 | DK79: 0 | DL79: 0 | DM79: 833.15717 | DN79: 0 | DO79: 0 | DP79: 0 | DQ79: 833.15717 | DR79: 297.94699 | DS79: 2316.0298 | DU79: -1151.69577 | DV79: 2860.45148 | DW79: -3729.09811 | DX79: 14961.31415 | DY79: 12922.39347 | DZ79: 1087.79322 | EA79: 951.12746 | EB79: 22 | ED79: 139 | EE79: 18678 | EF79: 18685 | EG79: 18710.68198 | EI79: 590 | EK79: -1437 | EL79: 15 | EM79: 386 | EN79: -1874 | EO79: 0 | EP79: 26 | EQ79: -6237.54652 | ER79: 25 | ES79: 167.41861 | ET79: 0 | EU79: 3000 | EV79: 2000 | EW79: -6000 | EX79: 13000 | EY79: -800.273 | EZ79: 29379 | FA79: 19923 | FB79: 9456 | FC79: 0 | FD79: 30924 | FE79: 28468 | FF79: 2456 | FG79: 0 | FH79: 32262.6436 | FI79: 29607.32012 | FJ79: 2655.32348 | FK79: 0 | FL79: 11926.30838 | FM79: 12264.42763 | FN79: 12476.18751 | FO79: 587.3815214 | FP79: 139.9860632 | FV79: 1503 | FW79: -1503
A80: 239 | B80: Keitele | C80: 2202 | E80: 1.136374161 | F80: 52.43029185 | G80: -3271.571299 | K80: 43.23327184 | L80: 455.9491371 | M80: 20.13959112 | N80: 8263.396912 | O80: 6263 | P80: 3131 | Q80: 17377 | R80: -14246 | S80: 7134 | T80: 8169 | W80: -16 | X80: 170 | Y80: 1211 | Z80: 574 | AA80: 0 | AB80: 181 | AC80: 456 | AD80: 0 | AE80: 0 | AF80: 0 | AG80: 456 | AH80: -639 | AI80: 1126 | AK80: -106 | AL80: 0 | AM80: 405 | AN80: 7134 | AO80: 5770 | AP80: 804 | AQ80: 560 | AR80: 20.5 | AT80: 22 | AU80: 2155 | AW80: 4.501915709 | AX80: 48.7347363 | AY80: -3092.343387 | BC80: 46.03192136 | BD80: 653.3642691 | BE80: 26.71796205 | BF80: 8925.75406 | BG80: 5717 | BH80: 2997 | BI80: 18229 | BJ80: -15232 | BK80: 7469 | BL80: 8779 | BO80: -1 | BP80: 159 | BQ80: 1174 | BR80: 572 | BS80: 0 | BT80: 0 | BU80: 602 | BV80: 0 | BW80: 0 | BX80: 0 | BY80: 602 | BZ80: -38 | CA80: 1023 | CC80: 150 | CD80: -260 | CE80: 540 | CF80: 7469 | CG80: 5811 | CH80: 1186 | CI80: 472 | CJ80: 20.5 | CL80: 211.1691176 | CM80: 2095 | CO80: 2.362305603 | CP80: 45.0231065 | CQ80: -2770.726496 | CU80: 49.5673105 | CV80: 693.1611599 | CW80: 27.53252158 | CX80: 9189.271771 | CY80: 5748.79619 | CZ80: 2814.31225 | DA80: 18271.87451 | DB80: -15457.56226 | DC80: 7979.7739 | DD80: 8681.566 | DG80: 12.61146 | DH80: 180.82941 | DI80: 1397.21851 | DJ80: 761.63867 | DK80: 0 | DL80: 0 | DM80: 635.57984 | DN80: 0 | DO80: 0 | DP80: 0 | DQ80: 635.57984 | DR80: 598.02765 | DS80: 1439.83067 | DU80: -204.65945 | DV80: 598.288 | DW80: 859.67212 | DX80: 7979.7739 | DY80: 5838.52339 | DZ80: 1754.51274 | EA80: 386.73777 | EB80: 20.5 | ED80: 201 | EE80: 8960 | EF80: 10985 | EG80: 11090.7542 | EK80: -802 | EL80: 57 | EM80: 24 | EN80: -741 | EO80: 79 | EP80: 179 | EQ80: -666.83348 | ER80: 60.78765 | ES80: 25.88728 | ET80: 0 | EU80: -260 | EV80: 0 | EW80: 0 | EX80: 0 | EY80: 0 | EZ80: 7883 | FA80: 3073 | FB80: 4810 | FC80: 137 | FD80: 7623 | FE80: 2854 | FF80: 4769 | FG80: 114 | FH80: 7025 | FI80: 2325 | FJ80: 4700 | FK80: 91.216 | FL80: 9041.326067 | FM80: 9004.640371 | FN80: 7421.292773 | FO80: 284.806019 | FP80: 135.9455938 | FV80: 61 | FW80: -61
A81: 240 | B81: Kemi | C81: 20707 | E81: -0.4695577727 | F81: 81.57912146 | G81: -5489.544598 | K81: 30.11291072 | L81: 65.5333945 | M81: 2.783190888 | N81: 8594.340078 | O81: 62818 | P81: 20343 | Q81: 160128 | R81: -139603 | S81: 86724 | T81: 44093 | W81: -147 | X81: 1063 | Y81: -7870 | Z81: 5087 | AA81: 0 | AB81: 0 | AC81: -12957 | AD81: 0 | AE81: 0 | AF81: 2994 | AG81: -9963 | AH81: -10795 | AI81: -8182 | AK81: 264 | AL81: -12491 | AM81: -12274 | AN81: 86724 | AO81: 74973 | AP81: 5132 | AQ81: 6619 | AR81: 21.75 | AT81: 284 | AU81: 20437 | AW81: 0.5680398572 | AX81: 73.29411262 | AY81: -5411.704262 | BC81: 31.31768614 | BD81: 164.9459314 | BE81: 6.863244383 | BF81: 8772.128982 | BG81: 62753 | BH81: 19646 | BI81: 159530 | BJ81: -139884 | BK81: 88470 | BL81: 55903 | BO81: -78 | BP81: 2599 | BQ81: 7010 | BR81: 5094 | BS81: 0 | BT81: 0 | BU81: 1916 | BV81: 0 | BW81: 0 | BX81: 0 | BY81: 1917 | BZ81: -8878 | CA81: 7028 | CC81: 2157 | CD81: -12819 | CE81: 1039 | CF81: 88470 | CG81: 76160 | CH81: 5946 | CI81: 6364 | CJ81: 21.75 | CL81: 267.5808824 | CM81: 19982 | CO81: 0.30193456 | CP81: 80.95784543 | CQ81: -6150.362626 | CU81: 26.51619041 | CV81: 210.445551 | CW81: 7.906458468 | CX81: 9715.17469 | CY81: 65432.439 | CZ81: 23580.824 | DA81: 167602.543 | DB81: -144021.719 | DC81: 92334.526 | DD81: 52739.323 | DG81: 54.416 | DH81: 1531.661 | DI81: 2638.207 | DJ81: 9287.379 | DK81: 0 | DL81: 0 | DM81: -6649.172 | DN81: 0 | DO81: 0 | DP81: 0 | DQ81: -6649.172 | DR81: -15527.626 | DS81: 2149.00442 | DU81: -3085.7942 | DV81: 10077.44044 | DW81: -13050.78203 | DX81: 92334.526 | DY81: 77676.781 | DZ81: 8685.847 | EA81: 5971.898 | EB81: 21.75 | ED81: 12 | EE81: 76040 | EF81: 74091 | EG81: 83018.198 | EI81: 1500 | EK81: -4777 | EL81: 0 | EM81: 685 | EN81: -6411 | EO81: 0 | EP81: 422 | EQ81: -15827.41122 | ER81: 134.62177 | ES81: 493.003 | ET81: 13000 | EU81: 10000 | EV81: 13000 | EW81: 500 | EX81: 28000 | EY81: -5000 | EZ81: 106504 | FA81: 58835 | FB81: 47669 | FC81: 18949 | FD81: 107184 | FE81: 61107 | FF81: 46077 | FG81: 17376 | FH81: 120107.143 | FI81: 71278.571 | FJ81: 48828.572 | FK81: 17019.721 | FL81: 7206.307046 | FM81: 7868.13133 | FN81: 9507.480184 | FO81: 3571.346253 | FP81: 178.728168 | FV81: 9559 | FW81: -9559
A82: 320 | B82: Kemijärvi | C82: 7274 | E82: 0.4679135682 | F82: 66.66242808 | G82: -5058.977179 | K82: 45.36246507 | L82: 135.5512785 | M82: 4.891870217 | N82: 10113.96756 | O82: 26933 | P82: 9219 | Q82: 64578 | R82: -55359 | S82: 28496 | T82: 25199 | W82: 167 | X82: 3589 | Y82: 2092 | Z82: 2449 | AA82: 0 | AB82: 0 | AC82: -357 | AD82: 0 | AE82: 0 | AF82: 14 | AG82: -343 | AH82: -4447 | AI82: 1882 | AK82: -1086 | AL82: -5284 | AM82: -700 | AN82: 28496 | AO82: 22775 | AP82: 1184 | AQ82: 4537 | AR82: 21.5 | AT82: 93 | AU82: 7191 | AW82: 0.8355420725 | AX82: 69.43519663 | AY82: -5325.406758 | BC82: 43.69623499 | BD82: 695.3135864 | BE82: 22.94673842 | BF82: 11059.93603 | BG82: 25258 | BH82: 9512 | BI82: 64839 | BJ82: -55327 | BK82: 29589 | BL82: 29684 | BO82: 179 | BP82: 879 | BQ82: 5004 | BR82: 2584 | BS82: 0 | BT82: 0 | BU82: 2420 | BV82: 0 | BW82: -1 | BX82: 0 | BY82: 2419 | BZ82: -2028 | CA82: 4902 | CC82: -310 | CD82: -6034 | CE82: -1764 | CF82: 29589 | CG82: 24214 | CH82: 1377 | CI82: 3998 | CJ82: 21.5 | CL82: 134.6102941 | CM82: 7105 | CO82: 1.12333861 | CP82: 66.13758334 | CQ82: -4905.783206 | CU82: 47.48576462 | CV82: 932.5480169 | CW82: 31.10435607 | CX82: 10943.1626 | CY82: 25545.59173 | CZ82: 10382.42337 | DA82: 65155.02357 | DB82: -54772.6002 | DC82: 30751.69907 | DD82: 28253.072 | DG82: 222.80153 | DH82: 2881.91947 | DI82: 7336.89187 | DJ82: 2934.55404 | DK82: 0 | DL82: 0 | DM82: 4402.33783 | DN82: 0 | DO82: 0 | DP82: -10.05508 | DQ82: 4412.39291 | DR82: 2384.69203 | DS82: 7113.05716 | DU82: 56.61418 | DV82: 6511.175 | DW82: 4573.31719 | DX82: 30751.69907 | DY82: 24346.19392 | DZ82: 2460.58487 | EA82: 3944.92028 | EB82: 21.5 | ED82: 271 | EE82: 27201 | EF82: 29414 | EG82: 31536.20167 | EI82: 1000 | EK82: -2849 | EL82: 0 | EM82: 267 | EN82: -7002 | EO82: 0 | EP82: 336 | EQ82: -3903.62628 | ER82: 18.40793 | ES82: 1345.47838 | ET82: 10000 | EU82: -3000 | EV82: 11700 | EW82: 0 | EX82: 5000 | EY82: 0 | EZ82: 34414 | FA82: 28880 | FB82: 5534 | FC82: 11706 | FD82: 40080 | FE82: 33819 | FF82: 6261 | FG82: 11656 | FH82: 38569.212 | FI82: 32255.317 | FJ82: 6313.895 | FK82: 12184 | FL82: 9228.347539 | FM82: 10448.47726 | FN82: 10634.83581 | FO82: 1132.381113 | FP82: 159.3780595 | FV82: 4403 | FW82: -4403
A83: 241 | B83: Keminmaa | C83: 8079 | E83: 0.3341714084 | F83: 44.37809996 | G83: -1484.218344 | K83: 50.71349477 | L83: 1036.266865 | M83: 53.72138814 | N83: 7040.722862 | O83: 16453 | P83: 3444 | Q83: 51866 | R83: -48422 | S83: 35862 | T83: 13114 | W83: 76 | X83: 109 | Y83: 739 | Z83: 1688 | AA83: 3 | AB83: 0 | AC83: -946 | AD83: 0 | AE83: 0 | AF83: 0 | AG83: -946 | AH83: 1461 | AI83: 739 | AK83: 1432 | AL83: -3461 | AM83: -543 | AN83: 35862 | AO83: 30785 | AP83: 1094 | AQ83: 3983 | AR83: 21.25 | AT83: 186 | AU83: 7984 | AW83: 1.453031731 | AX83: 35.64119078 | AY83: -1365.981964 | BC83: 56.94267786 | BD83: 637.3997996 | BE83: 31.81060762 | BF83: 7313.627255 | BG83: 16390 | BH83: 3480 | BI83: 51493 | BJ83: -48013 | BK83: 36220 | BL83: 16196 | BO83: 24 | BP83: 26 | BQ83: 4453 | BR83: 1906 | BS83: 41 | BT83: 0 | BU83: 2588 | BV83: 0 | BW83: 0 | BX83: 0 | BY83: 2588 | BZ83: 4049 | CA83: 4463 | CC83: -1068 | CD83: -3011 | CE83: 834 | CF83: 36220 | CG83: 31240 | CH83: 1399 | CI83: 3581 | CJ83: 21.25 | CL83: 204.1176471 | CM83: 7904 | CO83: 1.23499819 | CP83: 39.54113058 | CQ83: -1647.816549 | CU83: 54.47740989 | CV83: 783.3773456 | CW83: 34.58480061 | CX83: 8267.583623 | CY83: 17648.06303 | CZ83: 4875.31596 | DA83: 55050.13548 | DB83: -50174.81952 | DC83: 38722.46867 | DD83: 15390.76197 | DG83: 34.61699 | DH83: 8.99152 | DI83: 3982.01963 | DJ83: 2534.5182 | DK83: 42.61061 | DL83: 0 | DM83: 1490.11204 | DN83: 0 | DO83: 0 | DP83: 0 | DQ83: 1490.11204 | DR83: 5538.49046 | DS83: 4912.02639 | DU83: -121.325 | DV83: 3192.64646 | DW83: 686.07312 | DX83: 38722.46867 | DY83: 32705.92126 | DZ83: 2154.40321 | EA83: 3862.1442 | EB83: 21.25 | ED83: 115 | EE83: 31337 | EF83: 31138 | EG83: 33384.21683 | EJ83: 520 | EK83: -1327 | EL83: 39 | EM83: 6 | EN83: -3695 | EO83: 17 | EP83: 49 | EQ83: -5760.78303 | ER83: 542 | ES83: 992.82976 | ET83: 5000 | EU83: 700 | EV83: 0 | EW83: -700 | EX83: 5500 | EY83: 0 | EZ83: 18514 | FA83: 15270 | FB83: 3244 | FC83: 5583 | FD83: 14803 | FE83: 11791 | FF83: 3012 | FG83: 5373 | FH83: 17119.48 | FI83: 14124.63833 | FJ83: 2994.84167 | FK83: 4791.62911 | FL83: 3424.433717 | FM83: 3003.507014 | FN83: 3219.896508 | FO83: 1539.102177 | FP83: 194.7244657 | FV83: 2686 | FW83: -2686
A84: 322 | B84: Kemiönsaari | C84: 6640 | E84: 0.4163996385 | F84: 55.58815529 | G84: -3574.096386 | K84: 53.16875578 | L84: 408.5843373 | M84: 18.42419112 | N84: 8094.427711 | O84: 23976 | P84: 7208 | Q84: 50235 | R84: -43024 | S84: 22657 | T84: 21601 | W84: -172 | X84: 32 | Y84: 1094 | Z84: 3673 | AA84: 0 | AB84: 0 | AC84: -2579 | AD84: 143 | AE84: 0 | AF84: 0 | AG84: -2436 | AH84: 12009 | AI84: 1057 | AK84: 55 | AL84: -2076 | AM84: -129 | AN84: 22657 | AO84: 18239 | AP84: 1064 | AQ84: 3354 | AR84: 19.75 | AT84: 146 | AU84: 6609 | AW84: 3.313282002 | AX84: 41.59870989 | AY84: -2715.690725 | BC84: 59.79699609 | BD84: 296.5652898 | BE84: 13.90070922 | BF84: 7787.108488 | BG84: 23071 | BH84: 6927 | BI84: 47727 | BJ84: -40800 | BK84: 23300 | BL84: 24342 | BO84: -152 | BP84: 39 | BQ84: 6729 | BR84: 5335 | BS84: 0 | BT84: 0 | BU84: 1394 | BV84: 196 | BW84: 0 | BX84: 0 | BY84: 1590 | BZ84: 13742 | CA84: 6642 | CC84: -627 | CD84: -1922 | CE84: 5628 | CF84: 23300 | CG84: 18994 | CH84: 1237 | CI84: 3069 | CJ84: 19.75 | CL84: 34.88235294 | CM84: 6614 | CO84: 3.526996674 | CP84: 37.8331785 | CQ84: -2011.528316 | CU84: 62.86418308 | CV84: 691.8754158 | CW84: 31.33720995 | CX84: 8058.615529 | CY84: 23642.79633 | CZ84: 8461.03474 | DA84: 49884.05159 | DB84: -41423.01685 | DC84: 24472.24771 | DD84: 23145.774 | DG84: -131.85579 | DH84: 14.80692 | DI84: 6077.95599 | DJ84: 3374.69204 | DK84: 0 | DL84: 0 | DM84: 2703.26395 | DN84: -140.28654 | DO84: 0 | DP84: 0 | DQ84: 2843.55049 | DR84: 16585.47925 | DS84: 6063.09889 | DU84: -544.58947 | DV84: 1624.976 | DW84: 4348.31471 | DX84: 24472.24771 | DY84: 19145.94722 | DZ84: 1934.64582 | EA84: 3391.65467 | EB84: 19.75 | ED84: 258 | EE84: 20394 | EF84: 18385 | EG84: 19287.9238 | EK84: -1259 | EL84: 23 | EM84: 50 | EN84: -1654 | EO84: 430 | EP84: 210 | EQ84: -1882.21188 | ER84: 96.4727 | ES84: 70.955 | ET84: 0 | EU84: 3500 | EV84: 0 | EW84: -3500 | EX84: 0 | EY84: 0 | EZ84: 21425 | FA84: 16003 | FB84: 5422 | FC84: 1 | FD84: 16003 | FE84: 14378 | FF84: 1625 | FG84: 1 | FH84: 14377.76996 | FI84: 12783.55396 | FJ84: 1594.216 | FK84: 0.8914 | FL84: 4831.475904 | FM84: 3887.728855 | FN84: 3469.525138 | FO84: 969.4150491 | FP84: 146.5701616 | FV84: 3797 | FW84: -3797
A85: 244 | B85: Kempele | C85: 18355 | E85: 0.2486965995 | F85: 71.96893924 | G85: -3845.164805 | K85: 42.82055721 | L85: 271.2612367 | M85: 13.82908214 | N85: 7159.575048 | O85: 48110 | P85: 14103 | Q85: 107818 | R85: -93476 | S85: 71267 | T85: 24608 | W85: -695 | X85: -3 | Y85: 1701 | Z85: 5241 | AA85: 0 | AB85: 0 | AC85: -3540 | AD85: 729 | AE85: 0 | AF85: 0 | AG85: -2811 | AH85: 10222 | AI85: -2406 | AK85: 128 | AL85: -6245 | AM85: -14208 | AN85: 71267 | AO85: 63456 | AP85: 3972 | AQ85: 3839 | AR85: 20.5 | AT85: 185 | AU85: 18796 | AW85: 1.020219149 | AX85: 65.54734499 | AY85: -3751.117259 | BC85: 42.97503433 | BD85: 277.6654607 | BE85: 14.70697003 | BF85: 6891.147053 | BG85: 48837 | BH85: 13133 | BI85: 113256 | BJ85: -100123 | BK85: 74742 | BL85: 33123 | BO85: -624 | BP85: 32 | BQ85: 7150 | BR85: 6724 | BS85: 0 | BT85: 0 | BU85: 426 | BV85: 728 | BW85: 0 | BX85: 0 | BY85: 1154 | BZ85: 11376 | CA85: 4455 | CC85: 153 | CD85: -6995 | CE85: -71 | CF85: 74742 | CG85: 67226 | CH85: 3917 | CI85: 3599 | CJ85: 20.5 | CL85: 263.5514706 | CM85: 19116 | CO85: 1.014392432 | CP85: 67.12585258 | CQ85: -3720.594456 | CU85: 41.05386817 | CV85: 476.0978243 | CW85: 24.05003551 | CX85: 7225.590406 | CY85: 52934.26112 | CZ85: 17316.18858 | DA85: 120668.7368 | DB85: -103352.5482 | DC85: 80854.37025 | DD85: 30456.77604 | DG85: -544.69855 | DH85: 37.10028 | DI85: 7450.99982 | DJ85: 7126.58505 | DK85: 0 | DL85: 0 | DM85: 324.41477 | DN85: -705.40481 | DO85: 0 | DP85: 0 | DQ85: 1029.81958 | DR85: 12405.41274 | DS85: 3581.9003 | DU85: -2519.70565 | DV85: 7337.171 | DW85: -797.89412 | DX85: 80854.37025 | DY85: 71454.39186 | DZ85: 5353.30457 | EA85: 4046.67382 | EB85: 20.5 | ED85: 69 | EE85: 44474 | EF85: 45304 | EG85: 53844.62868 | EK85: -16861 | EL85: 492 | EM85: 4567 | EN85: -8706 | EO85: 497 | EP85: 3683 | EQ85: -9651.29144 | ER85: 877.16325 | ES85: 4394.33377 | ET85: 15000 | EU85: 0 | EV85: 6500 | EW85: 0 | EX85: 11500 | EY85: 0 | EZ85: 65317 | FA85: 58322 | FB85: 6995 | FC85: 0 | FD85: 64822 | FE85: 57485 | FF85: 7337 | FG85: 0 | FH85: 68985.231 | FI85: 61110.955 | FJ85: 7874.276 | FK85: 0 | FL85: 4385.344593 | FM85: 4413.226218 | FN85: 4692.199793 | FO85: 3485.580091 | FP85: 182.3383601 | FV85: 2648 | FW85: -2648
A86: 245 | B86: Kerava | C86: 36756 | E86: 1.108138664 | F86: 39.61091064 | G86: -2048.427468 | K86: 76.12733255 | L86: 111.6280335 | M86: 5.846577578 | N86: 6968.903036 | O86: 85846 | P86: 37419 | Q86: 209851 | R86: -172241 | S86: 157421 | T86: 23259 | W86: -64 | X86: 848 | Y86: 9223 | Z86: 21953 | AA86: 14166 | AB86: 0 | AC86: 1436 | AD86: 0 | AE86: 0 | AF86: 0 | AG86: 1436 | AH86: 101329 | AI86: 19031 | AK86: 337 | AL86: -7887 | AM86: -13365 | AN86: 157421 | AO86: 138903 | AP86: 7956 | AQ86: 10562 | AR86: 19.25 | AT86: 110 | AU86: 37105 | AW86: 1.899044869 | AX86: 44.11749782 | AY86: -2525.023582 | BC86: 72.79919797 | BD86: 124.4576203 | BE86: 6.2763957 | BF86: 7237.757715 | BG86: 89030 | BH86: 33534 | BI86: 220490 | BJ86: -186956 | BK86: 162985 | BL86: 40154 | BO86: -168 | BP86: 842 | BQ86: 16857 | BR86: 16399 | BS86: 2733 | BT86: 0 | BU86: 3191 | BV86: 0 | BW86: 0 | BX86: 0 | BY86: 3191 | BZ86: 104519 | CA86: 12664 | CC86: 969 | CD86: -8762 | CE86: -18449 | CF86: 162985 | CG86: 145530 | CH86: 7538 | CI86: 9917 | CJ86: 19.25 | CL86: 242.3970588 | CM86: 37232 | CO86: 0.9949150044 | CP86: 50.30326176 | CQ86: -2961.730808 | CU86: 68.55958233 | CV86: 174.1656032 | CW86: 8.457390797 | CX86: 7516.555248 | CY86: 94959.36437 | CZ86: 45439.59237 | DA86: 240325.0985 | DB86: -194885.5061 | DC86: 168915.7706 | DD86: 35396.655 | DG86: -129.82355 | DH86: 1906.36872 | DI86: 11203.46464 | DJ86: 17180.98145 | DK86: 0 | DL86: 0 | DM86: -5977.51681 | DN86: 0 | DO86: 0 | DP86: 0 | DQ86: -5977.51681 | DR86: 98541.61284 | DS86: 6047.02316 | DU86: -2797.19185 | DV86: 11261.912 | DW86: -16431.02217 | DX86: 168915.7706 | DY86: 146768.0802 | DZ86: 11011.04575 | EA86: 11136.64468 | EB86: 19.25 | ED86: 40 | EE86: 94665 | EF86: 101606 | EG86: 116442.8742 | EK86: -38192 | EL86: 215 | EM86: 5581 | EN86: -39072 | EO86: 97 | EP86: 7862 | EQ86: -27965.98509 | ER86: 54.92645 | ES86: 5433.01331 | ET86: 15000 | EU86: 0 | EV86: 20000 | EW86: 5000 | EX86: 40000 | EY86: -8000 | EZ86: 53768 | FA86: 36006 | FB86: 17762 | FC86: 5925 | FD86: 70006 | FE86: 45244 | FF86: 24762 | FG86: 5938 | FH86: 90744.078 | FI86: 71148.862 | FJ86: 19595.216 | FK86: 5934.33884 | FL86: 5208.020459 | FM86: 5548.65921 | FN86: 6653.720601 | FO86: 7624.315854 | FP86: 204.7785736 | FV86: 16684 | FW86: -16684
A87: 249 | B87: Keuruu | C87: 9605 | E87: 0.2406516338 | F87: 86.23576893 | G87: -6960.541385 | K87: 37.62653644 | L87: 102.6548673 | M87: 3.983948636 | N87: 9404.997397 | O87: 36677 | P87: 21776 | Q87: 81405 | R87: -59628 | S87: 33713 | T87: 27516 | W87: -28 | X87: 308 | Y87: 1881 | Z87: 5031 | AA87: 0 | AB87: 0 | AC87: -3150 | AD87: 0 | AE87: 0 | AF87: 0 | AG87: -3150 | AH87: 5931 | AI87: 2067 | AK87: -326 | AL87: -2415 | AM87: -4236 | AN87: 33713 | AO87: 28636 | AP87: 2666 | AQ87: 2411 | AR87: 21.5 | AT87: 131 | AU87: 9486 | AW87: 2.984723369 | AX87: 81.5233708 | AY87: -6912.080961 | BC87: 38.99255006 | BD87: 199.1355682 | BE87: 7.776994484 | BF87: 9346.088973 | BG87: 36171 | BH87: 20789 | BI87: 80197 | BJ87: -59408 | BK87: 35431 | BL87: 31047 | BO87: 8 | BP87: 154 | BQ87: 7232 | BR87: 4970 | BS87: 0 | BT87: 0 | BU87: 2262 | BV87: 0 | BW87: 0 | BX87: 0 | BY87: 2262 | BZ87: 8194 | CA87: 7125 | CC87: 52 | CD87: -2425 | CE87: 1347 | CF87: 35431 | CG87: 30187 | CH87: 3056 | CI87: 2188 | CJ87: 21.5 | CL87: 99.35294118 | CM87: 9443 | CO87: 1.291312847 | CP87: 79.27825477 | CQ87: -6813.216282 | CU87: 36.81836384 | CV87: 332.1392015 | CW87: 12.26287808 | CX87: 9885.99815 | CY87: 38602.39568 | CZ87: 23318.9169 | DA87: 87587.15777 | DB87: -64268.24087 | DC87: 37687.55377 | DD87: 29578.896 | DG87: 130.15041 | DH87: 87.96375 | DI87: 3216.32306 | DJ87: 4995.94506 | DK87: 0 | DL87: 0 | DM87: -1779.622 | DN87: 0 | DO87: 0 | DP87: 0 | DQ87: -1779.622 | DR87: 5733.72779 | DS87: 4139.399 | DU87: 18.634 | DV87: 2518.292 | DW87: 1300.463 | DX87: 37687.55377 | DY87: 30837.44918 | DZ87: 4419.91684 | EA87: 2430.18775 | EB87: 21.5 | ED87: 56 | EE87: 33709 | EF87: 33764 | EG87: 38119.21607 | EK87: -6471 | EL87: 0 | EM87: 168 | EN87: -6021 | EO87: 0 | EP87: 243 | EQ87: -3331.387 | ER87: 40.586 | ES87: 451.865 | ET87: 1800 | EU87: 4500 | EV87: 5000 | EW87: -3500 | EX87: 0 | EY87: 4000 | EZ87: 58683 | FA87: 15133 | FB87: 43550 | FC87: 0 | FD87: 57758 | FE87: 17240 | FF87: 40518 | FG87: 0 | FH87: 59239.677 | FI87: 15001.637 | FJ87: 44238.04 | FK87: 0 | FL87: 11468.6101 | FM87: 11664.66371 | FN87: 10713.70624 | FO87: 1434.299962 | FP87: 151.8902851 | FV87: 2835 | FW87: -2835
A88: 250 | B88: Kihniö | C88: 1865 | E88: 0.3640567525 | F88: 66.31322539 | G88: -4110.455764 | K88: 39.243514 | L88: 552.2788204 | M88: 24.87593463 | N88: 8103.485255 | O88: 3010 | P88: 1352 | Q88: 13506 | R88: -12154 | S88: 5717 | T88: 6889 | W88: -118 | X88: -21 | Y88: 313 | Z88: 599 | AA88: 0 | AB88: 0 | AC88: -286 | AD88: 85 | AE88: 0 | AF88: 0 | AG88: -201 | AH88: -1207 | AI88: 315 | AK88: -90 | AL88: -659 | AM88: -479 | AN88: 5717 | AO88: 4493 | AP88: 682 | AQ88: 542 | AR88: 21.5 | AT88: 140 | AU88: 1822 | AW88: 1.774966711 | AX88: 61.10660722 | AY88: -3705.817783 | BC88: 48.94239797 | BD88: 993.9626784 | BE88: 34.80491786 | BF88: 10423.71021 | BG88: 2829 | BH88: 1299 | BI88: 13518 | BJ88: -12219 | BK88: 5860 | BL88: 7643 | BO88: -107 | BP88: 47 | BQ88: 1224 | BR88: 588 | BS88: 2115 | BT88: 0 | BU88: 2751 | BV88: 281 | BW88: 0 | BX88: 0 | BY88: 3032 | BZ88: 1825 | CA88: 1193 | CC88: 78 | CD88: -642 | CE88: 3908 | CF88: 5860 | CG88: 4586 | CH88: 780 | CI88: 494 | CJ88: 21.5 | CL88: 147.7058824 | CM88: 1808 | CO88: 1.511504441 | CP88: 56.14245573 | CQ88: -3361.418435 | CU88: 52.11396887 | CV88: 1115.949082 | CW88: 47.78939709 | CX88: 8523.259126 | CY88: 2982.22534 | CZ88: 1494.09922 | DA88: 14131.93774 | DB88: -12637.83852 | DC88: 6557.81363 | DD88: 7134.829 | DG88: -94.83955 | DH88: 58.09837 | DI88: 1018.06293 | DJ88: 397.29806 | DK88: 0 | DL88: 0 | DM88: 620.76487 | DN88: 0 | DO88: 0 | DP88: 0 | DQ88: 620.76487 | DR88: 2445.52026 | DS88: 1002.53226 | DU88: 50.68924 | DV88: 641.02605 | DW88: 606.52204 | DX88: 6557.81363 | DY88: 4861.23628 | DZ88: 1151.69651 | EA88: 544.88084 | EB88: 21.5 | ED88: 141 | EE88: 9498 | EF88: 9689 | EG88: 10106.72761 | EI88: 260 | EK88: -796 | EL88: 1 | EM88: 1 | EN88: -1497 | EO88: 13 | EP88: 4199 | EQ88: -452.83872 | ER88: 34.8285 | ES88: 22 | ET88: 0 | EU88: 0 | EV88: 500 | EW88: 0 | EX88: 0 | EY88: 0 | EZ88: 8147 | FA88: 7506 | FB88: 641 | FC88: 132 | FD88: 8006 | FE88: 7365 | FF88: 641 | FG88: 3122 | FH88: 7365.17341 | FI88: 6723.75371 | FJ88: 641.4197 | FK88: 3057.6202 | FL88: 5514.745308 | FM88: 5796.926454 | FN88: 5536.065393 | FO88: 226.104013 | FP88: 125.0575293 | FV88: 226 | FW88: -226
A89: 256 | B89: Kinnula | C89: 1620 | E89: -0.2856299793 | F89: 54.55155947 | G89: -2334.567901 | K89: 61.51741555 | L89: 682.0987654 | M89: 27.85008977 | N89: 8939.506173 | O89: 3810 | P89: 2432 | Q89: 13722 | R89: -11281 | S89: 4437 | T89: 6533 | W89: 54 | X89: 13 | Y89: -244 | Z89: 927 | AA89: 0 | AB89: 0 | AC89: -1171 | AD89: 13 | AE89: 0 | AF89: 0 | AG89: -1158 | AH89: 3402 | AI89: -225 | AK89: 430 | AL89: 0 | AM89: -819 | AN89: 4437 | AO89: 3403 | AP89: 615 | AQ89: 419 | AR89: 21 | AT89: 266 | AU89: 1597 | AX89: 52.32598811 | AY89: -2635.566688 | BC89: 60.33486992 | BD89: 654.9780839 | BE89: 25.08310886 | BF89: 9530.995617 | BG89: 3779 | BH89: 1981 | BI89: 13606 | BJ89: -11625 | BK89: 4961 | BL89: 7353 | BO89: 65 | BP89: -237 | BQ89: 517 | BR89: 894 | BS89: 0 | BT89: 0 | BU89: -377 | BV89: 13 | BW89: 0 | BX89: 0 | BY89: -364 | BZ89: 3038 | CA89: 760 | CC89: 200 | CD89: 0 | CE89: -581 | CF89: 4961 | CG89: 3872 | CH89: 707 | CI89: 382 | CJ89: 21 | CL89: 270.6029412 | CM89: 1581 | CO89: 4.376194798 | CP89: 50.57490108 | CQ89: -4358.777356 | CU89: 58.51318644 | CV89: 650.1442125 | CW89: 23.36558029 | CX89: 10156.08393 | CY89: 4015.038 | CZ89: 2553.173 | DA89: 14471.341 | DB89: -11844.29 | DC89: 5540.135 | DD89: 7564.864 | DG89: 49.753 | DH89: 19.897 | DI89: 1330.337 | DJ89: 851.272 | DK89: 0 | DL89: 0 | DM89: 479.065 | DN89: 0 | DO89: 0 | DP89: 0 | DQ89: 491.544 | DR89: 3385.179 | DS89: 1594.1087 | DU89: -962.83972 | DV89: 300 | DW89: 309.81944 | DX89: 5540.135 | DY89: 4056.088 | DZ89: 1045.36 | EA89: 438.687 | EB89: 21.5 | ED89: 243 | EE89: 8116 | EF89: 8299 | EG89: 8773.599 | EJ89: 250 | EK89: -761 | EL89: 12 | EM89: 155 | EN89: -1358 | EO89: 0 | EP89: 17 | EQ89: -1279.3547 | ER89: 0 | ES89: -4.93456 | ET89: 0 | EU89: 100 | EV89: 2700 | EW89: -2700 | EX89: 0 | EY89: 0 | EZ89: 6000 | FA89: 0 | FB89: 6000 | FC89: 100 | FD89: 6000 | FE89: 2700 | FF89: 3300 | FG89: 0 | FH89: 5700 | FI89: 2400 | FJ89: 3300 | FK89: 0 | FL89: 6412.345679 | FM89: 6947.401378 | FN89: 9335.200506 | FO89: 188.6552558 | FP89: 119.3265375 | FV89: 115 | FW89: -115
A90: 257 | B90: Kirkkonummi | C90: 39586 | E90: -0.06220572673 | F90: 89.53976424 | G90: -4823.624514 | K90: 21.95961586 | L90: 399.2573132 | M90: 18.47413255 | N90: 7888.26858 | O90: 100958 | P90: 34217 | Q90: 248385 | R90: -214168 | S90: 189933 | T90: 22202 | W90: -1095 | X90: 483 | Y90: -2645 | Z90: 17602 | AA90: 0 | AB90: 0 | AC90: -20247 | AD90: 16 | AE90: 0 | AF90: -22 | AG90: -20253 | AH90: 2402 | AI90: -6319 | AK90: -4749 | AL90: -15556 | AM90: -49284 | AN90: 189933 | AO90: 171819 | AP90: 6289 | AQ90: 11825 | AR90: 19.75 | AT90: 251 | AU90: 40082 | AW90: 1.249160134 | AX90: 98.13878064 | AY90: -5483.508807 | BC90: 20.55355689 | BD90: 740.7065516 | BE90: 33.1329171 | BF90: 8159.797415 | BG90: 100874 | BH90: 29664 | BI90: 247551 | BJ90: -217887 | BK90: 202035 | BL90: 42100 | BO90: -1091 | BP90: 453 | BQ90: 25610 | BR90: 18303 | BS90: 54 | BT90: 0 | BU90: 7361 | BV90: 15 | BW90: 0 | BX90: 0 | BY90: 7376 | BZ90: 9778 | CA90: 23284 | CC90: -5394 | CD90: -20270 | CE90: -29426 | CF90: 202035 | CG90: 185022 | CH90: 6124 | CI90: 10889 | CJ90: 19.75 | CL90: 163.8235294 | CM90: 40433 | CO90: 0.8735119113 | CP90: 102.1117368 | CQ90: -5764.367254 | CU90: 19.04828883 | CV90: 1058.940551 | CW90: 48.07177208 | CX90: 8040.338109 | CY90: 105084.8654 | CZ90: 43014.3879 | DA90: 262785.8888 | DB90: -219771.5009 | DC90: 208118.0036 | DD90: 33382.933 | DG90: -940.7162 | DH90: 523.98632 | DI90: 21312.7058 | DJ90: 20929.21116 | DK90: 0 | DL90: 558.23364 | DM90: -174.739 | DN90: -14.27863 | DO90: 0 | DP90: 0 | DQ90: -160.46037 | DR90: 8545.81547 | DS90: 18059.94264 | DU90: 4587.56091 | DV90: 24544.15955 | DW90: -15453.88089 | DX90: 208118.0036 | DY90: 187976.6777 | DZ90: 8241.47883 | EA90: 11899.84711 | EB90: 19.75 | ED90: 127 | EE90: 111717 | EF90: 111465 | EG90: 127031.7858 | EJ90: 2200 | EK90: -47194 | EL90: 0 | EM90: 4229 | EN90: -58072 | EO90: 2560 | EP90: 2802 | EQ90: -36760.81718 | ER90: 218 | ES90: 3028.99365 | ET90: 55000 | EU90: 5000 | EV90: 69999 | EW90: -6000 | EX90: 58000.02697 | EY90: -5000 | EZ90: 167849 | FA90: 105579 | FB90: 62270 | FC90: 890 | FD90: 211576 | FE90: 151047 | FF90: 60529 | FG90: 699 | FH90: 240033.1885 | FI90: 184302.229 | FJ90: 55730.9595 | FK90: 698.83026 | FL90: 5910.726014 | FM90: 7173.64403 | FN90: 8109.006684 | FO90: 9517.806464 | FP90: 235.3969892 | FV90: 7251 | FW90: -7251
A91: 260 | B91: Kitee | C91: 10136 | E91: 6.223073975 | F91: 10.93033065 | G91: -155.1894238 | K91: 81.43980662 | L91: 470.7971586 | M91: 22.21573154 | N91: 7735.102605 | O91: 16052 | P91: 8837 | Q91: 74604 | R91: -65767 | S91: 32236 | T91: 37168 | W91: -24 | X91: 410 | Y91: 4023 | Z91: 2871 | AA91: 0 | AB91: 0 | AC91: 1152 | AD91: 39 | AE91: 0 | AF91: 0 | AG91: 1191 | AH91: 20572 | AI91: 4282 | AK91: -348 | AL91: -1312 | AM91: 2516 | AN91: 32236 | AO91: 27059 | AP91: 2199 | AQ91: 2978 | AR91: 21 | AT91: 59 | AU91: 9933 | AW91: 8.92578125 | AX91: 11.37706536 | AY91: 216.3495419 | BC91: 80.70678885 | BD91: 915.3327293 | BE91: 40.93575764 | BF91: 8161.481929 | BG91: 16383 | BH91: 8298 | BI91: 76648 | BJ91: -68350 | BK91: 32672 | BL91: 42127 | BO91: -15 | BP91: 394 | BQ91: 6828 | BR91: 3763 | BS91: 0 | BT91: 0 | BU91: 3065 | BV91: 28 | BW91: 0 | BX91: 0 | BY91: 3093 | BZ91: 23665 | CA91: 7019 | CC91: -305 | CD91: -741 | CE91: 3864 | CF91: 32672 | CG91: 27559 | CH91: 2464 | CI91: 2649 | CJ91: 21 | CL91: 140.6544118 | CM91: 9877 | CO91: 6.014143185 | CP91: 10.5781604 | CQ91: 543.2072947 | CU91: 82.90041495 | CV91: 1241.271564 | CW91: 55.59992771 | CX91: 8148.645864 | CY91: 16703.27124 | CZ91: 8510.46127 | DA91: 77593.50007 | DB91: -69083.0388 | DC91: 33547.33914 | DD91: 41010.36551 | DG91: -13.07508 | DH91: 263.84367 | DI91: 5725.43444 | DJ91: 2912.30844 | DK91: 0 | DL91: 0 | DM91: 2813.126 | DN91: -28.41031 | DO91: 0 | DP91: 0 | DQ91: 2841.53631 | DR91: 26506.48621 | DS91: 5290.73168 | DU91: 619.32869 | DV91: 930.866 | DW91: 3226.49021 | DX91: 33547.33914 | DY91: 27055.06891 | DZ91: 3621.36088 | EA91: 2870.90935 | EB91: 20.75 | ED91: 149 | EE91: 51620 | EF91: 52889 | EG91: 54045.09051 | EK91: -2183 | EL91: 317 | EM91: 100 | EN91: -3510 | EO91: 176 | EP91: 179 | EQ91: -2150.15858 | ER91: 29.886 | ES91: 56.03111 | ET91: 0 | EU91: 0 | EV91: 1540 | EW91: 0 | EX91: 0 | EY91: 0 | EZ91: 3493 | FA91: 2657 | FB91: 836 | FC91: 837 | FD91: 4293 | FE91: 3362 | FF91: 931 | FG91: 108 | FH91: 3361.159 | FI91: 2480.293 | FJ91: 880.866 | FK91: 108.33321 | FL91: 1928.176796 | FM91: 2109.735226 | FN91: 2080.835323 | FO91: 1303.858743 | FP91: 132.0095922 | FV91: 3565 | FW91: -3565
A92: 261 | B92: Kittilä | C92: 6453 | E92: 2.341940243 | F92: 39.80931822 | G92: -3058.577406 | K92: 60.48514192 | L92: 251.3559585 | M92: 9.207166296 | N92: 9964.51263 | O92: 26997 | P92: 7730 | Q92: 56383 | R92: -48653 | S92: 30552 | T92: 22867 | W92: -176 | X92: 1583 | Y92: 6173 | Z92: 2799 | AA92: 0 | AB92: 0 | AC92: 3374 | AD92: 162 | AE92: 0 | AF92: 0 | AG92: 3536 | AH92: 18681 | AI92: 5897 | AK92: -539 | AL92: -2888 | AM92: 1758 | AN92: 30552 | AO92: 20938 | AP92: 2580 | AQ92: 7034 | AR92: 20.25 | AT92: 8 | AU92: 6436 | AW92: 3.96339203 | AX92: 32.4384339 | AY92: -2574.891237 | BC92: 65.93570774 | BD92: 300.4972032 | BE92: 10.9196238 | BF92: 10044.43754 | BG92: 26947 | BH92: 8165 | BI92: 57982 | BJ92: -49817 | BK92: 31340 | BL92: 25369 | BO92: -115 | BP92: 1661 | BQ92: 8438 | BR92: 4623 | BS92: 0 | BT92: 0 | BU92: 3815 | BV92: -1359 | BW92: 1550 | BX92: 0 | BY92: 4006 | BZ92: 22687 | CA92: 7817 | CC92: -513 | CD92: -2043 | CE92: 4391 | CF92: 31340 | CG92: 22001 | CH92: 2733 | CI92: 6606 | CJ92: 20.25 | CL92: 5 | CM92: 6523 | CO92: 5.677696322 | CP92: 23.90913742 | CQ92: -1281.506738 | CU92: 74.07170553 | CV92: 766.6038679 | CW92: 26.43944842 | CX92: 10583.0654 | CY92: 29423.73311 | CZ92: 16825.05897 | DA92: 62248.8183 | DB92: -45423.75933 | DC92: 32036.93026 | DD92: 23810.343 | DG92: -39.8441 | DH92: 1403.21733 | DI92: 11786.88716 | DJ92: 2941.29679 | DK92: 0 | DL92: 0 | DM92: 8845.59037 | DN92: 790.23403 | DO92: 1900 | DP92: 0 | DQ92: 6155.35634 | DR92: 28842.96241 | DS92: 5227.33039 | DU92: -1437.79617 | DV92: 2043.10062 | DW92: 7995.95239 | DX92: 32036.93026 | DY92: 21138.75068 | DZ92: 3553.67823 | EA92: 7344.50135 | EB92: 20.25 | ED92: 292 | EE92: 21679 | EF92: 23197 | EG92: 24020.39916 | EK92: -4470 | EL92: 22 | EM92: 309 | EN92: -4081 | EO92: 25 | EP92: 630 | EQ92: -4711.50888 | ER92: 896.84911 | ES92: 6583.28177 | ET92: 2 | EU92: 2126 | EV92: 2 | EW92: -1845 | EX92: 1.68361 | EY92: -2000 | EZ92: 16620 | FA92: 10732 | FB92: 5888 | FC92: 301 | FD92: 12734 | FE92: 8691 | FF92: 4043 | FG92: 601 | FH92: 8693.45298 | FI92: 6649.63767 | FJ92: 2043.81531 | FK92: 404.36514 | FL92: 7723.694406 | FM92: 8125.077688 | FN92: 7367.009045 | FO92: 1043.888922 | FP92: 160.0320286 | FV92: 2822 | FW92: -2822
A93: 263 | B93: Kiuruvesi | C93: 7998 | E93: 0.1194411859 | F93: 63.49001932 | G93: -3660.290073 | K93: 40.51887949 | L93: 823.2058015 | M93: 35.83970889 | N93: 8383.72093 | O93: 15208 | P93: 6969 | Q93: 61202 | R93: -54154 | S93: 23546 | T93: 30052 | W93: -185 | X93: 1100 | Y93: 359 | Z93: 3639 | AA93: 0 | AB93: 0 | AC93: -3280 | AD93: 19 | AE93: 0 | AF93: 0 | AG93: -3261 | AH93: -3402 | AI93: 482 | AK93: -781 | AL93: -2267 | AM93: -2437 | AN93: 23546 | AO93: 19910 | AP93: 1917 | AQ93: 1719 | AR93: 20.75 | AT93: 214 | AU93: 7854 | AW93: 2.851781653 | AX93: 53.19666538 | AY93: -3235.421441 | BC93: 45.15255571 | BD93: 1013.623631 | BE93: 42.96943393 | BF93: 8610.134963 | BG93: 14692 | BH93: 7897 | BI93: 60868 | BJ93: -52971 | BK93: 24546 | BL93: 35054 | BO93: -151 | BP93: 875 | BQ93: 7353 | BR93: 3945 | BS93: 0 | BT93: 0 | BU93: 3408 | BV93: 2 | BW93: 0 | BX93: 0 | BY93: 3410 | BZ93: 8 | CA93: 6608 | CC93: 105 | CD93: -2468 | CE93: 3772 | CF93: 24546 | CG93: 20758 | CH93: 2225 | CI93: 1563 | CJ93: 21.75 | CL93: 49.99264706 | CM93: 7759 | CO93: 3.343440979 | CP93: 54.73083348 | CQ93: -3231.191241 | CU93: 45.556518 | CV93: 1089.468675 | CW93: 46.02958667 | CX93: 8639.1405 | CY93: 15231.72783 | CZ93: 7159.08527 | DA93: 60607.36074 | DB93: -53448.27547 | DC93: 26495.37138 | DD93: 33036.167 | DG93: -106.97361 | DH93: 1223.66469 | DI93: 7199.95399 | DJ93: 3695.90198 | DK93: 0 | DL93: 2744.17803 | DM93: 759.87398 | DN93: 294.5153 | DO93: -300 | DP93: 0 | DQ93: 765.35868 | DR93: 773.2319 | DS93: 4163.05093 | DU93: -452.26522 | DV93: 2069.916 | DW93: 272.50561 | DX93: 26495.37138 | DY93: 21490.7421 | DZ93: 3295.17665 | EA93: 1709.45263 | EB93: 21.75 | ED93: 260 | EE93: 39822 | EF93: 39819 | EG93: 40272.76399 | EI93: 900 | EK93: -3302 | EL93: 317 | EM93: 66 | EN93: -3984 | EO93: 280 | EP93: 868 | EQ93: -4170.02552 | ER93: 250.85117 | ES93: 28.62903 | ET93: 5000 | EU93: 0 | EV93: 240 | EW93: 1000 | EX93: 2951.55974 | EY93: 0 | EZ93: 32975 | FA93: 15508 | FB93: 17467 | FC93: 729 | FD93: 31747 | FE93: 13677 | FF93: 18070 | FG93: 604 | FH93: 32628.35474 | FI93: 13866.48454 | FJ93: 18761.8702 | FK93: 356.09591 | FL93: 7203.550888 | FM93: 7096.384008 | FN93: 7053.011825 | FO93: 988.0800966 | FP93: 127.34632 | FV93: 3038 | FW93: -3038
A94: 265 | B94: Kivijärvi | C94: 1096 | E94: -2.982344952 | F94: 45.94150847 | G94: -2693.430657 | K94: 43.67071525 | L94: 843.9781022 | M94: 28.10964949 | N94: 10958.94161 | O94: 2033 | P94: 1537 | Q94: 9685 | R94: -8148 | S94: 3571 | T94: 4637 | W94: -33 | X94: -1707 | Y94: -1680 | Z94: 620 | AA94: 0 | AB94: 0 | AC94: -2300 | AD94: 20 | AE94: 0 | AF94: 0 | AG94: -2280 | AH94: 843 | AI94: 150 | AK94: -102 | AL94: -308 | AM94: 4 | AN94: 3571 | AO94: 2464 | AP94: 660 | AQ94: 447 | AR94: 21.5 | AT94: 294 | AU94: 1107 | AW94: 3.4575 | AX94: 55.56185616 | AY94: -3246.612466 | BC94: 48.04469274 | BD94: 1540.198735 | BE94: 61.70798215 | BF94: 9110.207769 | BG94: 1916 | BH94: 1559 | BI94: 9195 | BJ94: -7636 | BK94: 3894 | BL94: 5128 | BO94: -35 | BP94: -3 | BQ94: 1348 | BR94: 699 | BS94: 0 | BT94: 0 | BU94: 649 | BV94: 20 | BW94: 0 | BX94: 0 | BY94: 670 | BZ94: 1513 | CA94: -402 | CC94: 21 | CD94: -365 | CE94: -604 | CF94: 3894 | CG94: 2680 | CH94: 753 | CI94: 461 | CJ94: 21.75 | CL94: 9 | CM94: 1088 | CO94: 2.748616106 | CP94: 47.21674752 | CQ94: -2608.091158 | CU94: 54.67796155 | CV94: 1623.557142 | CW94: 58.1804179 | CX94: 10185.52939 | CY94: 2025.16659 | CZ94: 1467.10466 | DA94: 9396.73452 | DB94: -7929.62986 | DC94: 4499.57778 | DD94: 5142.438 | DG94: -33.10703 | DH94: 12.05039 | DI94: 1691.32928 | DJ94: 557.34881 | DK94: 0 | DL94: 0 | DM94: 1133.98047 | DN94: -20.34665 | DO94: 0 | DP94: 0 | DQ94: 1154.32712 | DR94: 2613.52922 | DS94: 1772.7623 | DU94: -62.34629 | DV94: 594.27644 | DW94: 806.89678 | DX94: 4499.57778 | DY94: 2900.16613 | DZ94: 1087.82313 | EA94: 511.58852 | EB94: 21.75 | ED94: 289 | EE94: 6379 | EF94: 6256 | EG94: 6394.38996 | EK94: -274 | EL94: 101 | EM94: 27 | EN94: -442 | EO94: 197 | EP94: 43 | EQ94: -1066.63052 | ER94: 0 | ES94: 100.765 | ET94: 0 | EU94: 0 | EV94: 1708 | EW94: 0 | EX94: 0 | EY94: 13.4333 | EZ94: 3942 | FA94: 3634 | FB94: 308 | FC94: 360 | FD94: 5285 | FE94: 4863 | FF94: 422 | FG94: 402 | FH94: 4704.7353 | FI94: 4269.368 | FJ94: 435.3673 | FK94: 0 | FL94: 8514.59854 | FM94: 10299.00632 | FN94: 9878.111195 | FO94: 133.3409715 | FP94: 122.55604 | FV94: 97 | FW94: -97
A95: 271 | B95: Kokemäki | C95: 7103 | E95: 0.1607071113 | F95: 60.00863878 | G95: -3871.603548 | K95: 27.70549109 | L95: 3.660425172 | M95: 0.1780688258 | N95: 7503.02689 | O95: 17184 | P95: 4945 | Q95: 48291 | R95: -43346 | S95: 25863 | T95: 17810 | W95: 34 | X95: 66 | Y95: 427 | Z95: 1658 | AA95: 93 | AB95: 0 | AC95: -1138 | AD95: 0 | AE95: 0 | AF95: 0 | AG95: -1138 | AH95: -744 | AI95: 484 | AK95: 239 | AL95: -2364 | AM95: -1632 | AN95: 25863 | AO95: 22135 | AP95: 1247 | AQ95: 2481 | AR95: 21.75 | AT95: 208 | AU95: 7013 | AW95: 1.266622633 | AX95: 58.85791282 | AY95: -3819.050335 | BC95: 31.86108291 | BD95: 343.6475118 | BE95: 15.16089002 | BF95: 8273.349494 | BG95: 17014 | BH95: 4776 | BI95: 47159 | BJ95: -42383 | BK95: 26590 | BL95: 21327 | BO95: 5 | BP95: 100 | BQ95: 5639 | BR95: 2300 | BS95: 0 | BT95: 0 | BU95: 3339 | BV95: 0 | BW95: 0 | BX95: 0 | BY95: 3339 | BZ95: 2595 | CA95: 5579 | CC95: -171 | CD95: -4428 | CE95: 864 | CF95: 26590 | CG95: 22895 | CH95: 1302 | CI95: 2393 | CJ95: 21.75 | CL95: 84.24264706 | CM95: 6951 | CO95: 1.209486534 | CP95: 60.19862913 | CQ95: -3922.478035 | CU95: 33.64950219 | CV95: 267.6702259 | CW95: 11.77070483 | CX95: 8300.236379 | CY95: 13040.3131 | CZ95: 4827.45556 | DA95: 48704.298 | DB95: -43876.84244 | DC95: 27517.39901 | DD95: 19620.997 | DG95: 11.62396 | DH95: 114.48534 | DI95: 3387.66287 | DJ95: 2134.62731 | DK95: 172.5364 | DL95: 0 | DM95: 1425.57196 | DN95: 0 | DO95: 0 | DP95: 0 | DQ95: 1425.57196 | DR95: 4019.98934 | DS95: 3578.75849 | DU95: 276.74432 | DV95: 2790.87548 | DW95: -350.48712 | DX95: 27517.39901 | DY95: 22988.47568 | DZ95: 1893.88089 | EA95: 2635.04244 | EB95: 21.75 | ED95: 103 | EE95: 25780 | EF95: 24880 | EG95: 32573.06983 | EI95: 700 | EK95: -2159 | EL95: 0 | EM95: 43 | EN95: -4801 | EO95: 8 | EP95: 78 | EQ95: -3991.01561 | ER95: 41.25 | ES95: 20.52 | ET95: 2500 | EU95: 500 | EV95: 10458 | EW95: -5000 | EX95: 5000 | EY95: 0 | EZ95: 22838 | FA95: 10225 | FB95: 12613 | FC95: 5069 | FD95: 23867 | FE95: 16077 | FF95: 7790 | FG95: 3654 | FH95: 26078.07909 | FI95: 17902.5886 | FJ95: 8175.49049 | FK95: 3861.77701 | FL95: 4837.392651 | FM95: 5097.39056 | FN95: 5663.045334 | FO95: 1056.941411 | FP95: 152.0560222 | FV95: 2577 | FW95: -2577
A96: 272 | B96: Kokkola | C96: 47681 | E96: 0.4512604532 | F96: 77.04671523 | G96: -4900.987815 | K96: 43.36584385 | L96: 235.7123382 | M96: 10.63714178 | N96: 8088.169292 | O96: 100013 | P96: 44984 | Q96: 320050 | R96: -273234 | S96: 195196 | T96: 89006 | W96: -2026 | X96: 2873 | Y96: 11815 | Z96: 15059 | AA96: 0 | AB96: 0 | AC96: -3244 | AD96: 452 | AE96: 137 | AF96: 162 | AG96: -2493 | AH96: 11374 | AI96: 7817 | AK96: 5791 | AL96: -40982 | AM96: -9714 | AN96: 195196 | AO96: 162710 | AP96: 16757 | AQ96: 15729 | AR96: 21.75 | AT96: 111 | AU96: 47772 | AW96: 0.74231542 | AX96: 78.62331167 | AY96: -4741.815289 | BC96: 42.72433852 | BD96: 912.3963828 | BE96: 40.58193547 | BF96: 8206.229591 | BG96: 99442 | BH96: 43100 | BI96: 324628 | BJ96: -281528 | BK96: 201924 | BL96: 109533 | BO96: -2247 | BP96: 2097 | BQ96: 29779 | BR96: 17459 | BS96: 0 | BT96: 0 | BU96: 12320 | BV96: -1677 | BW96: 2180 | BX96: -486 | BY96: 12337 | BZ96: 24055 | CA96: 28509 | CC96: 1499 | CD96: -40937 | CE96: 12872 | CF96: 201924 | CG96: 168285 | CH96: 19140 | CI96: 14499 | CJ96: 21.5 | CL96: 174.9044118 | CM96: 47909 | CO96: 0.4982803316 | CP96: 71.62084074 | CQ96: -4919.05979 | CU96: 45.25415905 | CV96: 260.6268158 | CW96: 10.8809141 | CX96: 8742.720225 | CY96: 103605.9287 | CZ96: 46264.92178 | DA96: 339800.2964 | DB96: -293535.3746 | DC96: 212247.4538 | DD96: 102593.67 | DG96: -2323.85075 | DH96: 1756.22092 | DI96: 20738.11934 | DJ96: 14609.26824 | DK96: 211.98989 | DL96: 0 | DM96: 6340.84099 | DN96: -384.11346 | DO96: 294.00469 | DP96: 750 | DQ96: 5680.94976 | DR96: 29735.73188 | DS96: 19122.41183 | DU96: -1970.38501 | DV96: 44065.92417 | DW96: -9689.23147 | DX96: 212247.4538 | DY96: 171521.7774 | DZ96: 24651.21634 | EA96: 16074.46003 | EB96: 21.5 | ED96: 82 | EE96: 187835 | EF96: 193630 | EG96: 202009.9077 | EK96: -23678 | EL96: 332 | EM96: 5815 | EN96: -18814 | EO96: 1128 | EP96: 2049 | EQ96: -32271.92075 | ER96: 1288.92145 | ES96: 2171.356 | ET96: 43300 | EU96: 0 | EV96: 43500 | EW96: 20860 | EX96: 53200 | EY96: -27329.22721 | EZ96: 222890 | FA96: 184988 | FB96: 37902 | FC96: 3361 | FD96: 246315 | FE96: 187552 | FF96: 58763 | FG96: 9255 | FH96: 228118.8554 | FI96: 196686.3355 | FJ96: 31432.51992 | FK96: 377.43827 | FL96: 8869.235125 | FM96: 9506.070502 | FN96: 9335.720861 | FO96: 7977.757089 | FP96: 166.5189649 | FV96: 25357 | FW96: -25357
B97: KOKO MAA (Manner-Suomi) | C97: 5495408 | E97: 0.7093755419 | F97: 62.06715478 | G97: -3029.554312 | K97: 57.82762771 | L97: 920.9359887 | M97: 41.94892614 | N97: 8013.116588 | O97: 13513374 | P97: 7546090 | Q97: 37903026 | R97: -30356936 | S97: 22912315 | T97: 8640795 | W97: 68795 | X97: 482647 | Y97: 1747616 | Z97: 2305725 | AA97: 403902 | AB97: 9885 | AC97: -164092 | AD97: -4535 | AE97: 8374 | AF97: 28188 | AG97: -132065 | AH97: 11087957 | AI97: 1298911 | AK97: -66136 | AL97: -1779142 | AM97: -1434149 | AN97: 22912315 | AO97: 19142606 | AP97: 1902907 | AQ97: 1866802 | AR97: 19.9 | AT97: - | AU97: 5503664 | AW97: 1.988638614 | AX97: 59.95643965 | AY97: -2940.769277 | BC97: 57.95873446 | BD97: 1172.770903 | BE97: 52.56590898 | BF97: 8143.326882 | BG97: 13613209 | BH97: 7208017 | BI97: 38429297 | BJ97: -31221280 | BK97: 23825588 | BL97: 11005673 | BO97: 58142 | BP97: 404863 | BQ97: 4072986 | BR97: 2397525 | BS97: 90574 | BT97: 9330 | BU97: 1756705 | BV97: -25237 | BW97: -96451 | BX97: -61014 | BY97: 1576021 | BZ97: 12583318 | CA97: 3702496 | CC97: -31312 | CD97: -1966295 | CE97: 381794 | CF97: 23825588 | CG97: 20124065 | CH97: 1956930 | CI97: 1744593 | CJ97: 19.96 | CL97: - | CM97: 5517897 | CO97: 1.905734999 | CP97: 57.90254182 | CQ97: -2907 | CU97: 58.80761313 | CV97: 1178.883979 | CW97: 50.68698657 | CX97: 8486.333805 | CY97: 14320379.82 | CZ97: 8352897.496 | DA97: 40635574.5 | DB97: -32282677 | DC97: 25418413.49 | DD97: 10080583.07 | DG97: 61205.48762 | DH97: 508931.8689 | DI97: 3786456.894 | DJ97: 2411475 | DK97: 115628.7626 | DL97: 7179 | DM97: 1485638.647 | DN97: -6079.26439 | DO97: 105119.8924 | DP97: 1264.72718 | DQ97: 1380876.484 | DR97: 13856797.71 | DS97: 3134186.075 | DU97: -239226.9649 | DV97: 1902425.344 | DW97: 269580.3414 | DX97: 25418413.49 | DY97: 20602525.19 | DZ97: 2847097.601 | EA97: 1968747.837 | EB97: 20.02 | ED97: - | EE97: 19288076 | EF97: 19605831 | EG97: 21370725.51 | EH97: 10000 | EI97: 60000 | EJ97: 30000 | EK97: -4048365 | EL97: 138051 | EM97: 1177254 | EN97: -4312042 | EO97: 185133 | EP97: 806207 | EQ97: -3972968.4 | ER97: 153160.4398 | ES97: 951513.8182 | ET97: 2830766 | EU97: 632620 | EV97: 3338105 | EW97: -762131 | EX97: 1567080.941 | EY97: 454923.1036 | EZ97: 18420037 | FA97: 12599485 | FB97: 5820552 | FC97: 5548348 | FD97: 19033385 | FE97: 13927122 | FF97: 5106263 | FG97: 5670611 | FH97: 19123709 | FI97: 13571947 | FJ97: 5551762 | FK97: 5036550.609 | FL97: 7105.3243 | FM97: 7480.922891 | FN97: 7679.757319 | FO97: 1029097.162 | FP97: 186.5016984 | FV97: 1315633 | FW97: -1315633
A98: 273 | B98: Kolari | C98: 3846 | E98: 2.868826341 | F98: 26.34558464 | G98: -957.6183047 | K98: 70.10850202 | L98: 1064.222569 | M98: 43.86086727 | N98: 8856.214249 | O98: 15360 | P98: 5012 | Q98: 32111 | R98: -27099 | S98: 15113 | T98: 14674 | W98: -57 | X98: 12 | Y98: 2643 | Z98: 1551 | AA98: 0 | AB98: 0 | AC98: 1092 | AD98: 14 | AE98: 0 | AF98: 0 | AG98: 1106 | AH98: 14533 | AI98: 2558 | AK98: 105 | AL98: -921 | AM98: 1910 | AN98: 15113 | AO98: 10485 | AP98: 847 | AQ98: 3781 | AR98: 20 | AT98: 12 | AU98: 3925 | AW98: 3.723287671 | AX98: 24.53920912 | AY98: -487.8980892 | BC98: 71.74675386 | BD98: 1375.796178 | BE98: 55.46644154 | BF98: 9053.503185 | BG98: 15782 | BH98: 4130 | BI98: 33179 | BJ98: -29049 | BK98: 15114 | BL98: 16635 | BO98: -48 | BP98: 17 | BQ98: 2669 | BR98: 1605 | BS98: 0 | BT98: 0 | BU98: 1064 | BV98: 14 | BW98: 0 | BX98: 0 | BY98: 1079 | BZ98: 15612 | CA98: 2639 | CC98: -81 | CD98: -681 | CE98: 1684 | CF98: 15114 | CG98: 10750 | CH98: 943 | CI98: 3421 | CJ98: 20 | CL98: 144.6838235 | CM98: 3989 | CO98: -5.17117991 | CP98: 20.90708669 | CQ98: 74.70676611 | CU98: 73.00726669 | CV98: 1579.782427 | CW98: 61.12191843 | CX98: 9433.941221 | CY98: 17388.33612 | CZ98: 5952.54669 | DA98: 36338.24522 | DB98: -30385.69853 | DC98: 16552.99324 | DD98: 16136.48127 | DG98: -39.72533 | DH98: -7.69748 | DI98: 2256.35317 | DJ98: 1590.43984 | DK98: 0 | DL98: 0 | DM98: 665.91333 | DN98: -14.34943 | DO98: 0 | DP98: 0 | DQ98: 680.26276 | DR98: 16610.22321 | DS98: 1896.96168 | DU98: -374.65409 | DV98: -485.052 | DW98: 5394.82113 | DX98: 16552.99324 | DY98: 11362.13139 | DZ98: 1444.3515 | EA98: 3746.51035 | EB98: 20 | ED98: 145 | EE98: 12584 | EF98: 13330 | EG98: 14578.64288 | EK98: -962 | EL98: 4 | EM98: 310 | EN98: -1075 | EO98: 50 | EP98: 70 | EQ98: -1844.20305 | ER98: 441.0664 | ES98: 1212.59 | ET98: 0 | EU98: 0 | EV98: 0 | EW98: 0 | EX98: 0 | EY98: 0 | EZ98: 5191 | FA98: 4510 | FB98: 681 | FC98: 573 | FD98: 4510 | FE98: 4025 | FF98: 485 | FG98: 718 | FH98: 3689.747 | FI98: 3689.747 | FJ98: 0 | FK98: 759.14095 | FL98: 3728.549142 | FM98: 3665.477707 | FN98: 3901.27358 | FO98: 568.1065695 | FP98: 142.4182927 | FV98: 1391 | FW98: -1391
A99: 275 | B99: Konnevesi | C99: 2627 | E99: -1.27485834 | F99: 122.9943176 | G99: -8940.616673 | K99: 15.73358521 | L99: 510.0875523 | M99: 17.76930064 | N99: 10477.73125 | O99: 9178 | P99: 3417 | Q99: 25048 | R99: -21631 | S99: 8824 | T99: 8525 | W99: -190 | X99: 155 | Y99: -4317 | Z99: 1232 | AA99: 0 | AB99: 0 | AC99: -5549 | AD99: 0 | AE99: 0 | AF99: 0 | AG99: -5549 | AH99: -2948 | AI99: -495 | AK99: 112 | AL99: -1952 | AM99: -610 | AN99: 8824 | AO99: 7138 | AP99: 874 | AQ99: 812 | AR99: 22 | AT99: 295 | AU99: 2593 | AW99: 1.029691211 | AX99: 120.1156868 | AY99: -9559.969148 | BC99: 19.44195978 | BD99: 634.4003085 | BE99: 25.51417159 | BF99: 9075.588122 | BG99: 8858 | BH99: 3970 | BI99: 20532 | BJ99: -16562 | BK99: 8704 | BL99: 10492 | BO99: -172 | BP99: -52 | BQ99: 2410 | BR99: 1169 | BS99: 0 | BT99: 0 | BU99: 1241 | BV99: 0 | BW99: 0 | BX99: 0 | BY99: 1241 | BZ99: -1707 | CA99: -1214 | CC99: -680 | CD99: -2335 | CE99: -1367 | CF99: 8704 | CG99: 7034 | CH99: 940 | CI99: 730 | CJ99: 22 | CL99: 56.03676471 | CM99: 2586 | CO99: 1.453533036 | CP99: 109.1561131 | CQ99: -8705.973619 | CU99: 25.46904763 | CV99: 579.2890178 | CW99: 21.92776685 | CX99: 9642.591191 | CY99: 9086.82812 | CZ99: 3433.22683 | DA99: 21128.83051 | DB99: -17695.60368 | DC99: 9503.53318 | DD99: 10439.146 | DG99: -145.73889 | DH99: 1147.79239 | DI99: 3249.129 | DJ99: 1113.79381 | DK99: 0 | DL99: 0 | DM99: 2135.33519 | DN99: 0 | DO99: 0 | DP99: 50 | DQ99: 2085.33519 | DR99: 378.35148 | DS99: 3605.25419 | DU99: -111.14379 | DV99: 2184.313 | DW99: 2248.76453 | DX99: 9503.53318 | DY99: 7373.60335 | DZ99: 1326.26308 | EA99: 803.66675 | EB99: 22 | ED99: 283 | EE99: 10099 | EF99: 9800 | EG99: 9915.96957 | EI99: 360 | EJ99: 480 | EK99: -258 | EL99: 26 | EM99: 117 | EN99: -214 | EO99: 3 | EP99: 58 | EQ99: -1425.89301 | ER99: 47.40335 | ES99: 22 | ET99: 1200 | EU99: 1023 | EV99: 3548 | EW99: 1861 | EX99: 0 | EY99: -318.86982 | EZ99: 21875 | FA99: 18983 | FB99: 2892 | FC99: 774 | FD99: 24949 | FE99: 20196 | FF99: 4753 | FG99: 711 | FH99: 22446.09521 | FI99: 18011.78221 | FJ99: 4434.313 | FK99: 711.28843 | FL99: 11118.38599 | FM99: 12655.99691 | FN99: 11734.43276 | FO99: 335.1637886 | FP99: 129.6070335 | FV99: 846 | FW99: -846
A100: 276 | B100: Kontiolahti | C100: 14821 | E100: 0.9652728864 | F100: 52.63777566 | G100: -2613.116524 | K100: 44.58360594 | L100: 310.6403077 | M100: 17.57307037 | N100: 6452.128736 | O100: 24649 | P100: 11231 | Q100: 83014 | R100: -71783 | S100: 52704 | T100: 24397 | W100: -466 | X100: 322 | Y100: 5174 | Z100: 5134 | AA100: 0 | AB100: 0 | AC100: 40 | AD100: 173 | AE100: 0 | AF100: 0 | AG100: 213 | AH100: 15880 | AI100: 4695 | AK100: 362 | AL100: -6712 | AM100: -118 | AN100: 52704 | AO100: 47876 | AP100: 1923 | AQ100: 2905 | AR100: 20.5 | AT100: 73 | AU100: 14857 | AW100: 1.501697678 | AX100: 53.74448407 | AY100: -2368.042 | BC100: 45.38768952 | BD100: 835.6330349 | BE100: 45.35647796 | BF100: 6724.641583 | BG100: 24293 | BH100: 10610 | BI100: 83772 | BJ100: -73162 | BK100: 54019 | BL100: 29870 | BO100: -414 | BP100: 324 | BQ100: 10637 | BR100: 4731 | BS100: 0 | BT100: 0 | BU100: 5906 | BV100: 80 | BW100: -4500 | BX100: 0 | BY100: 1486 | BZ100: 17366 | CA100: 11500 | CC100: -30 | CD100: -6943 | CE100: 3239 | CF100: 54019 | CG100: 49067 | CH100: 2340 | CI100: 2612 | CJ100: 20.5 | CL100: 126.5514706 | CM100: 15035 | CO100: 0.9360109168 | CP100: 62.49370817 | CQ100: -3153.788758 | CU100: 42.08514382 | CV100: 606.8883472 | CW100: 28.93963267 | CX100: 7654.355852 | CY100: 25723.51354 | CZ100: 11484.82526 | DA100: 88229.1762 | DB100: -76744.35094 | DC100: 57005.30651 | DD100: 26448.087 | DG100: -377.44681 | DH100: 269.44193 | DI100: 6601.03769 | DJ100: 5987.87229 | DK100: 0 | DL100: 0 | DM100: 613.1654 | DN100: 4314.85284 | DO100: -4000 | DP100: 0 | DQ100: 298.31256 | DR100: 17664.85929 | DS100: 5627.6884 | DU100: 403.07897 | DV100: 7078.12539 | DW100: -12476.10982 | DX100: 57005.30651 | DY100: 50758.76233 | DZ100: 3293.77043 | EA100: 2952.77375 | EB100: 20.5 | ED100: 85 | EE100: 48747 | EF100: 49525 | EG100: 52388.86571 | EK100: -5394 | EL100: 75 | EM100: 506 | EN100: -8773 | EO100: 0 | EP100: 512 | EQ100: -19393.97746 | ER100: 71 | ES100: 1219.17924 | ET100: 10000 | EU100: -3366 | EV100: 10000 | EW100: 795 | EX100: 20000 | EY100: -5088.48411 | EZ100: 39821 | FA100: 27814 | FB100: 12007 | FC100: 44 | FD100: 43674 | FE100: 30570 | FF100: 13104 | FG100: 45 | FH100: 51506.84135 | FI100: 42790.49948 | FJ100: 8716.34187 | FK100: 44.57646 | FL100: 4835.301262 | FM100: 4809.786633 | FN100: 5559.832677 | FO100: 2476.037187 | FP100: 164.6848811 | FV100: 5816 | FW100: -5816
A101: 280 | B101: Korsnäs | C101: 2077 | E101: 1.380156076 | F101: 25.99137931 | G101: -1249.39817 | K101: 65.34045035 | L101: 588.8300433 | M101: 27.37444042 | N101: 7851.227732 | O101: 5971 | P101: 2328 | Q101: 15633 | R101: -13305 | S101: 6917 | T101: 6995 | W101: -24 | X101: 12 | Y101: 595 | Z101: 1277 | AA101: 0 | AB101: 0 | AC101: -682 | AD101: 568 | AE101: 0 | AF101: 0 | AG101: -114 | AH101: 5015 | AI101: 595 | AK101: 5 | AL101: 0 | AM101: -52 | AN101: 6917 | AO101: 5472 | AP101: 717 | AQ101: 728 | AR101: 21.5 | AT101: 94 | AU101: 2068 | AW101: 27.27777778 | AX101: 31.26297789 | AY101: -1831.72147 | BC101: 61.14003471 | BD101: 465.1837524 | BE101: 19.95056818 | BF101: 8510.638298 | BG101: 6292 | BH101: 2228 | BI101: 15914 | BJ101: -13686 | BK101: 6606 | BL101: 7540 | BO101: -15 | BP101: 28 | BQ101: 473 | BR101: 1300 | BS101: 0 | BT101: 0 | BU101: -827 | BV101: 576 | BW101: 0 | BX101: 0 | BY101: -251 | BZ101: 4764 | CA101: 473 | CC101: 34 | CD101: 0 | CE101: -1195 | CF101: 6606 | CG101: 5300 | CH101: 648 | CI101: 658 | CJ101: 21.5 | CL101: 282.6911765 | CM101: 2050 | CO101: 1.026435057 | CP101: 49.45713571 | CQ101: -3300.340268 | CU101: 51.53458606 | CV101: 698.0186683 | CW101: 23.44767248 | CX101: 10865.76138 | CY101: 6503.94214 | CZ101: 2593.65276 | DA101: 16653.33748 | DB101: -14059.68472 | DC101: 7789.66759 | DD101: 7293.0909 | DG101: -8.39919 | DH101: 11.98251 | DI101: 1026.65709 | DJ101: 1437.98969 | DK101: 0 | DL101: 0 | DM101: -411.3326 | DN101: -194.58606 | DO101: 0 | DP101: 0 | DQ101: -216.74654 | DR101: 4548.00473 | DS101: 1025.23664 | DU101: -176.60508 | DV101: 1000 | DW101: -1982.84787 | DX101: 7789.66759 | DY101: 6188.62805 | DZ101: 883.47026 | EA101: 717.56928 | EB101: 21.5 | ED101: 111 | EE101: 7893 | EF101: 7685 | EG101: 8278.5531 | EK101: -650 | EL101: 3 | EM101: 0 | EN101: -1668 | EO101: 0 | EP101: 0 | EQ101: -4612.90501 | ER101: 1587.954 | ES101: 16.8665 | ET101: 1000 | EU101: -78 | EV101: 0 | EW101: 822 | EX101: 1965 | EY101: 1322 | EZ101: 2184 | FA101: 506 | FB101: 1678 | FC101: 0 | FD101: 3006 | FE101: 328 | FF101: 2678 | FG101: 0 | FH101: 6293 | FI101: 2115 | FJ101: 4178 | FK101: 0 | FL101: 2440.539239 | FM101: 3114.603482 | FN101: 4788.484771 | FO101: 287.8431651 | FP101: 140.4113001 | FV101: 240 | FW101: -240
A102: 284 | B102: Koski tl | C102: 2308 | E102: 7.131034483 | F102: 18.33988593 | G102: -692.8076256 | K102: 77.34999664 | L102: 337.5216638 | M102: 15.32968514 | N102: 8036.395147 | O102: 7358 | P102: 3512 | Q102: 17561 | R102: -14049 | S102: 6966 | T102: 7581 | W102: 0 | X102: 19 | Y102: 517 | Z102: 817 | AA102: 0 | AB102: 0 | AC102: -300 | AD102: 40 | AE102: 0 | AF102: 0 | AG102: -260 | AH102: 3260 | AI102: 495 | AK102: -308 | AL102: 0 | AM102: -408 | AN102: 6966 | AO102: 5858 | AP102: 580 | AQ102: 528 | AR102: 19.5 | AT102: 116 | AU102: 2292 | AW102: 19.57281553 | AX102: 21.92028051 | AY102: -446.3350785 | BC102: 74.80620155 | BD102: 1049.30192 | BE102: 45.48316062 | BF102: 8420.593368 | BG102: 7354 | BH102: 3373 | BI102: 17404 | BJ102: -14031 | BK102: 7535 | BL102: 8485 | BO102: -3 | BP102: 27 | BQ102: 2013 | BR102: 789 | BS102: 0 | BT102: 0 | BU102: 1224 | BV102: -467 | BW102: 0 | BX102: 0 | BY102: 758 | BZ102: 4018 | CA102: 2018 | CC102: 111 | CD102: -100 | CE102: 586 | CF102: 7535 | CG102: 6366 | CH102: 704 | CI102: 465 | CJ102: 20 | CL102: 64.09558824 | CM102: 2271 | CO102: 18.47457894 | CP102: 19.54855416 | CQ102: 253.0769793 | CU102: 77.75147179 | CV102: 1637.51218 | CW102: 77.87806791 | CX102: 7674.71461 | CY102: 7780.88893 | CZ102: 3542.95943 | DA102: 18248.298 | DB102: -14705.33857 | DC102: 8048.77688 | DD102: 8549.934 | DG102: -3.97225 | DH102: 27.47123 | DI102: 1916.87129 | DJ102: 763.59036 | DK102: 0 | DL102: 0 | DM102: 1153.28093 | DN102: -45.28064 | DO102: 0 | DP102: 0 | DQ102: 1198.56157 | DR102: 5215.9243 | DS102: 1916.87129 | DU102: 29.32684 | DV102: 100 | DW102: 1510.19529 | DX102: 8048.77688 | DY102: 6534.11012 | DZ102: 1001.35763 | EA102: 513.30913 | EB102: 20 | ED102: 245 | EE102: 8531 | EF102: 8273 | EG102: 8583.28735 | EK102: -985 | EL102: 53 | EM102: 29 | EN102: -1788 | EO102: 298 | EP102: 58 | EQ102: -448.276 | ER102: 40 | ES102: 1.6 | ET102: 0 | EU102: 0 | EV102: 500 | EW102: 100 | EX102: 0 | EY102: 0 | EZ102: 0 | FA102: 0 | FB102: 0 | FC102: 0 | FD102: 500 | FE102: 400 | FF102: 100 | FG102: 0 | FH102: 400 | FI102: 300 | FJ102: 100 | FK102: 0 | FL102: 590.1213172 | FM102: 743.4554974 | FN102: 630.4208631 | FO102: 326.705506 | FP102: 143.8597561 | FV102: 100 | FW102: -100
A103: 285 | B103: Kotka | C103: 52126 | E103: 0.5467381814 | F103: 79.59655579 | G103: -4109.177762 | K103: 48.17982089 | L103: 835.0918927 | M103: 34.0681902 | N103: 8947.013007 | O103: 92676 | P103: 81165 | Q103: 393669 | R103: -310247 | S103: 218060 | T103: 112480 | W103: 748 | X103: -109 | Y103: 20932 | Z103: 21647 | AA103: 586 | AB103: 0 | AC103: -129 | AD103: 271 | AE103: 0 | AF103: 0 | AG103: 142 | AH103: 9128 | AI103: 17323 | AK103: 4747 | AL103: -29246 | AM103: -17089 | AN103: 218060 | AO103: 193221 | AP103: 9538 | AQ103: 15301 | AR103: 21.5 | AT103: 56 | AU103: 51668 | AW103: 2.371822803 | AX103: 74.39986926 | AY103: -3530.405667 | BC103: 47.97691354 | BD103: 1317.004722 | BE103: 57.28099732 | BF103: 8392.080204 | BG103: 92174 | BH103: 74842 | BI103: 398533 | BJ103: -323691 | BK103: 225262 | BL103: 135894 | BO103: -2007 | BP103: 3164 | BQ103: 38622 | BR103: 36649 | BS103: 0 | BT103: 0 | BU103: 1973 | BV103: 271 | BW103: 0 | BX103: 0 | BY103: 2242 | BZ103: 11370 | CA103: 47618 | CC103: -2795 | CD103: -14065 | CE103: 31430 | CF103: 225262 | CG103: 200183 | CH103: 10994 | CI103: 14085 | CJ103: 21.5 | CL103: 105.3970588 | CM103: 51241 | CO103: 0.5890752781 | CP103: 69.19580503 | CQ103: -3581.961435 | CU103: 50.31242172 | CV103: 760.675263 | CW103: 29.75220983 | CX103: 9510.968368 | CY103: 97973.18063 | CZ103: 76793.42849 | DA103: 417673.3342 | DB103: -340879.9057 | DC103: 236752.225 | DD103: 125975.165 | DG103: -1493.712 | DH103: 3736.41702 | DI103: 24090.18933 | DJ103: 21119.40094 | DK103: 0 | DL103: 120.77047 | DM103: 2850.01792 | DN103: -270.73871 | DO103: 0 | DP103: 0 | DQ103: 3120.75663 | DR103: 19204.09662 | DS103: 18842.08383 | DU103: -6760.27313 | DV103: 43275.81536 | DW103: 1494.99036 | DX103: 236752.225 | DY103: 204221.2753 | DZ103: 16924.6025 | EA103: 15606.34723 | EB103: 21.5 | ED103: 96 | EE103: 247423 | EF103: 262043 | EG103: 277674.6662 | EK103: -41245 | EL103: 1457 | EM103: 5376 | EN103: -18666 | EO103: 815 | EP103: 1663 | EQ103: -24117.76986 | ER103: 301.494 | ES103: 6469.18239 | ET103: 0 | EU103: 4676 | EV103: 0 | EW103: 11269 | EX103: 30000 | EY103: -19860.8337 | EZ103: 297061 | FA103: 95302 | FB103: 201759 | FC103: 5263 | FD103: 294264 | FE103: 52026 | FF103: 242238 | FG103: 5263 | FH103: 261127.8634 | FI103: 73117.0359 | FJ103: 188010.8275 | FK103: 0 | FL103: 10462.20696 | FM103: 9850.778044 | FN103: 9750.293825 | FO103: 9498.663967 | FP103: 185.3723379 | FV103: 26950 | FW103: -26950
A104: 286 | B104: Kouvola | C104: 82113 | E104: -0.05330581294 | F104: 63.64670461 | G104: -3715.087745 | K104: 43.16779646 | L104: 339.4712165 | M104: 15.52240093 | N104: 7982.463191 | O104: 150723 | P104: 52221 | Q104: 578792 | R104: -523161 | S104: 338080 | T104: 172333 | W104: -860 | X104: 8422 | Y104: -5186 | Z104: 22575 | AA104: 0 | AB104: 0 | AC104: -27761 | AD104: 102 | AE104: 0 | AF104: 0 | AG104: -27659 | AH104: -13653 | AI104: -4618 | AK104: 5266 | AL104: -24023 | AM104: -45781 | AN104: 338080 | AO104: 286569 | AP104: 23064 | AQ104: 28447 | AR104: 20.75 | AT104: 250 | AU104: 81187 | AW104: 1.853980829 | AX104: 50.60741543 | AY104: -3180.238215 | BC104: 48.12951093 | BD104: 350.4625125 | BE104: 16.42889459 | BF104: 7786.209615 | BG104: 142960 | BH104: 49790 | BI104: 569660 | BJ104: -519870 | BK104: 354743 | BL104: 213734 | BO104: -788 | BP104: 10733 | BQ104: 58552 | BR104: 27503 | BS104: 0 | BT104: 0 | BU104: 31049 | BV104: 102 | BW104: 0 | BX104: 0 | BY104: 31149 | BZ104: 17955 | CA104: 72272 | CC104: -372 | CD104: -30310 | CE104: 45516 | CF104: 354743 | CG104: 302676 | CH104: 25999 | CI104: 26068 | CJ104: 21.25 | CL104: 122.5220588 | CM104: 80454 | CO104: 0.884253326 | CP104: 52.76878379 | CQ104: -3370.326895 | CU104: 47.66905614 | CV104: 376.414889 | CW104: 16.35231314 | CX104: 8401.957161 | CY104: 155567.1335 | CZ104: 52722.73291 | DA104: 600116.9355 | DB104: -547394.2026 | DC104: 370953.6883 | DD104: 193407.386 | DG104: -571.62967 | DH104: 12022.56513 | DI104: 28417.80723 | DJ104: 26660.65332 | DK104: 0 | DL104: 0 | DM104: 1757.15391 | DN104: -217.23289 | DO104: 0 | DP104: 0 | DQ104: 1974.3868 | DR104: 19930.24021 | DS104: 21788.01404 | DU104: 1963.59627 | DV104: 32460.2752 | DW104: -13251.59576 | DX104: 370953.6883 | DY104: 307316.111 | DZ104: 35841.16691 | EA104: 27796.41046 | EB104: 21.25 | ED104: 61 | EE104: 382710 | EF104: 385279 | EG104: 404193.5888 | EI104: 3300 | EK104: -46962 | EL104: 4800 | EM104: 999 | EN104: -30259 | EO104: 2308 | EP104: 1195 | EQ104: -40682.39946 | ER104: 1605.87457 | ES104: 4036.91509 | ET104: 70000 | EU104: 34089 | EV104: 33000 | EW104: -48542 | EX104: 10000 | EY104: 12641.61008 | EZ104: 312755 | FA104: 220300 | FB104: 92455 | FC104: 46372 | FD104: 266903 | FE104: 219690 | FF104: 47213 | FG104: 46140 | FH104: 257083.7572 | FI104: 186005.507 | FJ104: 71078.25024 | FK104: 39458.07767 | FL104: 5956.291939 | FM104: 5936.911082 | FN104: 6573.251404 | FO104: 14461.93463 | FP104: 179.7540785 | FV104: 21744 | FW104: -21744
A105: 287 | B105: Kristiinankaupunki | C105: 6486 | E105: 0.3005957648 | F105: 67.11249237 | G105: -4595.898859 | K105: 35.96458512 | L105: 565.2173913 | M105: 20.44227508 | N105: 10092.0444 | O105: 23523 | P105: 8695 | Q105: 52847 | R105: -44152 | S105: 24648 | T105: 20714 | W105: -369 | X105: 64 | Y105: 905 | Z105: 3095 | AA105: 0 | AB105: 0 | AC105: -2190 | AD105: 0 | AE105: 0 | AF105: 0 | AG105: -2190 | AH105: 7556 | AI105: 2112 | AK105: 687 | AL105: -5389 | AM105: -3565 | AN105: 24648 | AO105: 20363 | AP105: 1408 | AQ105: 2877 | AR105: 21.5 | AT105: 159 | AU105: 6404 | AW105: 0.754005655 | AX105: 71.36509721 | AY105: -4734.072455 | BC105: 33.63206976 | BD105: 1107.276702 | BE105: 40.88419739 | BF105: 9885.384135 | BG105: 23440 | BH105: 8820 | BI105: 52848 | BJ105: -44028 | BK105: 25119 | BL105: 23002 | BO105: -321 | BP105: -94 | BQ105: 3678 | BR105: 3594 | BS105: 0 | BT105: 0 | BU105: 84 | BV105: 0 | BW105: 0 | BX105: 0 | BY105: 83 | BZ105: 7639 | CA105: 2774 | CC105: -425 | CD105: -4984 | CE105: -479 | CF105: 25119 | CG105: 20980 | CH105: 1486 | CI105: 2653 | CJ105: 21.5 | CL105: 196.0588235 | CM105: 6380 | CO105: 0.7921878311 | CP105: 68.64531099 | CQ105: -4656.57011 | CU105: 35.40150206 | CV105: 977.3042445 | CW105: 35.69595083 | CX105: 9961.754089 | CY105: 21250.56277 | CZ105: 10087.00699 | DA105: 54386.82531 | DB105: -44299.81832 | DC105: 26808.09555 | DD105: 21772.521 | DG105: -180.16125 | DH105: -5.80248 | DI105: 4094.8345 | DJ105: 3088.87681 | DK105: 0 | DL105: 0 | DM105: 1005.95769 | DN105: 0 | DO105: 0 | DP105: 0 | DQ105: 1005.95769 | DR105: 8645.33597 | DS105: 2228.70729 | DU105: -1100.11872 | DV105: 5229.0988 | DW105: 483.66007 | DX105: 26808.09555 | DY105: 21778.19951 | DZ105: 2193.63715 | EA105: 2836.25889 | EB105: 21.5 | ED105: 187 | EE105: 24361 | EF105: 22767 | EG105: 27213.49701 | EK105: -6830 | EL105: 565 | EM105: 588 | EN105: -4977 | EO105: 60 | EP105: 1664 | EQ105: -3633.94567 | ER105: 1214.8094 | ES105: 674.08905 | ET105: 4000 | EU105: 410 | EV105: 7680 | EW105: 364 | EX105: 6280 | EY105: 0 | EZ105: 26737 | FA105: 21872 | FB105: 4865 | FC105: 0 | FD105: 29799 | FE105: 24569 | FF105: 5230 | FG105: 0 | FH105: 30848.4018 | FI105: 25796.303 | FJ105: 5052.0988 | FK105: 0 | FL105: 5865.710762 | FM105: 6586.35228 | FN105: 7170.796505 | FO105: 1012.939512 | FP105: 158.7679486 | FV105: 2310 | FW105: -2310
A106: 288 | B106: Kruunupyy | C106: 6428 | E106: 0.5854920418 | F106: 63.240012 | G106: -4052.738021 | K106: 30.21304724 | L106: 104.3870566 | M106: 4.871409818 | N106: 7821.406347 | O106: 9985 | P106: 3248 | Q106: 41519 | R106: -38271 | S106: 24129 | T106: 15950 | W106: -282 | X106: 229 | Y106: 1755 | Z106: 1192 | AA106: 0 | AB106: 0 | AC106: 563 | AD106: 0 | AE106: 0 | AF106: 0 | AG106: 563 | AH106: 6536 | AI106: 1138 | AK106: -71 | AL106: -3685 | AM106: -2511 | AN106: 24129 | AO106: 20132 | AP106: 2193 | AQ106: 1804 | AR106: 22 | AT106: 97 | AU106: 6416 | AW106: 1.126119917 | AX106: 61.76432263 | AY106: -4010.754364 | BC106: 34.54787723 | BD106: 250.7793017 | BE106: 11.70356716 | BF106: 7821.072319 | BG106: 10001 | BH106: 2620 | BI106: 41294 | BJ106: -38674 | BK106: 24590 | BL106: 18836 | BO106: -241 | BP106: 150 | BQ106: 4661 | BR106: 1511 | BS106: 0 | BT106: 0 | BU106: 3150 | BV106: 0 | BW106: 0 | BX106: 0 | BY106: 3150 | BZ106: 9693 | CA106: 4548 | CC106: -419 | CD106: -4112 | CE106: 317 | CF106: 24590 | CG106: 20637 | CH106: 2259 | CI106: 1694 | CJ106: 22 | CL106: 118.4926471 | CM106: 6442 | CO106: 1.009706242 | CP106: 59.31693143 | CQ106: -3858.796951 | CU106: 38.81964027 | CV106: 214.6099798 | CW106: 9.886717002 | CX106: 7923.018594 | CY106: 10432.74591 | CZ106: 2758.27371 | DA106: 43281.08849 | DB106: -40522.81478 | DC106: 26671.01782 | DD106: 18184.875 | DG106: -189.02011 | DH106: 138.90294 | DI106: 4282.96087 | DJ106: 1359.7726 | DK106: 0 | DL106: 0 | DM106: 2923.18827 | DN106: 0 | DO106: 0 | DP106: 0 | DQ106: 2923.18827 | DR106: 12616.47441 | DS106: 4072.25246 | DU106: -632.20596 | DV106: 4239.972 | DW106: 870.77868 | DX106: 26671.01782 | DY106: 21430.71888 | DZ106: 3337.68785 | EA106: 1902.61109 | EB106: 22 | ED106: 199 | EE106: 28992 | EF106: 28867 | EG106: 30301.53984 | EK106: -4746 | EL106: 186 | EM106: 911 | EN106: -4532 | EO106: 151 | EP106: 150 | EQ106: -3532.82132 | ER106: 71.43325 | ES106: 259.91429 | ET106: 5679 | EU106: 602 | EV106: 5895 | EW106: -1224 | EX106: 3639.502 | EY106: 738.50819 | EZ106: 24196 | FA106: 17106 | FB106: 7090 | FC106: 0 | FD106: 24755 | FE106: 18563 | FF106: 6192 | FG106: 0 | FH106: 24892.60471 | FI106: 17962.4055 | FJ106: 6930.19921 | FK106: 0 | FL106: 4452.08463 | FM106: 4689.993766 | FN106: 4764.614561 | FO106: 974.1235855 | FP106: 151.2144653 | FV106: 1528 | FW106: -1528
A107: 290 | B107: Kuhmo | C107: 8190 | E107: 0.2787359001 | F107: 72.26227724 | G107: -2720.512821 | K107: 39.82788892 | L107: 2731.990232 | M107: 111.4201615 | N107: 8949.69475 | O107: 15495 | P107: 5809 | Q107: 66242 | R107: -60433 | S107: 28258 | T107: 32092 | W107: -120 | X107: 1517 | Y107: 1314 | Z107: 2939 | AA107: 0 | AB107: 0 | AC107: -1625 | AD107: 43 | AE107: 0 | AF107: 0 | AG107: -1582 | AH107: -1764 | AI107: 1117 | AK107: 622 | AL107: -3226 | AM107: -720 | AN107: 28258 | AO107: 23205 | AP107: 2912 | AQ107: 2141 | AR107: 21.5 | AT107: 148 | AU107: 8042 | AW107: 0.6604712042 | AX107: 69.66364167 | AY107: -2576.100473 | BC107: 38.41359426 | BD107: 3028.226809 | BE107: 119.3502021 | BF107: 9261.004725 | BG107: 14737 | BH107: 6332 | BI107: 68525 | BJ107: -62193 | BK107: 28987 | BL107: 35025 | BO107: -119 | BP107: 643 | BQ107: 2343 | BR107: 3245 | BS107: 0 | BT107: 0 | BU107: -902 | BV107: 43 | BW107: 0 | BX107: 0 | BY107: -860 | BZ107: -2625 | CA107: 2746 | CC107: -677 | CD107: -3640 | CE107: 1575 | CF107: 28987 | CG107: 23643 | CH107: 3356 | CI107: 1988 | CJ107: 22 | CL107: 277.6544118 | CM107: 7928 | CO107: 2.266206425 | CP107: 61.36571144 | CQ107: -1866.6293 | CU107: 44.63529664 | CV107: 3375.358165 | CW107: 131.3054377 | CX107: 9382.747216 | CY107: 14947.07244 | CZ107: 5069.27008 | DA107: 67512.21192 | DB107: -62442.94184 | DC107: 31809.54374 | DD107: 35788.0823 | DG107: -108.18756 | DH107: 2942.69332 | DI107: 7989.18996 | DJ107: 2338.12094 | DK107: 0 | DL107: 0 | DM107: 5651.06902 | DN107: -42.44814 | DO107: 0 | DP107: 0 | DQ107: 5693.51716 | DR107: 3068.63939 | DS107: 7549.63987 | DU107: 919.02978 | DV107: 3432.66604 | DW107: 4540.14665 | DX107: 31809.54374 | DY107: 24521.8238 | DZ107: 5069.80887 | EA107: 2217.91107 | EB107: 22 | ED107: 267 | EE107: 45066 | EF107: 48283 | EG107: 46792.78522 | EJ107: 1450 | EK107: -2836 | EL107: 276 | EM107: 723 | EN107: -1354 | EO107: 39 | EP107: 144 | EQ107: -3106.13545 | ER107: 41.49231 | ES107: 55.14992 | ET107: 7000 | EU107: 0 | EV107: 0 | EW107: 3000 | EX107: 3000 | EY107: -2000 | EZ107: 40260 | FA107: 36620 | FB107: 3640 | FC107: 50 | FD107: 39621 | FE107: 33338 | FF107: 6283 | FG107: 50 | FH107: 37187.668 | FI107: 32605.002 | FJ107: 4582.666 | FK107: 0 | FL107: 7610.37851 | FM107: 7908.604825 | FN107: 7795.397419 | FO107: 1114.628355 | FP107: 140.5938893 | FV107: 3111 | FW107: -3111
A108: 291 | B108: Kuhmoinen | C108: 2206 | E108: 1.99682035 | F108: 24.15471444 | G108: 104.7144152 | K108: 77.77592252 | L108: 1617.407072 | M108: 64.51919742 | N108: 9150.045331 | O108: 4590 | P108: 2933 | Q108: 18634 | R108: -15701 | S108: 8139 | T108: 8241 | W108: 72 | X108: 189 | Y108: 940 | Z108: 1203 | AA108: 0 | AB108: 0 | AC108: -263 | AD108: 0 | AE108: 0 | AF108: 0 | AG108: -263 | AH108: 5947 | AI108: 940 | AK108: -739 | AL108: -47 | AM108: -553 | AN108: 8139 | AO108: 5657 | AP108: 1110 | AQ108: 1372 | AR108: 20.75 | AT108: 51 | AU108: 2161 | AW108: 41.1372549 | AX108: 27.31094467 | AY108: 363.257751 | BC108: 75.19725422 | BD108: 2218.880148 | BE108: 85.07145288 | BF108: 9520.12957 | BG108: 4586 | BH108: 2705 | BI108: 18661 | BJ108: -15956 | BK108: 8757 | BL108: 9233 | BO108: 58 | BP108: 2 | BQ108: 2094 | BR108: 1665 | BS108: 0 | BT108: 0 | BU108: 429 | BV108: 0 | BW108: 0 | BX108: 0 | BY108: 429 | BZ108: 6376 | CA108: 1973 | CC108: -314 | CD108: -47 | CE108: 656 | CF108: 8757 | CG108: 6141 | CH108: 1227 | CI108: 1389 | CJ108: 21.75 | CL108: 43.94852941 | CM108: 2158 | CO108: 54.98208461 | CP108: 37.29586189 | CQ108: -1340.290816 | CU108: 68.55348633 | CV108: 1954.698943 | CW108: 66.2418249 | CX108: 10770.61381 | CY108: 4895.19467 | CZ108: 3254.59329 | DA108: 20001.51391 | DB108: -16746.92062 | DC108: 9665.11547 | DD108: 8885.428 | DG108: 81.91045 | DH108: -517.68076 | DI108: 1367.85254 | DJ108: 1225.3424 | DK108: 0 | DL108: 0 | DM108: 142.51014 | DN108: 0 | DO108: 0 | DP108: 0 | DQ108: 142.51014 | DR108: 6518.72591 | DS108: 1299.84167 | DU108: 621.09213 | DV108: 47 | DW108: -3941.72392 | DX108: 9665.11547 | DY108: 6394.0643 | DZ108: 1728.22648 | EA108: 1542.82469 | EB108: 21.75 | ED108: 179 | EE108: 12263 | EF108: 12240 | EG108: 13057.03778 | EK108: -1496 | EL108: 3 | EM108: 0 | EN108: -1536 | EO108: 12 | EP108: 207 | EQ108: -5386.36673 | ER108: 33.6 | ES108: 111.20114 | ET108: 0 | EU108: 2000 | EV108: 0 | EW108: 1500 | EX108: 0 | EY108: 2500 | EZ108: 2418 | FA108: 371 | FB108: 2047 | FC108: 526 | FD108: 3871 | FE108: 324 | FF108: 3547 | FG108: 721 | FH108: 6324 | FI108: 277 | FJ108: 6047 | FK108: 462.7477 | FL108: 3766.999093 | FM108: 4021.286441 | FN108: 5077.489912 | FO108: 293.9799678 | FP108: 136.227974 | FV108: 780 | FW108: -780
A109: 297 | B109: Kuopio | C109: 119282 | E109: 0.3467387096 | F109: 58.07427341 | G109: -3551.893831 | K109: 53.92654447 | L109: 295.4175819 | M109: 11.17751855 | N109: 9646.811757 | O109: 338519 | P109: 186664 | Q109: 870959 | R109: -660008 | S109: 464000 | T109: 203289 | W109: 4234 | X109: 4971 | Y109: 16486 | Z109: 54646 | AA109: 92867 | AB109: 0 | AC109: 54707 | AD109: 211 | AE109: 0 | AF109: 0 | AG109: 54918 | AH109: 157061 | AI109: 11469 | AK109: 2649 | AL109: -51734 | AM109: 74613 | AN109: 464000 | AO109: 399893 | AP109: 24028 | AQ109: 40079 | AR109: 20.5 | AT109: 161 | AU109: 120210 | AW109: 1.097540836 | AX109: 62.12089382 | AY109: -3545.71999 | BC109: 51.50270478 | BD109: 828.9410199 | BE109: 36.42396976 | BF109: 8306.713252 | BG109: 331526 | BH109: 182647 | BI109: 872198 | BJ109: -689551 | BK109: 486187 | BL109: 248504 | BO109: 7134 | BP109: 4948 | BQ109: 57222 | BR109: 47831 | BS109: 9213 | BT109: 0 | BU109: 18604 | BV109: 171 | BW109: 0 | BX109: 402 | BY109: 19177 | BZ109: 176238 | CA109: 53668 | CC109: 4020 | CD109: -51788 | CE109: -6765 | CF109: 486187 | CG109: 421596 | CH109: 27485 | CI109: 37106 | CJ109: 20.75 | CL109: 235.3455882 | CM109: 121543 | CO109: 0.9731507539 | CP109: 56.47172287 | CQ109: -3629.839254 | CU109: 53.42445549 | CV109: 366.7688237 | CW109: 15.56395207 | CX109: 8601.325849 | CY109: 335783.0649 | CZ109: 190415.3408 | DA109: 896280.9131 | DB109: -705865.5723 | DC109: 524224.5467 | DD109: 230763.865 | DG109: 6853.23266 | DH109: 5123.31814 | DI109: 61099.39022 | DJ109: 48774.51883 | DK109: 0 | DL109: 0 | DM109: 12324.87139 | DN109: -145.42356 | DO109: 0 | DP109: 0 | DQ109: 12470.29495 | DR109: 188708.6448 | DS109: 43694.776 | DU109: -13589.922 | DV109: 62897.755 | DW109: -20653.433 | DX109: 524224.5467 | DY109: 437817.7577 | DZ109: 41721.98739 | EA109: 44684.80159 | EB109: 20.75 | ED109: 113 | EE109: 414031 | EF109: 416629 | EG109: 466338.6848 | EK109: -123173 | EL109: 1657 | EM109: 184660 | EN109: -81676 | EO109: 2923 | EP109: 18320 | EQ109: -81763.565 | ER109: 2378.266 | ES109: 15037.09 | ET109: 105000 | EU109: 0 | EV109: 115000 | EW109: 0 | EX109: 40000 | EY109: 0 | EZ109: 396294 | FA109: 346506 | FB109: 49788 | FC109: 256682 | FD109: 459505 | FE109: 396608 | FF109: 62897 | FG109: 260756 | FH109: 436608.1836 | FI109: 383004.9552 | FJ109: 53603.22839 | FK109: 208953.2512 | FL109: 9020.044936 | FM109: 9714.574495 | FN109: 9284.929938 | FO109: 21099.65097 | FP109: 173.5982407 | FV109: 12990 | FW109: -12990
A110: 300 | B110: Kuortane | C110: 3551 | E110: 0.7826086957 | F110: 41.4786785 | G110: -2533.652492 | K110: 59.42723267 | L110: 364.1227823 | M110: 15.84612027 | N110: 8387.214869 | O110: 7685 | P110: 2990 | Q110: 26551 | R110: -23561 | S110: 11113 | T110: 13381 | W110: -30 | X110: 31 | Y110: 934 | Z110: 1268 | AA110: 0 | AB110: 0 | AC110: -334 | AD110: 0 | AE110: 0 | AF110: 0 | AG110: -334 | AH110: 2256 | AI110: 940 | AK110: -33 | AL110: -338 | AM110: -1756 | AN110: 11113 | AO110: 9561 | AP110: 722 | AQ110: 830 | AR110: 21 | AT110: 103 | AU110: 3534 | AW110: 6.873350923 | AX110: 41.21814961 | AY110: -2747.594793 | BC110: 59.71656622 | BD110: 428.1267685 | BE110: 18.03720155 | BF110: 8663.554046 | BG110: 7768 | BH110: 2992 | BI110: 26796 | BJ110: -23804 | BK110: 11546 | BL110: 14818 | BO110: -25 | BP110: 29 | BQ110: 2564 | BR110: 1229 | BS110: 0 | BT110: 0 | BU110: 1335 | BV110: 0 | BW110: 0 | BX110: 0 | BY110: 1335 | BZ110: 3591 | CA110: 2533 | CC110: 234 | CD110: -338 | CE110: -803 | CF110: 11546 | CG110: 9895 | CH110: 826 | CI110: 825 | CJ110: 21 | CL110: 120.5073529 | CM110: 3528 | CO110: 3.925040447 | CP110: 43.47373358 | CQ110: -2872.133118 | CU110: 61.00977489 | CV110: 446.2636905 | CW110: 17.54413109 | CX110: 9284.372429 | CY110: 7964.59254 | CZ110: 3316.17169 | DA110: 28180.03148 | DB110: -24863.85979 | DC110: 11864.14224 | DD110: 14363.074 | DG110: -3.55923 | DH110: 37.32888 | DI110: 1397.1261 | DJ110: 1060.70543 | DK110: 3019.42957 | DL110: 0 | DM110: 3355.85024 | DN110: 0 | DO110: 0 | DP110: 0 | DQ110: 3355.85024 | DR110: 5679.57485 | DS110: 1484.70165 | DU110: -259.68865 | DV110: 337.886 | DW110: 814.90346 | DX110: 11864.14224 | DY110: 9779.14596 | DZ110: 1173.9758 | EA110: 911.02048 | EB110: 21 | ED110: 70 | EE110: 16551 | EF110: 16699 | EG110: 17694.41285 | EK110: -2800 | EL110: 84 | EM110: 20 | EN110: -3422 | EO110: 55 | EP110: 31 | EQ110: -4212.77876 | ER110: 495.773 | ES110: 3047.20757 | ET110: 0 | EU110: 1560 | EV110: 0 | EW110: 1240 | EX110: 0 | EY110: 1000 | EZ110: 8096 | FA110: 4998 | FB110: 3098 | FC110: 2145 | FD110: 8998 | FE110: 4660 | FF110: 4338 | FG110: 2117 | FH110: 9660.148 | FI110: 4322.262 | FJ110: 5337.886 | FK110: 2103.21874 | FL110: 5237.116305 | FM110: 5757.21562 | FN110: 5819.952653 | FO110: 465.6736171 | FP110: 131.9936557 | FV110: 0 | FW110: 0
A111: 301 | B111: Kurikka | C111: 20678 | E111: 0.3682198484 | F111: 64.11487191 | G111: -2666.989071 | K111: 52.22288235 | L111: 1749.105329 | M111: 77.6840693 | N111: 8218.202921 | O111: 44862 | P111: 20161 | Q111: 152925 | R111: -132764 | S111: 64910 | T111: 60761 | W111: 135 | X111: 10590 | Y111: 3632 | Z111: 14932 | AA111: 0 | AB111: 0 | AC111: -11300 | AD111: 305 | AE111: 0 | AF111: 0 | AG111: -10995 | AH111: 11520 | AI111: 3377 | AK111: 50 | AL111: -11236 | AM111: 153 | AN111: 64910 | AO111: 56851 | AP111: 3524 | AQ111: 4535 | AR111: 21 | AT111: 137 | AU111: 20456 | AW111: 1.263470468 | AX111: 60.20552526 | AY111: -2477.708252 | BC111: 52.38881385 | BD111: 1989.147438 | BE111: 86.77781803 | BF111: 8366.640594 | BG111: 43820 | BH111: 18182 | BI111: 156433 | BJ111: -138251 | BK111: 67889 | BL111: 69433 | BO111: 277 | BP111: 11923 | BQ111: 11271 | BR111: 7261 | BS111: 0 | BT111: 0 | BU111: 4010 | BV111: 292 | BW111: 0 | BX111: 0 | BY111: 4302 | BZ111: 12809 | CA111: 11417 | CC111: -64 | CD111: -8831 | CE111: 7335 | CF111: 67889 | CG111: 59870 | CH111: 3868 | CI111: 4151 | CJ111: 21 | CL111: 208.1470588 | CM111: 20197 | CO111: 0.2555130324 | CP111: 63.7121472 | CQ111: -3065.47016 | CU111: 49.62954271 | CV111: 1695.601523 | CW111: 65.2380474 | CX111: 9486.711826 | CY111: 45145.86798 | CZ111: 18640.86897 | DA111: 165951.5648 | DB111: -147310.6959 | DC111: 70579.98176 | DD111: 67666.743 | DG111: 295.89977 | DH111: 11025.36239 | DI111: 2257.29106 | DJ111: 7055.32295 | DK111: 0 | DL111: 0 | DM111: -4798.03189 | DN111: -291.639 | DO111: 0 | DP111: 0 | DQ111: -4506.39289 | DR111: 8303.13601 | DS111: 2175.10918 | DU111: -1549.50369 | DV111: 9884.2866 | DW111: -11755.40844 | DX111: 70579.98176 | DY111: 59826.01114 | DZ111: 5922.66112 | EA111: 4831.3095 | EB111: 21 | ED111: 11 | EE111: 95484 | EF111: 99634 | EG111: 106918.8244 | EK111: -5068 | EL111: 81 | EM111: 1763 | EN111: -4763 | EO111: 130 | EP111: 551 | EQ111: -14843.51016 | ER111: 243.94543 | ES111: 669.04711 | ET111: 12442 | EU111: -1000 | EV111: 7000 | EW111: -3000 | EX111: 16000 | EY111: -1000 | EZ111: 81568 | FA111: 58736 | FB111: 22832 | FC111: 23379 | FD111: 76737 | FE111: 55852 | FF111: 20885 | FG111: 23449 | FH111: 81851.7287 | FI111: 60307.3961 | FJ111: 21544.3326 | FK111: 22581.84605 | FL111: 6638.214528 | FM111: 6451.456785 | FN111: 6637.847179 | FO111: 2848.857673 | FP111: 141.0535066 | FV111: 1962 | FW111: -1962
A112: 304 | B112: Kustavi | C112: 949 | E112: 1.205557535 | F112: 37.98373182 | G112: -1265.542677 | K112: 71.80725087 | L112: 1412.012645 | M112: 53.65291795 | N112: 9605.900948 | O112: 2591 | P112: 1396 | Q112: 7691 | R112: -6295 | S112: 4586 | T112: 2132 | W112: -20 | X112: 0 | Y112: 403 | Z112: 392 | AA112: 0 | AB112: 0 | AC112: 11 | AD112: 28 | AE112: 0 | AF112: 0 | AG112: 39 | AH112: 3672 | AI112: 403 | AK112: -34 | AL112: -353 | AM112: -544 | AN112: 4586 | AO112: 2913 | AP112: 232 | AQ112: 1441 | AR112: 18.5 | AT112: 53 | AU112: 962 | AW112: 2.147321429 | AX112: 34.65024402 | AY112: -1117.463617 | BC112: 73.7400298 | BD112: 1215.176715 | BE112: 47.65300424 | BF112: 9307.692308 | BG112: 2763 | BH112: 1530 | BI112: 7646 | BJ112: -6116 | BK112: 4653 | BL112: 2423 | BO112: -20 | BP112: 2 | BQ112: 942 | BR112: 412 | BS112: 0 | BT112: 0 | BU112: 530 | BV112: -472 | BW112: 0 | BX112: 0 | BY112: 58 | BZ112: 3730 | CA112: 937 | CC112: -197 | CD112: -428 | CE112: 120 | CF112: 4653 | CG112: 3114 | CH112: 258 | CI112: 1281 | CJ112: 18.25 | CL112: 39.91911765 | CM112: 971 | CO112: 0.4265868609 | CP112: 31.04131356 | CQ112: -1688.890628 | CU112: 73.81553721 | CV112: 642.0272091 | CW112: 24.92351014 | CX112: 9402.364676 | CY112: 3365.96714 | CZ112: 1582.7203 | DA112: 8777.99456 | DB112: -7195.27426 | DC112: 5020.34059 | DD112: 2369.48096 | DG112: -16.02221 | DH112: 4.0469 | DI112: 182.57198 | DJ112: 506.59889 | DK112: 0 | DL112: 0 | DM112: -324.02691 | DN112: -32.21451 | DO112: -290.98163 | DP112: -4.07398 | DQ112: 3.24321 | DR112: 3733.68175 | DS112: 182.57198 | DU112: 216.42514 | DV112: 449.52 | DW112: -643.89225 | DX112: 5020.34059 | DY112: 3180.24954 | DZ112: 378.16029 | EA112: 1461.93076 | EB112: 18.25 | ED112: 17 | EE112: 4117 | EF112: 3843 | EG112: 4267.04311 | EK112: -1046 | EL112: 50 | EM112: 49 | EN112: -860 | EO112: 19 | EP112: 24 | EQ112: -826.46423 | ER112: 0 | ES112: 0 | ET112: 780 | EU112: 0 | EV112: 850 | EW112: 0 | EX112: 0 | EY112: 0 | EZ112: 2084 | FA112: 1698 | FB112: 386 | FC112: 0 | FD112: 2505 | FE112: 2056 | FF112: 449 | FG112: 0 | FH112: 2055.571 | FI112: 1657.876 | FJ112: 397.695 | FK112: 0 | FL112: 4635.40569 | FM112: 4951.143451 | FN112: 4331.61792 | FO112: 174.2602488 | FP112: 179.4647258 | FV112: 174 | FW112: -174
A113: 305 | B113: Kuusamo | C113: 15134 | E113: 0.7392201258 | F113: 37.46096694 | G113: -780.8907097 | K113: 62.74230146 | L113: 1659.970926 | M113: 70.04346431 | N113: 8650.191622 | O113: 52372 | P113: 22401 | Q113: 119513 | R113: -96328 | S113: 52605 | T113: 45725 | W113: -371 | X113: 1661 | Y113: 3292 | Z113: 6023 | AA113: 0 | AB113: 0 | AC113: -2731 | AD113: 0 | AE113: 0 | AF113: 474 | AG113: -2257 | AH113: 13192 | AI113: 3298 | AK113: 1658 | AL113: -5255 | AM113: -2859 | AN113: 52605 | AO113: 41462 | AP113: 3766 | AQ113: 7377 | AR113: 20 | AT113: 120 | AU113: 15213 | AW113: 1.595646788 | AX113: 37.4395479 | AY113: -1005.915993 | BC113: 61.47929087 | BD113: 1549.530007 | BE113: 61.84693071 | BF113: 9144.81036 | BG113: 51545 | BH113: 24238 | BI113: 120695 | BJ113: -96457 | BK113: 53888 | BL113: 51454 | BO113: -337 | BP113: 123 | BQ113: 8671 | BR113: 7929 | BS113: 0 | BT113: 0 | BU113: 742 | BV113: 0 | BW113: 0 | BX113: 862 | BY113: 1604 | BZ113: 14796 | CA113: 8211 | CC113: -1068 | CD113: -5305 | CE113: -2520 | CF113: 53888 | CG113: 42693 | CH113: 4396 | CI113: 6799 | CJ113: 20 | CL113: 198.0735294 | CM113: 15165 | CO113: 1.147502092 | CP113: 40.59629315 | CQ113: -1560.541223 | CU113: 58.99799113 | CV113: 1573.729157 | CW113: 56.50806941 | CX113: 10165.11709 | CY113: 55244.79559 | CZ113: 27060.21731 | DA113: 126260.8066 | DB113: -99200.58932 | DC113: 58416.26171 | DD113: 49895.077 | DG113: -306.51326 | DH113: 801.90647 | DI113: 9606.1426 | DJ113: 8183.30568 | DK113: 0 | DL113: 0 | DM113: 1422.83692 | DN113: 0 | DO113: 0 | DP113: -694.58266 | DQ113: 2117.41958 | DR113: 16913.90283 | DS113: 9418.70121 | DU113: 2312.17899 | DV113: 8330.43074 | DW113: -7291.60916 | DX113: 58416.26171 | DY113: 44181.335 | DZ113: 6659.91918 | EA113: 7575.00753 | EB113: 20 | ED113: 177 | EE113: 46775 | EF113: 46407 | EG113: 56503.87226 | EK113: -6324 | EL113: 45 | EM113: 122 | EN113: -12997 | EO113: 1581 | EP113: 685 | EQ113: -18396.77423 | ER113: 1436.45353 | ES113: 250.01033 | ET113: 0 | EU113: 0 | EV113: 7000 | EW113: 0 | EX113: 14000 | EY113: 0 | EZ113: 29381 | FA113: 24426 | FB113: 4955 | FC113: 4100 | FD113: 31076 | FE113: 23096 | FF113: 7980 | FG113: 4273 | FH113: 36746.04154 | FI113: 30959.52762 | FJ113: 5786.51392 | FK113: 4286.33249 | FL113: 3609.752874 | FM113: 3866.232827 | FN113: 4402.786691 | FO113: 2209.06675 | FP113: 145.6687603 | FV113: 4686 | FW113: -4686
A114: 312 | B114: Kyyjärvi | C114: 1313 | E114: -1.077786688 | F114: 107.1726439 | G114: -4145.468393 | K114: 11.0674483 | L114: 4581.873572 | M114: 167.8263528 | N114: 9964.965727 | O114: 2531 | P114: 2034 | Q114: 12782 | R114: -10745 | S114: 4415 | T114: 4342 | W114: 2 | X114: 471 | Y114: -1515 | Z114: 2662 | AA114: 196 | AB114: 0 | AC114: -3981 | AD114: 0 | AE114: 0 | AF114: 0 | AG114: -3981 | AH114: -3769 | AI114: 149 | AK114: 134 | AL114: -140 | AM114: 662 | AN114: 4415 | AO114: 3310 | AP114: 720 | AQ114: 385 | AR114: 21.75 | AT114: 291 | AU114: 1288 | AW114: 13.14705882 | AX114: 120.5323869 | AY114: -4972.826087 | BC114: 5.808553407 | BD114: 5257.763975 | BE114: 237.2832869 | BF114: 8087.732919 | BG114: 2333 | BH114: 1516 | BI114: 10189 | BJ114: -8673 | BK114: 4656 | BL114: 5121 | BO114: 51 | BP114: 184 | BQ114: 1339 | BR114: 2219 | BS114: 0 | BT114: 0 | BU114: -880 | BV114: 0 | BW114: 0 | BX114: 0 | BY114: -880 | BZ114: -4649 | CA114: -908 | CC114: -300 | CD114: -100 | CE114: -1002 | CF114: 4656 | CG114: 3324 | CH114: 927 | CI114: 405 | CJ114: 22.5 | CL114: 27.83088235 | CM114: 1232 | CO114: 22.11731861 | CP114: 104.7764262 | CQ114: -4436.492167 | CU114: 11.4999115 | CV114: 5294.923263 | CW114: 213.7168057 | CX114: 9043.027687 | CY114: 2505.54082 | CZ114: 1677.96404 | DA114: 10590.38368 | DB114: -8912.41964 | DC114: 5138.14028 | DD114: 4842.383 | DG114: 43.66191 | DH114: 31.26013 | DI114: 1143.02568 | DJ114: 362.12313 | DK114: 0 | DL114: 0 | DM114: 780.90255 | DN114: 0 | DO114: 0 | DP114: 0 | DQ114: 780.90255 | DR114: -3883.82436 | DS114: 1267.21151 | DU114: 207.53495 | DV114: 51.68012 | DW114: 828.38907 | DX114: 5138.14028 | DY114: 3216.0606 | DZ114: 1476.58169 | EA114: 445.49799 | EB114: 22.5 | ED114: 259 | EE114: 6865 | EF114: 6808 | EG114: 6856.10306 | EH114: 200 | EI114: 180 | EK114: -196 | EL114: 0 | EM114: 709 | EN114: -114 | EO114: 0 | EP114: 20 | EQ114: -497.13571 | ER114: 26.77 | ES114: 31.54327 | ET114: 0 | EU114: -100 | EV114: 0 | EW114: 2200 | EX114: 0 | EY114: -1500 | EZ114: 10952 | FA114: 52 | FB114: 10900 | FC114: 570 | FD114: 13052 | FE114: 52 | FF114: 13000 | FG114: 527 | FH114: 11500 | FI114: 0 | FJ114: 11500 | FK114: 0 | FL114: 12939.83244 | FM114: 15223.60248 | FN114: 14562.72347 | FO114: 142.9360267 | FP114: 116.0195022 | FV114: 780 | FW114: -780
A115: 316 | B115: Kärkölä | C115: 4368 | E115: 0.1476483429 | F115: 80.61685622 | G115: -3013.736264 | K115: 38.90114185 | L115: 1747.02381 | M115: 85.35009499 | N115: 7471.153846 | O115: 6071 | P115: 2737 | Q115: 26365 | R115: -23628 | S115: 15837 | T115: 7980 | W115: -59 | X115: 124 | Y115: 254 | Z115: 956 | AA115: 0 | AB115: 0 | AC115: -702 | AD115: 0 | AE115: 0 | AF115: 0 | AG115: -702 | AH115: 3465 | AI115: 134 | AK115: 608 | AL115: -598 | AM115: -5171 | AN115: 15837 | AO115: 14235 | AP115: 698 | AQ115: 904 | AR115: 22 | AT115: 210 | AU115: 4326 | AW115: 9.197979798 | AX115: 63.40740741 | AY115: -2675.913084 | BC115: 47.44051517 | BD115: 1247.803976 | BE115: 66.7254809 | BF115: 6825.705039 | BG115: 6136 | BH115: 2619 | BI115: 25339 | BJ115: -22720 | BK115: 17244 | BL115: 9837 | BO115: 29 | BP115: 133 | BQ115: 4523 | BR115: 1071 | BS115: 0 | BT115: 0 | BU115: 3452 | BV115: 0 | BW115: 0 | BX115: 0 | BY115: 3452 | BZ115: 6917 | CA115: 4510 | CC115: -1358 | CD115: -465 | CE115: 1444 | CF115: 17244 | CG115: 15411 | CH115: 837 | CI115: 996 | CJ115: 22 | CL115: 25.81617647 | CM115: 4245 | CO115: 62.47754021 | CP115: 80.5612917 | CQ115: -4677.400528 | CU115: 42.89829899 | CV115: 365.9744287 | CW115: 15.2684536 | CX115: 8748.801289 | CY115: 6601.58556 | CZ115: 2974.00208 | DA115: 27324.10008 | DB115: -24350.098 | DC115: 16957.37902 | DD115: 8738.095 | DG115: 4.59779 | DH115: 88.94552 | DI115: 1438.91933 | DJ115: 1081.67375 | DK115: 0 | DL115: 0 | DM115: 357.24558 | DN115: 0 | DO115: 0 | DP115: 0 | DQ115: 357.24558 | DR115: 7226.52081 | DS115: 1438.91933 | DU115: 171.04218 | DV115: 0 | DW115: -8313.42004 | DX115: 16957.37902 | DY115: 14745.41784 | DZ115: 1113.53611 | EA115: 1098.42507 | EB115: 22 | ED115: 53 | EE115: 17960 | EF115: 16865 | EG115: 18080.59621 | EK115: -5531 | EL115: 0 | EM115: 226 | EN115: -3682 | EO115: 600 | EP115: 16 | EQ115: -9755.5015 | ER115: 0 | ES115: 3.16213 | ET115: 0 | EU115: 10000 | EV115: 6000 | EW115: -7000 | EX115: 7500 | EY115: -4064.923 | EZ115: 17694 | FA115: 7229 | FB115: 10465 | FC115: 3536 | FD115: 16229 | FE115: 12164 | FF115: 4065 | FG115: 3434 | FH115: 19664.052 | FI115: 15149.129 | FJ115: 4514.923 | FK115: 3331.112 | FL115: 4266.941392 | FM115: 4074.895978 | FN115: 5290.943006 | FO115: 670.2462655 | FP115: 157.8907575 | FV115: 524 | FW115: -524
A116: 317 | B116: Kärsämäki | C116: 2576 | E116: 0.859654097 | F116: 70.75716736 | G116: -1512.810559 | K116: 48.37545126 | L116: 3781.444099 | M116: 161.7370241 | N116: 8533.773292 | O116: 5633 | P116: 1952 | Q116: 19532 | R116: -17580 | S116: 7511 | T116: 10942 | W116: -48 | X116: 637 | Y116: 1462 | Z116: 638 | AA116: 0 | AB116: 0 | AC116: 824 | AD116: 0 | AE116: 55 | AF116: 0 | AG116: 879 | AH116: 6336 | AI116: 1477 | AK116: 3805 | AL116: -976 | AM116: 787 | AN116: 7511 | AO116: 6295 | AP116: 621 | AQ116: 595 | AR116: 21.5 | AT116: 19 | AU116: 2538 | AW116: 1.865092749 | AX116: 66.39988567 | AY116: -1016.548463 | BC116: 51.76600823 | BD116: 4182.821119 | BE116: 177.0222486 | BF116: 8624.507486 | BG116: 5482 | BH116: 1910 | BI116: 19697 | BJ116: -17787 | BK116: 7023 | BL116: 12058 | BO116: -54 | BP116: 907 | BQ116: 2147 | BR116: 719 | BS116: 0 | BT116: 0 | BU116: 1428 | BV116: 0 | BW116: 55 | BX116: 0 | BY116: 1484 | BZ116: 7821 | CA116: 2119 | CC116: 59 | CD116: -1121 | CE116: 1360 | CF116: 7023 | CG116: 5788 | CH116: 702 | CI116: 533 | CJ116: 21.5 | CL116: 71.14705882 | CM116: 2533 | CO116: 2.775960844 | CP116: 60.88076378 | CQ116: -562.4145756 | CU116: 54.95718832 | CV116: 4264.075871 | CW116: 183.7704735 | CX116: 8469.193462 | CY116: 5730.36012 | CZ116: 2047.82606 | DA116: 20536.84705 | DB116: -18489.02099 | DC116: 8035.74455 | DD116: 11860.191 | DG116: -36.01326 | DH116: 778.06434 | DI116: 2148.96564 | DJ116: 807.26023 | DK116: 0 | DL116: 0 | DM116: 1341.70541 | DN116: 0 | DO116: -53.83409 | DP116: 0 | DQ116: 1395.5395 | DR116: 9215.8636 | DS116: 2146.99295 | DU116: -392.80433 | DV116: 738.576 | DW116: 1201.24821 | DX116: 8035.74455 | DY116: 6313.2459 | DZ116: 1134.6038 | EA116: 587.89485 | EB116: 21.5 | ED116: 247 | EE116: 12145 | EF116: 12478 | EG116: 13052.01127 | EK116: -891 | EL116: 163 | EM116: 38 | EN116: -802 | EO116: 0 | EP116: 43 | EQ116: -1211.36974 | ER116: 256 | ES116: 9.625 | ET116: 0 | EU116: 932 | EV116: 3950 | EW116: -3500 | EX116: 0 | EY116: -300 | EZ116: 12445 | FA116: 6824 | FB116: 5621 | FC116: 1890 | FD116: 11774 | FE116: 10035 | FF116: 1739 | FG116: 1435 | FH116: 10335.412 | FI116: 8896.836 | FJ116: 1438.576 | FK116: 139 | FL116: 8148.291925 | FM116: 8774.62569 | FN116: 9703.505093 | FO116: 293.6393442 | FP116: 115.9255208 | FV116: 1691 | FW116: -1691
A117: 398 | B117: Lahti | C117: 119823 | E117: 0.3188904932 | F117: 121.5037462 | G117: -6701.601529 | K117: 38.12084027 | L117: 336.3377649 | M117: 15.23875652 | N117: 8055.99092 | O117: 161824 | P117: 93283 | Q117: 745758 | R117: -651477 | S117: 475356 | T117: 193870 | W117: -4639 | X117: 13333 | Y117: 26443 | Z117: 47927 | AA117: 941 | AB117: 0 | AC117: -20543 | AD117: 227 | AE117: 0 | AF117: 0 | AG117: -20316 | AH117: 131404 | AI117: 25956 | AK117: -16174 | AL117: -44601 | AM117: -66186 | AN117: 475356 | AO117: 403837 | AP117: 29403 | AQ117: 42116 | AR117: 20.75 | AT117: 119 | AU117: 119984 | AW117: 2.004780846 | AX117: 112.1207732 | AY117: -6248.058074 | BC117: 39.42273179 | BD117: 606.7892386 | BE117: 29.33834821 | BF117: 7549.098213 | BG117: 163827 | BH117: 88073 | BI117: 756311 | BJ117: -668238 | BK117: 504619 | BL117: 243834 | BO117: -3482 | BP117: 16154 | BQ117: 92887 | BR117: 50704 | BS117: 0 | BT117: 0 | BU117: 42183 | BV117: 273 | BW117: 0 | BX117: -136 | BY117: 42320 | BZ117: 173724 | CA117: 93281 | CC117: -30959 | CD117: -40345 | CE117: 9338 | CF117: 504619 | CG117: 434333 | CH117: 32227 | CI117: 38059 | CJ117: 20.75 | CL117: 97.33823529 | CM117: 120027 | CO117: 2.074690485 | CP117: 105.6015568 | CQ117: -5530.809077 | CU117: 41.33034846 | CV117: 1293.60917 | CW117: 62.79879963 | CX117: 7518.732042 | CY117: 173080.1385 | CZ117: 116313.5646 | DA117: 791493.9567 | DB117: -675180.3921 | DC117: 519177.3487 | DD117: 224004.155 | DG117: -3682.29469 | DH117: 15922.73914 | DI117: 80241.55606 | DJ117: 52268.53426 | DK117: 0 | DL117: 0 | DM117: 27973.0218 | DN117: -212.29069 | DO117: 10000 | DP117: 138.8588 | DQ117: 18046.45369 | DR117: 190728.6497 | DS117: 53942.77207 | DU117: 26820.76964 | DV117: 32650 | DW117: 44970.07401 | DX117: 519177.3487 | DY117: 431589.1244 | DZ117: 45619.22819 | EA117: 41968.99616 | EB117: 20.75 | ED117: 202 | EE117: 504871 | EF117: 504647 | EG117: 533010.341 | EK117: -102365 | EL117: 628 | EM117: 9595 | EN117: -94469 | EO117: 1304 | EP117: 9222 | EQ117: -69188.39248 | ER117: 2986.78951 | ES117: 57228.90491 | ET117: 90000 | EU117: -771 | EV117: 60000 | EW117: 12264 | EX117: 0 | EY117: 487.76235 | EZ117: 841790 | FA117: 764770 | FB117: 77020 | FC117: 478109 | FD117: 873709 | FE117: 792120 | FF117: 81589 | FG117: 433734 | FH117: 841546.5787 | FI117: 754920 | FJ117: 86626.57873 | FK117: 288948.863 | FL117: 9955.94335 | FM117: 10364.06521 | FN117: 10330.21215 | FO117: 20799.47587 | FP117: 173.2899754 | FV117: 19835 | FW117: -19835
A118: 399 | B118: Laihia | C118: 8017 | E118: 0.2766775052 | F118: 74.16044411 | G118: -4232.38119 | K118: 28.50078132 | L118: 260.4465511 | M118: 13.20671669 | N118: 7198.079082 | O118: 16249 | P118: 4842 | Q118: 49962 | R118: -45120 | S118: 30725 | T118: 15591 | W118: -149 | X118: 86 | Y118: 1133 | Z118: 2045 | AA118: 945 | AB118: 0 | AC118: 33 | AD118: 34 | AE118: 0 | AF118: 0 | AG118: 67 | AH118: -2527 | AI118: 1011 | AK118: 1666 | AL118: -2710 | AM118: -587 | AN118: 30725 | AO118: 28304 | AP118: 998 | AQ118: 1423 | AR118: 21.75 | AT118: 158 | AU118: 7996 | AW118: 1.467793031 | AX118: 63.26707001 | AY118: -3960.605303 | BC118: 32.62245794 | BD118: 161.4557279 | BE118: 8.433981851 | BF118: 6987.368684 | BG118: 16275 | BH118: 4973 | BI118: 51413 | BJ118: -46440 | BK118: 31291 | BL118: 19272 | BO118: -122 | BP118: 38 | BQ118: 4039 | BR118: 2073 | BS118: 0 | BT118: 0 | BU118: 1966 | BV118: 0 | BW118: 0 | BX118: 0 | BY118: 1966 | BZ118: -561 | CA118: 3980 | CC118: -255 | CD118: -2710 | CE118: 2463 | CF118: 31291 | CG118: 28891 | CH118: 1046 | CI118: 1354 | CJ118: 21.75 | CL118: 225.2720588 | CM118: 7916 | CO118: 1.286368813 | CP118: 57.84316191 | CQ118: -3711.898686 | CU118: 36.39122791 | CV118: 264.8900695 | CW118: 12.76369092 | CX118: 7574.994228 | CY118: 16931.16959 | CZ118: 5646.49411 | DA118: 53983.28537 | DB118: -48336.79126 | DC118: 32848.8991 | DD118: 19148.374 | DG118: -79.29717 | DH118: 59.27265 | DI118: 3640.45732 | DJ118: 2161.87371 | DK118: 916.01471 | DL118: 256.99046 | DM118: 2137.60786 | DN118: 0 | DO118: 0 | DP118: 0 | DQ118: 2137.60786 | DR118: 1576.85386 | DS118: 3621.326 | DU118: 313.061 | DV118: 2809.997 | DW118: 2302.782 | DX118: 32848.8991 | DY118: 29921.50473 | DZ118: 1434.83398 | EA118: 1492.56039 | EB118: 21.75 | ED118: 90 | EE118: 24903 | EF118: 25535 | EG118: 31624.02694 | EI118: 800 | EJ118: 1470 | EK118: -3515 | EL118: 60 | EM118: 1857 | EN118: -1604 | EO118: 8 | EP118: 79 | EQ118: -3044.716 | ER118: 193.723 | ES118: 1532.449 | ET118: 4000 | EU118: 0 | EV118: 0 | EW118: 0 | EX118: 2000 | EY118: -1500 | EZ118: 32575 | FA118: 20865 | FB118: 11710 | FC118: 2112 | FD118: 29865 | FE118: 18155 | FF118: 11710 | FG118: 2067 | FH118: 27555.02388 | FI118: 17145.02652 | FJ118: 10409.99736 | FK118: 2042.15642 | FL118: 5383.93414 | FM118: 5174.962481 | FN118: 5403.80192 | FO118: 1375.701367 | FP118: 173.787439 | FV118: 926 | FW118: -926
A119: 400 | B119: Laitila | C119: 8588 | E119: 0.03333002678 | F119: 61.48264826 | G119: -3669.888216 | K119: 47.45341961 | L119: 162.5523987 | M119: 7.61906186 | N119: 7787.261295 | O119: 27899 | P119: 9119 | Q119: 59563 | R119: -50444 | S119: 30346 | T119: 20212 | W119: -10 | X119: 12 | Y119: 116 | Z119: 2786 | AA119: 0 | AB119: 0 | AC119: -2670 | AD119: 121 | AE119: 0 | AF119: 0 | AG119: -2549 | AH119: 2372 | AI119: 116 | AK119: 462 | AL119: -1130 | AM119: -5933 | AN119: 30346 | AO119: 26313 | AP119: 1934 | AQ119: 2099 | AR119: 20.75 | AT119: 225 | AU119: 8468 | AW119: 3.946621622 | AX119: 58.58382495 | AY119: -3820.028342 | BC119: 48.88900688 | BD119: 145.0165328 | BE119: 6.727201777 | BF119: 7868.209731 | BG119: 28279 | BH119: 9059 | BI119: 58321 | BJ119: -49262 | BK119: 30985 | BL119: 24030 | BO119: -25 | BP119: 88 | BQ119: 5816 | BR119: 3010 | BS119: 0 | BT119: 0 | BU119: 2806 | BV119: 121 | BW119: 0 | BX119: 0 | BY119: 2927 | BZ119: 5299 | CA119: 5746 | CC119: -183 | CD119: -1455 | CE119: -771 | CF119: 30985 | CG119: 27007 | CH119: 2097 | CI119: 1881 | CJ119: 20.75 | CL119: 141.6617647 | CM119: 8456 | CO119: 2.456206851 | CP119: 57.69311018 | CQ119: -3737.309335 | CU119: 49.36058066 | CV119: 350.2799823 | CW119: 0 | CX119: 8096.747223 | CY119: 30486.65201 | CZ119: 11077.83114 | DA119: 61683.02896 | DB119: -50605.19782 | DC119: 31900.53198 | DD119: 23606.51 | DG119: -10.50592 | DH119: 39.13416 | DI119: 4930.4724 | DJ119: 3528.20476 | DK119: 0 | DL119: 0 | DM119: 1402.26764 | DN119: -104.91091 | DO119: -27.71975 | DP119: 0 | DQ119: 1534.8983 | DR119: 7068.98814 | DS119: 4758.28863 | DU119: 111.10577 | DV119: 2000 | DW119: 525.5696 | DX119: 31900.53198 | DY119: 26699.065 | DZ119: 3120.233 | EA119: 2079.991 | EB119: 20.75 | ED119: 152 | EE119: 25197 | EF119: 21843 | EG119: 24531.03274 | EK119: -6061 | EL119: 8 | EM119: 4 | EN119: -6731 | EO119: 0 | EP119: 214 | EQ119: -4678.64743 | ER119: 0 | ES119: 445.9284 | ET119: 0 | EU119: 5500 | EV119: 10000 | EW119: -8600 | EX119: 0 | EY119: 2100 | EZ119: 27455 | FA119: 7825 | FB119: 19630 | FC119: 774 | FD119: 27400 | FE119: 15500 | FF119: 11900 | FG119: 774 | FH119: 27500 | FI119: 13500 | FJ119: 14000 | FK119: 0 | FL119: 5552.049371 | FM119: 5519.130846 | FN119: 5403.072692 | FO119: 1286.701928 | FP119: 152.1643718 | FV119: 271 | FW119: -271
A120: 407 | B120: Lapinjärvi | C120: 2606 | E120: 0.1816593886 | F120: 53.74694831 | G120: -3283.576362 | K120: 43.04794903 | L120: 277.8204144 | M120: 12.57363087 | N120: 8064.850345 | O120: 4892 | P120: 2776 | Q120: 19497 | R120: -16714 | S120: 8840 | T120: 7226 | W120: -33 | X120: 855 | Y120: 174 | Z120: 584 | AA120: 0 | AB120: 0 | AC120: -410 | AD120: 0 | AE120: 0 | AF120: 0 | AG120: -410 | AH120: 407 | AI120: 238 | AK120: 131 | AL120: -402 | AM120: -273 | AN120: 8840 | AO120: 7678 | AP120: 601 | AQ120: 561 | AR120: 20.5 | AT120: 203 | AU120: 2621 | AW120: 6.944444444 | AX120: 45.37032474 | AY120: -2180.083937 | BC120: 51.8289193 | BD120: 917.2071728 | BE120: 45.43364573 | BF120: 7368.561618 | BG120: 4422 | BH120: 2839 | BI120: 18272 | BJ120: -15433 | BK120: 8781 | BL120: 8679 | BO120: -27 | BP120: 970 | BQ120: 2970 | BR120: 712 | BS120: 0 | BT120: 0 | BU120: 2258 | BV120: 0 | BW120: -1000 | BX120: 0 | BY120: 1258 | BZ120: 1665 | CA120: 2943 | CC120: -242 | CD120: -402 | CE120: 2596 | CF120: 8781 | CG120: 7630 | CH120: 619 | CI120: 532 | CJ120: 21 | CL120: 13 | CM120: 2580 | CO120: 1.802030868 | CP120: 40.76869732 | CQ120: -638.6552597 | CU120: 62.11031313 | CV120: 2380.246988 | CW120: 102.1403683 | CX120: 8505.845093 | CY120: 4094.18881 | CZ120: 3569.2668 | DA120: 20184.58435 | DB120: -16615.31755 | DC120: 9580.67367 | DD120: 7932.171 | DG120: -16.35273 | DH120: 854.24244 | DI120: 1735.41683 | DJ120: 564.46206 | DK120: 2998.9498 | DL120: 0 | DM120: 4169.90457 | DN120: 0 | DO120: 0 | DP120: 0 | DQ120: 4169.90457 | DR120: 5834.59271 | DS120: 1307.22595 | DU120: 286.46545 | DV120: 951.27506 | DW120: 4254.9083 | DX120: 9580.67367 | DY120: 7991.58786 | DZ120: 919.92387 | EA120: 669.16194 | EB120: 21.5 | ED120: 203 | EE120: 12213 | EF120: 11796 | EG120: 13797.14826 | EI120: 360 | EK120: -1087 | EL120: 28 | EM120: 548 | EN120: -610 | EO120: 13 | EP120: 250 | EQ120: -782.41545 | ER120: 29.7978 | ES120: 3700.3 | ET120: 1000 | EU120: 100 | EV120: 0 | EW120: 0 | EX120: 0 | EY120: 0 | EZ120: 7956 | FA120: 4554 | FB120: 3402 | FC120: 251 | FD120: 7554 | FE120: 4152 | FF120: 3402 | FG120: 251 | FH120: 6602.828 | FI120: 2563.979 | FJ120: 4038.849 | FK120: 250.53358 | FL120: 7514.198005 | FM120: 6978.252575 | FN120: 6509.058795 | FO120: 371.7017609 | FP120: 144.07045 | FV120: 213 | FW120: -213
A121: 402 | B121: Lapinlahti | C121: 9485 | E121: 0.5594798805 | F121: 55.67325592 | G121: -3727.042699 | K121: 48.63916649 | L121: 3.057459146 | M121: 0.1424898366 | N121: 7831.945177 | O121: 31425 | P121: 7702 | Q121: 66670 | R121: -58968 | S121: 30200 | T121: 29784 | W121: 292 | X121: 832 | Y121: 2140 | Z121: 2686 | AA121: 0 | AB121: 0 | AC121: -546 | AD121: 59 | AE121: 0 | AF121: 0 | AG121: -487 | AH121: 1113 | AI121: 2378 | AK121: 202 | AL121: -2737 | AM121: -2203 | AN121: 30200 | AO121: 26302 | AP121: 1645 | AQ121: 2253 | AR121: 21.25 | AT121: 115 | AU121: 9358 | AW121: 1.587438017 | AX121: 58.66316331 | AY121: -4052.147895 | BC121: 47.04537116 | BD121: 218.3158795 | BE121: 9.441806579 | BF121: 8439.623851 | BG121: 32597 | BH121: 7473 | BI121: 68462 | BJ121: -60989 | BK121: 30831 | BL121: 33641 | BO121: 194 | BP121: 871 | BQ121: 4548 | BR121: 2679 | BS121: 0 | BT121: 0 | BU121: 1869 | BV121: 59 | BW121: 0 | BX121: 0 | BY121: 1928 | BZ121: 3041 | CA121: 4619 | CC121: 70 | CD121: -2771 | CE121: -2605 | CF121: 30831 | CG121: 26879 | CH121: 1897 | CI121: 2055 | CJ121: 21.25 | CL121: 233.3308824 | CM121: 9247 | CO121: 0.6538833613 | CP121: 62.62407519 | CQ121: -4483.534729 | CU121: 44.28770486 | CV121: 236.1561533 | CW121: 9.783437661 | CX121: 8810.501887 | CY121: 34466.81181 | CZ121: 8753.46696 | DA121: 72757.71092 | DB121: -64004.24396 | DC121: 32667.74927 | DD121: 32107.626 | DG121: 207.1776 | DH121: 893.05782 | DI121: 1871.36673 | DJ121: 3195.62205 | DK121: 0 | DL121: 0 | DM121: -1324.25532 | DN121: -58.67876 | DO121: 0 | DP121: 0 | DQ121: -1265.57656 | DR121: 1775.57769 | DS121: 1477.76087 | DU121: -166.23328 | DV121: 2992.43556 | DW121: -3561.80824 | DX121: 32667.74927 | DY121: 27614.5067 | DZ121: 2790.9159 | EA121: 2262.32667 | EB121: 21.25 | ED121: 20 | EE121: 25934 | EF121: 26505 | EG121: 29738.47302 | EK121: -4621 | EL121: 0 | EM121: 40 | EN121: -7483 | EO121: 217 | EP121: 42 | EQ121: -5472.1574 | ER121: 372.25229 | ES121: 60.336 | ET121: 4000 | EU121: 525 | EV121: 7000 | EW121: -525 | EX121: 5500 | EY121: 1500 | EZ121: 30231 | FA121: 27035 | FB121: 3196 | FC121: 10351 | FD121: 33935 | FE121: 30943 | FF121: 2992 | FG121: 10351 | FH121: 37942.94263 | FI121: 33075.50707 | FJ121: 4867.43556 | FK121: 138.29437 | FL121: 5920.084344 | FM121: 6405.107929 | FN121: 6715.534697 | FO121: 1299.506198 | FP121: 140.5327347 | FV121: 1488 | FW121: -1488
A122: 403 | B122: Lappajärvi | C122: 2996 | E122: 0.4818104392 | F122: 41.29856763 | G122: -2805.740988 | K122: 63.89220218 | L122: 77.10280374 | M122: 3.249007745 | N122: 8661.88251 | O122: 4573 | P122: 2554 | Q122: 22839 | R122: -20285 | S122: 9693 | T122: 11071 | W122: -17 | X122: 14 | Y122: 476 | Z122: 906 | AA122: 0 | AB122: 0 | AC122: -430 | AD122: 27 | AE122: 0 | AF122: 0 | AG122: -403 | AH122: 894 | AI122: 476 | AK122: 4610 | AL122: -300 | AM122: -1922 | AN122: 9693 | AO122: 8040 | AP122: 656 | AQ122: 997 | AR122: 21.5 | AT122: 149 | AU122: 2925 | AW122: 2.616407982 | AX122: 64.10373444 | AY122: -4463.247863 | BC122: 52.84706169 | BD122: 425.982906 | BE122: 15.41713278 | BF122: 10085.12821 | BG122: 4294 | BH122: 2393 | BI122: 22944 | BJ122: -20551 | BK122: 9475 | BL122: 12232 | BO122: -13 | BP122: 11 | BQ122: 1154 | BR122: 921 | BS122: 0 | BT122: 0 | BU122: 233 | BV122: 27 | BW122: 0 | BX122: 0 | BY122: 260 | BZ122: 1154 | CA122: 1145 | CC122: -154 | CD122: -425 | CE122: -4484 | CF122: 9475 | CG122: 8124 | CH122: 648 | CI122: 703 | CJ122: 21.5 | CL122: 257.5073529 | CM122: 2866 | CO122: 2.574761155 | CP122: 64.36368324 | CQ122: -4611.085 | CU122: 52.50870639 | CV122: 631.5096581 | CW122: 26.35705107 | CX122: 8745.326804 | CY122: 4510.15856 | CZ122: 2528.56492 | DA122: 23322.6386 | DB122: -20794.07368 | DC122: 10560.51676 | DD122: 11647.968 | DG122: 19.41799 | DH122: 15.83497 | DI122: 1449.66404 | DJ122: 1076.82203 | DK122: 0 | DL122: 0 | DM122: 372.84201 | DN122: -26.78713 | DO122: 0 | DP122: 0 | DQ122: 399.62914 | DR122: 1553.82841 | DS122: 1439.07638 | DU122: 251.33189 | DV122: 550 | DW122: -239.26797 | DX122: 10560.51676 | DY122: 8590.40933 | DZ122: 994.07832 | EA122: 976.02911 | EB122: 22 | ED122: 117 | EE122: 16130 | EF122: 16538 | EG122: 16850.55644 | EK122: -2792 | EL122: 251 | EM122: 143 | EN122: -5940 | EO122: 302 | EP122: 9 | EQ122: -2088.5893 | ER122: 385.041 | ES122: 25.20395 | ET122: 0 | EU122: 0 | EV122: 5000 | EW122: 500 | EX122: 0 | EY122: 1700 | EZ122: 7400 | FA122: 300 | FB122: 7100 | FC122: 1810 | FD122: 12475 | FE122: 4625 | FF122: 7850 | FG122: 1970 | FH122: 13625 | FI122: 4375 | FJ122: 9250 | FK122: 1970.53121 | FL122: 5005.006676 | FM122: 7076.239316 | FN122: 7091.409351 | FO122: 390.4731514 | FP122: 136.2432489 | FV122: 651 | FW122: -651
A123: 405 | B123: Lappeenranta | C123: 72634 | E123: 0.9057366213 | F123: 63.68158984 | G123: -3193.779773 | K123: 48.23344001 | L123: 607.2225129 | M123: 29.4451212 | N123: 7527.094749 | O123: 103121 | P123: 46050 | Q123: 436615 | R123: -389688 | S123: 295558 | T123: 109860 | W123: 5274 | X123: 5440 | Y123: 26444 | Z123: 26247 | AA123: 0 | AB123: 0 | AC123: 197 | AD123: 119 | AE123: 33 | AF123: 0 | AG123: 349 | AH123: 59557 | AI123: 12359 | AK123: -1551 | AL123: -62709 | AM123: -22478 | AN123: 295558 | AO123: 247955 | AP123: 21726 | AQ123: 25877 | AR123: 21 | AT123: 68 | AU123: 72662 | AW123: 1.228004838 | AX123: 59.54295664 | AY123: -3051.705155 | BC123: 47.06064126 | BD123: 782.59613 | BE123: 38.5405158 | BF123: 7411.618177 | BG123: 104252 | BH123: 40479 | BI123: 463144 | BJ123: -422665 | BK123: 305197 | BL123: 144505 | BO123: 5235 | BP123: 4029 | BQ123: 36301 | BR123: 30939 | BS123: 0 | BT123: 0 | BU123: 5362 | BV123: 161 | BW123: 168 | BX123: 0 | BY123: 5691 | BZ123: 65248 | CA123: 51164 | CC123: -1326 | CD123: -29138 | CE123: 10521 | CF123: 305197 | CG123: 255268 | CH123: 25511 | CI123: 24418 | CJ123: 21 | CL123: 228.2941176 | CM123: 72634 | CO123: 2.457592174 | CP123: 61.66478478 | CQ123: -3021.469513 | CU123: 49.03304026 | CV123: 1080.910642 | CW123: 54.85238191 | CX123: 7192.620822 | CY123: 107774.3799 | CZ123: 44006.89214 | DA123: 459641.6352 | DB123: -415634.743 | DC123: 332456.2687 | DD123: 129806.695 | DG123: 5100.864 | DH123: 4616.41717 | DI123: 56345.50182 | DJ123: 30386.11599 | DK123: 0 | DL123: 0 | DM123: 25959.38583 | DN123: -1246.61804 | DO123: 0 | DP123: 0 | DQ123: 27206.00387 | DR123: 92454.66834 | DS123: 35654.7073 | DU123: -905.7532 | DV123: 21501.92387 | DW123: 1966.75025 | DX123: 332456.2687 | DY123: 268248.0698 | DZ123: 37365.72893 | EA123: 26842.46997 | EB123: 21 | ED123: 236 | EE123: 304937 | EF123: 327277 | EG123: 325159.3303 | EI123: 3300 | EK123: -45944 | EL123: 1465 | EM123: 9642 | EN123: -44198 | EO123: 1556 | EP123: 1999 | EQ123: -39157.94333 | ER123: 610.49222 | ES123: 4859.49406 | ET123: 70000 | EU123: 15386 | EV123: 70000 | EW123: -40194 | EX123: 0 | EY123: 39637.68747 | EZ123: 227324 | FA123: 132252 | FB123: 95072 | FC123: 119769 | FD123: 227993 | FE123: 180750 | FF123: 47243 | FG123: 119736 | FH123: 246128.2785 | FI123: 180000 | FJ123: 66128.27848 | FK123: 89041.27573 | FL123: 6827.862984 | FM123: 6976.397567 | FN123: 6983.676008 | FO123: 12773.71761 | FP123: 175.8641629 | FV123: 21416 | FW123: -21416
A124: 408 | B124: Lapua | C124: 14278 | E124: 0.4172958133 | F124: 90.99426021 | G124: -5521.081384 | K124: 33.17791321 | L124: 585.3761031 | M124: 25.00692663 | N124: 8544.123827 | O124: 42583 | P124: 12799 | Q124: 95772 | R124: -82820 | S124: 49872 | T124: 36810 | W124: -378 | X124: 285 | Y124: 3769 | Z124: 5386 | AA124: 0 | AB124: 0 | AC124: -1617 | AD124: 0 | AE124: 0 | AF124: 0 | AG124: -1617 | AH124: 15074 | AI124: 3061 | AK124: 62 | AL124: -7432 | AM124: -13998 | AN124: 49872 | AO124: 44615 | AP124: 2326 | AQ124: 2931 | AR124: 21.5 | AT124: 102 | AU124: 14221 | AW124: 1.148396193 | AX124: 85.42158956 | AY124: -5610.857183 | BC124: 35.35601243 | BD124: 440.4050348 | BE124: 18.96902383 | BF124: 8474.228254 | BG124: 43185 | BH124: 12140 | BI124: 95984 | BJ124: -83844 | BK124: 50679 | BL124: 42767 | BO124: -375 | BP124: 118 | BQ124: 9345 | BR124: 6134 | BS124: 0 | BT124: 0 | BU124: 3211 | BV124: 0 | BW124: 0 | BX124: 0 | BY124: 3211 | BZ124: 19485 | CA124: 9275 | CC124: -623 | CD124: -8082 | CE124: -3978 | CF124: 50679 | CG124: 45582 | CH124: 2323 | CI124: 2774 | CJ124: 21.5 | CL124: 155.7647059 | CM124: 14203 | CO124: 0.9146974694 | CP124: 79.74440336 | CQ124: -5475.967648 | CU124: 36.82170158 | CV124: 297.3438492 | CW124: 13.16754083 | CX124: 8242.27594 | CY124: 46604.93064 | CZ124: 14426.49277 | DA124: 101184.3819 | DB124: -86757.88916 | DC124: 53484.81833 | DD124: 41409.681 | DG124: -278.1588 | DH124: 112.73417 | DI124: 7971.18554 | DJ124: 6499.00689 | DK124: 0 | DL124: 0 | DM124: 1472.17865 | DN124: 0 | DO124: 0 | DP124: 0 | DQ124: 1472.17865 | DR124: 20957.38016 | DS124: 7841.64222 | DU124: -976.62111 | DV124: 8747.4423 | DW124: 1605.6399 | DX124: 53484.81833 | DY124: 46831.55402 | DZ124: 3557.9119 | EA124: 3095.35241 | EB124: 21.5 | ED124: 138 | EE124: 38872 | EF124: 39118 | EG124: 42883.41047 | EK124: -17990 | EL124: 82 | EM124: 849 | EN124: -16111 | EO124: 96 | EP124: 2762 | EQ124: -6683.10188 | ER124: 74.75838 | ES124: 372.34118 | ET124: 18000 | EU124: 2000 | EV124: 10000 | EW124: 1000 | EX124: 5000 | EY124: 0 | EZ124: 67858 | FA124: 42776 | FB124: 25082 | FC124: 1748 | FD124: 70776 | FE124: 44029 | FF124: 26747 | FG124: 474 | FH124: 67029.186 | FI124: 40500 | FJ124: 26529.186 | FK124: 399.39845 | FL124: 7877.083625 | FM124: 8625.835033 | FN124: 8432.404906 | FO124: 2178.211815 | FP124: 153.3627976 | FV124: 2937 | FW124: -2937
A125: 410 | B125: Laukaa | C125: 18903 | E125: 0.241888636 | F125: 96.07838199 | G125: -5635.560493 | K125: 22.51859451 | L125: 272.0732159 | M125: 14.04045655 | N125: 7072.898482 | O125: 42742 | P125: 13474 | Q125: 116749 | R125: -103275 | S125: 67580 | T125: 38055 | W125: 491 | X125: 309 | Y125: 3160 | Z125: 7108 | AA125: 0 | AB125: 0 | AC125: -3948 | AD125: 0 | AE125: 0 | AF125: 0 | AG125: -3948 | AH125: 993 | AI125: 1936 | AK125: 1293 | AL125: -10011 | AM125: -3099 | AN125: 67580 | AO125: 60024 | AP125: 2696 | AQ125: 4860 | AR125: 21.5 | AT125: 141 | AU125: 18823 | AW125: 1.274629211 | AX125: 84.58828274 | AY125: -5675.450247 | BC125: 24.90691984 | BD125: 76.98029007 | BE125: 3.622797764 | BF125: 7755.830633 | BG125: 43434 | BH125: 13169 | BI125: 119166 | BJ125: -105997 | BK125: 71756 | BL125: 46488 | BO125: 281 | BP125: 275 | BQ125: 12803 | BR125: 8705 | BS125: 0 | BT125: 0 | BU125: 4098 | BV125: 0 | BW125: 0 | BX125: 0 | BY125: 4098 | BZ125: 5091 | CA125: 13108 | CC125: -116 | CD125: -10007 | CE125: -1165 | CF125: 71756 | CG125: 63721 | CH125: 2857 | CI125: 5178 | CJ125: 21.5 | CL125: 143.6764706 | CM125: 18788 | CO125: 207.8753045 | CP125: 92.0434255 | CQ125: -6268.588625 | CU125: 21.27434293 | CV125: 98.01040398 | CW125: 4.555899295 | CX125: 7852.192319 | CY125: 46637.38258 | CZ125: 15945.66075 | DA125: 130131.8452 | DB125: -114186.1844 | DC125: 75420.85657 | DD125: 42663.925 | DG125: 354.34771 | DH125: 274.97622 | DI125: 4527.92109 | DJ125: 6777.449 | DK125: 0 | DL125: 0 | DM125: -2249.52791 | DN125: 0 | DO125: 0 | DP125: 0 | DQ125: -2249.52791 | DR125: 1841.32739 | DS125: 4058.92157 | DU125: -868.13794 | DV125: 9.63204 | DW125: -11688.38371 | DX125: 75420.85657 | DY125: 65449.56868 | DZ125: 4117.90819 | EA125: 5853.3797 | EB125: 21.5 | ED125: 25 | EE125: 56901 | EF125: 57549 | EG125: 68766.20416 | EK125: -6892 | EL125: 44 | EM125: 1813 | EN125: -16447 | EO125: 674 | EP125: 1500 | EQ125: -17338.7483 | ER125: 201.4 | ES125: 1390.04302 | ET125: 0 | EU125: 20000 | EV125: 34994 | EW125: -29000 | EX125: 19991.716 | EY125: -9997.348 | EZ125: 98080 | FA125: 8067 | FB125: 90013 | FC125: 22003 | FD125: 94067 | FE125: 33052 | FF125: 61015 | FG125: 21230 | FH125: 104051.8241 | FI125: 53033.9081 | FJ125: 51017.91604 | FK125: 20486.60575 | FL125: 7650.108448 | FM125: 7827.817032 | FN125: 8617.191517 | FO125: 3044.165985 | FP125: 162.0271442 | FV125: 63 | FW125: -63
